Workbook

Sheet Read Me First (hidden)

Sheet B-1
A1: TABLE B-1. Sacramento River fall Chinook salmon escapement in numbers of fish.a/b/
B2: Upper Sacramento Natural Areasc/d/e/ | E2: Lower Sacramento Natural Areasc/ | N2: Natural Area Totalsc/ | Q2: Sacramento Hatcheries | AA2: Hatchery Totals | AD2: Sacramento Totals
A3: Year or Average | E3: Feather River | I3: Yuba River | K3: American Riverf/ | Q3: Coleman | T3: Feather River | W3: Nimbus
B4: Adults | D4: Jacks | E4: Adults | G4: Jacks | I4: Adults | J4: Jacks | K4: Adults | L4: Jacks | N4: Adults | O4: Jacks | Q4: Adults | R4: Jacks | T4: Adults | U4: Jacks | W4: Adults | Y4: Jacks | AA4: Adultsg/ | AB4: Jacks | AD4: Adults | AE4: Jacks
A5: 1970 | B5: 61,160 | D5: 20,061 | E5: 45,140 | G5: 13,030 | I5: 11,852 | J5: 1,978 | K5: 25,238 | L5: 3,442 | N5: 143,390 | O5: 38,511 | Q5: 3,010 | R5: 502 | T5: 2,439 | U5: 916 | W5: 7,827 | Y5: 802 | AA5: 13,275 | AB5: 2,221 | AD5: =N5+AA5 -> 156,665 | AE5: =O5+AB5 -> 40,732
A6: 1971 | B6: 67,586 | D6: 19,396 | E6: 33,582 | G6: 9,918 | I6: 5,255 | J6: 396 | K6: 35,720 | L6: 5,960 | N6: 142,143 | O6: 35,670 | Q6: 1,503 | R6: 501 | T6: 2,326 | U6: 1,215 | W6: 8,684 | Y6: 1,426 | AA6: 12,739 | AB6: 3,211 | AD6: 154,882 | AE6: 38,881
A7: 1972 | B7: 36,485 | D7: 17,905 | E7: 27,130 | G7: 16,070 | I7: 5,555 | J7: 3,703 | K7: 14,962 | L7: 2,497 | N7: 84,132 | O7: 40,175 | Q7: 1,188 | R7: 1,634 | T7: 1,414 | U7: 2,221 | W7: 5,352 | Y7: 1,901 | AA7: 8,025 | AB7: 5,795 | AD7: 92,157 | AE7: 45,970
A8: 1973 | B8: 48,948 | D8: 17,283 | E8: 52,080 | G8: 13,020 | I8: 22,117 | J8: 2,002 | K8: 77,225 | L8: 5,017 | N8: 200,370 | O8: 37,322 | Q8: 1,047 | R8: 2,788 | T8: 7,180 | U8: 1,297 | W8: 10,830 | Y8: 1,705 | AA8: 19,689 | AB8: 6,044 | AD8: 220,059 | AE8: 43,366
A9: 1974 | B9: 66,304 | D9: 14,894 | E9: 53,558 | G9: 6,960 | I9: 16,758 | J9: 1,051 | K9: 51,613 | L9: 1,983 | N9: 188,233 | O9: 24,888 | Q9: 1,305 | R9: 302 | T9: 4,321 | U9: 1,107 | W9: 7,478 | Y9: 722 | AA9: 13,783 | AB9: 2,295 | AD9: 202,016 | AE9: 27,183
A10: 1975 | B10: 72,985 | D10: 21,969 | E10: 34,754 | G10: 2,755 | I10: 4,699 | J10: 925 | K10: 29,112 | L10: 3,020 | N10: 141,550 | O10: 28,669 | Q10: 1,823 | R10: 608 | T10: 4,170 | U10: 1,095 | W10: 6,612 | Y10: 800 | AA10: 14,071 | AB10: 2,981 | AD10: 155,621 | AE10: 31,650
A11: 1976 | B11: 80,263 | D11: 12,392 | E11: 50,724 | G11: 6,078 | I11: 3,087 | J11: 692 | K11: 22,163 | L11: 996 | N11: 156,237 | O11: 20,158 | Q11: 1,799 | R11: 498 | T11: 4,299 | U11: 899 | W11: 4,313 | Y11: 902 | AA11: 11,628 | AB11: 2,512 | AD11: 167,865 | AE11: 22,670
A12: 1977 | B12: 60,967 | D12: 12,425 | E12: 35,672 | G12: 1,996 | I12: 6,786 | J12: 1,936 | K12: 39,608 | L12: 1,997 | N12: 143,033 | O12: 18,354 | Q12: 4,741 | R12: 503 | T12: 8,529 | U12: 255 | W12: 6,367 | Y12: 501 | AA12: 20,978 | AB12: 1,587 | AD12: 164,011 | AE12: 19,941
A13: 1978 | B13: 66,991 | D13: 16,610 | E13: 29,007 | G13: 3,993 | I13: 6,363 | J13: 1,053 | K13: 11,933 | L13: 996 | N13: 114,294 | O13: 22,652 | Q13: 1,090 | R13: 792 | T13: 3,864 | U13: 895 | W13: 6,073 | Y13: 2,089 | AA13: 12,654 | AB13: 4,201 | AD13: 126,948 | AE13: 26,853
A14: 1979 | B14: 81,332 | D14: 37,431 | E14: 25,289 | G14: 3,126 | I14: 10,441 | J14: 1,989 | K14: 39,523 | L14: 1,987 | N14: 156,585 | O14: 44,533 | Q14: 4,766 | R14: 3,963 | T14: 3,505 | U14: 585 | W14: 5,900 | Y14: 4,451 | AA14: 15,812 | AB14: 9,814 | AD14: 172,397 | AE14: 54,347
A15: 1980 | B15: 45,504 | D15: 10,666 | E15: 29,077 | G15: 2,528 | I15: 10,260 | J15: 2,146 | K15: 32,352 | L15: 2,147 | N15: 117,193 | O15: 17,487 | Q15: 8,800 | R15: 703 | T15: 1,107 | U15: 2,583 | W15: 13,538 | Y15: 2,005 | AA15: 24,916 | AB15: 5,685 | AD15: 142,109 | AE15: 23,172
A16: 1981 | B16: 51,831 | D16: 34,050 | E16: 40,488 | G16: 4,250 | I16: 12,047 | J16: 1,978 | K16: 39,662 | L16: 3,913 | N16: 144,028 | O16: 44,191 | Q16: 4,438 | R16: 5,834 | T16: 7,255 | U16: 1,027 | W16: 17,792 | Y16: 2,801 | AA16: 30,930 | AB16: 10,601 | AD16: 174,958 | AE16: 54,792
A17: 1982 | B17: 39,694 | D17: 11,717 | E17: 40,427 | G17: 7,529 | I17: 23,463 | J17: 15,904 | K17: 29,391 | L17: 4,387 | N17: 132,975 | O17: 39,537 | Q17: 16,225 | R17: 3,300 | T17: 6,451 | U17: 1,112 | W17: 8,097 | Y17: 2,801 | AA17: 31,666 | AB17: 7,575 | AD17: 164,641 | AE17: 47,112
A18: 1983 | B18: 42,570 | D18: 23,474 | E18: 18,441 | G18: 4,382 | I18: 11,390 | J18: 2,366 | K18: 19,261 | L18: 7,567 | N18: 91,662 | O18: 37,789 | Q18: 5,367 | R18: 3,389 | T18: 6,075 | U18: 1,624 | W18: 6,399 | Y18: 2,412 | AA18: 18,586 | AB18: 7,947 | AD18: 110,248 | AE18: 45,736
A19: 1984 | B19: 51,772 | D19: 23,455 | E19: 35,378 | G19: 6,391 | I19: 7,104 | J19: 2,561 | K19: 25,993 | L19: 2,600 | N19: 120,247 | O19: 35,007 | Q19: 18,668 | R19: 2,913 | T19: 8,842 | U19: 446 | W19: 10,289 | Y19: 1,960 | AA19: 38,725 | AB19: 5,599 | AD19: 158,972 | AE19: 40,606
A20: 1985 | B20: 103,698 | D20: 19,463 | E20: 46,527 | G20: 3,664 | I20: 10,121 | J20: 2,921 | K20: 49,707 | L20: 7,241 | N20: 210,053 | O20: 33,289 | Q20: 13,089 | R20: 3,231 | T20: 5,602 | U20: 209 | W20: 7,784 | Y20: 1,309 | AA20: 29,254 | AB20: 6,722 | AD20: 239,307 | AE20: 40,011
A21: 1986 | B21: 113,875 | D21: 13,291 | E21: 40,566 | G21: 6,277 | I21: 16,940 | J21: 2,442 | K21: 46,875 | L21: 6,725 | N21: 218,256 | O21: 28,735 | Q21: 11,283 | R21: 1,198 | T21: 5,781 | U21: 2,847 | W21: 4,784 | Y21: 911 | AA21: 21,847 | AB21: 4,957 | AD21: 240,103 | AE21: 33,692
A22: 1987 | B22: 76,861 | D22: 39,160 | E22: 51,278 | G22: 16,460 | I22: 12,352 | J22: 6,166 | K22: 34,741 | L22: 5,655 | N22: 175,232 | O22: 67,441 | Q22: 9,981 | R22: 6,275 | T22: 6,510 | U22: 3,598 | W22: 3,342 | Y22: 2,916 | AA22: 19,833 | AB22: 12,789 | AD22: 195,065 | AE22: 80,230
A23: 1988 | B23: 128,725 | D23: 13,335 | E23: 40,215 | G23: 2,341 | I23: 7,110 | J23: 1,890 | K23: 24,646 | L23: 3,170 | N23: 200,696 | O23: 20,736 | Q23: 12,594 | R23: 1,021 | T23: 6,156 | U23: 324 | W23: 8,021 | Y23: 604 | AA23: 26,771 | AB23: 1,949 | AD23: 227,467 | AE23: 22,685
A24: 1989 | B24: 67,296 | D24: 14,911 | E24: 36,487 | G24: 4,054 | I24: 6,402 | J24: 1,220 | K24: 17,435 | L24: 3,061 | N24: 127,620 | O24: 23,246 | Q24: 10,212 | R24: 1,774 | T24: 6,479 | U24: 1,099 | W24: 8,251 | Y24: 1,490 | AA24: 24,942 | AB24: 4,363 | AD24: 152,562 | AE24: 27,609
A25: 1990 | B25: 50,225 | D25: 5,523 | E25: 25,000 | G25: 3,000 | I25: 3,500 | J25: 500 | K25: 4,618 | L25: 975 | N25: 83,343 | O25: 9,998 | Q25: 13,464 | R25: 1,171 | T25: 4,258 | U25: 1,868 | W25: 4,026 | Y25: 825 | AA25: 21,747 | AB25: 3,864 | AD25: 105,090 | AE25: 13,862
A26: 1991 | B26: 35,259 | D26: 4,632 | E26: 28,524 | G26: 2,821 | I26: 11,164 | J26: 2,844 | K26: 17,892 | L26: 1,813 | N26: 92,839 | O26: 12,110 | Q26: 10,031 | R26: 652 | T26: 9,227 | U26: 1,490 | W26: 6,772 | Y26: 356 | AA26: 26,030 | AB26: 2,498 | AD26: 118,869 | AE26: 14,608
A27: 1992 | B27: 31,734 | D27: 9,113 | E27: 19,790 | G27: 4,315 | I27: 4,517 | J27: 1,845 | K27: 3,816 | L27: 2,095 | N27: 59,857 | O27: 17,368 | Q27: 6,257 | R27: 1,019 | T27: 10,324 | U27: 6,116 | W27: 5,107 | Y27: 1,349 | AA27: 21,688 | AB27: 8,483 | AD27: 81,545 | AE27: 25,851
A28: 1993 | B28: 55,144 | D28: 5,409 | E28: 27,367 | G28: 3,556 | I28: 5,818 | J28: 885 | K28: 24,435 | L28: 6,592 | N28: 112,764 | O28: 16,442 | Q28: 7,056 | R28: 531 | T28: 10,228 | U28: 1,763 | W28: 7,342 | Y28: 3,314 | AA28: 24,626 | AB28: 5,608 | AD28: 137,390 | AE28: 22,050
A29: 1994 | B29: 66,383 | D29: 20,371 | E29: 31,013 | G29: 7,369 | I29: 7,046 | J29: 3,844 | K29: 30,544 | L29: 3,054 | N29: 134,986 | O29: 34,638 | Q29: 11,585 | R29: 7,406 | T29: 11,341 | U29: 3,861 | W29: 7,676 | Y29: 891 | AA29: 30,601 | AB29: 12,159 | AD29: 165,587 | AE29: 46,797
A30: 1995 | B30: 112,235 | D30: 17,957 | E30: 56,197 | G30: 3,715 | I30: 12,998 | J30: 1,239 | K30: 72,335 | L30: 8,283 | N30: 253,765 | O30: 31,194 | Q30: 24,810 | R30: 1,867 | T30: 11,566 | U30: 583 | W30: 5,172 | Y30: 1,326 | AA30: 41,548 | AB30: 3,776 | AD30: 295,313 | AE30: 34,970
A31: 1996 | B31: 131,268 | D31: 11,649 | E31: 44,593 | G31: 12,577 | I31: 23,492 | J31: 4,408 | K31: 69,761 | L31: 8,825 | N31: 269,114 | O31: 37,459 | Q31: 18,848 | R31: 2,330 | T31: 6,494 | U31: 1,613 | W31: 7,177 | Y31: 474 | AA31: 32,519 | AB31: 4,417 | AD31: 301,633 | AE31: 41,876
A32: 1997 | B32: 167,353 | D32: 13,736 | E32: 47,009 | G32: 3,538 | I32: 19,202 | J32: 6,746 | K32: 48,001 | L32: 8,272 | N32: 281,565 | O32: 32,292 | Q32: 44,590 | R32: 6,080 | T32: 13,358 | U32: 1,770 | W32: 5,328 | Y32: 322 | AA32: 63,276 | AB32: 8,172 | AD32: 344,841 | AE32: 40,464
A33: 1998 | B33: 60,713 | D33: 5,137 | E33: 39,600 | F33: h/ | G33: 3,400 | I33: 26,737 | J33: 4,353 | K33: 48,942 | L33: 15,838 | N33: 175,992 | O33: 28,728 | Q33: 42,400 | R33: 1,951 | T33: 17,567 | U33: 1,322 | W33: 9,949 | Y33: 1,839 | AA33: 69,915 | AB33: 5,113 | AD33: 245,907 | AE33: 33,841
A34: 1999 | B34: 256,629 | D34: 7,495 | E34: 30,000 | F34: h/ | G34: 7,500 | I34: 18,778 | J34: 5,452 | K34: 52,199 | L34: 10,678 | N34: 357,606 | O34: 31,125 | Q34: 23,194 | R34: 3,776 | T34: 12,822 | U34: 1,104 | W34: 6,207 | Y34: 3,553 | AA34: 42,224 | AB34: 8,432 | AD34: 399,830 | AE34: 39,557
A35: 2000 | B35: 152,923 | D35: 3,900 | E35: 109,924 | G35: 7,017 | I35: 12,954 | J35: 2,041 | K35: 94,161 | L35: 6,691 | N35: 369,962 | O35: 19,649 | Q35: 20,793 | R35: 866 | T35: 16,470 | U35: 1,676 | W35: 10,312 | Y35: 848 | AA35: 47,575 | AB35: 3,390 | AD35: 417,537 | AE35: 23,039
A36: 2001 | B36: 179,198 | D36: 11,853 | E36: 169,588 | G36: 9,114 | I36: 21,567 | J36: 1,825 | K36: 169,023 | L36: 16,144 | N36: 539,376 | O36: 38,936 | Q36: 23,710 | R36: 988 | T36: 24,001 | U36: 871 | W36: 9,688 | Y36: 1,956 | AA36: 57,399 | AB36: 3,815 | AD36: 596,775 | AE36: 42,751
A37: 2002 | B37: 474,812 | C37: i/ | D37: 11,259 | E37: 93,766 | G37: 11,397 | I37: 18,406 | J37: 4,796 | K37: 97,242 | L37: 15,195 | N37: 684,226 | O37: 42,647 | Q37: 61,895 | R37: 4,029 | T37: 17,516 | U37: 2,991 | W37: 6,231 | Y37: 3,586 | AA37: 85,642 | AB37: 10,606 | AD37: 769,868 | AE37: 53,253
A38: 2003 | B38: 164,802 | D38: 4,402 | E38: 85,578 | G38: 4,369 | I38: 26,820 | J38: 1,489 | K38: 137,444 | L38: 13,647 | N38: 414,644 | O38: 23,907 | Q38: 82,882 | R38: 5,352 | T38: 13,615 | U38: 1,352 | W38: 11,875 | Y38: 3,012 | AA38: 108,372 | AB38: 9,716 | AD38: 523,016 | AE38: 33,623
A39: 2004 | B39: 70,548 | D39: 7,220 | E39: 48,580 | G39: 5,591 | I39: 9,260 | J39: 5,208 | K39: 77,842 | L39: 21,505 | N39: 206,230 | O39: 39,524 | Q39: 52,145 | R39: 17,027 | T39: 15,769 | U39: 5,535 | W39: 12,741 | Y39: 13,659 | AA39: 80,655 | AB39: 36,221 | AD39: 286,885 | AE39: 75,745
A40: 2005 | B40: 96,716 | D40: 3,267 | E40: 43,738 | G40: 4,848 | I40: 16,251 | J40: 987 | K40: 58,155 | L40: 4,499 | N40: 214,860 | O40: 13,601 | Q40: 139,979 | R40: 2,694 | T40: 20,597 | U40: 1,787 | W40: 20,569 | Y40: 1,780 | AA40: 181,145 | AB40: 6,261 | AD40: 396,005 | AE40: 19,862
A41: 2006 | B41: 89,933 | D41: 2,874 | E41: 75,545 | G41: 1,869 | I41: 7,891 | J41: 230 | K41: 23,120 | L41: 1,420 | N41: 196,489 | O41: 6,393 | Q41: 56,819 | R41: 1,013 | T41: 13,400 | U41: 634 | W41: 8,322 | Y41: 406 | AA41: 78,541 | AB41: 2,053 | AD41: 275,030 | AE41: 8,446
A42: 2007 | B42: 36,079 | D42: 978 | E42: 21,541 | G42: 321 | I42: 2,523 | J42: 81 | K42: 9,929 | L42: 144 | N42: 70,072 | O42: 1,524 | Q42: 11,543 | R42: 201 | T42: 5,169 | U42: 172 | W42: 4,590 | Y42: 7 | AA42: 21,302 | AB42: 380 | AD42: 91,374 | AE42: 1,904
A43: 2008 | B43: 36,274 | D43: 2,074 | E43: 5,703 | G43: 236 | I43: 3,084 | J43: 424 | K43: 2,255 | L43: 259 | N43: 47,316 | O43: 2,993 | Q43: 10,181 | R43: 458 | T43: 5,031 | U43: 323 | W43: 2,836 | Y43: 348 | AA43: 18,048 | AB43: 1,129 | AD43: 65,364 | AE43: 4,122
A44: 2009 | B44: 12,277 | D44: 1,624 | E44: 3,950 | G44: 897 | I44: 3,992 | J44: 803 | K44: 4,729 | L44: 1,047 | N44: 24,948 | O44: 4,371 | Q44: 5,433 | R44: 719 | T44: 6,240 | U44: 3,723 | W44: 4,252 | Y44: 654 | AA44: 15,925 | AB44: 5,096 | AD44: 40,873 | AE44: 9,467
A45: 2010 | B45: 25,688 | D45: 6,872 | E45: 40,981 | G45: 3,933 | I45: 12,074 | J45: 1,023 | K45: 12,383 | L45: 2,305 | N45: 91,126 | O45: 14,133 | Q45: 8,666 | R45: 8,572 | T45: 17,215 | U45: 2,757 | W45: 7,269 | Y45: 1,826 | AA45: 33,150 | AB45: 13,155 | AC45: 1 | AD45: 124,276 | AE45: 27,288
A46: 2011 | B46: 20,466 | D46: 15,096 | E46: 35,656 | G46: 11,633 | I46: 6,917 | J46: 2,204 | K46: 14,815 | L46: 10,422 | N46: 77,854 | O46: 39,355 | Q46: 19,312 | R46: 23,068 | T46: 15,925 | U46: 16,691 | W46: 6,251 | Y46: 6,429 | AA46: 41,488 | AB46: 46,188 | AD46: 119,342 | AE46: 85,543
A47: 2012 | B47: 67,190 | D47: 7,125 | E47: 57,507 | G47: 6,142 | I47: 6,009 | J47: 1,722 | K47: 35,527 | L47: 3,296 | N47: 166,233 | O47: 18,285 | Q47: 77,318 | R47: 8,198 | T47: 33,628 | U47: 8,533 | W47: 8,250 | Y47: 1,007 | AA47: 119,196 | AB47: 17,738 | AD47: 285,429 | AE47: 36,023
A48: 2013 | B48: 90,119 | D48: 6,253 | E48: 145,650 | G48: 5,559 | I48: 13,830 | J48: 1,050 | K48: 56,036 | L48: 2,192 | N48: 305,635 | O48: 15,054 | Q48: 67,758 | R48: 2,103 | T48: 25,152 | U48: 2,470 | W48: 8,301 | Y48: 775 | AA48: 101,211 | AB48: 5,348 | AD48: 406,846 | AE48: 20,402
A49: 2014 | B49: 80,407 | D49: 7,193 | E49: 55,480 | G49: 5,241 | I49: 9,885 | J49: 1,819 | K49: 22,895 | L49: 3,580 | N49: 168,667 | O49: 17,833 | Q49: 17,937 | R49: 903 | T49: 18,824 | U49: 4,596 | W49: 7,048 | Y49: 1,295 | AA49: 43,809 | AB49: 6,794 | AD49: 212,476 | AE49: 24,627
A50: 2015 | B50: 40,696 | D50: 3,342 | E50: 18,069 | G50: 2,497 | H50: 2,730 | I50: 3,844 | J50: 2,789 | K50: 11,895 | L50: 3,844 | M50: 17,648 | N50: 74,504 | O50: 12,472 | Q50: 13,861 | R50: 1,863 | T50: 17,700 | U50: 3,116 | V50: 3,916 | W50: 7,403 | Y50: 2,419 | AA50: 38,964 | AB50: 7,398 | AD50: 113,468 | AE50: 19,870
A51: 2016 | B51: 10,563 | D51: 803 | E51: 34,054 | G51: 4,727 | I51: 2,143 | J51: 1,422 | K51: 9,537 | L51: 4,936 | N51: 56,297 | O51: 11,888 | Q51: 8,306 | R51: 225 | T51: 17,594 | U51: 2,962 | W51: 7,502 | Y51: 1,922 | AA51: 33,402 | AB51: 5,109 | AD51: 89,699 | AE51: 16,997
A52: 2017 | B52: 1,526 | D52: 4,015 | E52: 8,120 | G52: 2,414 | I52: 1,207 | J52: 441 | K52: 6,998 | L52: 2,665 | N52: 17,851 | O52: 9,535 | Q52: 1,316 | R52: 5,080 | T52: 16,598 | U52: 8,448 | W52: 8,564 | X52: j/ | Y52: 2,015 | Z52: j/ | AA52: 26,478 | AB52: 15,543 | AD52: 44,329 | AE52: 25,078
A53: 2018 | B53: 18,317 | D53: 11,998 | E53: 39,210 | G53: 6,616 | I53: 2,140 | J53: 933 | K53: 12,022 | L53: 9,070 | N53: 71,689 | O53: 28,617 | Q53: 8,207 | R53: 5,991 | T53: 21,084 | U53: 7,272 | W53: 4,486 | Y53: 1,726 | AA53: 33,777 | AB53: 14,989 | AD53: 105,466 | AE53: 43,606
A54: 2019 | B54: 53,706 | D54: 5,203 | E54: 43,352 | G54: 8,611 | I54: 2,677 | J54: 671 | K54: 21,894 | L54: 5,136 | N54: 121,629 | O54: 19,621 | Q54: 13,065 | R54: 1,204 | T54: 19,731 | U54: 7,372 | W54: 9,342 | Y54: 1,954 | AA54: 42,138 | AB54: 10,530 | AD54: 163,767 | AE54: 30,151
A55: 2020 | B55: 36,447 | D55: 3,747 | E55: 40,499 | G55: 2,470 | I55: 3,801 | J55: 393 | K55: 19,422 | L55: 3,034 | N55: 100,169 | O55: 9,644 | Q55: 12,478 | R55: 1,259 | T55: 20,340 | U55: 1,853 | W55: 5,104 | Y55: 1,160 | AA55: 37,922 | AB55: 4,272 | AD55: 138,091 | AE55: 13,916
A56: 2021 | B56: 51,822 | D56: 5,484 | E56: 9,203 | G56: 485 | I56: 3,957 | J56: 712 | K56: 7,787 | L56: 3,445 | N56: 72,769 | O56: 10,126 | Q56: 14,556 | R56: 1,882 | T56: 10,927 | U56: 1,458 | W56: 7,332 | Y56: 3,745 | AA56: 32,815 | AB56: 7,085 | AD56: 105,584 | AE56: 17,211
A57: 2022 | B57: 8,986 | D57: 647 | E57: 6,164 | G57: 413 | I57: 2,926 | J57: 245 | K57: 14,631 | L57: 1,752 | N57: 32,707 | O57: 3,057 | Q57: 8,935 | R57: 307 | T57: 11,909 | U57: 2,368 | W57: 8,311 | Y57: 1,213 | AA57: 29,155 | AB57: 3,888 | AD57: 61,862 | AE57: 6,945
A58: 2023 | B58: 6,284 | D58: 437 | E58: 60,389 | G58: 3,500 | I58: 4,709 | J58: 137 | K58: 34,375 | L58: 2,946 | N58: 105,757 | O58: 7,020 | Q58: 4,534 | R58: 315 | T58: 16,989 | U58: 1,810 | W58: 6,503 | Y58: 2,796 | AA58: 28,026 | AB58: 4,921 | AD58: 133,783 | AE58: 11,941
A59: 2024k/ | B59: 4,408 | D59: 4,611 | E59: 23,549 | G59: 2,604 | I59: 4,416 | J59: 530 | K59: 40,067 | L59: 3,119 | N59: 72,440 | O59: 10,864 | Q59: 2,603 | R59: 3,883 | T59: 14,568 | U59: 1,868 | W59: 9,663 | Y59: 2,550 | AA59: 26,834 | AB59: 8,301 | AD59: 99,274 | AE59: 19,165
A60: GOALS | B60: - | D60: - | E60: - | G60: - | I60: - | J60: - | K60: - | L60: - | N60: - | O60: - | Q60: 12,000l/ | R60: - | T60: 6,000l/ | U60: - | W60: 4,000l/ | Y60: - | AA60: 22,000l/ | AB60: - | AD60: 122,000m/ | AE60: -
A61: a/ In 2004, CDFW reviewed and updated 1971-2003 escapement estimates to reflect final project reports.
A62: b/ Chinook spawning during the fall; may include spring run fish in some survey areas.
A63: c/ Most natural area estimates based on carcass surveys with a jack length cut-off.
A64: d/ Upper Sacramento mainstem estimates generally based on carcass surveys with a jack length cut-off, however, jack estimates from Red Bluff Diversion Dam (RBDD) reports have occasionally been used. Early (pre-2001) mainstem Sacramento River adult and jack estimates based on RBDD passage.
A66: e/ Upper Sacramento River escapement includes Sacramento River mainstem; Battle, Clear, Mill, Deer, Butte, Cottonwood, and Cow creeks; and other small tributaries when surveys were conducted. Specific escapement estimates by tributary can be found at www.calfish.org.
A68: f/ American River adult and jack ecapement estimates include fish taken at Nimbus Weir, 1979-current. In previous versions of this table, fish taken at Nimbus Weir were included in the Nimbus Fish Hatchery counts.
A69: g/ Total adults in Sacramento hatcheries include Tehama-Colusa Fish Facility escapements, 1971-1985.
A70: h/ Survey methodology was variable for 1998-99; may not be comparable to other surveys.
A71: i/ Change in 2002 estimation methodology due to extremely high Battle Creek escapement.
A72: j/ Nimbus Fish Hatchery opened three weeks early to collect anticipated stray Chinook originating from Coleman National Fish Hatchery. During this time, 2,886 fish were collected.
A73: k/ Preliminary.
A74: l/ Current hatchery-specific goals, not PFMC goals.
A75: m/ Sacramento River fall Chinook SMSY.
A94: TABLE B-1. Sacramento River fall Chinook salmon escapement in numbers of fish.a/b/
B95: Upper Sacramento Natural Areasc/d/e/ | E95: Lower Sacramento Natural Areasc/ | N95: Natural Area Totalsc/ | Q95: Sacramento Hatcheries | AA95: Hatchery Totals | AD95: Sacramento Totals
A96: Year or Average | E96: Feather River | I96: Yuba River | K96: American Riverf/ | Q96: Coleman | T96: Feather River | W96: Nimbus
B97: Adults | D97: Jacks | E97: Adults | G97: Jacks | I97: Adults | J97: Jacks | K97: Adults | L97: Jacks | N97: Adults | O97: Jacks | Q97: Adults | R97: Jacks | T97: Adults | U97: Jacks | W97: Adults | Y97: Jacks | AA97: Adultsg/ | AB97: Jacks | AD97: Adults | AE97: Jacks
A98: 1981-1985 | B98: =AVERAGE(B16:B20) -> 57,913 | D98: =AVERAGE(D16:D20) -> 22,432 | E98: =AVERAGE(E16:E20) -> 36,252 | G98: =AVERAGE(G16:G20) -> 5,243 | I98: =AVERAGE(I16:I20) -> 12,825 | J98: =AVERAGE(J16:J20) -> 5,146 | K98: =AVERAGE(K16:K20) -> 32,803 | L98: =AVERAGE(L16:L20) -> 5,142 | N98: =AVERAGE(N16:N20) -> 139,793 | O98: =AVERAGE(O16:O20) -> 37,963 | Q98: =AVERAGE(Q16:Q20) -> 11,557 | R98: =AVERAGE(R16:R20) -> 3,734 | T98: =AVERAGE(T16:T20) -> 6,845 | U98: =AVERAGE(U16:U20) -> 884 | W98: =AVERAGE(W16:W20) -> 10,072 | Y98: =AVERAGE(Y16:Y20) -> 2,257 | AA98: =AVERAGE(AA16:AA20) -> 29,832 | AB98: =AVERAGE(AB16:AB20) -> 7,689 | AD98: =AVERAGE(AD16:AD20) -> 169,625 | AE98: =AVERAGE(AE16:AE20) -> 45,651
A99: 1986-1990 | B99: =AVERAGE(B21:B25) -> 87,396 | D99: =AVERAGE(D21:D25) -> 17,244 | E99: =AVERAGE(E21:E25) -> 38,709 | G99: =AVERAGE(G21:G25) -> 6,426 | I99: =AVERAGE(I21:I25) -> 9,261 | J99: =AVERAGE(J21:J25) -> 2,444 | K99: =AVERAGE(K21:K25) -> 25,663 | L99: =AVERAGE(L21:L25) -> 3,917 | N99: =AVERAGE(N21:N25) -> 161,029 | O99: =AVERAGE(O21:O25) -> 30,031 | Q99: =AVERAGE(Q21:Q25) -> 11,507 | R99: =AVERAGE(R21:R25) -> 2,288 | T99: =AVERAGE(T21:T25) -> 5,837 | U99: =AVERAGE(U21:U25) -> 1,947 | W99: =AVERAGE(W21:W25) -> 5,685 | Y99: =AVERAGE(Y21:Y25) -> 1,349 | AA99: =AVERAGE(AA21:AA25) -> 23,028 | AB99: =AVERAGE(AB21:AB25) -> 5,584 | AD99: =AVERAGE(AD21:AD25) -> 184,057 | AE99: =AVERAGE(AE21:AE25) -> 35,616
A100: 1991-1995 | B100: =AVERAGE(B26:B30) -> 60,151 | D100: =AVERAGE(D26:D30) -> 11,496 | E100: =AVERAGE(E26:E30) -> 32,578 | G100: =AVERAGE(G26:G30) -> 4,355 | I100: =AVERAGE(I26:I30) -> 8,309 | J100: =AVERAGE(J26:J30) -> 2,131 | K100: =AVERAGE(K26:K30) -> 29,804 | L100: =AVERAGE(L26:L30) -> 4,367 | N100: =AVERAGE(N26:N30) -> 130,842 | O100: =AVERAGE(O26:O30) -> 22,350 | Q100: =AVERAGE(Q26:Q30) -> 11,948 | R100: =AVERAGE(R26:R30) -> 2,295 | T100: =AVERAGE(T26:T30) -> 10,537 | U100: =AVERAGE(U26:U30) -> 2,762 | W100: =AVERAGE(W26:W30) -> 6,414 | Y100: =AVERAGE(Y26:Y30) -> 1,447 | AA100: =AVERAGE(AA26:AA30) -> 28,899 | AB100: =AVERAGE(AB26:AB30) -> 6,505 | AD100: =AVERAGE(AD26:AD30) -> 159,741 | AE100: =AVERAGE(AE26:AE30) -> 28,855
A101: 1996-2000 | B101: =AVERAGE(B31:B35) -> 153,777 | D101: =AVERAGE(D31:D35) -> 8,383 | E101: =AVERAGE(E31:E35) -> 54,225 | F101: h/ | G101: =AVERAGE(G31:G35) -> 6,806 | I101: 20,233 | J101: 4,600 | K101: 62,613 | L101: 10,061 | N101: 290,848 | O101: 29,851 | Q101: 29,965 | R101: 3,001 | T101: =AVERAGE(T31:T35) -> 13,342 | U101: =AVERAGE(U31:U35) -> 1,497 | V101: =AVERAGE(V31:V35) ->  | W101: =AVERAGE(W31:W35) -> 7,795 | Y101: =AVERAGE(Y31:Y35) -> 1,407 | AA101: =AVERAGE(AA31:AA35) -> 51,102 | AB101: =AVERAGE(AB31:AB35) -> 5,905 | AC101: =AVERAGE(AC31:AC35) ->  | AD101: =AVERAGE(AD31:AD35) -> 341,949 | AE101: =AVERAGE(AE31:AE35) -> 35,756
A102: 2001-2005 | B102: =AVERAGE(B36:B40) -> 197,215 | C102: =C37 -> i/ | D102: =AVERAGE(D36:D40) -> 7,600 | E102: 88,250 | G102: =AVERAGE(G36:G40) -> 7,064 | I102: 18,461 | J102: 2,861 | K102: 107,941 | L102: 14,198 | N102: =AVERAGE(N36:N40) -> 411,867 | O102: 31,723 | Q102: =AVERAGE(Q36:Q40) -> 72,122 | R102: 6,018 | T102: =AVERAGE(T36:T40) -> 18,300 | U102: 2,507 | W102: =AVERAGE(W36:W40) -> 12,221 | Y102: 4,799 | AA102: =AVERAGE(AA36:AA40) -> 102,643 | AB102: 13,324 | AD102: =AVERAGE(AD36:AD40) -> 514,510 | AE102: 45,047
A103: 2006-2010 | B103: =AVERAGE(B41:B45) -> 40,050 | D103: =AVERAGE(D41:D45) -> 2,884 | E103: 29,544 | G103: =AVERAGE(G41:G45) -> 1,451 | I103: 5,913 | J103: 512 | K103: 10,483 | L103: 1,035 | N103: =AVERAGE(N41:N45) -> 85,990 | O103: 5,883 | Q103: =AVERAGE(Q41:Q45) -> 18,528 | R103: 2,193 | T103: =AVERAGE(T41:T45) -> 9,411 | U103: 1,522 | W103: =AVERAGE(W41:W45) -> 5,454 | Y103: 648 | AA103: =AVERAGE(AA41:AA45) -> 33,393 | AB103: 4,363 | AD103: =AVERAGE(AD41:AD45) -> 119,383 | AE103: 10,245
A104: 2011 | B104: =B46 -> 20,466 | D104: =D46 -> 15,096 | E104: 35,656 | G104: =G46 -> 11,633 | I104: =I46 -> 6,917 | J104: 2,204 | K104: 14,815 | L104: 10,422 | N104: =N46 -> 77,854 | O104: 39,355 | Q104: =Q46 -> 19,312 | R104: 23,068 | T104: =T46 -> 15,925 | U104: 16,691 | W104: =W46 -> 6,251 | Y104: =Y46 -> 6,429 | AA104: =AA46 -> 41,488 | AB104: 46,188 | AD104: =AD46 -> 119,342 | AE104: 85,543
A105: 2012 | B105: 67,190 | D105: 7,125 | E105: 57,507 | G105: 6,142 | I105: 6,009 | J105: 1,722 | K105: 35,527 | L105: 3,296 | N105: 166,233 | O105: 18,285 | Q105: 77,318 | R105: 8,198 | T105: 33,628 | U105: 8,533 | W105: 8,250 | Y105: 1,007 | AA105: 119,196 | AB105: 17,738 | AD105: 285,429 | AE105: 36,023
A106: 2013 | B106: 90,119 | D106: 6,253 | E106: 145,650 | G106: 5,559 | I106: 13,830 | J106: 1,050 | K106: 56,036 | L106: 2,192 | N106: 305,635 | O106: 15,054 | Q106: 67,758 | R106: 2,103 | T106: 25,152 | U106: 2,470 | W106: 8,301 | Y106: 775 | AA106: 101,211 | AB106: 5,348 | AD106: 406,846 | AE106: 20,402
A107: 2014 | B107: 80,407 | D107: 7,193 | E107: 55,480 | G107: 5,241 | I107: 9,885 | J107: 1,819 | K107: 22,895 | L107: 3,580 | N107: 168,667 | O107: 17,833 | Q107: 17,937 | R107: 903 | T107: 18,824 | U107: 4,596 | W107: 7,048 | Y107: 1,295 | AA107: 43,809 | AB107: 6,794 | AD107: 212,476 | AE107: 24,627
A108: 2015 | B108: 40,696 | D108: 3,342 | E108: 18,069 | G108: 2,497 | I108: 3,844 | J108: 2,789 | K108: 11,895 | L108: 3,844 | N108: 74,504 | O108: 12,472 | Q108: 13,861 | R108: 1,863 | T108: 17,700 | U108: 3,116 | W108: 7,403 | Y108: 2,419 | AA108: 38,964 | AB108: 7,398 | AD108: 113,468 | AE108: 19,870
A109: 2016 | B109: 10,563 | D109: 803 | E109: 34,054 | G109: 4,727 | I109: 2,143 | J109: 1,422 | K109: 9,537 | L109: 4,936 | N109: 56,297 | O109: 11,888 | Q109: 8,306 | R109: 225 | T109: 17,594 | U109: 2,962 | W109: 7,502 | Y109: 1,922 | AA109: 33,402 | AB109: 5,109 | AD109: 89,699 | AE109: 16,997
A110: 2017 | B110: 1,526 | D110: 4,015 | E110: 8,120 | G110: 2,414 | I110: 1,207 | J110: 441 | K110: 6,998 | L110: 2,665 | N110: 17,851 | O110: 9,535 | Q110: 1,316 | R110: 5,080 | T110: 16,598 | U110: 8,448 | W110: 8,564 | X110: =X52 -> j/ | Y110: 2,015 | Z110: =Z52 -> j/ | AA110: 26,478 | AB110: 15,543 | AD110: 44,329 | AE110: 25,078
A111: 2018 | B111: 18,317 | D111: 11,998 | E111: 39,210 | G111: 6,616 | I111: 2,140 | J111: 933 | K111: 12,022 | L111: 9,070 | N111: 71,689 | O111: 28,617 | Q111: 8,207 | R111: 5,991 | T111: 21,084 | U111: 7,272 | W111: 4,486 | Y111: 1,726 | AA111: 33,777 | AB111: 14,989 | AD111: 105,466 | AE111: 43,606
A112: 2019 | B112: 53,706 | D112: 5,203 | E112: 43,352 | G112: 8,611 | I112: 2,677 | J112: 671 | K112: 21,894 | L112: 5,136 | N112: 121,629 | O112: 19,621 | Q112: 13,065 | R112: 1,204 | T112: 19,731 | U112: 7,372 | W112: 9,342 | Y112: 1,954 | AA112: 42,138 | AB112: 10,530 | AD112: 163,767 | AE112: 30,151
A113: 2020 | B113: 36,447 | D113: 3,747 | E113: 40,499 | G113: 2,470 | I113: 3,801 | J113: 393 | K113: 19,422 | L113: 3,034 | N113: 100,169 | O113: 9,644 | Q113: 12,478 | R113: 1,259 | T113: 20,340 | U113: 1,853 | W113: 5,104 | Y113: 1,160 | AA113: 37,922 | AB113: 4,272 | AD113: 138,091 | AE113: 13,916
A114: 2021 | B114: 51,822 | D114: 5,484 | E114: 9,203 | G114: 485 | I114: 3,957 | J114: 712 | K114: 7,787 | L114: 3,445 | N114: 72,769 | O114: 10,126 | Q114: 14,556 | R114: 1,882 | T114: 10,927 | U114: 1,458 | W114: 7,332 | Y114: 3,745 | AA114: 32,815 | AB114: 7,085 | AD114: 105,584 | AE114: 17,211
A115: 2022 | B115: 8,986 | D115: 647 | E115: 6,164 | G115: 413 | I115: 2,926 | J115: 245 | K115: 14,631 | L115: 1,752 | N115: 32,707 | O115: 3,057 | Q115: 8,935 | R115: 307 | T115: 11,909 | U115: 2,368 | W115: 8,311 | Y115: 1,213 | AA115: 29,155 | AB115: 3,888 | AD115: 61,862 | AE115: 6,945
A116: 2023 | B116: 6,284 | D116: 437 | E116: 60,389 | G116: 3,500 | I116: 4,709 | J116: 137 | K116: 34,375 | L116: 2,946 | N116: 105,757 | O116: 7,020 | Q116: =Q58 -> 4,534 | R116: 315 | T116: =T58 -> 16,989 | U116: 1,810 | W116: =W58 -> 6,503 | Y116: =Y58 -> 2,796 | AA116: =AA58 -> 28,026 | AB116: 4,921 | AD116: =AD58 -> 133,783 | AE116: 11,941
A117: 2024k/ | B117: 4,408 | D117: 4,611 | E117: 23,549 | G117: 2,604 | I117: 4,416 | J117: 530 | K117: 40,067 | L117: 3,119 | N117: 72,440 | O117: 10,864 | Q117: 2,603 | R117: 3,883 | T117: 14,568 | U117: 1,868 | W117: 9,663 | Y117: 2,550 | AA117: 26,834 | AB117: 8,301 | AD117: 99,274 | AE117: 19,165
A118: GOALS | B118: - | D118: - | E118: - | G118: - | I118: - | J118: - | K118: - | L118: - | N118: - | O118: - | Q118: 12,000l/ | R118: - | T118: 6,000l/ | U118: - | W118: 4,000l/ | Y118: - | AA118: 22,000l/ | AB118: - | AD118: 122,000m/ | AE118: =AE60 -> -
A119: =A61 -> a/ In 2004, CDFW reviewed and updated 1971-2003 escapement estimates to reflect final project reports.
A120: =A62 -> b/ Chinook spawning during the fall; may include spring run fish in some survey areas.
A121: =A63 -> c/ Most natural area estimates based on carcass surveys with a jack length cut-off.
A122: =A64 -> d/ Upper Sacramento mainstem estimates generally based on carcass surveys with a jack length cut-off, however, jack estimates from Red Bluff Diversion Dam (RBDD) reports have occasionally been used. Early (pre-2001) mainstem Sacramento River adult and jack estimates based on RBDD passage.
A124: =A66 -> e/ Upper Sacramento River escapement includes Sacramento River mainstem; Battle, Clear, Mill, Deer, Butte, Cottonwood, and Cow creeks; and other small tributaries when surveys were conducted. Specific escapement estimates by tributary can be found at www.calfish.org.
A126: =A68 -> f/ American River adult and jack ecapement estimates include fish taken at Nimbus Weir, 1979-current. In previous versions of this table, fish taken at Nimbus Weir were included in the Nimbus Fish Hatchery counts.
A127: g/ Total adults in Sacramento hatcheries include Tehama-Colusa Fish Facility escapements, 1971-1985.
A128: h/ Survey methodology was variable for 1998-99; may not be comparable to other surveys.
A129: i/ Change in 2002 estimation methodology due to extremely high Battle Creek escapement.
A130: j/ Nimbus Fish Hatchery opened three weeks early to collect anticipated stray Chinook originating from Coleman National Fish Hatchery. During this time, 2,886 fish were collected.
A131: k/ Preliminary.
A132: l/ Current hatchery-specific goals, not PFMC goals.
A133: m/ Sacramento River fall Chinook SMSY.

Sheet B-2
A1: TABLE B-2. San Joaquin River fall Chinook salmon escapement in numbers of fish.a/
C2: San Joaquin Natural Areasb/ | P2: San Joaquin Hatcheries | V2: San Joaquin Totals
A3: Year or Average | C3: Mokelumne River | E3: Stanislaus River | G3: Tuolumne River | I3: Merced River | K3: Other Tributariesc/d/ | M3: Totals | P3: Mokelumne River | R3: Merced River | T3: Totals
C4: Adults | D4: Jacks | E4: Adults | F4: Jacks | G4: Adults | H4: Jacks | I4: Adults | J4: Jacks | K4: Adults | L4: Jacks | M4: Adults | N4: Jacks | P4: Adults | Q4: Jacks | R4: Adults | S4: Jacks | T4: Adults | U4: Jacks | V4: Adults | W4: Jacks
A5: 1970 | C5: 3,063 | D5: 1,389 | E5: 6,694 | F5: 2,603 | G5: 15,272 | H5: 3,128 | I5: 3,290 | J5: 1,410 | K5: 413 | L5: 187 | M5: 28,732 | N5: 8,717 | P5: 329 | Q5: 219 | R5: 100 | S5: 0 | T5: 429 | U5: 219 | V5: =M5+T5 -> 29,161 | W5: =N5+U5 -> 8,936
A6: 1971 | C6: 3,591 | D6: 684 | E6: 12,668 | F6: 953 | G6: 20,353 | H6: 1,532 | I6: 3,175 | J6: 276 | K6: 500 | L6: 0 | M6: 40,287 | N6: 3,445 | P6: 822 | Q6: 103 | R6: 200 | S6: 0 | T6: 1,022 | U6: 103 | V6: =M6+T6 -> 41,309 | W6: 3,548
A7: 1972 | C7: 480 | D7: 270 | E7: 3,868 | F7: 430 | G7: 4,233 | H7: 867 | I7: 2,098 | J7: 430 | K7: 1,600 | L7: 0 | M7: 12,279 | N7: 1,997 | P7: 88 | Q7: 264 | R7: 120 | S7: 0 | T7: 208 | U7: 264 | V7: 12,487 | W7: 2,261
A8: 1973 | C8: 2,193 | D8: 0 | E8: 1,181 | F8: 53 | G8: 1,888 | H8: 101 | I8: 611 | J8: 186 | K8: 900 | L8: 0 | M8: 6,773 | N8: 340 | P8: 305 | Q8: 102 | R8: 281 | S8: 94 | T8: 587 | U8: 196 | V8: 7,360 | W8: 536
A9: 1974 | C9: 1,200 | D9: 0 | E9: 504 | F9: 246 | G9: 1,072 | H9: 78 | I9: 880 | J9: 120 | K9: 285 | L9: 0 | M9: 3,941 | N9: 444 | P9: 111 | Q9: 111 | R9: 1,000 | S9: 0 | T9: 1,111 | U9: 111 | V9: 5,052 | W9: 555
A10: 1975 | C10: 1,298 | D10: 203 | E10: 1,038 | F10: 162 | G10: 1,384 | H10: 216 | I10: 1,471 | J10: 230 | K10: 627 | L10: 98 | M10: 5,818 | N10: 909 | P10: 200 | Q10: 200 | R10: 700 | S10: 0 | T10: 900 | U10: 200 | V10: 6,718 | W10: 1,109
A11: 1976 | C11: 398 | D11: 57 | E11: 525 | F11: 75 | G11: 1,488 | H11: 213 | I11: 1,050 | J11: 150 | K11: 0 | L11: 0 | M11: 3,461 | N11: 495 | P11: 18 | Q11: 0 | R11: 700 | S11: 0 | T11: 718 | U11: 0 | V11: 4,179 | W11: 495
A12: 1977 | C12: 214 | D12: 36 | E12: 0 | F12: 0 | G12: 450 | H12: 0 | I12: 300 | J12: 50 | K12: 0 | L12: 0 | M12: 964 | N12: 86 | P12: 0 | Q12: 0 | R12: 661 | S12: 0 | T12: 661 | U12: 0 | V12: 1,625 | W12: 86
A13: 1978 | C13: 531 | D13: 69 | E13: 44 | F13: 6 | G13: 1,151 | H13: 150 | I13: 465 | J13: 60 | K13: 89 | L13: 12 | M13: 2,280 | N13: 297 | P13: 486 | Q13: 0 | R13: 100 | S13: 0 | T13: 586 | U13: 0 | V13: 2,866 | W13: 297
A14: 1979 | C14: 444 | D14: 556 | E14: 49 | F14: 61 | G14: 525 | H14: 658 | I14: 852 | J14: 1,068 | K14: 67 | L14: 83 | M14: 1,937 | N14: 2,426 | P14: 422 | Q14: 85 | R14: 114 | S14: 114 | T14: 536 | U14: 198 | V14: 2,473 | W14: 2,624
A15: 1980 | C15: 2,079 | D15: 513 | E15: 100 | F15: 0 | G15: 559 | H15: 0 | I15: 2,849 | J15: 0 | K15: 200 | L15: 0 | M15: 5,787 | N15: 513 | P15: 426 | Q15: 213 | R15: 157 | S15: 0 | T15: 583 | U15: 213 | V15: 6,370 | W15: 726
A16: 1981 | C16: 3,899 | D16: 1,055 | E16: 1,000 | F16: 0 | G16: 9,749 | H16: 4,504 | I16: 6,758 | J16: 2,733 | K16: 0 | L16: 0 | M16: 21,406 | N16: 8,292 | P16: 0 | Q16: 0 | R16: 616 | S16: 308 | T16: 616 | U16: 308 | V16: 22,022 | W16: 8,600
A17: 1982 | C17: 6,695 | D17: 0 | E17: 0 | F17: 0 | G17: 6,748 | H17: 378 | I17: 3,009 | J17: 65 | K17: 0 | L17: 0 | M17: 16,452 | N17: 443 | P17: 1,786 | Q17: 891 | R17: 157 | S17: 32 | T17: 1,942 | U17: 924 | V17: 18,394 | W17: 1,367
A18: 1983 | C18: 11,293 | D18: 0 | E18: 500 | F18: 0 | G18: 2,641 | H18: 12,195 | I18: 3,850 | J18: 12,603 | K18: 200 | L18: 0 | M18: 18,484 | N18: 24,798 | P18: 1,827 | Q18: 2,741 | R18: 199 | S18: 1,596 | T18: 2,026 | U18: 4,337 | V18: 20,510 | W18: 29,135
A19: 1984 | C19: 7,883 | D19: 415 | E19: 9,540 | F19: 1,899 | G19: 6,502 | H19: 7,187 | I19: 20,730 | J19: 6,910 | K19: 1,000 | L19: 0 | M19: 45,655 | N19: 16,411 | P19: 0 | Q19: 0 | R19: 1,888 | S19: 221 | T19: 1,888 | U19: 221 | V19: 47,543 | W19: 16,632
A20: 1985 | C20: 6,959 | D20: 500 | E20: 12,207 | F20: 1,266 | G20: 38,870 | H20: 1,452 | I20: 14,396 | J20: 445 | K20: 220 | L20: 0 | M20: 72,652 | N20: 3,663 | P20: 184 | Q20: 39 | R20: 1,124 | S20: 87 | T20: 1,308 | U20: 126 | V20: 73,960 | W20: 3,789
A21: 1986 | C21: 4,571 | D21: 683 | E21: 5,328 | F21: 1,169 | G21: 6,893 | H21: 511 | I21: 6,321 | J21: 468 | K21: 0 | L21: 0 | M21: 23,113 | N21: 2,831 | P21: 1,129 | Q21: 784 | R21: 488 | S21: 162 | T21: 1,617 | U21: 946 | V21: 24,730 | W21: 3,777
A22: 1987 | C22: 1,000 | D22: 0 | E22: 4,027 | F22: 2,265 | G22: 1,003 | H22: 13,748 | I22: 1,536 | J22: 1,632 | K22: 0 | L22: 0 | M22: 7,566 | N22: 17,645 | P22: 95 | Q22: 535 | R22: 491 | S22: 467 | T22: 587 | U22: 1,001 | V22: 8,153 | W22: 18,646
A23: 1988 | C23: 400 | D23: 0 | E23: 9,712 | F23: 500 | G23: 5,554 | H23: 225 | I23: 3,850 | J23: 285 | K23: 100 | L23: 0 | M23: 19,616 | N23: 1,010 | P23: 93 | Q23: 35 | R23: 418 | S23: 39 | T23: 512 | U23: 73 | V23: 20,128 | W23: 1,083
A24: 1989 | C24: 199 | D24: 0 | E24: 1,466 | F24: 44 | G24: 1,230 | H24: 45 | I24: 339 | J24: 6 | K24: 0 | L24: 0 | M24: 3,234 | N24: 95 | P24: 49 | Q24: 32 | R24: 66 | S24: 16 | T24: 115 | U24: 48 | V24: 3,349 | W24: 143
A25: 1990 | C25: 300 | D25: 129 | E25: 336 | F25: 144 | G25: 75 | H25: 21 | I25: 25 | J25: 11 | K25: 0 | L25: 0 | M25: 736 | N25: 305 | P25: 25 | Q25: 43 | R25: 29 | S25: 17 | T25: 54 | U25: 60 | V25: 790 | W25: 365
A26: 1991 | C26: 314 | D26: 55 | E26: 331 | F26: 63 | G26: 56 | H26: 21 | I26: 64 | J26: 14 | K26: 0 | L26: 0 | M26: 765 | N26: 153 | P26: 33 | Q26: 8 | R26: 32 | S26: 9 | T26: 65 | U26: 17 | V26: 830 | W26: 170
A27: 1992 | C27: 402 | D27: 533 | E27: 215 | F27: 40 | G27: 51 | H27: 81 | I27: 426 | J27: 192 | K27: 0 | L27: 0 | M27: 1,094 | N27: 846 | P27: 264 | Q27: 446 | R27: 123 | S27: 245 | T27: 387 | U27: 691 | V27: 1,481 | W27: 1,537
A28: 1993 | C28: 715 | D28: 278 | E28: 533 | F28: 144 | G28: 330 | H28: 141 | I28: 1,081 | J28: 188 | K28: 0 | L28: 0 | M28: 2,659 | N28: 751 | P28: 1,542 | Q28: 622 | R28: 234 | S28: 175 | T28: 1,776 | U28: 797 | V28: 4,435 | W28: 1,548
A29: 1994 | C29: 1,028 | D29: 210 | E29: 860 | F29: 171 | G29: 367 | H29: 139 | I29: 1,913 | J29: 733 | K29: 0 | L29: 0 | M29: 4,168 | N29: 1,253 | P29: 1,168 | Q29: 751 | R29: 497 | S29: 446 | T29: 1,665 | U29: 1,197 | V29: 5,833 | W29: 2,450
A30: 1995 | C30: 1,865 | D30: 329 | E30: 421 | F30: 198 | G30: 514 | H30: 313 | I30: 1,645 | J30: 675 | K30: 0 | L30: 0 | M30: 4,445 | N30: 1,515 | P30: 2,378 | Q30: 945 | R30: 311 | S30: 291 | T30: 2,689 | U30: 1,236 | V30: 7,134 | W30: 2,751
A31: 1996 | C31: 2,276 | D31: 1,648 | E31: 69 | F31: 99 | G31: 1,400 | H31: 2,962 | I31: 2,021 | J31: 1,270 | K31: 0 | L31: 0 | M31: 5,766 | N31: 5,979 | P31: 1,828 | Q31: 2,055 | R31: 395 | S31: 746 | T31: 2,223 | U31: 2,801 | V31: 7,989 | W31: 8,780
A32: 1997 | C32: 3,423 | D32: 258 | E32: 5,225 | F32: 363 | G32: 6,689 | H32: 457 | I32: 2,646 | J32: 68 | K32: 0 | L32: 0 | M32: 17,983 | N32: 1,146 | P32: 6,305 | Q32: 189 | R32: 838 | S32: 108 | T32: 7,143 | U32: 297 | V32: 25,126 | W32: 1,443
A33: 1998 | C33: 3,154 | D33: 788 | E33: 1,892 | F33: 1,195 | G33: 5,809 | H33: 3,101 | I33: 2,120 | J33: 1,172 | K33: 0 | L33: 0 | M33: 12,975 | N33: 6,256 | P33: 2,686 | Q33: 585 | R33: 347 | S33: 452 | T33: 3,033 | U33: 1,037 | V33: 16,007 | W33: 7,294
A34: 1999 | C34: 1,243 | D34: 937 | E34: 2,479 | F34: 1,870 | G34: 4,898 | H34: 3,334 | I34: 2,087 | J34: 1,042 | K34: 0 | L34: 0 | M34: 10,707 | N34: 7,183 | P34: 1,611 | Q34: 1,542 | R34: 650 | S34: 987 | T34: 2,261 | U34: 2,529 | V34: 12,967 | W34: 9,713
A35: 2000 | C35: 1,576 | D35: 323 | E35: 8,014 | F35: 484 | G35: 16,926 | H35: 947 | I35: 10,318 | J35: 812 | K35: 0 | L35: 0 | M35: 36,834 | N35: 2,566 | P35: 4,637 | Q35: 887 | R35: 1,615 | S35: 331 | T35: 6,252 | U35: 1,218 | V35: 43,086 | W35: 3,784
A36: 2001 | C36: 1,755 | D36: 467 | E36: 6,140 | F36: 719 | G36: 7,852 | H36: 1,369 | I36: 8,084 | J36: 1,133 | K36: 0 | L36: 0 | M36: 23,831 | N36: 3,688 | P36: 4,467 | Q36: 1,427 | R36: 1,137 | S36: 523 | T36: 5,604 | U36: 1,950 | V36: 29,435 | W36: 5,638
A37: 2002 | C37: 2,244 | D37: 596 | E37: 5,848 | F37: 952 | G37: 6,192 | H37: 1,008 | I37: 7,568 | J37: 1,232 | K37: 0 | L37: 0 | M37: 21,852 | N37: 3,788 | P37: 5,800 | Q37: 2,119 | R37: 1,250 | S37: 588 | T37: 7,050 | U37: 2,707 | V37: 28,902 | W37: 6,495
A38: 2003 | C38: 1,571 | D38: 552 | E38: 6,707 | F38: 889 | G38: 2,620 | H38: 234 | I38: 3,621 | J38: 489 | K38: 0 | L38: 0 | M38: 14,519 | N38: 2,164 | P38: 5,108 | Q38: 3,009 | R38: 392 | S38: 157 | T38: 5,500 | U38: 3,166 | V38: 20,019 | W38: 5,330
A39: 2004 | C39: 1,175 | D39: 413 | E39: 2,848 | F39: 1,220 | G39: 1,029 | H39: 605 | I39: 2,197 | J39: 1,073 | K39: 0 | L39: 0 | M39: 7,250 | N39: 3,310 | P39: 5,477 | Q39: 4,879 | R39: 456 | S39: 594 | T39: 5,933 | U39: 5,473 | V39: 13,183 | W39: 8,783
A40: 2005 | C40: 9,574 | D40: 832 | E40: 2,984 | F40: 332 | G40: 647 | H40: 72 | I40: 1,900 | J40: 211 | K40: 738 | L40: 130 | M40: 15,843 | N40: 1,577 | P40: 5,035 | Q40: 528 | R40: 346 | S40: 75 | T40: 5,381 | U40: 603 | V40: 21,224 | W40: 2,180
A41: 2006 | C41: 1,555 | D41: 177 | E41: 1,718 | F41: 205 | G41: 457 | H41: 105 | I41: 1,262 | J41: 167 | K41: 630 | L41: 15 | M41: 5,622 | N41: 669 | P41: 2,801 | Q41: 1,338 | R41: 130 | S41: 20 | T41: 2,931 | U41: 1,358 | V41: 8,553 | W41: 2,027
A42: 2007 | C42: 461 | D42: 9 | E42: 368 | F42: 75 | G42: 193 | H42: 31 | I42: 446 | J42: 49 | K42: 53 | L42: 0 | M42: 1,521 | N42: 164 | P42: 1,004 | Q42: 40 | R42: 70 | S42: 9 | T42: 1,074 | U42: 49 | V42: 2,595 | W42: 213
A43: 2008 | C43: 83 | D43: 90 | E43: 1,253 | F43: 139 | G43: 358 | H43: 14 | I43: 316 | J43: 73 | K43: 0 | L43: 0 | M43: 2,010 | N43: 316 | P43: 116 | Q43: 123 | R43: 39 | S43: 37 | T43: 155 | U43: 160 | V43: 2,165 | W43: 476
A44: 2009 | C44: 320 | D44: 360 | E44: 554 | F44: 194 | G44: 130 | H44: 70 | I44: 390 | J44: 64 | K44: 0 | L44: 0 | M44: 1,394 | N44: 688 | P44: 730 | Q44: 823 | R44: 109 | S44: 137 | T44: 839 | U44: 960 | V44: 2,233 | W44: 1,648
A45: 2010 | C45: 1,640 | D45: 280 | E45: 793 | F45: 293 | G45: 329 | H45: 211 | I45: 501 | J45: 150 | K45: 740 | L45: 0 | M45: 4,003 | N45: 934 | P45: 3,543 | Q45: 1,733 | R45: 115 | S45: 31 | T45: 3,658 | U45: 1,764 | V45: 7,661 | W45: 2,698
A46: 2011 | C46: 705 | D46: 1,962 | E46: 433 | F46: 630 | G46: 231 | H46: 647 | I46: 640 | J46: 975 | K46: 518 | L46: 0 | M46: 2,527 | N46: 4,214 | P46: 2,409 | Q46: 13,513 | R46: 99 | S46: 338 | T46: 2,508 | U46: 13,851 | V46: 5,035 | W46: 18,065
A47: 2012 | C47: 3,836 | D47: 1,635 | E47: 3,550 | F47: 456 | G47: 485 | H47: 298 | I47: 1,947 | J47: 310 | K47: 1,034 | L47: 149 | M47: 10,852 | N47: 2,848 | P47: 4,430 | Q47: 2,190 | R47: 628 | S47: 372 | T47: 5,058 | U47: 2,562 | V47: 15,910 | W47: 5,410
A48: 2013 | C48: 5,806 | D48: 1,265 | E48: 2,562 | F48: 283 | G48: 1,798 | H48: 128 | I48: 2,673 | J48: 153 | K48: 0 | L48: 0 | M48: 12,839 | N48: 1,829 | P48: 3,698 | Q48: 1,483 | R48: 918 | S48: 180 | T48: 4,616 | U48: 1,663 | V48: 17,455 | W48: 3,492
A49: 2014 | C49: 1,973 | D49: 1,324 | E49: 1,837 | F49: 1,227 | G49: 150 | H49: 56 | I49: 611 | J49: 249 | K49: 401 | L49: 0 | M49: 4,972 | N49: 2,856 | P49: 4,417 | Q49: 4,403 | R49: 229 | S49: 582 | T49: 4,646 | U49: 4,985 | V49: =M49+T49 -> 9,618 | W49: =N49+U49 -> 7,841
A50: 2015 | C50: 3,075 | D50: 1,506 | E50: 4,050 | F50: 2,086 | G50: 42 | H50: 71 | I50: 860 | J50: 387 | K50: 193 | L50: 0 | M50: 8,220 | N50: 4,050 | P50: 5,170 | Q50: 3,128 | R50: 556 | S50: 642 | T50: 5,726 | U50: 3,770 | V50: 13,946 | W50: 7,820
A51: 2016 | C51: 1,279 | D51: 705 | E51: 5,231 | F51: 3,961 | G51: 661 | H51: 696 | I51: 1,232 | J51: 2,099 | K51: 986 | L51: 262 | M51: 9,389 | N51: 7,723 | P51: 3,314 | Q51: 3,573 | R51: 1,995 | S51: 970 | T51: 5,309 | U51: 4,543 | V51: 14,698 | W51: 12,266
A52: 2017 | C52: 4,626 | D52: 1,018 | E52: 2,225 | F52: 1,274 | G52: 690 | H52: 428 | I52: 2,349 | J52: 832 | K52: 575 | L52: 95 | M52: 10,465 | N52: 3,647 | P52: 4,651 | Q52: 9,668 | R52: 602 | S52: 1,099 | T52: 5,253 | U52: 10,767 | V52: 15,718 | W52: 14,414
A53: 2018 | C53: 6,456 | D53: 3,599 | E53: 2,018 | F53: 359 | G53: 734 | H53: 343 | I53: 349 | J53: 529 | K53: 843 | L53: 158 | M53: 10,400 | N53: 4,988 | P53: 4,937 | Q53: 2,483 | R53: 264 | S53: 639 | T53: 5,201 | U53: 3,122 | V53: 15,601 | W53: 8,110
A54: 2019 | C54: 3,325 | D54: 1,042 | E54: 1,221 | F54: 283 | G54: 828 | H54: 103 | I54: 1,952 | J54: 259 | K54: 673 | L54: 0 | M54: 7,999 | N54: 1,687 | P54: 5,806 | Q54: 2,697 | R54: 628 | S54: 339 | T54: 6,434 | U54: 3,036 | V54: 14,433 | W54: 4,723
A55: 2020 | C55: 179 | D55: 422 | E55: 461 | F55: 80 | G55: 240 | H55: 31 | I55: 394 | J55: 32 | K55: 43 | L55: 0 | M55: 1,317 | N55: 565 | P55: 2,141 | Q55: 1,302 | R55: 141 | S55: 44 | T55: 2,282 | U55: 1,346 | V55: 3,599 | W55: 1,911
A56: 2021 | C56: 258 | D56: 568 | E56: 1,946 | F56: 2,368 | G56: 138 | H56: 50 | I56: 287 | J56: 183 | K56: 833 | L56: 0 | M56: 3,462 | N56: 3,169 | P56: 2,116 | Q56: 2,101 | R56: 57 | S56: 210 | T56: 2,173 | U56: 2,311 | V56: 5,635 | W56: 5,480
A57: 2022 | C57: 934 | D57: 987 | E57: 3,185 | F57: 454 | G57: 357 | H57: 86 | I57: 60 | J57: 15 | K57: 24 | L57: 0 | M57: 4,560 | N57: 1,542 | P57: 3,533 | Q57: 1,481 | R57: 33 | S57: 34 | T57: 3,566 | U57: 1,515 | V57: 8,126 | W57: 3,057
A58: 2023 | C58: 15,859 | D58: 2,972 | E58: 1,399 | F58: 218 | G58: 1,154 | H58: 187 | I58: 2,220 | J58: 151 | K58: 990 | L58: 0 | M58: 21,622 | N58: 3,528 | P58: 7,093 | Q58: 2,773 | R58: 764 | S58: 130 | T58: 7,857 | U58: 2,903 | V58: 29,479 | W58: 6,431
A59: 2024e/ | C59: 17,833 | D59: 5,869 | E59: 2,550 | F59: 485 | G59: 1,610 | H59: 518 | I59: 400 | J59: 142 | K59: 1638 | L59: 0 | M59: 24,031 | N59: 7,014 | P59: 8,142 | Q59: 3,541 | R59: 73 | S59: 33 | T59: 8,215 | U59: 3,574 | V59: 32,246 | W59: 10,588
A60: GOALSf/ | C60: - | D60: - | E60: - | F60: - | G60: - | H60: - | I60: - | J60: - | K60: - | L60: - | M60: - | N60: - | P60: 3,000g/ | Q60: - | R60: 1,000 | S60: - | T60: 4,000 | U60: - | V60: - | W60: -
A61: a/ In 2004, CDFW reviewed and updated 1971-2003 escapement estimates to reflect final project reports.
A62: b/ Most natural area estimates based on carcass surveys with a jack length cut-off.
A63: c/ Other San Joaquin tributary escapement includes Cosumnes and Calaveras Rivers when surveys were conducted. In some years no survey was conducted due to logistical or environmental limitations.
A64: d/ Calculating jack proportions was not possible in some years due to sampling and/or environmental limitations. In those years jacks are included in the adult escapement values.
A65: e/ Preliminary.
A66: f/ Current hatchery-specific goals, not PFMC goals.
A67: g/ Due to modernization of the hatchery facility and improved efficiencies, the Mokelumne Hatchery escapement goal was reduced from 5,000 to 3,000 adults in 2010.
A81: TABLE B-2. San Joaquin River fall Chinook salmon escapement in numbers of fish.a/
C82: San Joaquin Natural Areasb/ | P82: San Joaquin Hatcheries | V82: San Joaquin Totals
A83: Year or Average | C83: Mokelumne River | E83: Stanislaus River | G83: Tuolumne River | I83: Merced River | K83: Other Tributariesc/d/ | M83: Totals | P83: Mokelumne River | R83: Merced River | T83: Totals
C84: Adults | D84: Jacks | E84: Adults | F84: Jacks | G84: Adults | H84: Jacks | I84: Adults | J84: Jacks | K84: Adults | L84: Jacks | M84: Adults | N84: Jacks | P84: Adults | Q84: Jacks | R84: Adults | S84: Jacks | T84: Adults | U84: Jacks | V84: Adults | W84: Jacks
A85: 1981-1985 | C85: =AVERAGE(C16:C20) -> 7,346 | D85: 394 | E85: 4,649 | F85: 633 | G85: 12,902 | H85: 5,143 | I85: 9,749 | J85: 4,551 | K85: 284 | L85: 0 | M85: 34,930 | N85: 10,721 | P85: =AVERAGE(P16:P20) -> 759 | Q85: 734 | R85: 797 | S85: 449 | T85: 1,556 | U85: 1,183 | V85: 36,486 | W85: 11,904
A86: 1986-1990 | C86: =AVERAGE(C21:C25) -> 1,294 | D86: 162 | E86: 4,174 | F86: 824 | G86: 2,951 | H86: 2,910 | I86: 2,414 | J86: 480 | K86: 20 | L86: 0 | M86: 10,853 | N86: 4,377 | P86: =AVERAGE(P21:P25) -> 278 | Q86: 286 | R86: 299 | S86: 140 | T86: 577 | U86: 426 | V86: 11,430 | W86: 4,803
A87: 1991-1995 | C87: =AVERAGE(C26:C30) -> 865 | D87: 281 | E87: 472 | F87: 123 | G87: 264 | H87: 139 | I87: 1,026 | J87: 360 | K87: 0 | L87: 0 | M87: 2,626 | N87: 904 | P87: =AVERAGE(P26:P30) -> 1,077 | Q87: 554 | R87: 239 | S87: 233 | T87: 1,316 | U87: 788 | V87: 3,943 | W87: 1,691
A88: 1996-2000 | C88: =AVERAGE(C31:C35) -> 2,334 | D88: =AVERAGE(D31:D35) -> 791 | E88: 3,536 | F88: 802 | G88: 7,144 | H88: 2,160 | I88: 3,838 | J88: 873 | K88: 0 | L88: 0 | M88: 16,853 | N88: 4,626 | P88: 3,413 | Q88: 1,052 | R88: 769 | S88: 525 | T88: 4,182 | U88: 1,576 | V88: 21,035 | W88: 6,203
A89: 2001-2005 | C89: =AVERAGE(C36:C40) -> 3,264 | D89: =AVERAGE(D36:D40) -> 572 | E89: 4,905 | F89: 822 | G89: 3,668 | H89: 658 | I89: 4,674 | J89: 828 | K89: 148 | L89: 26 | M89: 16,659 | N89: 2,905 | P89: 5,177 | Q89: 2,392 | R89: 716 | S89: 387 | T89: 5,894 | U89: 2,780 | V89: 22,553 | W89: 5,685
A90: 2006-2010 | C90: =AVERAGE(C41:C45) -> 812 | D90: =AVERAGE(D41:D45) -> 183 | E90: 937 | F90: 181 | G90: 293 | H90: 86 | I90: 583 | J90: 101 | K90: 285 | L90: 3 | M90: 2,910 | N90: 554 | P90: 1,639 | Q90: 811 | R90: 93 | S90: 47 | T90: 1,731 | U90: 858 | V90: 4,641 | W90: 1,412
A91: 2011 | C91: =C46 -> 705 | D91: 1,962 | E91: 433 | F91: 630 | G91: 231 | H91: 647 | I91: 640 | J91: 975 | K91: 518 | L91: 0 | M91: 2,527 | N91: 4,214 | P91: =P46 -> 2,409 | Q91: 13,513 | R91: 99 | S91: 338 | T91: 2,508 | U91: 13,851 | V91: 5,035 | W91: 18,065
A92: 2012 | C92: =C47 -> 3,836 | D92: 1,635 | E92: 3,550 | F92: 456 | G92: 485 | H92: 298 | I92: 1,947 | J92: 310 | K92: 1,034 | L92: 149 | M92: 10,852 | N92: 2,848 | P92: 4,430 | Q92: 2,190 | R92: 628 | S92: 372 | T92: 5,058 | U92: 2,562 | V92: 15,910 | W92: 5,410
A93: 2013 | C93: =C48 -> 5,806 | D93: 1,265 | E93: 2,562 | F93: 283 | G93: 1,798 | H93: 128 | I93: 2,673 | J93: 153 | K93: 0 | L93: 0 | M93: 12,839 | N93: 1,829 | P93: 3,698 | Q93: 1,483 | R93: 918 | S93: 180 | T93: 4,616 | U93: 1,663 | V93: 17,455 | W93: 3,492
A94: 2014 | C94: =C49 -> 1,973 | D94: 1,324 | E94: 1,837 | F94: 1,227 | G94: 150 | H94: 56 | I94: 611 | J94: 249 | K94: 401 | L94: 0 | M94: 4,972 | N94: 2,856 | P94: 4,417 | Q94: 4,403 | R94: 229 | S94: 582 | T94: 4,646 | U94: 4,985 | V94: 9,618 | W94: 7,841
A95: 2015 | C95: =C50 -> 3,075 | D95: 1,506 | E95: 4,050 | F95: 2,086 | G95: 42 | H95: 71 | I95: 860 | J95: 387 | K95: 193 | L95: 0 | M95: 8,220 | N95: 4,050 | P95: 5,170 | Q95: 3,128 | R95: 556 | S95: 642 | T95: 5,726 | U95: 3,770 | V95: 13,946 | W95: 7,820
A96: 2016 | C96: =C51 -> 1,279 | D96: 705 | E96: 5,231 | F96: 3,961 | G96: 661 | H96: 696 | I96: 1,232 | J96: 2,099 | K96: 986 | L96: 262 | M96: 9,389 | N96: 7,723 | P96: 3,314 | Q96: 3,573 | R96: 1,995 | S96: 970 | T96: 5,309 | U96: 4,543 | V96: 14,698 | W96: 12,266
A97: 2017 | C97: =C52 -> 4,626 | D97: 1,018 | E97: 2,225 | F97: 1,274 | G97: 690 | H97: 428 | I97: 2,349 | J97: 832 | K97: 575 | L97: 95 | M97: 10,465 | N97: 3,647 | P97: 4,651 | Q97: 9,668 | R97: 602 | S97: 1,099 | T97: 5,253 | U97: 10,767 | V97: 15,718 | W97: 14,414
A98: 2018 | C98: =C53 -> 6,456 | D98: 3,599 | E98: 2,018 | F98: 359 | G98: 734 | H98: 343 | I98: 349 | J98: 529 | K98: 843 | L98: 158 | M98: 10,400 | N98: 4,988 | P98: 4,937 | Q98: 2,483 | R98: 264 | S98: 639 | T98: 5,201 | U98: 3,122 | V98: 15,601 | W98: 8,110
A99: 2019 | C99: =C54 -> 3,325 | D99: 1,042 | E99: 1,221 | F99: 283 | G99: 828 | H99: 103 | I99: 1,952 | J99: 259 | K99: 673 | L99: 0 | M99: 7,999 | N99: 1,687 | P99: 5,806 | Q99: 2,697 | R99: 628 | S99: 339 | T99: 6,434 | U99: 3,036 | V99: 14,433 | W99: 4,723
A100: 2020 | C100: =C55 -> 179 | D100: 422 | E100: 461 | F100: 80 | G100: 240 | H100: 31 | I100: 394 | J100: 32 | K100: 43 | L100: 0 | M100: 1,317 | N100: 565 | P100: 2,141 | Q100: 1,302 | R100: 141 | S100: 44 | T100: 2,282 | U100: 1,346 | V100: 3,599 | W100: 1,911
A101: 2021 | C101: =C56 -> 258 | D101: 568 | E101: 1,946 | F101: 2,368 | G101: 138 | H101: 50 | I101: 287 | J101: 183 | K101: 833 | L101: 0 | M101: 3,462 | N101: 3,169 | P101: 2,116 | Q101: 2,101 | R101: 57 | S101: 210 | T101: 2,173 | U101: 2,311 | V101: 5,635 | W101: 5,480
A102: 2022 | C102: =C57 -> 934 | D102: 987 | E102: 3,185 | F102: 454 | G102: 357 | H102: 86 | I102: 60 | J102: 15 | K102: 24 | L102: 0 | M102: 4,560 | N102: 1,542 | P102: 3,533 | Q102: 1,481 | R102: 33 | S102: 34 | T102: 3,566 | U102: 1,515 | V102: 8,126 | W102: 3,057
A103: 2023 | C103: =C58 -> 15,859 | D103: 2,972 | E103: 1,399 | F103: 218 | G103: 1,154 | H103: 187 | I103: 2,220 | J103: 151 | K103: 990 | L103: 0 | M103: 21,622 | N103: 3,528 | P103: =P58 -> 7,093 | Q103: 2,773 | R103: 764 | S103: 130 | T103: 7,857 | U103: 2,903 | V103: 29,479 | W103: 6,431
A104: 2024e/ | C104: 17,833 | D104: 5,869 | E104: 2,550 | F104: 485 | G104: 1,610 | H104: 518 | I104: 400 | J104: 142 | K104: 1638 | L104: 0 | M104: 24,031 | N104: 7,014 | P104: 8,142 | Q104: 3,541 | R104: 73 | S104: 33 | T104: 8,215 | U104: 3,574 | V104: 32,246 | W104: 10,588
A105: GOALSf/ | C105: - | D105: - | E105: - | F105: - | G105: - | H105: - | I105: - | J105: - | K105: - | L105: - | M105: - | N105: - | P105: 3,000g/ | Q105: - | R105: 1,000 | S105: - | T105: 4,000 | U105: - | V105: - | W105: -
A106: =A61 -> a/ In 2004, CDFW reviewed and updated 1971-2003 escapement estimates to reflect final project reports.
A107: b/ Most natural area estimates based on carcass surveys with a jack length cut-off.
A108: c/ Other San Joaquin tributary escapement includes Cosumnes and Calaveras Rivers when surveys were conducted. In some years no survey was conducted due to logistical or environmental limitations.
A109: d/ Calculating jack proportions was not possible in some years due to sampling and/or environmental limitations. In those years jacks are included in the adult escapement values.
A110: e/ Preliminary.
A111: f/ Current hatchery-specific goals, not PFMC goals.
A112: g/ Due to modernization of the hatchery facility and improved efficiencies, the Mokelumne Hatchery escapement goal was reduced from 5,000 to 3,000 adults in 2010.

Sheet B-3
A1: TABLE B-3. Sacramento River late-fall, winter, and spring Chinook salmon spawning escapement in numbers of fish.
B2: Upper Sacramento River
B3: Late Falla/b/c/ | F3: Winterc/d/ | L3: Spring
A4: Year or Average | F4: RBDDa/ | H4: Carcass Survey | L4: Tributarye/ | N4: Sacramento Rivera/f/ | Q4: Feather Riverg/
B5: Adults | D5: Jacks | F5: Adults | G5: Jacks | H5: Adults | J5: Jacks | L5: Adults and Jacksh/ | N5: Adults | O5: Jacks | Q5: Adults | S5: Jacks
A6: 1970 | B6: -- | D6: -- | F6: 32,085 | G6: 8,324 | H6: -- | J6: -- | L6: 3,785 | N6: 3,652 | O6: 0 | Q6: 235 | S6: --
A7: 1971 | B7: 16,741 | D7: -- | F7: 32,225 | G7: 20,864 | H7: -- | J7: -- | L7: 2,970 | N7: 4,198 | O7: 1,632 | Q7: 481 | S7: --
A8: 1972 | B8: 29,161 | D8: 2,398 | F8: 28,592 | G8: 8,541 | H8: -- | J8: -- | L8: 1,050 | N8: 5,912 | O8: 1,126 | Q8: 256 | S8: --
A9: 1973 | B9: 20,975 | D9: 697 | F9: 19,456 | G9: 4,623 | H9: -- | J9: -- | L9: 4,050 | N9: 5,905 | O9: 1,270 | Q9: 205 | S9: --
A10: 1974 | B10: 5,773 | D10: 310 | F10: 18,109 | G10: 3,788 | H10: -- | J10: -- | L10: 5,250 | N10: 2,607 | O10: 1,193 | Q10: 198 | S10: --
A11: 1975 | B11: 18,317 | D11: 944 | F11: 15,932 | G11: 7,498 | H11: -- | J11: -- | L11: 12,650 | N11: 6,867 | O11: 3,367 | Q11: 691 | S11: --
A12: 1976 | B12: 9,863 | D12: 6,045 | F12: 26,462 | G12: 8,634 | H12: -- | J12: -- | L12: 46 | N12: 21,180 | O12: 3,915 | Q12: 699 | S12: --
A13: 1977 | B13: 8,656 | D13: 884 | F13: 15,028 | G13: 2,186 | H13: -- | J13: -- | L13: 1,000 | N13: 7,019 | O13: 4,526 | Q13: 185 | S13: --
A14: 1978 | B14: 11,131 | D14: 1,348 | F14: 23,669 | G14: 1,193 | H14: -- | J14: -- | L14: 2,255 | N14: 4,909 | O14: 760 | Q14: 204 | S14: --
A15: 1979 | B15: 10,233 | D15: 51 | F15: 2,251 | G15: 113 | H15: -- | J15: -- | L15: 10 | N15: 2,162 | O15: 694 | Q15: 250 | S15: --
A16: 1980 | B16: 8,429 | D16: 664 | F16: 84 | G16: 1,072 | H16: -- | J16: -- | L16: 2,695 | N16: 6,404 | O16: 2,959 | Q16: 538 | S16: --
A17: 1981 | B17: 6,028 | D17: 690 | F17: 18,297 | G17: 1,744 | H17: -- | J17: -- | L17: 981 | N17: 12,682 | O17: 7,973 | Q17: 887 | S17: 113
A18: 1982 | B18: 6,250 | D18: 649 | F18: 972 | G18: 270 | H18: -- | J18: -- | L18: 2,824 | N18: 19,150 | O18: 4,006 | Q18: 1,809 | S18: 191
A19: 1983 | B19: 13,710 | D19: 1,379 | F19: 1,439 | G19: 392 | H19: -- | J19: -- | L19: 609 | N19: 4,800 | O19: 847 | Q19: 1,631 | S19: 71
A20: 1984 | B20: 6,521 | D20: 3,831 | F20: 794 | G20: 1,869 | H20: -- | J20: -- | L20: 214 | N20: 3,732 | O20: 4,091 | Q20: 1,311 | S20: 251
A21: 1985 | B21: 8,000 | D21: 2,180 | F21: 3,633 | G21: 329 | H21: -- | J21: -- | L21: 676 | N21: 8,626 | O21: 4,287 | Q21: 1,592 | S21: 38
A22: 1986 | B22: 7,709 | D22: 592 | F22: 2,101 | G22: 496 | H22: -- | J22: -- | L22: 2,205 | N22: 20,183 | O22: 1,875 | Q22: 1,242 | S22: 191
A23: 1987 | B23: 15,711 | D23: 860 | F23: 1,909 | G23: 277 | H23: -- | J23: -- | L23: 304 | N23: 7,880 | O23: 4,491 | Q23: 926 | S23: 287
A24: 1988 | B24: 10,638 | D24: 2,580 | F24: 1,878 | G24: 1,008 | H24: -- | J24: -- | L24: 2,233 | N24: 8,061 | O24: 1,806 | Q24: 6,560 | S24: 273
A25: 1989 | B25: 9,209 | D25: 3,663 | F25: 571 | G25: 125 | H25: -- | J25: -- | L25: 1,954 | N25: 4,331 | O25: 800 | Q25: 4,387 | S25: 691
A26: 1990 | B26: 6,968 | D26: 1,110 | F26: 387 | G26: 43 | H26: -- | J26: -- | L26: 1,592 | N26: 3,518 | O26: 680 | Q26: 1,306 | S26: 587
A27: 1991 | B27: 7,404 | C27: i/ | D27: 859 | E27: i/ | F27: 192 | G27: 19 | H27: -- | J27: -- | L27: 798 | N27: 607 | O27: 218 | Q27: 4,148 | S27: 155
A28: 1992 | B28: 9,665 | C28: i/ | D28: 727 | E28: i/ | F28: 1,160 | G28: 80 | H28: -- | J28: -- | L28: 1,176 | N28: 320 | O28: 51 | Q28: 1,323 | S28: 174
A29: 1993 | B29: 1,093 | C29: i/ | D29: 174 | E29: i/ | F29: 250 | G29: 137 | H29: -- | J29: -- | L29: 1,007 | N29: 275 | O29: 116 | Q29: 3,943 | S29: 729
A30: 1994 | B30: 751 | C30: i/ | D30: 138 | E30: i/ | F30: 62 | G30: 124 | H30: -- | J30: -- | L30: 1,684 | N30: 509 | O30: 353 | Q30: 2,785 | S30: 856
A31: 1995 | B31: 307 | C31: i/ | D31: 16 | E31: i/ | F31: 1,267 | G31: 30 | H31: -- | J31: -- | L31: 9,398 | N31: 341 | O31: 85 | Q31: 5,003 | S31: 411
A32: 1996 | B32: 1,003 | C32: i/ | D32: 382 | E32: i/ | F32: 708 | G32: 629 | H32: -- | J32: -- | L32: 2,322 | N32: 314 | O32: 64 | Q32: 5,571 | S32: 810
A33: 1997 | B33: 4,166 | C33: i/ | D33: 412 | E33: i/ | F33: 528 | G33: 352 | H33: -- | J33: -- | L33: 1,303 | N33: 36 | O33: 90 | Q33: 2,970 | S33: 683
A34: 1998 | B34: 40,185 | D34: 5,055 | F34: 2,079 | G34: 923 | H34: -- | J34: -- | L34: 23,609 | N34: 624 | O34: 491 | Q34: 6,240 | S34: 506
A35: 1999 | B35: 24,475 | D35: 3,986 | F35: 822 | G35: 2,466 | H35: -- | J35: -- | L35: 6,104 | N35: 142 | O35: 117 | Q35: 3,530 | S35: 201
A36: 2000 | B36: 10,478 | D36: 2,554 | F36: 563 | G36: 789 | H36: -- | J36: -- | L36: 5,504 | N36: 94 | O36: 38 | Q36: 3,657 | S36: 315
A37: 2001 | B37: 20,614 | D37: 1,199 | F37: 1,696 | G37: 3,827 | H37: 7,443 | J37: 781 | L37: 21,623 | M37: j/ | N37: 981 | O37: 0 | P37: h/ | Q37: 4,052 | S37: 83
A38: 2002 | B38: 39,818 | D38: 765 | F38: 7,614 | G38: 1,555 | H38: 7,047 | J38: 417 | L38: 20,198 | M38: j/ | N38: 430 | O38: 53 | Q38: 3,982 | S38: 207
A39: 2003 | B39: 8,122 | D39: 613 | F39: 6,172 | G39: 3,585 | H39: 7,675 | J39: 543 | L39: 21,798 | M39: j/ | N39: 0 | O39: 0 | Q39: 8,373 | S39: 389
A40: 2004 | B40: 12,458 | D40: 1,574 | F40: 2,588 | G40: 4,604 | H40: 5,786 | J40: 2,083 | L40: 12,556 | M40: j/ | N40: 763 | O40: 326 | Q40: 3,630 | S40: 572
A41: 2005 | B41: 14,047 | D41: 2,141 | F41: 3,521 | G41: 1,778 | H41: 14,684 | J41: 1,155 | L41: 21,319 | M41: j/ | N41: 21 | O41: 9 | Q41: 1,811 | R41: k/ | S41: 24 | T41: k/
A42: 2006 | B42: 14,709 | D42: 351 | F42: 4,792 | G42: 2,623 | H42: 16,911 | J42: 379 | L42: 10,669 | M42: j/ | N42: 0 | O42: 0 | Q42: 2,052 | R42: k/ | S42: 9 | T42: k/
A43: 2007 | B43: 11,954 | D43: 714 | F43: 3,004 | G43: 3,140 | H43: 2,402 | J43: 139 | L43: 8,951 | M43: j/ | N43: 226 | O43: 22 | Q43: 2,669 | R43: k/ | S43: 5 | T43: k/
A44: 2008 | B44: 9,946 | D44: 381 | F44: 1,504 | G44: 2,131 | H44: 2,623 | J44: 207 | L44: 11,943 | M44: j/ | N44: 0 | O44: 0 | Q44: 1,056 | R44: k/ | S44: 10 | T44: k/
A45: 2009 | B45: 9,515 | D45: 460 | F45: l/ | G45: l/ | H45: 4,483 | J45: 54 | L45: 3,517 | M45: j/ | N45: l/ | O45: l/ | Q45: 867 | R45: k/ | S45: 122 | T45: k/
A46: 2010 | B46: 8,894 | D46: 1,001 | F46: l/ | G46: l/ | H46: 1,554 | J46: 42 | L46: 2,951 | M46: j/ | N46: l/ | O46: l/ | Q46: 1,655 | R46: k/ | S46: 6 | T46: k/
A47: 2011 | B47: 7,129 | D47: 1,161 | F47: l/ | G47: l/ | H47: 637 | J47: 187 | L47: 5,547 | M47: j/ | N47: l/ | O47: l/ | Q47: 1,831 | R47: k/ | S47: 138 | T47: k/
A48: 2012 | B48: 5,153 | D48: 909 | F48: m/ | G48: m/ | H48: 2,527 | J48: 144 | L48: 18,694 | M48: j/ | N48: m/ | O48: m/ | Q48: 3,510 | R48: k/ | S48: 228 | T48: k/
A49: 2013 | B49: 8,365 | D49: 644 | F49: m/ | G49: m/ | H49: 5,622 | I49: n/ | J49: 462 | L49: 18,507 | M49: j/ | N49: m/ | O49: m/ | Q49: 4,247 | R49: k/ | S49: 44 | T49: k/
A50: 2014 | B50: 11,792 | D50: 1,453 | F50: m/ | G50: m/ | H50: 2,688 | J50: 327 | L50: 7,127 | M50: j/ | N50: m/ | O50: m/ | Q50: 2,599 | R50: k/ | S50: 177 | T50: k/
A51: 2015 | B51: 9,306 | D51: 134 | F51: m/ | G51: m/ | H51: 3,382 | J51: 57 | L51: 1,039 | M51: j/ | N51: m/ | O51: m/ | Q51: 3,333 | R51: k/ | S51: 53 | T51: k/
A52: 2016 | B52: 4,708 | D52: 949 | F52: m/ | G52: m/ | H52: 924 | J52: 622 | L52: 6,458 | M52: j/ | N52: m/ | O52: m/ | Q52: 1,595 | R52: k/ | S52: 55 | T52: k/
A53: 2017 | B53: 4,466 | D53: 389 | F53: m/ | G53: m/ | H53: 490 | J53: 485 | L53: 1,055 | M53: j/ | N53: m/ | O53: m/ | Q53: 266 | R53: k/ | S53: 314 | T53: k/
A54: 2018 | B54: 2,023 | D54: 3,189 | F54: m/ | G54: m/ | H54: 1,884 | J54: 754 | L54: 2,806 | M54: j/ | N54: m/ | O54: m/ | Q54: 1,870 | R54: k/ | S54: 240 | T54: k/
A55: 2019 | B55: 9,965 | D55: 1,550 | F55: m/ | G55: m/ | H55: 7,570 | J55: 559 | L55: 16,145 | M55: j/ | N55: m/ | O55: m/ | Q55: 3,554 | R55: k/ | S55: 313 | T55: k/
A56: 2020 | B56: 5,109 | D56: 113 | F56: m/ | G56: m/ | H56: 6,743 | J56: 686 | L56: 1,675 | M56: j/ | N56: m/ | O56: m/ | Q56: 1,444 | R56: k/ | S56: 110 | T56: k/
A57: 2021 | B57: 3,626 | D57: 267 | F57: m/ | G57: m/ | H57: 10,239 | J57: 277 | L57: 5,210 | M57: j/ | N57: m/ | O57: m/ | Q57: 2,596 | R57: k/ | S57: 47 | T57: k/
A58: 2022 | B58: 7,035 | D58: 228 | F58: m/ | G58: m/ | H58: 5,561 | J58: 477 | L58: 5,010 | M58: j/ | N58: m/ | O58: m/ | Q58: 1,761 | R58: k/ | S58: 11 | T58: k/
A59: 2023 | B59: 2,986 | D59: 281 | F59: m/ | G59: m/ | H59: 2,420 | J59: 62 | L59: 170 | M59: j/ | N59: m/ | O59: m/ | Q59: 991 | R59: k/ | S59: 81 | T59: k/
A60: 2024o/ | B60: 4,237 | D60: 111 | F60: m/ | G60: m/ | H60: 789 | J60: 578 | L60: 176 | M60: j/ | N60: m/ | O60: m/ | Q60: 2,306 | R60: k/ | S60: 164 | T60: k/
A61: a/ Jacks and adults based on sampling at Red Bluff Diversion Dam (RBDD) from unpublished CDFW data. Beginning in 1987 for late-fall and winter run, estimates based on historical run patterns and partial counts at RBDD due to raising of dam gates during the last part of the late-fall run and first part of the winter run.
A62: b/ Since 1998, late-fall adult and jack estimates are based on carcass counts of natural spawners plus fish spawned at Coleman National Fish Hatchery.
A63: c/ Estimates of late-fall and winter run include Chinook trapped at Keswick Dam for use as broodstock at Coleman or Livingston Stone National Fish hatcheries. Beginning in 2019, winter run estimates also include Chinook that returned to Battle Creek as part of the Coleman National Fish Hatchery captive broodstock "jumpstart" reintroduction effort.
A64: d/ RBDD and carcass survey estimates represent alternative methods for determining winter run Chinook escapement.
A65: e/ Natural spawning spring run which are isolated from fall run; primarily Mill Creek, Deer Creek, and Butte Creek escapement.
A66: f/ Sacramento River spring run estimates are the total RBDD counts minus the spring run numbers in the upper Sacramento tributaries. If this number is less than or equal to zero, the upper Sacramento River spring run estimates are zero.
A68: g/ Feather River spring run estimates are primarily fish returning to Feather River Hatchery. Spring run are not distinguished from fall run in the natural spawning surveys and are reported in the fall run natural escapement numbers.
A70: h/ Jack proportion could not be determined in 2001.
A71: i/ Primarily number of spawners at Coleman National Fish Hatchery 1991-97. No data available for natural spawners, RBDD gates were raised during time coinciding with the late-fall run.
A72: j/ Methodology change from using snorkel survey to carcass survey for Butte Creek spring run estimates.
A73: k/ Methodology change for distinguishing spring run Chinook at Feather River Hatchery in 2005. Fish arriving prior to the spring Chinook spawning period were tagged and returned to the river. Spring Chinook escapement estimate is the number of these tagged fish that subsequently returned during the spring Chinook spawning period.
A74: l/ RBDD did not go into operation until June 15, a month later than normal; thus RBDD winter and spring run estimates are unavailable.
A75: m/ RBDD gates were permanently removed on September 1, 2012; thus RBDD winter and spring run estimates are no longer available.
A76: n/ Includes 47 adults that were transferred from the Colusa Basin Drain to Livingston Stone National Fish Hatchery for use as broodstock.
A77: o/ Preliminary.
A90: TABLE B-3. Sacramento River late-fall, winter, and spring Chinook salmon spawning escapement in numbers of fish.
B91: Upper Sacramento River
B92: Late-Falla/b/c/ | F92: Winterc/d/ | L92: Spring
A93: Year or Average | F93: RBDDa/ | H93: Carcass Survey | L93: Tributarye/ | N93: Sacramento Rivera/f/ | Q93: Feather Riverg/
B94: Adults | D94: Jacks | F94: Adults | G94: Jacks | H94: Adults | J94: Jacks | L94: Adults and Jacksh/ | N94: Adults | O94: Jacks | Q94: Adults | S94: Jacks
A95: 1981-1985 | B95: =AVERAGE(B17:B21) -> 8,102 | D95: =AVERAGE(D17:D21) -> 1,746 | F95: =AVERAGE(F17:F21) -> 5,027 | G95: =AVERAGE(G17:G21) -> 921 | H95: -- | J95: -- | L95: =AVERAGE(L17:L21) -> 1,061 | N95: =AVERAGE(N17:N21) -> 9,798 | O95: =AVERAGE(O17:O21) -> 4,241 | Q95: =AVERAGE(Q17:Q21) -> 1,446 | S95: =AVERAGE(S17:S21) -> 133
A96: 1986-1990 | B96: =AVERAGE(B22:B26) -> 10,047 | D96: =AVERAGE(D22:D26) -> 1,761 | F96: =AVERAGE(F22:F26) -> 1,369 | G96: =AVERAGE(G22:G26) -> 390 | H96: -- | J96: -- | L96: =AVERAGE(L22:L26) -> 1,658 | N96: =AVERAGE(N22:N26) -> 8,795 | O96: =AVERAGE(O22:O26) -> 1,930 | Q96: =AVERAGE(Q22:Q26) -> 2,884 | S96: =AVERAGE(S22:S26) -> 406
A97: 1991-1995 | B97: =AVERAGE(B27:B31) -> 3,844 | C97: =C31 -> i/ | D97: =AVERAGE(D27:D31) -> 383 | E97: =E31 -> i/ | F97: =AVERAGE(F27:F31) -> 586 | G97: =AVERAGE(G27:G31) -> 78 | H97: -- | J97: -- | L97: =AVERAGE(L27:L31) -> 2,813 | N97: =AVERAGE(N27:N31) -> 410 | O97: =AVERAGE(O27:O31) -> 165 | Q97: =AVERAGE(Q27:Q31) -> 3,441 | S97: =AVERAGE(S27:S31) -> 465
A98: 1996-2000 | B98: =AVERAGE(B32:B36) -> 16,061 | C98: =C32 -> i/ | D98: =AVERAGE(D32:D36) -> 2,478 | E98: =E32 -> i/ | F98: =AVERAGE(F32:F36) -> 940 | G98: =AVERAGE(G32:G36) -> 1,032 | H98: -- | J98: -- | L98: =AVERAGE(L32:L36) -> 7,768 | N98: =AVERAGE(N32:N36) -> 242 | O98: =AVERAGE(O32:O36) -> 160 | Q98: =AVERAGE(Q32:Q36) -> 4,393 | S98: =AVERAGE(S32:S36) -> 503
A99: 2001-2005 | B99: =AVERAGE(B37:B41) -> 19,012 | D99: =AVERAGE(D37:D41) -> 1,258 | F99: =AVERAGE(F37:F41) -> 4,318 | G99: 3,070 | H99: 8,527 | J99: 996 | L99: 19,499 | M99: =M37 -> j/ | N99: 439 | O99: 78 | P99: =P37 -> h/ | Q99: 4,370 | R99: =R41 -> k/ | S99: 255 | T99: =T41 -> k/
A100: 2006-2010 | B100: =AVERAGE(B42:B46) -> 11,004 | D100: =AVERAGE(D42:D46) -> 581 | F100: =AVERAGE(F42:F46) -> 3,100 | G100: 2,631 | H100: 5,595 | J100: =AVERAGE(J42:J46) -> 164 | L100: =AVERAGE(L42:L46) -> 7,606 | M100: =M38 -> j/ | N100: =AVERAGE(N42:N46) -> 75 | O100: 7 | Q100: =AVERAGE(Q42:Q46) -> 1,660 | R100: =R42 -> k/ | S100: 30 | T100: =T42 -> k/
A101: 2011 | B101: =B47 -> 7,129 | D101: =D47 -> 1,161 | F101: =F47 -> l/ | G101: l/ | H101: 637 | J101: =J47 -> 187 | L101: =L47 -> 5,547 | M101: j/ | N101: l/ | O101: l/ | Q101: =Q47 -> 1,831 | R101: k/ | S101: 138 | T101: k/
A102: 2012 | B102: 5,153 | D102: 909 | F102: m/ | G102: m/ | H102: 2,527 | J102: 144 | L102: 18,694 | M102: j/ | N102: m/ | O102: m/ | Q102: 3,510 | R102: k/ | S102: 228 | T102: k/
A103: 2013 | B103: 8,365 | D103: 644 | F103: m/ | G103: m/ | H103: 5,622 | I103: =I49 -> n/ | J103: 462 | L103: 18,507 | M103: j/ | N103: m/ | O103: m/ | Q103: 4,247 | R103: k/ | S103: 44 | T103: k/
A104: 2014 | B104: 11,792 | D104: 1,453 | F104: m/ | G104: m/ | H104: 2,688 | J104: 327 | L104: 7,127 | M104: j/ | N104: m/ | O104: m/ | Q104: 2,599 | R104: k/ | S104: 177 | T104: k/
A105: 2015 | B105: 9,306 | D105: 134 | F105: m/ | G105: m/ | H105: 3,382 | J105: 57 | L105: 1,039 | M105: j/ | N105: m/ | O105: m/ | Q105: 3,333 | R105: k/ | S105: 53 | T105: k/
A106: 2016 | B106: 4,708 | D106: 949 | F106: m/ | G106: m/ | H106: 924 | J106: 622 | L106: 6,458 | M106: j/ | N106: m/ | O106: m/ | Q106: 1,595 | R106: k/ | S106: 55 | T106: k/
A107: 2017 | B107: 4,466 | D107: 389 | F107: m/ | G107: m/ | H107: 490 | J107: 485 | L107: 1,055 | M107: j/ | N107: m/ | O107: m/ | Q107: 266 | R107: k/ | S107: 314 | T107: k/
A108: 2018 | B108: 2,023 | D108: 3,189 | F108: m/ | G108: m/ | H108: 1,884 | J108: 754 | L108: 2,806 | M108: j/ | N108: m/ | O108: m/ | Q108: 1,870 | R108: k/ | S108: 240 | T108: k/
A109: 2019 | B109: 9,965 | D109: 1,550 | F109: m/ | G109: m/ | H109: 7,570 | J109: 559 | L109: 16,145 | M109: j/ | N109: m/ | O109: m/ | Q109: 3,554 | R109: k/ | S109: 313 | T109: k/
A110: 2020 | B110: 5,109 | D110: 113 | F110: m/ | G110: m/ | H110: 6,743 | J110: 686 | L110: 1,675 | M110: j/ | N110: m/ | O110: m/ | Q110: 1,444 | R110: k/ | S110: 110 | T110: k/
A111: 2021 | B111: 3,626 | D111: 267 | F111: m/ | G111: m/ | H111: 10,239 | J111: 277 | L111: 5,210 | M111: j/ | N111: m/ | O111: m/ | Q111: 2,596 | R111: k/ | S111: 47 | T111: k/
A112: 2022 | B112: 7,035 | D112: 228 | F112: m/ | G112: m/ | H112: 5,561 | J112: 477 | L112: 5,010 | M112: j/ | N112: m/ | O112: m/ | Q112: 1,761 | R112: k/ | S112: 11 | T112: k/
A113: 2023 | B113: =B59 -> 2,986 | D113: =D59 -> 281 | F113: =F59 -> m/ | G113: m/ | H113: 2,420 | J113: =J59 -> 62 | L113: =L59 -> 170 | M113: j/ | N113: m/ | O113: m/ | Q113: =Q59 -> 991 | R113: k/ | S113: 81 | T113: k/
A114: 2024o/ | B114: 4,237 | D114: 111 | F114: m/ | G114: m/ | H114: 789 | J114: 578 | L114: 176 | M114: j/ | N114: m/ | O114: m/ | Q114: 2,306 | R114: k/ | S114: 164 | T114: k/
A115: =A61 -> a/ Jacks and adults based on sampling at Red Bluff Diversion Dam (RBDD) from unpublished CDFW data. Beginning in 1987 for late-fall and winter run, estimates based on historical run patterns and partial counts at RBDD due to raising of dam gates during the last part of the late-fall run and first part of the winter run.
A116: b/ Since 1998, late-fall adult and jack estimates are based on carcass counts of natural spawners plus fish spawned at Coleman National Fish Hatchery.
A117: c/ Estimates of late-fall and winter run include Chinook trapped at Keswick Dam for use as broodstock at Coleman or Livingston Stone National Fish hatcheries. Beginning in 2019, winter run estimates also include Chinook that returned to Battle Creek as part of the Coleman National Fish Hatchery captive broodstock "jumpstart" reintroduction effort.
A118: d/ RBDD and carcass survey estimates represent alternative methods for determining winter run Chinook escapement.
A119: e/ Natural spawning spring run which are isolated from fall run; primarily Mill Creek, Deer Creek, and Butte Creek escapement.
A120: f/ Sacramento River spring run estimates are the total RBDD counts minus the spring run numbers in the upper Sacramento tributaries. If this number is less than or equal to zero, the upper Sacramento River spring run estimates are zero.
A122: =A68 -> g/ Feather River spring run estimates are primarily fish returning to Feather River Hatchery. Spring run are not distinguished from fall run in the natural spawning surveys and are reported in the fall run natural escapement numbers.
A124: =A70 -> h/ Jack proportion could not be determined in 2001.
A125: i/ Primarily number of spawners at Coleman National Fish Hatchery 1991-97. No data available for natural spawners, RBDD gates were raised during time coinciding with the late-fall run.
A126: j/ Methodology change from using snorkel survey to carcass survey for Butte Creek spring run estimates.
A127: k/ Methodology change for distinguishing spring run Chinook at Feather River Hatchery in 2005. Fish arriving prior to the spring Chinook spawning period were tagged and returned to the river. Spring Chinook escapement estimate is the number of these tagged fish that subsequently returned during the spring Chinook spawning period.
A128: l/ RBDD did not go into operation until June 15, a month later than normal; thus RBDD winter and spring run estimates are unavailable.
A129: m/ RBDD gates were permanently removed on September 1, 2012; thus RBDD winter and spring run estimates are no longer available.
A130: n/ Includes 47 adults that were transferred from the Colusa Basin Drain to Livingston Stone National Fish Hatchery for use as broodstock.
A131: o/ Preliminary.

Sheet B-4
A1: TABLE B-4. Summary of Klamath River fall Chinook salmon estimates in numbers of adults and jacks.
C2: Total Inriver Run | K2: Nonlanded Fishery Mortality | L2: Spawning Escapement
A3: Year or Average | E3: Inriver Harvest | L3: Klamath River | P3: Trinity River | T3: Total
B4: Category | E4: Indian | G4: Sport | I4: Total | L4: Hatchery | M4: Natural | N4: Total | P4: Hatchery | Q4: Natural | R4: Total | T4: Hatchery | U4: Natural | V4: Total
A5: 1978 | B5: Adults | C5: 92,983 | E5: 18,200 | G5: 1,694 | I5: 19,894 | K5: 1,618 | L5: 6,945 | M5: 27,440 | N5: 34,385 | P5: 6,034 | Q5: 31,052 | R5: 37,086 | T5: 12,979 | U5: 58,492 | V5: 71,471
B6: Jacks | C6: 22,745 | E6: 1,800 | G6: 2,082 | I6: 3,882 | K6: 199 | L6: 925 | M6: 11,702 | N6: 12,627 | P6: 1,325 | Q6: 4,712 | R6: 6,037 | T6: 2,250 | U6: 16,414 | V6: 18,664
A7: 1979 | B7: Adults | C7: 51,295 | E7: 13,650 | G7: 2,141 | I7: 15,791 | K7: 1,231 | L7: 2,301 | M7: 22,609 | N7: 24,910 | P7: 1,335 | Q7: 8,028 | R7: 9,363 | T7: 3,636 | U7: 30,637 | V7: 34,273
B8: Jacks | C8: 11,675 | E8: 1,350 | G8: 2,181 | I8: 3,531 | K8: 162 | L8: 257 | M8: 2,825 | N8: 3,082 | P8: 964 | Q8: 3,936 | R8: 4,900 | T8: 1,221 | U8: 6,761 | V8: 7,982
A9: 1980 | B9: Adults | C9: 45,640 | E9: 12,013 | G9: 4,496 | I9: 16,509 | K9: 1,137 | L9: 2,412 | M9: 13,783 | N9: 16,195 | P9: 4,099 | Q9: 7,700 | R9: 11,799 | T9: 6,511 | U9: 21,483 | V9: 27,994
B10: Jacks | C10: 36,773 | E10: 987 | G10: 5,891 | I10: 6,878 | K10: 206 | L10: 451 | M10: 10,145 | N10: 10,596 | P10: 2,256 | Q10: 16,837 | R10: 19,093 | T10: 2,707 | U10: 26,982 | V10: 29,689
A11: 1981 | B11: Adults | C11: 80,292 | E11: 33,033 | G11: 5,983 | I11: 39,016 | K11: 2,994 | L11: 2,055 | M11: 18,517 | N11: 20,572 | P11: 2,370 | Q11: 15,340 | R11: 17,710 | T11: 4,425 | U11: 33,857 | V11: 38,282
B12: Jacks | C12: 28,130 | E12: 2,465 | G12: 7,252 | I12: 9,717 | K12: 362 | L12: 540 | M12: 10,601 | N12: 11,141 | P12: 1,004 | Q12: 5,906 | R12: 6,910 | T12: 1,544 | U12: 16,507 | V12: 18,051
A13: 1982 | B13: Adults | C13: 66,612 | E13: 14,482 | G13: 8,339 | I13: 22,821 | K13: 1,429 | L13: 8,353 | M13: 22,677 | N13: 31,030 | P13: 2,058 | Q13: 9,274 | R13: 11,332 | T13: 10,411 | U13: 31,951 | V13: 42,362
B14: Jacks | C14: 39,408 | E14: 1,799 | G14: 12,484 | I14: 14,283 | K14: 411 | L14: 1,833 | M14: 10,497 | N14: 12,330 | P14: 4,235 | Q14: 8,149 | R14: 12,384 | T14: 6,068 | U14: 18,646 | V14: 24,714
A15: 1983 | B15: Adults | C15: 57,546 | E15: 7,890 | G15: 4,235 | I15: 12,125 | K15: 772 | L15: 8,371 | M15: 13,500 | N15: 21,871 | P15: 5,494 | Q15: 17,284 | R15: 22,778 | T15: 13,865 | U15: 30,784 | V15: 44,649
B16: Jacks | C16: 3,846 | E16: 163 | G16: 351 | I16: 514 | K16: 21 | L16: 514 | M16: 1,673 | N16: 2,187 | P16: 271 | Q16: 853 | R16: 1,124 | T16: 785 | U16: 2,526 | V16: 3,311
A17: 1984 | B17: Adults | C17: 47,261 | E17: 18,670 | G17: 3,340 | I17: 22,010 | K17: 1,691 | L17: 5,330 | M17: 10,410 | N17: 15,740 | P17: 2,166 | Q17: 5,654 | R17: 7,820 | T17: 7,496 | U17: 16,064 | V17: 23,560
B18: Jacks | C18: 8,281 | E18: 455 | G18: 952 | I18: 1,407 | K18: 59 | L18: 764 | M18: 1,869 | N18: 2,633 | P18: 766 | Q18: 3,416 | R18: 4,182 | T18: 1,530 | U18: 5,285 | V18: 6,815
A19: 1985 | B19: Adults | C19: 64,438 | E19: 11,566 | G19: 3,582 | I19: 15,148 | K19: 1,079 | L19: 19,951 | M19: 16,460 | N19: 36,411 | P19: 2,583 | Q19: 9,217 | R19: 11,800 | T19: 22,534 | U19: 25,677 | V19: 48,211
B20: Jacks | C20: 69,389 | E20: 1,555 | G20: 11,195 | I20: 12,750 | K20: 363 | L20: 2,159 | M20: 6,497 | N20: 8,656 | P20: 18,166 | Q20: 29,454 | R20: 47,620 | T20: 20,325 | U20: 35,951 | V20: 56,276
A21: 1986 | B21: Adults | C21: 195,019 | E21: 25,127 | G21: 21,027 | I21: 46,154 | K21: 2,614 | L21: 17,096 | M21: 20,812 | N21: 37,908 | P21: 15,795 | Q21: 92,548 | R21: 108,343 | T21: 32,891 | U21: 113,360 | V21: 146,251
B22: Jacks | C22: 44,540 | E22: 854 | G22: 9,408 | I22: 10,262 | K22: 266 | L22: 1,461 | M22: 8,483 | N22: 9,944 | P22: 3,609 | Q22: 20,459 | R22: 24,068 | T22: 5,070 | U22: 28,942 | V22: 34,012
A23: 1987 | B23: Adults | C23: 209,134 | E23: 53,096 | G23: 20,169 | I23: 73,265 | K23: 5,029 | L23: 15,189 | M23: 29,797 | N23: 44,986 | P23: 13,934 | Q23: 71,920 | R23: 85,854 | T23: 29,123 | U23: 101,717 | V23: 130,840
B24: Jacks | C24: 19,048 | E24: 415 | G24: 5,436 | I24: 5,851 | K24: 147 | L24: 1,825 | M24: 2,823 | N24: 4,648 | P24: 2,453 | Q24: 5,949 | R24: 8,402 | T24: 4,278 | U24: 8,772 | V24: 13,050
A25: 1988 | B25: Adults | C25: 191,642 | E25: 51,651 | G25: 22,203 | I25: 73,854 | K25: 4,944 | L25: 16,106 | M25: 34,770 | N25: 50,876 | P25: 17,352 | Q25: 44,616 | R25: 61,968 | T25: 33,458 | U25: 79,386 | V25: 112,844
B26: Jacks | C26: 24,054 | E26: 578 | G26: 5,411 | I26: 5,989 | K26: 160 | L26: 609 | M26: 1,918 | N26: 2,527 | P26: 4,752 | Q26: 10,626 | R26: 15,378 | T26: 5,361 | U26: 12,544 | V26: 17,905
A27: 1989 | B27: Adults | C27: 124,340 | E27: 45,565 | G27: 8,775 | I27: 54,340 | K27: 4,141 | L27: 10,859 | M27: 14,423 | N27: 25,282 | P27: 11,132 | Q27: 29,445 | R27: 40,577 | T27: 21,991 | U27: 43,868 | V27: 65,859
B28: Jacks | C28: 9,100 | E28: 191 | G28: 2,267 | I28: 2,458 | K28: 63 | L28: 831 | M28: 2,966 | N28: 3,797 | P28: 239 | Q28: 2,543 | R28: 2,782 | T28: 1,070 | U28: 5,509 | V28: 6,579
A29: 1990 | B29: Adults | C29: 35,882 | E29: 7,906 | G29: 3,553 | I29: 11,459 | K29: 760 | L29: 6,719 | M29: 7,914 | N29: 14,633 | P29: 1,348 | Q29: 7,682 | R29: 9,030 | T29: 8,067 | U29: 15,596 | V29: 23,663
B30: Jacks | C30: 4,392 | E30: 190 | G30: 2,100 | I30: 2,290 | K30: 60 | L30: 321 | M30: 1,109 | N30: 1,430 | P30: 371 | Q30: 241 | R30: 612 | T30: 692 | U30: 1,350 | V30: 2,042
A31: 1991 | B31: Adults | C31: 32,670 | E31: 10,198 | G31: 3,383 | I31: 13,581 | K31: 956 | L31: 4,002 | M31: 6,782 | N31: 10,784 | P31: 2,482 | Q31: 4,867 | R31: 7,349 | T31: 6,484 | U31: 11,649 | V31: 18,133
B32: Jacks | C32: 1,755 | E32: 62 | G32: 686 | I32: 748 | K32: 19 | L32: 65 | M32: 336 | N32: 401 | P32: 205 | Q32: 382 | R32: 587 | T32: 270 | U32: 718 | V32: 988
A33: 1992 | B33: Adults | C33: 26,698 | E33: 5,785 | G33: 1,002 | I33: 6,787 | K33: 523 | L33: 3,581 | M33: 4,889 | N33: 8,470 | P33: 3,779 | Q33: 7,139 | R33: 10,918 | T33: 7,360 | U33: 12,028 | V33: 19,388
B34: Jacks | C34: 13,693 | E34: 366 | G34: 4,120 | I34: 4,486 | K34: 116 | L34: 3,737 | M34: 2,580 | N34: 6,317 | P34: 211 | Q34: 2,563 | R34: 2,774 | T34: 3,948 | U34: 5,143 | V34: 9,091
A35: 1993 | B35: Adults | C35: 57,212 | E35: 9,636 | G35: 3,172 | I35: 12,808 | K35: 903 | L35: 20,828 | M35: 15,953 | N35: 36,781 | P35: 815 | Q35: 5,905 | R35: 6,720 | T35: 21,643 | U35: 21,858 | V35: 43,501
B36: Jacks | C36: 7,598 | E36: 175 | G36: 1,925 | I36: 2,100 | K36: 54 | L36: 883 | M36: 1,360 | N36: 2,243 | P36: 736 | Q36: 2,465 | R36: 3,201 | T36: 1,619 | U36: 3,825 | V36: 5,444
A37: 1994 | B37: Adults | C37: 63,983 | E37: 11,692 | G37: 1,832 | I37: 13,524 | K37: 1,054 | L37: 13,808 | M37: 21,427 | N37: 35,235 | P37: 3,264 | Q37: 10,906 | R37: 14,170 | T37: 17,072 | U37: 32,333 | V37: 49,405
B38: Jacks | C38: 14,371 | E38: 293 | G38: 2,556 | I38: 2,849 | K38: 77 | L38: 758 | M38: 3,740 | N38: 4,498 | P38: 4,442 | Q38: 2,505 | R38: 6,947 | T38: 5,200 | U38: 6,245 | V38: 11,445
A39: 1995 | B39: Adults | C39: 222,768 | E39: 15,557 | G39: 6,081 | I39: 21,638 | K39: 1,477 | L39: 22,681 | M39: 83,918 | N39: 106,599 | P39: 15,178 | Q39: 77,876 | R39: 93,054 | T39: 37,859 | U39: 161,794 | V39: 199,653
B40: Jacks | C40: 22,774 | E40: 557 | G40: 4,420 | I40: 4,977 | K40: 138 | L40: 259 | M40: 8,062 | N40: 8,321 | P40: 76 | Q40: 9,262 | R40: 9,338 | T40: 335 | U40: 17,324 | V40: 17,659
A41: 1996 | B41: Adults | C41: 175,773 | E41: 56,476 | G41: 12,766 | I41: 69,242 | K41: 5,172 | L41: 13,622 | M41: 38,680 | N41: 52,302 | P41: 6,411 | Q41: 42,646 | R41: 49,057 | T41: 20,033 | U41: 81,326 | V41: 101,359
B42: Jacks | C42: 9,532 | E42: 190 | G42: 2,312 | I42: 2,502 | K42: 64 | L42: 543 | M42: 1,696 | N42: 2,239 | P42: 249 | Q42: 4,478 | R42: 4,727 | T42: 792 | U42: 6,174 | V42: 6,966
A43: 1997 | B43: Adults | C43: 83,736 | E43: 12,087 | G43: 5,676 | I43: 17,763 | K43: 1,167 | L43: 13,275 | M43: 34,637 | N43: 47,912 | P43: 5,387 | Q43: 11,507 | R43: 16,894 | T43: 18,662 | U43: 46,144 | V43: 64,806
B44: Jacks | C44: 7,993 | E44: 35 | G44: 2,409 | I44: 2,444 | K44: 52 | L44: 452 | M44: 1,380 | N44: 1,832 | P44: 820 | Q44: 2,845 | R44: 3,665 | T44: 1,272 | U44: 4,225 | V44: 5,497
A45: 1998 | B45: Adults | C45: 90,647 | E45: 10,187 | G45: 7,710 | I45: 17,897 | K45: 1,043 | L45: 14,923 | M45: 18,028 | N45: 32,951 | P45: 14,296 | Q45: 24,460 | R45: 38,756 | T45: 29,219 | U45: 42,488 | V45: 71,707
B46: Jacks | C46: 4,639 | E46: 53 | G46: 1,108 | I46: 1,161 | K46: 28 | L46: 403 | M46: 881 | N46: 1,284 | P46: 192 | Q46: 1,974 | R46: 2,166 | T46: 595 | U46: 2,855 | V46: 3,450
A47: 1999 | B47: Adults | C47: 51,048 | E47: 14,660 | G47: 2,282 | I47: 16,942 | K47: 1,322 | L47: 9,290 | M47: 11,660 | N47: 20,950 | P47: 5,037 | Q47: 6,797 | R47: 11,834 | T47: 14,327 | U47: 18,457 | V47: 32,784
B48: Jacks | C48: 19,248 | E48: 271 | G48: 1,616 | I48: 1,887 | K48: 57 | L48: 4,830 | M48: 6,293 | N48: 11,123 | P48: 2,027 | Q48: 4,154 | R48: 6,181 | T48: 6,857 | U48: 10,447 | V48: 17,304
A49: 2000 | B49: Adults | C49: 218,077 | E49: 29,415 | G49: 5,650 | I49: 35,065 | K49: 2,673 | L49: 71,635 | M49: 58,388 | N49: 130,023 | P49: 25,976 | Q49: 24,340 | R49: 50,316 | T49: 97,611 | U49: 82,728 | V49: 180,339
B50: Jacks | C50: 10,246 | E50: 303 | G50: 1,582 | I50: 1,885 | K50: 58 | L50: 839 | M50: 2,891 | N50: 3,730 | P50: 1,070 | Q50: 3,503 | R50: 4,573 | T50: 1,909 | U50: 6,394 | V50: 8,303
A51: 2001 | B51: Adults | C51: 187,333 | E51: 38,645 | G51: 12,134 | I51: 50,779 | K51: 3,608 | L51: 37,204 | M51: 40,944 | N51: 78,148 | P51: 17,908 | Q51: 36,890 | R51: 54,798 | T51: 55,112 | U51: 77,834 | V51: 132,946
B52: Jacks | C52: 11,343 | E52: 399 | G52: 1,500 | I52: 1,899 | K52: 66 | L52: 1,364 | M52: 6,378 | N52: 7,742 | P52: 267 | Q52: 1,369 | R52: 1,636 | T52: 1,631 | U52: 7,747 | V52: 9,378
A53: 2002 | B53: Adults | C53: 160,788 | D53: a/ | E53: 24,574 | G53: 10,495 | I53: 35,069 | K53: 2,351 | L53: 23,667 | M53: 54,225 | N53: 77,892 | P53: 3,516 | Q53: 11,410 | R53: 14,926 | T53: 27,183 | U53: 65,635 | V53: 92,818
B54: Jacks | C54: 9,226 | E54: 126 | G54: 870 | I54: 996 | K54: 29 | L54: 1,294 | M54: 1,529 | N54: 2,823 | P54: 1,037 | Q54: 2,338 | R54: 3,375 | T54: 2,331 | U54: 3,867 | V54: 6,198
A55: 2003 | B55: Adults | C55: 191,949 | E55: 30,034 | G55: 9,680 | I55: 39,714 | K55: 2,810 | L55: 31,970 | M55: 55,423 | N55: 87,393 | P55: 29,812 | Q55: 32,219 | R55: 62,031 | T55: 61,782 | U55: 87,642 | V55: 149,424
B56: Jacks | C56: 3,845 | E56: 44 | G56: 814 | I56: 858 | K56: 21 | L56: 290 | M56: 848 | N56: 1,138 | P56: 574 | Q56: 1,254 | R56: 1,828 | T56: 864 | U56: 2,102 | V56: 2,966
A57: 2004 | B57: Adults | C57: 78,943 | E57: 25,803 | G57: 4,003 | I57: 29,806 | K57: 2,325 | L57: 10,582 | M57: 10,711 | N57: 21,293 | P57: 12,399 | Q57: 13,120 | R57: 25,519 | T57: 22,982 | U57: 23,831 | V57: 46,813
B58: Jacks | C58: 9,646 | E58: 168 | G58: 2,741 | I58: 2,909 | K58: 71 | L58: 937 | M58: 846 | N58: 1,783 | P58: 1,044 | Q58: 3,839 | R58: 4,883 | T58: 1,980 | U58: 4,685 | V58: 6,665
A59: 2005 | B59: Adults | C59: 65,227 | E59: 8,016 | G59: 1,985 | I59: 10,001 | K59: 738 | L59: 13,955 | M59: 13,554 | N59: 27,509 | P59: 13,744 | Q59: 13,235 | R59: 26,979 | T59: 27,699 | U59: 26,789 | V59: 54,488
B60: Jacks | C60: 2,296 | E60: 70 | G60: 1,030 | I60: 1,100 | K60: 27 | L60: 42 | M60: 398 | N60: 440 | P60: 59 | Q60: 670 | R60: 729 | T60: 101 | U60: 1,068 | V60: 1,169
A61: 2006 | B61: Adults | C61: 61,374 | E61: 10,283 | G61: 62 | I61: 10,345 | K61: 1,344 | L61: 11,604 | M61: 14,264 | N61: 25,868 | P61: 7,918 | Q61: 15,899 | R61: 23,817 | T61: 19,522 | U61: 30,163 | V61: 49,685
B62: Jacks | C62: 26,935 | E62: 415 | G62: 5,527 | I62: 5,942 | K62: 149 | L62: 2,386 | M62: 6,516 | N62: 8,902 | P62: 4,076 | Q62: 7,866 | R62: 11,942 | T62: 6,462 | U62: 14,382 | V62: 20,844
A63: 2007 | B63: Adults | C63: 132,131 | E63: 27,573 | G63: 6,312 | I63: 33,885 | K63: 2,526 | L63: 16,969 | M63: 21,292 | N63: 38,261 | P63: 18,081 | Q63: 39,378 | R63: 57,459 | T63: 35,050 | U63: 60,670 | V63: 95,720
B64: Jacks | C64: 1,684 | E64: 21 | G64: 369 | I64: 390 | K64: 10 | L64: 180 | M64: 232 | N64: 412 | P64: 33 | Q64: 839 | R64: 872 | T64: 213 | U64: 1,071 | V64: 1,284
A65: 2008 | B65: Adults | C65: 70,554 | E65: 22,259 | G65: 1,919 | I65: 24,178 | K65: 1,974 | L65: 9,101 | M65: 19,020 | N65: 28,121 | P65: 4,451 | Q65: 11,830 | R65: 16,281 | T65: 13,552 | U65: 30,850 | V65: 44,402
B66: Jacks | C66: 25,247 | E66: 641 | G66: 4,308 | I66: 4,949 | K66: 144 | L66: 2,130 | M66: 9,425 | N66: 11,555 | P66: 801 | Q66: 7,798 | R66: 8,599 | T66: 2,931 | U66: 17,223 | V66: 20,154
A67: 2009 | B67: Adults | C67: 100,644 | E67: 28,387 | G67: 5,651 | I67: 34,038 | K67: 2,583 | L67: 12,263 | M67: 27,743 | N67: 40,006 | P67: 7,351 | Q67: 16,666 | R67: 24,017 | T67: 19,614 | U67: 44,409 | V67: 64,023
B68: Jacks | C68: 11,914 | E68: 178 | G68: 2,214 | I68: 2,392 | K68: 60 | L68: 1,229 | M68: 1,948 | N68: 3,177 | P68: 143 | Q68: 6,142 | R68: 6,285 | T68: 1,372 | U68: 8,090 | V68: 9,462
A69: 2010 | B69: Adults | C69: 90,860 | E69: 29,887 | G69: 3,035 | I69: 32,922 | K69: 2,661 | L69: 10,278 | M69: 15,170 | N69: 25,448 | P69: 7,774 | Q69: 22,055 | R69: 29,829 | T69: 18,052 | U69: 37,225 | V69: 55,277
B70: Jacks | C70: 16,640 | E70: 428 | G70: 1,831 | I70: 2,259 | K70: 74 | L70: 1,069 | M70: 1,811 | N70: 2,880 | P70: 1,432 | Q70: 9,995 | R70: 11,427 | T70: 2,501 | U70: 11,806 | V70: 14,307
A71: 2011 | B71: Adults | C71: 101,977 | E71: 26,353 | G71: 4,147 | I71: 30,500 | K71: 2,377 | L71: 8,490 | M71: 17,973 | N71: 26,463 | P71: 13,847 | Q71: 28,790 | R71: 42,637 | T71: 22,337 | U71: 46,763 | V71: 69,100
B72: Jacks | C72: 84,895 | E72: 1,322 | G72: 9,981 | I72: 11,303 | K72: 319 | L72: 9,549 | M72: 24,746 | N72: 34,295 | P72: 1,875 | Q72: 37,103 | R72: 38,978 | T72: 11,424 | U72: 61,849 | V72: 73,273
A73: 2012 | B73: Adults | C73: 295,322 | E73: 95,386 | G73: 13,876 | I73: 109,262 | K73: 8,578 | L73: 38,478 | M73: 72,786 | N73: 111,264 | P73: 17,461 | Q73: 48,757 | R73: 66,218 | T73: 55,939 | U73: 121,543 | V73: 177,482
B74: Jacks | C74: 21,433 | E74: 177 | G74: 3,875 | I74: 4,052 | K74: 94 | L74: 1,537 | M74: 8,289 | N74: 9,826 | P74: 92 | Q74: 7,369 | R74: 7,461 | T74: 1,629 | U74: 15,658 | V74: 17,287
A75: 2013 | B75: Adults | C75: 165,025 | E75: 63,036 | G75: 19,800 | I75: 82,836 | K75: 5,885 | L75: 13,431 | M75: 31,711 | N75: 45,142 | P75: 3,717 | Q75: 27,445 | R75: 31,162 | T75: 17,148 | U75: 59,156 | V75: 76,304
B76: Jacks | C76: 14,356 | E76: 259 | G76: 2,260 | I76: 2,519 | K76: 69 | L76: 1,323 | M76: 3,274 | N76: 4,597 | P76: 135 | Q76: 7,036 | R76: 7,171 | T76: 1,458 | U76: 10,310 | V76: 11,768
A77: 2014b/ | B77: Adults | C77: 160,396 | D77: b/ | E77: 25,967 | G77: 5,386 | I77: 31,353 | K77: 2,392 | L77: 24,300 | M77: 70,709 | N77: 95,009 | P77: 6,975 | Q77: 24,395 | R77: 31,370 | T77: 31,276 | U77: 95,104 | V77: 126,380
B78: Jacks | C78: 22,321 | E78: 348 | G78: 3,364 | I78: 3,712 | K78: 100 | L78: 1,039 | M78: 10,520 | N78: 11,559 | P78: 221 | Q78: 6,719 | R78: 6,940 | T78: 1,259 | U78: 17,239 | V78: 18,498
A79: 2015b/ | B79: Adults | C79: 77,821 | D79: b/ | E79: 28,048 | G79: 7,842 | I79: 35,890 | K79: 2,611 | L79: 7,956 | M79: 23,273 | N79: 31,229 | P79: 3,129 | Q79: 4,839 | R79: 7,968 | T79: 11,085 | U79: 28,112 | V79: 39,197
B80: Jacks | C80: 6,094 | E80: 496 | G80: 1,605 | I80: 2,101 | K80: 76 | L80: 220 | M80: 748 | N80: 968 | P80: 224 | Q80: 2,724 | R80: 2,948 | T80: 444 | U80: 3,472 | V80: 3,916
A81: 2016b/ | B81: Adults | C81: 24,582 | D81: b/ | E81: 5,160 | G81: 1,310 | I81: 6,470 | K81: 486 | L81: 2,436 | M81: 10,376 | N81: 12,812 | P81: 1,142 | Q81: 3,561 | R81: 4,703 | T81: 3,578 | U81: 13,937 | V81: 17,515
B82: Jacks | C82: 2,787 | E82: 160 | G82: 162 | I82: 322 | K82: 17 | L82: 151 | M82: 554 | N82: 705 | P82: 401 | Q82: 1,340 | R82: 1,741 | T82: 552 | U82: 1,894 | V82: 2,446
A83: 2017 | B83: Adults | C83: 33,232 | E83: 1,880 | G83: 71 | I83: 1,951 | K83: 164 | L83: 7,443 | M83: 13,832 | N83: 21,275 | P83: 3,770 | Q83: 6,072 | R83: 9,842 | T83: 11,213 | U83: 19,904 | V83: 31,117
B84: Jacks | C84: 20,318 | E84: 266 | G84: 42 | I84: 308 | K84: 17 | L84: 3,193 | M84: 10,621 | N84: 13,814 | P84: 1,863 | Q84: 4,316 | R84: 6,179 | T84: 5,056 | U84: 14,937 | V84: 19,993
A85: 2018 | B85: Adults | C85: 91,060 | E85: 14,769 | G85: 4,110 | I85: 18,879 | K85: 1,262 | L85: 11,425 | M85: 37,505 | N85: 48,930 | P85: 7,142 | Q85: 14,847 | R85: 21,989 | T85: 18,567 | U85: 52,352 | V85: 70,919
B86: Jacks | C86: 10,872 | E86: 308 | G86: 2,237 | I86: 2,545 | K86: 58 | L86: 435 | M86: 3,491 | N86: 3,926 | P86: 171 | Q86: 4,172 | R86: 4,343 | T86: 606 | U86: 7,663 | V86: 8,269
A87: 2019b/ | B87: Adults | C87: 37,084 | E87: 5,989 | G87: 5,376 | I87: 11,365 | K87: 511 | L87: 3,797 | M87: 13,528 | N87: 17,325 | P87: 1,381 | Q87: 6,494 | R87: 7,875 | T87: 5,178 | U87: 20,022 | V87: 25,200
B88: Jacks | C88: 9,951 | E88: 592 | G88: 2,785 | I88: 3,377 | K88: 73 | L88: 249 | M88: 2,314 | N88: 2,563 | P88: 205 | Q88: 3,732 | R88: 3,937 | T88: 454 | U88: 6,046 | V88: 6,500
A89: 2020 | B89: Adults | C89: 45,409 | E89: 5,212 | G89: 5,123 | I89: 10,335 | K89: 558 | L89: 4,042 | M89: 11,818 | N89: 15,860 | P89: 4,289 | Q89: 14,367 | R89: 18,656 | T89: 8,331 | U89: 26,185 | V89: 34,516
B90: Jacks | C90: 9,077 | E90: 328 | G90: 533 | I90: 861 | K90: 40 | L90: 413 | M90: 929 | N90: 1,342 | P90: 2,815 | Q90: 4,019 | R90: 6,834 | T90: 3,228 | U90: 4,948 | V90: 8,176
A91: 2021b/ | B91: Adults | C91: 53,954 | E91: 8,066 | G91: 2,265 | I91: 10,331 | K91: 717 | L91: 7,012 | M91: 16,690 | N91: 23,702 | P91: 5,838 | Q91: 13,252 | R91: 19,090 | T91: 12,850 | U91: 29,942 | V91: 42,792
B92: Jacks | C92: 10,334 | E92: 612 | G92: 2,397 | I92: 3,009 | K92: 75 | L92: 494 | M92: 3,283 | N92: 3,777 | P92: 129 | Q92: 3,339 | R92: 3,468 | T92: 623 | U92: 6,622 | V92: 7,245
A93: 2022b/ | B93: Adults | C93: 46,595 | E93: 8,035 | G93: 2,461 | I93: 10,496 | K93: 744 | L93: 9,269 | M93: 14,769 | N93: 24,038 | P93: 3,965 | Q93: 7,187 | R93: 11,152 | T93: 13,234 | U93: 21,956 | V93: 35,190
B94: Jacks | C94: 7,547 | E94: 334 | G94: 1,870 | I94: 2,204 | K94: 48 | L94: 206 | M94: 989 | N94: 1,195 | P94: 973 | Q94: 3,128 | R94: 4,101 | T94: 1,179 | U94: 4,117 | V94: 5,296
A95: 2023 | B95: Adults | C95: 65,651 | E95: 2,091 | G95: 53 | I95: 2,144 | K95: 172 | L95: 10,145 | M95: 19,476 | N95: 29,621 | P95: 11,819 | Q95: 21,894 | R95: 33,713 | T95: 21,964 | U95: 41,370 | V95: 63,334
B96: Jacks | C96: 11,673 | E96: 1,136 | G96: 9 | I96: 1,145 | K96: 11 | L96: 200 | M96: 1,559 | N96: 1,759 | P96: 848 | Q96: 7,911 | R96: 8,759 | T96: 1,048 | U96: 9,470 | V96: 10,518
A97: 2024c/ | B97: Adults | C97: 36,568 | E97: 7,249 | G97: 136 | I97: 7,385 | K97: 570 | L97: 299 | M97: 10,749 | N97: 11,048 | P97: 4,190 | Q97: 13,283 | R97: 17,473 | T97: 4,489 | U97: 24,032 | V97: 28,521
B98: Jacks | C98: 7,085 | E98: 471 | G98: 3 | I98: 474 | K98: 12 | L98: 18 | M98: 568 | N98: 586 | P98: 622 | Q98: 5,391 | R98: 6,013 | T98: 640 | U98: 5,959 | V98: 6,599
A99: GOAL | B99: Adults | U99: ≥40,700d/e/
A100: a/ Total inriver run in 2002 includes an estimated 30,550 fish that died prior to spawning in September.
A101: b/ Total inriver run includes fish collected from the Klamath and Trinity rivers by the Yurok and Hoopa Valley tribes, respectively, to test for the presence of the parasite Ichthyophthirius multifiliis during the following years: 2014 - 282 fish; 2015 - 124 fish; 2016 - 113 fish; 2019 - 9 fish; 2021 - 113 adults and 6 jacks; 2022 - 164 adults.
A102: c/ Preliminary.
A103: d/ In December 2011, Amendment 16 to the Salmon Fishery Management Plan was approved, which replaced the 35,000 spawning escapement floor with an SMSY management objective of 40,700 natural area adult spawners. The 35,000 spawner floor was in effect from 1989-2007 and in 2011. In 2008-2010, fisheries were managed for a natural area spawning escapement of 40,700 adults under requirements of a rebuilding plan.
A106: e/ Annual escapement goals may be more or less than SMSY in some years due to meeting SACL requirements and de minimis fishing provisions.
A122: TABLE B-4. Summary of Klamath River fall Chinook salmon estimates in numbers of adults and jacks.
C123: Total Inriver Run | K123: Nonlanded Fishery Mortality | L123: Spawning Escapement
A124: Year or Average | E124: Inriver Harvest | L124: Klamath River | P124: Trinity River | T124: Total
B125: Category | E125: Indian | G125: Sport | I125: Total | L125: Hatchery | M125: Natural | N125: Total | P125: Hatchery | Q125: Natural | R125: Total | T125: Hatchery | U125: Natural | V125: Total
A126: 1986-1990 | B126: Adults | C126: =AVERAGE(C21,C23,C25,C27, C29) -> 151,203 | E126: =AVERAGE(E21,E23,E25,E27, E29) -> 36,669 | G126: =AVERAGE(G21,G23,G25,G27, G29) -> 15,145 | I126: =AVERAGE(I21,I23,I25,I27, I29) -> 51,814 | K126: =AVERAGE(K21,K23,K25,K27, K29) -> 3,498 | L126: 13,194 | M126: 21,543 | N126: 34,737 | P126: =AVERAGE(P21,P23,P25,P27, P29) -> 11,912 | Q126: 49,242 | R126: 61,154 | T126: =AVERAGE(T21,T23,T25,T27, T29) -> 25,106 | U126: 70,785 | V126: 95,891
B127: Jacks | C127: =AVERAGE(C22,C24,C26,C28, C30) -> 20,227 | E127: =AVERAGE(E22,E24,E26,E28, E30) -> 446 | G127: =AVERAGE(G22,G24,G26,G28, G30) -> 4,924 | I127: =AVERAGE(I22,I24,I26,I28, I30) -> 5,370 | K127: 139 | L127: 1,009 | M127: 3,460 | N127: 4,469 | P127: 2,285 | Q127: 7,964 | R127: 10,248 | T127: 3,294 | U127: 11,423 | V127: 14,718
A128: 1991-1995 | B128: Adults | C128: =AVERAGE(C31,C33,C35,C37, C39) -> 80,666 | E128: =AVERAGE(E31,E33,E35,E37, E39) -> 10,574 | G128: =AVERAGE(G31,G33,G35,G37, G39) -> 3,094 | I128: =AVERAGE(I31,I33,I35,I37, I39) -> 13,668 | K128: =AVERAGE(K31,K33,K35,K37, K39) -> 983 | L128: =AVERAGE(L31,L33,L35,L37, L39) -> 12,980 | M128: =AVERAGE(M31,M33,M35,M37, M39) -> 26,594 | N128: =AVERAGE(N31,N33,N35,N37, N39) -> 39,574 | P128: =AVERAGE(P31,P33,P35,P37, P39) -> 5,104 | Q128: =AVERAGE(Q31,Q33,Q35,Q37, Q39) -> 21,339 | R128: =AVERAGE(R31,R33,R35,R37, R39) -> 26,442 | T128: =AVERAGE(T31,T33,T35,T37, T39) -> 18,084 | U128: =AVERAGE(U31,U33,U35,U37, U39) -> 47,932 | V128: =AVERAGE(V31,V33,V35,V37, V39) -> 66,016
B129: Jacks | C129: =AVERAGE(C32,C34,C36,C38,C40) -> 12,038 | E129: =AVERAGE(E32,E34,E36,E38,E40) -> 291 | G129: =AVERAGE(G32,G34,G36,G38,G40) -> 2,741 | I129: =AVERAGE(I32,I34,I36,I38,I40) -> 3,032 | K129: =AVERAGE(K32,K34,K36,K38,K40) -> 81 | L129: =AVERAGE(L32,L34,L36,L38,L40) -> 1,140 | M129: =AVERAGE(M32,M34,M36,M38,M40) -> 3,216 | N129: =AVERAGE(N32,N34,N36,N38,N40) -> 4,356 | P129: =AVERAGE(P32,P34,P36,P38,P40) -> 1,134 | Q129: =AVERAGE(Q32,Q34,Q36,Q38,Q40) -> 3,435 | R129: =AVERAGE(R32,R34,R36,R38,R40) -> 4,569 | T129: =AVERAGE(T32,T34,T36,T38,T40) -> 2,274 | U129: =AVERAGE(U32,U34,U36,U38,U40) -> 6,651 | V129: =AVERAGE(V32,V34,V36,V38,V40) -> 8,925
A130: 1996-2000 | B130: Adults | C130: =AVERAGE(C41,C43,C45,C47, C49) -> 123,856 | E130: =AVERAGE(E41,E43,E45,E47, E49) -> 24,565 | G130: =AVERAGE(G41,G43,G45,G47, G49) -> 6,817 | I130: =AVERAGE(I41,I43,I45,I47, I49) -> 31,382 | K130: =AVERAGE(K41,K43,K45,K47, K49) -> 2,275 | L130: =AVERAGE(L41,L43,L45,L47, L49) -> 24,549 | M130: =AVERAGE(M41,M43,M45,M47, M49) -> 32,279 | N130: =AVERAGE(N41,N43,N45,N47, N49) -> 56,828 | P130: =AVERAGE(P41,P43,P45,P47, P49) -> 11,421 | Q130: =AVERAGE(Q41,Q43,Q45,Q47, Q49) -> 21,950 | R130: =AVERAGE(R41,R43,R45,R47, R49) -> 33,371 | T130: =AVERAGE(T41,T43,T45,T47, T49) -> 35,970 | U130: =AVERAGE(U41,U43,U45,U47, U49) -> 54,229 | V130: =AVERAGE(V41,V43,V45,V47, V49) -> 90,199
B131: Jacks | C131: =AVERAGE(C42,C44,C46,C48,C50) -> 10,332 | E131: =AVERAGE(E42,E44,E46,E48,E50) -> 170 | G131: =AVERAGE(G42,G44,G46,G48,G50) -> 1,805 | I131: =AVERAGE(I42,I44,I46,I48,I50) -> 1,976 | K131: =AVERAGE(K42,K44,K46,K48,K50) -> 52 | L131: =AVERAGE(L42,L44,L46,L48,L50) -> 1,413 | M131: =AVERAGE(M42,M44,M46,M48,M50) -> 2,628 | N131: =AVERAGE(N42,N44,N46,N48,N50) -> 4,042 | P131: =AVERAGE(P42,P44,P46,P48,P50) -> 872 | Q131: =AVERAGE(Q42,Q44,Q46,Q48,Q50) -> 3,391 | R131: =AVERAGE(R42,R44,R46,R48,R50) -> 4,262 | T131: =AVERAGE(T42,T44,T46,T48,T50) -> 2,285 | U131: =AVERAGE(U42,U44,U46,U48,U50) -> 6,019 | V131: =AVERAGE(V42,V44,V46,V48,V50) -> 8,304
A132: 2001-2005a/ | B132: Adults | C132: =AVERAGE(C51,C53,C55,C57, C59) -> 136,848 | E132: =AVERAGE(E51,E53,E55,E57, E59) -> 25,414 | G132: =AVERAGE(G51,G53,G55,G57, G59) -> 7,659 | I132: =AVERAGE(I51,I53,I55,I57, I59) -> 33,074 | K132: =AVERAGE(K51,K53,K55,K57, K59) -> 2,366 | L132: =AVERAGE(L51,L53,L55,L57, L59) -> 23,476 | M132: =AVERAGE(M51,M53,M55,M57, M59) -> 34,971 | N132: =AVERAGE(N51,N53,N55,N57, N59) -> 58,447 | P132: =AVERAGE(P51,P53,P55,P57, P59) -> 15,476 | Q132: =AVERAGE(Q51,Q53,Q55,Q57, Q59) -> 21,375 | R132: =AVERAGE(R51,R53,R55,R57, R59) -> 36,851 | T132: =AVERAGE(T51,T53,T55,T57, T59) -> 38,952 | U132: =AVERAGE(U51,U53,U55,U57, U59) -> 56,346 | V132: =AVERAGE(V51,V53,V55,V57, V59) -> 95,298
B133: Jacks | C133: =AVERAGE(C52,C54,C56,C58,C60) -> 7,271 | E133: =AVERAGE(E52,E54,E56,E58,E60) -> 161 | G133: =AVERAGE(G52,G54,G56,G58,G60) -> 1,391 | I133: =AVERAGE(I52,I54,I56,I58,I60) -> 1,552 | K133: =AVERAGE(K52,K54,K56,K58,K60) -> 43 | L133: =AVERAGE(L52,L54,L56,L58,L60) -> 785 | M133: =AVERAGE(M52,M54,M56,M58,M60) -> 2,000 | N133: =AVERAGE(N52,N54,N56,N58,N60) -> 2,785 | P133: =AVERAGE(P52,P54,P56,P58,P60) -> 596 | Q133: =AVERAGE(Q52,Q54,Q56,Q58,Q60) -> 1,894 | R133: =AVERAGE(R52,R54,R56,R58,R60) -> 2,490 | T133: =AVERAGE(T52,T54,T56,T58,T60) -> 1,381 | U133: =AVERAGE(U52,U54,U56,U58,U60) -> 3,894 | V133: =AVERAGE(V52,V54,V56,V58,V60) -> 5,275
A134: 2006-2010 | B134: Adults | C134: =AVERAGE(C61,C63,C65,C67, C69) -> 91,113 | E134: =AVERAGE(E61,E63,E65,E67, E69) -> 23,678 | G134: =AVERAGE(G61,G63,G65,G67, G69) -> 3,396 | I134: =AVERAGE(I61,I63,I65,I67, I69) -> 27,074 | K134: =AVERAGE(K61,K63,K65,K67, K69) -> 2,218 | L134: 12,043 | M134: 19,498 | N134: 31,541 | P134: =AVERAGE(P61,P63,P65,P67, P69) -> 9,115 | Q134: 21,166 | R134: 30,281 | T134: =AVERAGE(T61,T63,T65,T67, T69) -> 21,158 | U134: 40,663 | V134: 61,821
B135: Jacks | C135: =AVERAGE(C62,C64,C66,C68, C70) -> 16,484 | E135: =AVERAGE(E62,E64,E66,E68, E70) -> 337 | G135: =AVERAGE(G62,G64,G66,G68, G70) -> 2,850 | I135: =AVERAGE(I62,I64,I66,I68, I70) -> 3,186 | K135: =AVERAGE(K62,K64,K66,K68, K70) -> 87 | L135: 1,399 | M135: 3,986 | N135: 5,385 | P135: =AVERAGE(P62,P64,P66,P68, P70) -> 1,297 | Q135: 6,528 | R135: 7,825 | T135: =AVERAGE(T62,T64,T66,T68, T70) -> 2,696 | U135: 10,514 | V135: 13,210
A136: 2011 | B136: Adults | C136: =C71 -> 101,977 | E136: =E71 -> 26,353 | G136: =G71 -> 4,147 | I136: =I71 -> 30,500 | K136: =K71 -> 2,377 | L136: 8,490 | M136: 17,973 | N136: 26,463 | P136: =P71 -> 13,847 | Q136: 28,790 | R136: 42,637 | T136: =T71 -> 22,337 | U136: 46,763 | V136: 69,100
B137: Jacks | C137: 84,895 | E137: 1,322 | G137: 9,981 | I137: 11,303 | K137: 319 | L137: 9,549 | M137: 24,746 | N137: 34,295 | P137: 1,875 | Q137: 37,103 | R137: 38,978 | T137: 11,424 | U137: 61,849 | V137: 73,273
A138: 2012 | B138: Adults | C138: 295,322 | E138: 95,386 | G138: 13,876 | I138: 109,262 | K138: 8,578 | L138: 38,478 | M138: 72,786 | N138: 111,264 | P138: 17,461 | Q138: 48,757 | R138: 66,218 | T138: 55,939 | U138: 121,543 | V138: 177,482
B139: Jacks | C139: 21,433 | E139: 177 | G139: 3,875 | I139: 4,052 | K139: 94 | L139: 1,537 | M139: 8,289 | N139: 9,826 | P139: 92 | Q139: 7,369 | R139: 7,461 | T139: 1,629 | U139: 15,658 | V139: 17,287
A140: 2013 | B140: Adults | C140: 165,025 | E140: 63,036 | G140: 19,800 | I140: 82,836 | K140: 5,885 | L140: 13,431 | M140: 31,711 | N140: 45,142 | P140: 3,717 | Q140: 27,445 | R140: 31,162 | T140: 17,148 | U140: 59,156 | V140: 76,304
B141: Jacks | C141: 14,356 | E141: 259 | G141: 2,260 | I141: 2,519 | K141: 69 | L141: 1,323 | M141: 3,274 | N141: 4,597 | P141: 135 | Q141: 7,036 | R141: 7,171 | T141: 1,458 | U141: 10,310 | V141: 11,768
A142: 2014b/ | B142: Adults | C142: 160,396 | E142: 25,967 | G142: 5,386 | I142: 31,353 | K142: 2,392 | L142: 24,300 | M142: 70,709 | N142: 95,009 | P142: 6,975 | Q142: 24,395 | R142: 31,370 | T142: 31,276 | U142: 95,104 | V142: 126,380
B143: Jacks | C143: 22,321 | E143: 348 | G143: 3,364 | I143: 3,712 | K143: 100 | L143: 1,039 | M143: 10,520 | N143: 11,559 | P143: 221 | Q143: 6,719 | R143: 6,940 | T143: 1,259 | U143: 17,239 | V143: 18,498
A144: 2015b/ | B144: Adults | C144: 77,821 | E144: 28,048 | G144: 7,842 | I144: 35,890 | K144: 2,611 | L144: 7,956 | M144: 23,273 | N144: 31,229 | P144: 3,129 | Q144: 4,839 | R144: 7,968 | T144: 11,085 | U144: 28,112 | V144: 39,197
B145: Jacks | C145: 6,094 | E145: 496 | G145: 1,605 | I145: 2,101 | K145: 76 | L145: 220 | M145: 748 | N145: 968 | P145: 224 | Q145: 2,724 | R145: 2,948 | T145: 444 | U145: 3,472 | V145: 3,916
A146: 2016b/ | B146: Adults | C146: 24,582 | E146: 5,160 | G146: 1,310 | I146: 6,470 | K146: 486 | L146: 2,436 | M146: 10,376 | N146: 12,812 | P146: 1,142 | Q146: 3,561 | R146: 4,703 | T146: 3,578 | U146: 13,937 | V146: 17,515
B147: Jacks | C147: 2,787 | E147: 160 | G147: 162 | I147: 322 | K147: 17 | L147: 151 | M147: 554 | N147: 705 | P147: 401 | Q147: 1,340 | R147: 1,741 | T147: 552 | U147: 1,894 | V147: 2,446
A148: 2017 | B148: Adults | C148: 33,232 | E148: 1,880 | G148: 71 | I148: 1,951 | K148: 164 | L148: 7,443 | M148: 13,832 | N148: 21,275 | P148: 3,770 | Q148: 6,072 | R148: 9,842 | T148: 11,213 | U148: 19,904 | V148: 31,117
B149: Jacks | C149: 20,318 | E149: 266 | G149: 42 | I149: 308 | K149: 17 | L149: 3,193 | M149: 10,621 | N149: 13,814 | P149: 1,863 | Q149: 4,316 | R149: 6,179 | T149: 5,056 | U149: 14,937 | V149: 19,993
A150: 2018 | B150: Adults | C150: 91,060 | E150: 14,769 | G150: 4,110 | I150: 18,879 | K150: 1,262 | L150: 11,425 | M150: 37,505 | N150: 48,930 | P150: 7,142 | Q150: 14,847 | R150: 21,989 | T150: 18,567 | U150: 52,352 | V150: 70,919
B151: Jacks | C151: 10,872 | E151: 308 | G151: 2,237 | I151: 2,545 | K151: 58 | L151: 435 | M151: 3,491 | N151: 3,926 | P151: 171 | Q151: 4,172 | R151: 4,343 | T151: 606 | U151: 7,663 | V151: 8,269
A152: 2019b/ | B152: Adults | C152: 37,084 | E152: 5,989 | G152: 5,376 | I152: 11,365 | K152: 511 | L152: 3,797 | M152: 13,528 | N152: 17,325 | P152: 1,381 | Q152: 6,494 | R152: 7,875 | T152: 5,178 | U152: 20,022 | V152: 25,200
B153: Jacks | C153: 9,951 | E153: 592 | G153: 2,785 | I153: 3,377 | K153: =K88 -> 73 | L153: 249 | M153: 2,314 | N153: 2,563 | P153: =P88 -> 205 | Q153: 3,732 | R153: 3,937 | T153: =T88 -> 454 | U153: 6,046 | V153: 6,500
A154: 2020 | B154: Adults | C154: 45,409 | E154: 5,212 | G154: 5,123 | I154: 10,335 | K154: =K89 -> 558 | L154: 4,042 | M154: 11,818 | N154: 15,860 | P154: =P89 -> 4,289 | Q154: 14,367 | R154: 18,656 | T154: =T89 -> 8,331 | U154: 26,185 | V154: 34,516
B155: Jacks | C155: 9,077 | E155: 328 | G155: 533 | I155: 861 | K155: =K90 -> 40 | L155: 413 | M155: 929 | N155: 1,342 | P155: =P90 -> 2,815 | Q155: 4,019 | R155: 6,834 | T155: =T90 -> 3,228 | U155: 4,948 | V155: 8,176
A156: 2021b/ | B156: Adults | C156: 53,954 | E156: 8,066 | G156: 2,265 | I156: 10,331 | K156: =K91 -> 717 | L156: 7,012 | M156: 16,690 | N156: 23,702 | P156: =P91 -> 5,838 | Q156: 13,252 | R156: 19,090 | T156: =T91 -> 12,850 | U156: 29,942 | V156: 42,792
B157: Jacks | C157: 10,334 | E157: 612 | G157: 2,397 | I157: 3,009 | K157: =K92 -> 75 | L157: 494 | M157: 3,283 | N157: 3,777 | P157: =P92 -> 129 | Q157: 3,339 | R157: 3,468 | T157: =T92 -> 623 | U157: 6,622 | V157: 7,245
A158: 2022b/ | B158: Adults | C158: 46,595 | E158: 8,035 | G158: 2,461 | I158: 10,496 | K158: =K93 -> 744 | L158: 9,269 | M158: 14,769 | N158: 24,038 | P158: =P93 -> 3,965 | Q158: 7,187 | R158: 11,152 | T158: =T93 -> 13,234 | U158: 21,956 | V158: 35,190
B159: Jacks | C159: 7,547 | E159: 334 | G159: 1,870 | I159: 2,204 | K159: =K94 -> 48 | L159: 206 | M159: 989 | N159: 1,195 | P159: =P94 -> 973 | Q159: 3,128 | R159: 4,101 | T159: =T94 -> 1,179 | U159: 4,117 | V159: 5,296
A160: 2023 | B160: Adults | C160: =C95 -> 65,651 | E160: =E95 -> 2,091 | G160: =G95 -> 53 | I160: =I95 -> 2,144 | K160: =K95 -> 172 | L160: 10,145 | M160: 19,476 | N160: 29,621 | P160: =P95 -> 11,819 | Q160: 21,894 | R160: 33,713 | T160: =T95 -> 21,964 | U160: 41,370 | V160: 63,334
B161: Jacks | C161: 11,673 | E161: 1,136 | G161: 9 | I161: 1,145 | K161: =K96 -> 11 | L161: 200 | M161: 1,559 | N161: 1,759 | P161: =P96 -> 848 | Q161: 7,911 | R161: 8,759 | T161: =T96 -> 1,048 | U161: 9,470 | V161: 10,518
A162: 2024c/ | B162: Adults | C162: 36,568 | E162: 7,249 | G162: 136 | I162: 7,385 | K162: =K97 -> 570 | L162: 299 | M162: 10,749 | N162: 11,048 | P162: =P97 -> 4,190 | Q162: 13,283 | R162: 17,473 | T162: =T97 -> 4,489 | U162: 24,032 | V162: 28,521
B163: Jacks | C163: 7,085 | E163: 471 | G163: 3 | I163: 474 | K163: =K98 -> 12 | L163: 18 | M163: 568 | N163: 586 | P163: =P98 -> 622 | Q163: 5,391 | R163: 6,013 | T163: =T98 -> 640 | U163: 5,959 | V163: 6,599
A164: GOAL | B164: Adults | U164: ≥40,700d/e/
A165: a/ Total inriver run includes an estimated 30,550 fish that died prior to spawning in September 2002.
A166: b/ Total inriver run includes fish collected from the Klamath and Trinity rivers by the Yurok and Hoopa Valley tribes, respectively, to test for the presence of the parasite Ichthyophthirius multifiliis during the following years: 2014 - 282 fish; 2015 - 124 fish; 2016 - 113 fish; 2019 - 9 fish; 2021 - 113 adults and 6 jacks; 2022 - 159 adults.
A167: c/ Preliminary.
A168: d/ In December 2011, Amendment 16 to the Salmon Fishery Management Plan was approved, which replaced the 35,000 spawning escapement floor with an SMSY management objective of 40,700 natural area adult spawners. The 35,000 spawner floor was in effect from 1989-2007 and in 2011. In 2008-2010, fisheries were managed for a natural area spawning escapement of 40,700 adults under requirements of a rebuilding plan.
A169: e/ Annual escapement goals may be more or less than SMSY in some years due to meeting SACL requirements and de minimis fishing provisions.

Sheet B-5
A1: TABLE B-5. Estimates of Yurok and Hoopa Valley reservation Indian Chinook harvest in numbers of fish.
C2: Spring Run | G2: Fall Run
A3: Year | B3: Areaa/ | C3: Jack | D3: Adult | E3: Total | G3: Jack | H3: Adult | I3: Total
A4: 1977 | B4: Total | C4: b/ | D4: b/ | E4: b/ | G4: 2,700 | H4: 27,300 | I4: 30,000
A6: 1978 | B6: Total | C6: b/ | D6: b/ | E6: b/ | G6: 1,800 | H6: 18,200 | I6: 20,000
A8: 1979 | B8: Total | C8: b/ | D8: b/ | E8: b/ | G8: 1,350 | H8: 13,650 | I8: 15,000
A10: 1980 | B10: Total | C10: 20 | D10: 980 | E10: 1,000 | G10: 987 | H10: 12,013 | I10: 13,000
A12: 1981 | B12: Estuary | C12: 21 | D12: 1,320 | E12: 1,341 | G12: 912 | H12: 23,097 | I12: 24,009
B13: Resighinni | C13: 0 | D13: 16 | E13: 16 | G13: 338 | H13: 4,293 | I13: 4,631
B14: Upper Klamath | C14: 19 | D14: 381 | E14: 400 | G14: 766 | H14: 4,112 | I14: 4,878
B15: Trinity River | C15: 17 | D15: 1,090 | E15: 1,107 | G15: 449 | H15: 1,531 | I15: 1,980
B16: Total | C16: 57 | D16: 2,807 | E16: 2,864 | G16: 2,465 | H16: 33,033 | I16: 35,498
A18: 1982 | B18: Estuary | C18: 3 | D18: 172 | E18: 175 | G18: 290 | H18: 4,547 | I18: 4,837
B19: Resighinni | C19: 11 | D19: 789 | E19: 800 | G19: 368 | H19: 3,551 | I19: 3,919
B20: Upper Klamath | C20: 21 | D20: 1,479 | E20: 1,500 | G20: 827 | H20: 4,873 | I20: 5,700
B21: Trinity River | C21: 10 | D21: 715 | E21: 725 | G21: 314 | H21: 1,511 | I21: 1,825
B22: Total | C22: 45 | D22: 3,155 | E22: 3,200 | G22: 1,799 | H22: 14,482 | I22: 16,281
A24: 1983 | B24: Estuary | C24: 1 | D24: 59 | E24: 60 | G24: 12 | H24: 800 | I24: 812
B25: Middle Klamath | C25: 3 | D25: 322 | E25: 325 | G25: 32 | H25: 2,626 | I25: 2,658
B26: Upper Klamath | C26: 1 | D26: 129 | E26: 130 | G26: 89 | H26: 3,074 | I26: 3,163
B27: Trinity River | C27: 5 | D27: 75 | E27: 80 | G27: 30 | H27: 1,390 | I27: 1,420
B28: Total | C28: 10 | D28: 585 | E28: 595 | G28: 163 | H28: 7,890 | I28: 8,053
A30: 1984 | B30: Estuary | C30: 2 | D30: 53 | E30: 55 | G30: 132 | H30: 11,878 | I30: 12,010
B31: Middle Klamath | C31: 8 | D31: 147 | E31: 155 | G31: 81 | H31: 2,807 | I31: 2,888
B32: Upper Klamath | C32: 2 | D32: 47 | E32: 49 | G32: 102 | H32: 2,815 | I32: 2,917
B33: Trinity River | C33: 0 | D33: 380 | E33: 380 | G33: 140 | H33: 1,170 | I33: 1,310
B34: Total | C34: 12 | D34: 627 | E34: 639 | G34: 455 | H34: 18,670 | I34: 19,125
A36: 1985c/ | B36: Estuary | C36: 29 | D36: 580 | E36: 609 | G36: 132 | H36: 5,700 | I36: 5,832
B37: Middle Klamath | C37: 6 | D37: 184 | E37: 190 | G37: 283 | H37: 1,731 | I37: 2,014
B38: Upper Klamath | C38: 10 | D38: 310 | E38: 320 | G38: 193 | H38: 2,194 | I38: 2,387
B39: Trinity River | C39: 115 | D39: 1,000 | E39: 1,115 | G39: 947 | H39: 1,941 | I39: 2,888
B40: Total | C40: 160 | D40: 2,074 | E40: 2,234 | G40: 1,555 | H40: 11,566 | I40: 13,121
A42: 1986c/ | B42: Estuary | C42: 1 | D42: 40 | E42: 41 | G42: 191 | H42: 15,286 | I42: 15,477
B43: Middle Klamath | C43: 3 | D43: 164 | E43: 167 | G43: 176 | H43: 2,501 | I43: 2,677
B44: Upper Klamath | C44: 10 | D44: 488 | E44: 498 | G44: 201 | H44: 1,532 | I44: 1,733
B45: Trinity River | C45: 81 | D45: 2,022 | E45: 2,103 | G45: 586 | H45: 4,808 | I45: 5,394
B46: Total | C46: 95 | D46: 2,714 | E46: 2,809 | G46: 1,154 | H46: 24,127 | I46: 25,281
A48: 1987 | B48: Commercial: Estuary | C48: 0 | D48: 0 | E48: 0 | G48: 0 | H48: 29,040 | I48: 29,040
B49: Subsistence:Estuary | C49: 23 | D49: 786 | E49: 809 | G49: 36 | H49: 10,938 | I49: 10,974
B50: Middle Klamath | C50: 5 | D50: 171 | E50: 176 | G50: 30 | H50: 5,079 | I50: 5,109
B51: Upper Klamath | C51: 20 | D51: 689 | E51: 709 | G51: 87 | H51: 3,057 | I51: 3,144
B52: Trinity River | C52: 122 | D52: 4,146 | E52: 4,268 | G52: 262 | H52: 4,982 | I52: 5,244
B53: Total | C53: 176 | D53: 5,792 | E53: 5,962 | G53: 415 | H53: 53,096 | I53: 53,511
A55: 1988 | B55: Commercial: Estuary | C55: 0 | D55: 0 | E55: 0 | G55: 0 | H55: 25,782 | I55: 25,782
B56: Subsistence:Estuary | C56: 8 | D56: 1,669 | E56: 1,677 | G56: 138 | H56: 11,132 | I56: 11,270
B57: Middle Klamath | C57: 0 | D57: 710 | E57: 710 | G57: 36 | H57: 6,252 | I57: 6,288
B58: Upper Klamath | C58: 0 | D58: 539 | E58: 539 | G58: 137 | H58: 3,415 | I58: 3,552
B59: Trinity River | C59: 84 | D59: 2,727 | E59: 2,811 | G59: 267 | H59: 5,070 | I59: 5,337
B60: Total | C60: 92 | D60: 5,645 | E60: 5,737 | G60: 578 | H60: 51,651 | I60: 52,229
A62: 1989 | B62: Commercial: Estuary | C62: 0 | D62: 206 | E62: 206 | G62: 0 | H62: 27,504 | I62: 27,504
B63: Subsistence:Estuary | C63: 0 | D63: 644 | E63: 644 | G63: 0 | H63: 9,626 | I63: 9,626
B64: Middle Klamath | C64: 0 | D64: 2,008 | E64: 2,008 | G64: 65 | H64: 3,108 | I64: 3,173
B65: Upper Klamath | C65: 0 | D65: 1,887 | E65: 1,887 | G65: 55 | H65: 1,853 | I65: 1,908
B66: Trinity River | C66: 20 | D66: 1,978 | E66: 1,998 | G66: 71 | H66: 3,474 | I66: 3,545
B67: Total | C67: 20 | D67: 6,723 | E67: 6,743 | G67: 191 | H67: 45,565 | I67: 45,756
A69: 1990 | B69: Commercial: Estuary | C69: - | D69: - | E69: - | G69: - | H69: - | I69: -
B70: Subsistence:Estuary | C70: 0 | D70: 388 | E70: 388 | G70: 13 | H70: 3,536 | I70: 3,549
B71: Middle Klamath | C71: 0 | D71: 521 | E71: 521 | G71: 36 | H71: 1,116 | I71: 1,152
B72: Upper Klamath | C72: 0 | D72: 504 | E72: 504 | G72: 102 | H72: 2,331 | I72: 2,433
B73: Trinity River | C73: 24 | D73: 865 | E73: 889 | G73: 36 | H73: 811 | I73: 847
B74: Total | C74: 24 | D74: 2,278 | E74: 2,302 | G74: 187 | H74: 7,794 | I74: 7,981
A76: 1991 | B76: Commercial: Estuary | C76: - | D76: - | E76: - | G76: - | H76: - | I76: -
B77: Subsistence:Estuary | C77: 0 | D77: 70 | E77: 70 | G77: 7 | H77: 3,902 | I77: 3,909
B78: Middle Klamath | C78: 0 | D78: 46 | E78: 46 | G78: 9 | H78: 1,765 | I78: 1,774
B79: Upper Klamath | C79: 3 | D79: 167 | E79: 170 | G79: 16 | H79: 3,251 | I79: 3,267
B80: Trinity River | C80: 0 | D80: 263 | E80: 263 | G80: 30 | H80: 1,310 | I80: 1,340
B81: Total | C81: 3 | D81: 546 | E81: 549 | G81: 62 | H81: 10,228 | I81: 10,290
A83: 1992 | B83: Commercial: Estuary | C83: - | D83: - | E83: - | G83: - | H83: - | I83: -
B84: Subsistence:Estuary | C84: 0 | D84: 15 | E84: 15 | G84: 124 | H84: 1,152 | I84: 1,276
B85: Middle Klamath | C85: 0 | D85: 97 | E85: 97 | G85: 52 | H85: 1,107 | I85: 1,159
B86: Upper Klamath | C86: 0 | D86: 284 | E86: 284 | G86: 148 | H86: 2,580 | I86: 2,728
B87: Trinity River | C87: 0 | D87: 346 | E87: 346 | G87: 42 | H87: 946 | I87: 988
B88: Total | C88: 0 | D88: 742 | E88: 742 | G88: 366 | H88: 5,785 | I88: 6,151
A90: 1993 | B90: Commercial: Estuary | C90: - | D90: - | E90: - | G90: - | H90: - | I90: -
B91: Subsistence:Estuary | C91: 0 | D91: 19 | E91: 19 | G91: 62 | H91: 3,017 | I91: 3,079
B92: Middle Klamath | C92: 0 | D92: 320 | E92: 320 | G92: 33 | H92: 1,632 | I92: 1,665
B93: Upper Klamath | C93: 0 | D93: 211 | E93: 211 | G93: 47 | H93: 3,495 | I93: 3,542
B94: Trinity River | C94: 0 | D94: 228 | E94: 228 | G94: 33 | H94: 1,492 | I94: 1,525
B95: Total | C95: 0 | D95: 778 | E95: 778 | G95: 175 | H95: 9,636 | I95: 9,811
A97: 1994 | B97: Commercial: Estuary | C97: - | D97: - | E97: - | G97: - | H97: - | I97: -
B98: Subsistence:Estuary | C98: 9 | D98: 152 | E98: 161 | G98: 80 | H98: 4,341 | I98: 4,421
B99: Middle Klamath | C99: 14 | D99: 110 | E99: 124 | G99: 4 | H99: 1,448 | I99: 1,452
B100: Upper Klamath | C100: 3 | D100: 239 | E100: 242 | G100: 71 | H100: 3,658 | I100: 3,729
B101: Trinity River | C101: 0 | D101: 255 | E101: 255 | G101: 94 | H101: 2,266 | I101: 2,360
B102: Total | C102: 26 | D102: 756 | E102: 782 | G102: 249 | H102: 11,713 | I102: 11,962
A104: 1995 | B104: Commercial: Estuary | C104: - | D104: - | E104: - | G104: - | H104: - | I104: -
B105: Subsistence:Estuary | C105: 0 | D105: 656 | E105: 656 | G105: 117 | H105: 5,200 | I105: 5,317
B106: Middle Klamath | C106: 0 | D106: 1,312 | E106: 1,312 | G106: 44 | H106: 2,415 | I106: 2,459
B107: Upper Klamath | C107: 0 | D107: 624 | E107: 624 | G107: 47 | H107: 4,610 | I107: 4,657
B108: Trinity River | C108: 93 | D108: 1,175 | E108: 1,268 | G108: 268 | H108: 3,383 | I108: 3,651
B109: Total | C109: 93 | D109: 3,767 | E109: 3,860 | G109: 476 | H109: 15,608 | I109: 16,084
A111: 1996 | B111: Commercial: Estuary | C111: 16 | D111: 3,113 | E111: 3,129 | G111: 127 | H111: 40,020 | I111: 40,147
B112: Subsistence:Estuary | C112: 1 | D112: 1,851 | E112: 1,852 | G112: 36 | H112: 9,093 | I112: 9,129
B113: Middle Klamath | C113: 9 | D113: 673 | E113: 682 | G113: 7 | H113: 1,570 | I113: 1,577
B114: Upper Klamath | C114: 3 | D114: 268 | E114: 271 | G114: 12 | H114: 3,023 | I114: 3,035
B115: Trinity River | C115: 6 | D115: 1,182 | E115: 1,188 | G115: 8 | H115: 2,770 | I115: 2,778
B116: Total | C116: 35 | D116: 7,087 | E116: 7,122 | G116: 190 | H116: 56,476 | I116: 56,666
A118: 1997 | B118: Commercial: Estuary | C118: - | D118: - | E118: - | G118: - | H118: - | I118: -
B119: Subsistence:Estuary | C119: 0 | D119: 2,919 | E119: 2,919 | G119: 21 | H119: 5,574 | I119: 5,595
B120: Middle Klamath | C120: 0 | D120: 1,102 | E120: 1,102 | G120: 3 | H120: 1,479 | I120: 1,482
B121: Upper Klamath | C121: 0 | D121: 1,419 | E121: 1,419 | G121: 5 | H121: 3,796 | I121: 3,801
B122: Trinity River | C122: 1 | D122: 1,250 | E122: 1,251 | G122: 6 | H122: 1,238 | I122: 1,244
B123: Total | C123: 1 | D123: 6,690 | E123: 6,691 | G123: 35 | H123: 12,087 | I123: 12,122
A125: 1998 | B125: Commercial: Estuary | C125: - | D125: - | E125: - | G125: - | H125: - | I125: -
B126: Subsistence:Estuary | C126: 2 | D126: 621 | E126: 623 | G126: 16 | H126: 3,454 | I126: 3,470
B127: Middle Klamath | C127: 0 | D127: 937 | E127: 937 | G127: 9 | H127: 1,324 | I127: 1,333
B128: Upper Klamath | C128: 0 | D128: 780 | E128: 780 | G128: 23 | H128: 3,874 | I128: 3,897
B129: Trinity River | C129: 45 | D129: 426 | E129: 471 | G129: 5 | H129: 1,535 | I129: 1,540
B130: Total | C130: 47 | D130: 2,764 | E130: 2,811 | G130: 53 | H130: 10,187 | I130: 10,240
A132: 1999 | B132: Commercial: Estuary | C132: - | D132: - | E132: - | G132: - | H132: 2,077 | I132: 2,077
B133: Subsistence:Estuary | C133: 2 | D133: 456 | E133: 458 | G133: 127 | H133: 2,315 | I133: 2,442
B134: Middle Klamath | C134: 0 | D134: 1,343 | E134: 1,343 | G134: 49 | H134: 2,261 | I134: 2,310
B135: Upper Klamath | C135: 0 | D135: 593 | E135: 593 | G135: 237 | H135: 4,784 | I135: 5,021
B136: Trinity River | C136: 13 | D136: 776 | E136: 789 | G136: 96 | H136: 2,978 | I136: 3,074
B137: Total | C137: 15 | D137: 3,168 | E137: 3,183 | G137: 509 | H137: 14,415 | I137: 14,924
A139: 2000 | B139: Commercial:Estuary | C139: - | D139: 33 | E139: 33 | G139: - | H139: 4,104 | I139: 4,104
B140: Middle Klamath | C140: - | D140: 2 | E140: 2 | G140: - | H140: 186 | I140: 186
B141: Upper Klamath | C141: - | D141: 1 | E141: 1 | G141: - | H141: 813 | I141: 813
B142: Subsistence:Estuary | C142: 5 | D142: 1,739 | E142: 1,744 | G142: 35 | H142: 13,174 | I142: 13,209
B143: Middle Klamath | C143: 0 | D143: 509 | E143: 509 | G143: 29 | H143: 1,049 | I143: 1,078
B144: Upper Klamath | C144: 8 | D144: 909 | E144: 917 | G144: 111 | H144: 4,127 | I144: 4,238
B145: Trinity River | C145: 29 | D145: 1,325 | E145: 1,354 | G145: 128 | H145: 5,962 | I145: 6,090
B146: Total | C146: 42 | D146: 4,518 | E146: 4,560 | G146: 303 | H146: 29,415 | I146: 29,718
A148: 2001 | B148: Commercial:Estuary | C148: 79 | D148: 4,637 | E148: 4,716 | G148: 63 | H148: 7,011 | I148: 7,074
B149: Upper Klamath | C149: 1 | D149: 58 | E149: 59 | G149: 1 | H149: 51 | I149: 52
B150: Subsistence:Estuary | C150: 152 | D150: 8,846 | E150: 8,998 | G150: 198 | H150: 21,956 | I150: 22,154
B151: Middle Klamath | C151: 0 | D151: 134 | E151: 134 | G151: 28 | H151: 1,697 | I151: 1,725
B152: Upper Klamath | C152: 19 | D152: 1,504 | E152: 1,523 | G152: 49 | H152: 2,976 | I152: 3,025
B153: Trinity River | C153: 46 | D153: 4,164 | E153: 4,210 | G153: 60 | H153: 4,954 | I153: 5,014
B154: Total | C154: 297 | D154: 19,343 | E154: 19,640 | G154: 399 | H154: 38,645 | I154: 39,044
A156: 2002 | B156: Commercial:Estuary | C156: 7 | D156: 1,852 | E156: 1,859 | G156: 7 | H156: 8,952 | I156: 8,959
B157: Upper Klamath | C157: - | D157: - | E157: - | G157: - | H157: - | I157: -
B158: Subsistence:Estuary | C158: 25 | D158: 6,551 | E158: 6,576 | G158: 10 | H158: 11,197 | I158: 11,207
B159: Middle Klamath | C159: 70 | D159: 1,310 | E159: 1,380 | G159: 10 | H159: 729 | I159: 739
B160: Upper Klamath | C160: 24 | D160: 2,205 | E160: 2,229 | G160: 31 | H160: 2,528 | I160: 2,559
B161: Trinity River | C161: 40 | D161: 3,052 | E161: 3,062 | G161: 68 | H161: 1,168 | I161: 1,236
B162: Total | C162: 166 | D162: 14,970 | E162: 15,136 | G162: 126 | H162: 24,574 | I162: 24,700
A164: 2003 | B164: Commercial:Estuary | C164: 4 | D164: 779 | E164: 783 | G164: 11 | H164: 17,084 | I164: 17,095
B165: Upper Klamath | C165: 0 | D165: 0 | E165: 0 | G165: 0 | H165: 0 | I165: 0
B166: Subsistence:Estuary | C166: 10 | D166: 1,800 | E166: 1,810 | G166: 4 | H166: 5,604 | I166: 5,608
B167: Middle Klamath | C167: 0 | D167: 2,355 | E167: 2,355 | G167: 5 | H167: 1,376 | I167: 1,381
B168: Upper Klamath | C168: 0 | D168: 1,730 | E168: 1,730 | G168: 12 | H168: 3,199 | I168: 3,211
B169: Trinity River | C169: 7 | D169: 2,380 | E169: 2,387 | G169: 12 | H169: 2,771 | I169: 2,783
B170: Total | C170: 21 | D170: 9,044 | E170: 9,065 | G170: 44 | H170: 30,034 | I170: 30,078
A172: 2004 | B172: Commercial:Estuary | C172: 2 | D172: 408 | E172: 410 | G172: 13 | H172: 14,251 | I172: 14,264
B173: Upper Klamath | C173: 0 | D173: 0 | E173: 0 | G173: 13 | H173: 540 | I173: 554
B174: Subsistence:Estuary | C174: 10 | D174: 2,178 | E174: 2,188 | G174: 62 | H174: 6,787 | I174: 6,848
B175: Middle Klamath | C175: 6 | D175: 2,346 | E175: 2,352 | G175: 14 | H175: 577 | I175: 591
B176: Upper Klamath | C176: 11 | D176: 1,715 | E176: 1,726 | G176: 46 | H176: 1,959 | I176: 2,005
B177: Trinity River | C177: 62 | D177: 1,944 | E177: 2,006 | G177: 20 | H177: 1,689 | I177: 1,709
B178: Total | C178: 91 | D178: 8,591 | E178: 8,682 | G178: 168 | H178: 25,083 | I178: 25,971
A180: 2005 | B180: Commercial:Estuary | C180: 0 | D180: 0 | E180: 0 | G180: 0 | H180: 0 | I180: 0
B181: Upper Klamath | C181: 0 | D181: 0 | E181: 0 | G181: 0 | H181: 0 | I181: 0
B182: Subsistence:Estuary | C182: 0 | D182: 477 | E182: 477 | G182: 21 | H182: 2,293 | I182: 2,314
B183: Middle Klamath | C183: 0 | D183: 518 | E183: 518 | G183: 5 | H183: 464 | I183: 469
B184: Upper Klamath | C184: 0 | D184: 1,320 | E184: 1,320 | G184: 33 | H184: 2,851 | I184: 2,884
B185: Trinity River | C185: 17 | D185: 1,858 | E185: 1,858 | G185: 11 | H185: 2,409 | I185: 2,420
B186: Total | C186: 33 | D186: 7,286 | E186: 7,302 | G186: 70 | H186: 8,017 | I186: 8,087
A188: 2006 | B188: Commercial:Estuary | C188: 0 | D188: 0 | E188: =SUM(C188:D188) -> 0 | G188: 0 | H188: 0 | I188: =SUM(G188:H188) -> 0
B189: Upper Klamath | C189: 0 | D189: 0 | E189: =SUM(C189:D189) -> 0 | G189: 0 | H189: 0 | I189: 0
B190: Subsistence:Estuary | C190: 8 | D190: 302 | E190: =SUM(C190:D190) -> 310 | G190: 30 | H190: 2,726 | I190: 2,756
B191: Middle Klamath | C191: 3 | D191: 1,113 | E191: =SUM(C191:D191) -> 1,116 | G191: 93 | H191: 1,310 | I191: 1,403
B192: Upper Klamath | C192: 36 | D192: 1,257 | E192: =SUM(C192:D192) -> 1,293 | G192: 147 | H192: 2,086 | I192: 2,233
B193: Trinity River | C193: 58 | D193: 1,632 | E193: 1,690 | G193: 145 | H193: 4,161 | I193: 4,306
B194: Total | C194: =SUM(C188:C193) -> 105 | D194: =SUM(D188:D193) -> 4,304 | E194: =SUM(E188:E193) -> 4,409 | G194: =SUM(G188:G193) -> 415 | H194: =SUM(H188:H193) -> 10,283 | I194: =SUM(I188:I193) -> 10,698
A196: 2007 | B196: Commercial:Estuary | C196: 0 | D196: 2,300 | E196: =SUM(C196:D196) -> 2,300 | G196: 1 | H196: 21,100 | I196: =SUM(G196:H196) -> 21,101
B197: Upper Klamath | E197: 0 | I197: 0
B198: Subsistence:Estuary | C198: 0 | D198: 1,363 | E198: 1,363 | G198: 15 | H198: 2,375 | I198: 2,390
B199: Middle Klamath | C199: 0 | D199: 200 | E199: 200 | G199: 1 | H199: 425 | I199: 426
B200: Upper Klamath | C200: 0 | D200: 631 | E200: 631 | G200: 4 | H200: 1,375 | I200: 1,379
B201: Trinity River | C201: 6 | D201: 1,349 | E201: 1,355 | G201: 0 | H201: 2,298 | I201: 2,298
B202: Total | C202: =SUM(C196:C201) -> 6 | D202: =SUM(D196:D201) -> 5,843 | E202: =SUM(E196:E201) -> 5,849 | G202: =SUM(G196:G201) -> 21 | H202: =SUM(H196:H201) -> 27,573 | I202: =SUM(I196:I201) -> 27,594
A204: 2008 | B204: Commercial:Estuary | C204: 0 | D204: 323 | E204: =SUM(C204:D204) -> 323 | G204: 201 | H204: 11,804 | I204: =SUM(G204:H204) -> 12,005
B205: Middle Klamath | E205: 0 | G205: 11 | H205: 154 | I205: 165
B206: Subsistence:Estuary | C206: 0 | D206: 295 | E206: 295 | G206: 101 | H206: 5,906 | I206: 6,007
B207: Middle Klamath | C207: 0 | D207: 722 | E207: 722 | G207: 62 | H207: 870 | I207: 932
B208: Upper Klamath | C208: 9 | D208: 685 | E208: 694 | G208: 114 | H208: 1,612 | I208: 1,726
B209: Trinity River | C209: 77 | D209: 1,328 | E209: 1,405 | G209: 152 | H209: 1,914 | I209: 2,066
B210: Total | C210: =SUM(C204:C209) -> 86 | D210: =SUM(D204:D209) -> 3,353 | E210: =SUM(E204:E209) -> 3,439 | G210: =SUM(G204:G209) -> 641 | H210: =SUM(H204:H209) -> 22,260 | I210: =SUM(I204:I209) -> 22,901
A212: 2009 | B212: Commercial:Estuary | C212: 0 | D212: 21 | E212: =SUM(C212:D212) -> 21 | G212: 34 | H212: 15,463 | I212: =SUM(G212:H212) -> 15,497
B213: Middle Klamath | E213: 0 | G213: 2 | H213: 243 | I213: 245
B214: Subsistence:Estuary | C214: 0 | D214: 763 | E214: 763 | G214: 9 | H214: 4,002 | I214: 4,011
B215: Middle Klamath | C215: 2 | D215: 487 | E215: 489 | G215: 18 | H215: 2,202 | I215: 2,220
B216: Upper Klamath | C216: 0 | D216: 451 | E216: 451 | G216: 19 | H216: 2,324 | I216: 2,343
B217: Trinity River | C217: 74 | D217: 1,764 | E217: 1,838 | G217: 96 | H217: 4,153 | I217: 4,249
B218: Total | C218: =SUM(C212:C217) -> 76 | D218: =SUM(D212:D217) -> 3,486 | E218: =SUM(E212:E217) -> 3,562 | G218: =SUM(G212:G217) -> 178 | H218: =SUM(H212:H217) -> 28,387 | I218: =SUM(I212:I217) -> 28,565
A220: 2010 | B220: Commercial:Estuary | C220: 0 | D220: 259 | E220: =SUM(C220:D220) -> 259 | G220: 14 | H220: 15,234 | I220: =SUM(G220:H220) -> 15,248
B221: Middle Klamath | C221: 0 | D221: 0 | E221: 0 | G221: 3 | H221: 83 | I221: 86
B222: Subsistence:Estuary | C222: 0 | D222: 812 | E222: 812 | G222: 6 | H222: 6,491 | I222: 6,497
B223: Middle Klamath | C223: 0 | D223: 1,421 | E223: 1,421 | G223: 62 | H223: 1,763 | I223: 1,825
B224: Upper Klamath | C224: 6 | D224: 781 | E224: 787 | G224: 91 | H224: 2,615 | I224: 2,706
B225: Trinity River | C225: 4 | D225: 1,740 | E225: 1,744 | G225: 252 | H225: 3,701 | I225: 3,953
B226: Total | C226: =SUM(C220:C225) -> 10 | D226: =SUM(D220:D225) -> 5,013 | E226: =SUM(E220:E225) -> 5,023 | G226: =SUM(G220:G225) -> 428 | H226: =SUM(H220:H225) -> 29,887 | I226: =SUM(I220:I225) -> 30,315
A228: 2011 | B228: Commercial:Estuary | C228: =0.0191082802547771*E228 -> 1 | D228: =E228-C228 -> 32 | E228: 33 | G228: =0.0242906094915735*I228 -> 373 | H228: =I228-G228 -> 14,963 | I228: 15,336
B229: Middle Klamath | C229: 0 | D229: =E229-C229 -> 0 | E229: 0 | G229: =0.0986254628515573*I229 -> 28 | H229: =I229-G229 -> 255 | I229: 283
B230: Subsistence:Estuary | C230: =0.0191082802547771*E230 -> 8 | D230: =E230-C230 -> 402 | E230: =442.982323175757-E228 -> 410 | G230: =0.0242906094915735*I230 -> 60 | H230: =I230-G230 -> 2,404 | I230: =17799.9176768242-I228 -> 2,464
B231: Middle Klamath | C231: 12 | D231: =E231-C231 -> 1,242 | E231: 1,254 | G231: =0.0986254628515573*I231 -> 238 | H231: =I231-G231 -> 2,177 | I231: =2697.73203663256-I229 -> 2,415
B232: Upper Klamath | C232: 9 | D232: =E232-C232 -> 909 | E232: 918 | G232: =0.0986254628515573*I232 -> 227 | H232: =I232-G232 -> 2,070 | I232: 2,297
B233: Trinity River | C233: 108 | D233: 2,282 | E233: =SUM(C233:D233) -> 2,390 | G233: 426 | H233: 4,863 | I233: =SUM(G233:H233) -> 5,289
B234: Total | C234: =SUM(C228:C233) -> 137 | D234: =SUM(D228:D233) -> 4,867 | E234: =SUM(E228:E233) -> 5,005 | G234: =SUM(G228:G233) -> 1,351 | H234: =SUM(H228:H233) -> 26,733 | I234: =SUM(I228:I233) -> 28,084
... 153 more rows

Sheet B-6
A1: TABLE B-6. Shasta, Scott, and Salmon rivers fall Chinook salmon spawning escapement estimates in numbers of fish.a/
B2: Shasta River | E2: Scott River | H2: Salmon River
A3: Year | B3: Adults | C3: Jacks | E3: Adults | F3: Jacks | H3: Adults | I3: Jacks
A4: 1930 | B4: 7,280 | C4: 12,082 | E4: - | F4: - | H4: - | I4: -
A5: 1931 | B5: 61,811 | C5: 20,037 | E5: - | F5: - | H5: - | I5: -
A6: 1932 | B6: 30,534 | C6: 5,058 | E6: - | F6: - | H6: - | I6: -
A7: 1933b/ | B7: 4,700 | C7: 6,886 | E7: - | F7: - | H7: - | I7: -
A8: 1934 | B8: 26,614 | C8: 21,807 | E8: - | F8: - | H8: - | I8: -
A9: 1935 | B9: 63,711 | C9: 9,660 | E9: - | F9: - | H9: - | I9: -
A10: 1936 | B10: 33,264 | C10: 14,669 | E10: - | F10: - | H10: - | I10: -
A11: 1937 | B11: 32,027 | C11: 1,229 | E11: - | F11: - | H11: - | I11: -
A12: 1938 | B12: 6,497 | C12: 1,118 | E12: - | F12: - | H12: - | I12: -
A13: 1939 | B13: 8,313 | C13: 19,670 | E13: - | F13: - | H13: - | I13: -
A14: 1940 | B14: 50,725 | C14: 4,431 | E14: - | F14: - | H14: - | I14: -
A15: 1941 | B15: 7,372 | C15: 5,860 | E15: - | F15: - | H15: - | I15: -
A16: 1942 | B16: 9,342 | C16: 1,834 | E16: - | F16: - | H16: - | I16: -
A17: 1943 | B17: 8,048 | C17: 1,974 | E17: - | F17: - | H17: - | I17: -
A18: 1944 | B18: 8,604 | C18: 2,686 | E18: - | F18: - | H18: - | I18: -
A19: 1945 | B19: 14,905 | C19: 3,291 | E19: - | F19: - | H19: - | I19: -
A20: 1946 | B20: 6,949 | C20: 641 | E20: - | F20: - | H20: - | I20: -
A21: 1947 | B21: 298 | C21: 43 | E21: - | F21: - | H21: - | I21: -
A22: 1948 | B22: 31 | C22: 6 | E22: - | F22: - | H22: - | I22: -
A23: 1949 | B23: 171 | C23: 21 | E23: - | F23: - | H23: - | I23: -
A24: 1950 | B24: -- Incomplete Count -- | E24: - | F24: - | H24: - | I24: -
A25: 1951 | B25: 1,565 | C25: 459 | E25: - | F25: - | H25: - | I25: -
A26: 1952 | B26: 1,488 | C26: 178 | E26: - | F26: - | H26: - | I26: -
A27: 1953 | B27: 1,444 | C27: 161 | E27: - | F27: - | H27: - | I27: -
A28: 1954 | B28: 1,768 | C28: 857 | E28: - | F28: - | H28: - | I28: -
A29: 1955 | B29: 1,620 | C29: 197 | E29: - | F29: - | H29: - | I29: -
A30: 1956 | B30: -- No Count -- | E30: - | F30: - | H30: - | I30: -
A31: 1957 | B31: 1,781 | C31: 453 | E31: - | F31: - | H31: - | I31: -
A32: 1958 | B32: 4,694 | C32: 1,379 | E32: - | F32: - | H32: - | I32: -
A33: 1959 | B33: 8,619 | C33: 1,256 | E33: - | F33: - | H33: - | I33: -
A34: 1960 | B34: 9,489 | C34: 1,209 | E34: - | F34: - | H34: - | I34: -
A35: 1961 | B35: 5,250 | C35: 3,514 | E35: - | F35: - | H35: - | I35: -
A36: 1962 | B36: 9,907 | C36: 4,991 | E36: - | F36: - | H36: - | I36: -
A37: 1963 | B37: 22,825 | C37: 9,012 | E37: - | F37: - | H37: - | I37: -
A38: 1964 | B38: 30,715 | C38: 3,648 | E38: - | F38: - | H38: - | I38: -
A39: 1965 | B39: 7,136 | C39: 775 | E39: - | F39: - | H39: - | I39: -
A40: 1966 | B40: 5,573 | C40: 451 | E40: - | F40: - | H40: - | I40: -
A41: 1967 | B41: 10,478 | C41: 1,836 | E41: - | F41: - | H41: - | I41: -
A42: 1968 | B42: 13,039 | C42: 1,003 | E42: - | F42: - | H42: - | I42: -
A43: 1969 | B43: 10,576 | C43: 3,049 | E43: - | F43: - | H43: - | I43: -
A44: 1970 | B44: 12,693 | C44: 712 | E44: - | F44: - | H44: - | I44: -
A45: 1971 | B45: 4,970 | C45: 1,649 | E45: - | F45: - | H45: - | I45: -
A46: 1972 | B46: 2,802 | C46: 839 | E46: - | F46: - | H46: - | I46: -
A47: 1973 | B47: 4,516 | C47: 4,902 | E47: - | F47: - | H47: - | I47: -
A48: 1974 | B48: 7,376 | C48: 2,729 | E48: - | F48: - | H48: - | I48: -
A49: 1975 | B49: 11,821 | C49: 4,211 | E49: - | F49: - | H49: - | I49: -
A50: 1976c/ | B50: 4,154 | C50: 1,919 | E50: - | F50: - | H50: - | I50: -
A51: 1977 | B51: 5,478 | C51: 1,969 | E51: - | F51: - | H51: - | I51: -
A52: 1978 | B52: 12,024 | C52: 6,707 | E52: 3,423 | F52: 1,909 | H52: 2,600 | I52: 1,400
A53: 1979 | B53: 7,111 | C53: 1,040 | E53: 3,396 | F53: 428 | H53: 1,000 | I53: 150
A54: 1980 | B54: 3,762 | C54: 4,334 | E54: 2,032 | F54: 2,245 | H54: 800 | I54: 200
A55: 1981d/ | B55: 7,890 | C55: 4,330 | E55: 3,147 | F55: 3,409 | H55: 750 | I55: 450
A56: 1982 | B56: 6,533 | C56: 1,922 | E56: 5,826 | F56: 4,350 | H56: 1,000 | I56: 300
A57: 1983 | B57: 3,119 | C57: 753 | E57: 3,398 | F57: 170 | H57: 1,200 | I57: 75
A58: 1984 | B58: 2,362 | C58: 480 | E58: 1,443 | F58: 358 | H58: 1,226 | I58: 216
A59: 1985 | B59: 2,897 | C59: 2,227 | E59: 3,051 | F59: 1,357 | H59: 2,259 | I59: 905
A60: 1986 | B60: 3,274 | C60: 683 | E60: 3,176 | F60: 4,865 | H60: 2,716 | I60: 949
A61: 1987 | B61: 4,299 | C61: 398 | E61: 7,769 | F61: 797 | H61: 3,832 | I61: 118
A62: 1988e/ | B62: 2,586 | C62: 256 | E62: 4,727 | F62: 473 | H62: 3,273 | I62: 327
A63: 1989 | B63: 1,440 | C63: 137 | E63: 3,000 | F63: 1,188 | H63: 2,915 | I63: 695
A64: 1990 | B64: 415 | C64: 118 | E64: 1,379 | F64: 236 | H64: 4,071 | I64: 596
A65: 1991 | B65: 716 | C65: 10 | E65: 2,019 | F65: 146 | H65: 1,337 | I65: 143
A66: 1992 | B66: 520 | C66: 66 | E66: 1,873 | F66: 965 | H66: 778 | I66: 547
A67: 1993 | B67: 1,341 | C67: 85 | E67: 5,035 | F67: 265 | H67: 3,077 | I67: 456
A68: 1994 | B68: 3,363 | C68: 1,840 | E68: 2,358 | F68: 505 | H68: 3,216 | I68: 277
A69: 1995 | B69: 12,816 | C69: 695 | E69: 11,198 | F69: 3,279 | H69: 4,140 | I69: 1,335
A70: 1996 | B70: 1,404 | C70: 46 | E70: 11,952 | F70: 145 | H70: 5,189 | I70: 274
A71: 1997 | B71: 1,667 | C71: 334 | E71: 8,284 | F71: 277 | H71: 5,783 | I71: 217
A72: 1998 | B72: 2,466 | C72: 76 | E72: 3,061 | F72: 266 | H72: 1,337 | I72: 116
A73: 1999 | B73: 1,296 | C73: 1,901 | E73: 3,021 | F73: 563 | H73: 670 | I73: 110
A74: 2000 | B74: 11,025 | C74: 1,271 | E74: 5,729 | F74: 524 | H74: 1,544 | I74: 228
A75: 2001 | B75: 8,452 | C75: 2,641 | E75: 5,398 | F75: 744 | H75: 2,607 | I75: 743
A76: 2002 | B76: 6,432 | C76: 386 | E76: 4,261 | F76: 47 | H76: 2,669 | I76: 78
A77: 2003 | B77: 4,134 | C77: 155 | E77: 11,988 | F77: 65 | H77: 3,302 | I77: 73
A78: 2004 | B78: 833 | C78: 129 | E78: 445 | F78: 22 | H78: 282 | I78: 51
A79: 2005 | B79: 2,018 | C79: 37 | E79: 698 | F79: 58 | H79: 401 | I79: 105
A80: 2006 | B80: 789 | C80: 1,395 | E80: 3,007 | F80: 1,953 | H80: 1,278 | I80: 791
A81: 2007 | B81: 2,009 | C81: 27 | E81: 4,494 | F81: 11 | H81: 1,377 | I81: 55
A82: 2008 | B82: 2,741 | C82: 3,621 | E82: 3,445 | F82: 1,228 | H82: 1,749 | I82: 650
A83: 2009 | B83: 6,145 | C83: 151 | E83: 2,167 | F83: 44 | H83: 2,204 | I83: 516
A84: 2010 | B84: 1,259 | C84: 87 | E84: 2,114 | F84: 394 | H84: 2,478 | I84: 356
A85: 2011 | B85: 213 | C85: 11,175 | E85: 3,019 | F85: 2,502 | H85: 3,674 | I85: 1,819
A86: 2012 | B86: 27,600 | C86: 1,944 | E86: 7,569 | F86: 1,783 | H86: 3,561 | I86: 829
A87: 2013 | B87: 6,925 | C87: 1,096 | E87: 4,036 | F87: 588 | H87: 2,240 | I87: 240
A88: 2014 | B88: 14,412 | C88: 3,945 | E88: 10,419 | F88: 2,051 | H88: 2,706 | I88: 527
A89: 2015 | B89: 6,612 | C89: 133 | E89: 2,092 | F89: 21 | H89: 1,978 | I89: 92
A90: 2016 | B90: 2,754 | C90: 135 | E90: 1,376 | F90: 139 | H90: 1,032 | I90: 26
A91: 2017 | B91: 3,287 | C91: 6,618 | E91: 2,269 | F91: 307 | H91: 1,338 | I91: 327
A92: 2018 | B92: 18,675 | C92: 2,017 | E92: 1,208 | F92: 71 | H92: 1,228 | I92: 285
A93: 2019 | B93: 5,926 | C93: 78 | E93: 1,681 | F93: 409 | H93: 957 | I93: 686
A94: 2020 | B94: 3,775 | C94: 393 | E94: 812 | F94: 43 | H94: 972 | I94: 122
A95: 2021 | B95: 5,972 | C95: 927 | E95: 1,307 | F95: 655 | H95: 1,890 | I95: 263
A96: 2022 | B96: 4,403 | C96: 106 | E96: 927 | F96: 67 | H96: 1,274 | I96: 291
A97: 2023 | B97: 4,747 | C97: 156 | E97: 1,663 | F97: 243 | H97: 1,355 | I97: 264
A98: 2024f/ | B98: 4,951 | C98: 31 | E98: 846 | F98: 29 | H98: 1,520 | I98: 245
A99: a/ Estimates are made from a combination of weir counts, carcass surveys, and redd counts. The methodology can change annually based on environmental conditions, logistical constraints, and/or the expert opinion of regional biologists.
A100: b/ Commercial fishing in lower Klamath River closed by the state after the 1933 season.
A101: c/ Gillnetting resumed in lower 20 miles of Klamath River by Hoopa Valley Indian Reservation fishers in 1976.
A102: d/ Shasta adults include 276 females taken to Iron Gate Hatchery in 1981.
A103: e/ Low water conditions appeared to hinder entry into the Shasta River in 1988.
A104: f/ Preliminary.
A117: TABLE B-6. Shasta, Scott, and Salmon rivers fall Chinook salmon spawning escapement estimates in numbers of fish.a/
B118: Shasta River | E118: Scott River | H118: Salmon River
A119: Year | B119: Adults | C119: Jacks | E119: Adults | F119: Jacks | H119: Adults | I119: Jacks
A120: 1931-1940b/ | B120: =AVERAGE(B5:B14) -> 31,820 | C120: =AVERAGE(C5:C14) -> 10,457 | E120: - | F120: - | G120: - | H120: - | I120: -
A121: 1941-1950 | B121: =AVERAGE(B15:B24) -> 6,191 | C121: =AVERAGE(C15:C24) -> 1,817 | E121: - | F121: - | G121: - | H121: - | I121: -
A122: 1951-1960 | B122: =AVERAGE(B25:B34) -> 3,608 | C122: =AVERAGE(C25:C34) -> 683 | E122: - | F122: - | G122: - | H122: - | I122: -
A123: 1961-1970 | B123: =AVERAGE(B35:B44) -> 12,819 | C123: =AVERAGE(C35:C44) -> 2,899 | E123: - | F123: - | G123: - | H123: - | I123: -
A124: 1971-1975 | B124: =AVERAGE(B45:B49) -> 6,297 | C124: =AVERAGE(C45:C49) -> 2,866 | E124: - | F124: - | G124: - | H124: - | I124: -
A125: 1976-1980c/ | B125: =AVERAGE(B50:B54) -> 6,506 | C125: =AVERAGE(C50:C54) -> 3,194 | E125: 2,950 | F125: 1,527 | H125: 1,467 | I125: 583
A126: 1981-1985d/ | B126: =AVERAGE(B55:B59) -> 4,560 | C126: =AVERAGE(C55:C59) -> 1,942 | E126: 3,373 | F126: 1,929 | H126: 1,287 | I126: 389
A127: 1986-1990e/ | B127: =AVERAGE(B60:B64) -> 2,403 | C127: =AVERAGE(C60:C64) -> 318 | E127: 4,010 | F127: 1,512 | H127: 3,361 | I127: 537
A128: 1991-1995 | B128: =AVERAGE(B65:B69) -> 3,751 | C128: =AVERAGE(C65:C69) -> 539 | E128: 4,497 | F128: 1,032 | H128: 2,510 | I128: 552
A129: 1996-2000 | B129: =AVERAGE(B70:B74) -> 3,572 | C129: =AVERAGE(C70:C74) -> 726 | E129: 6,409 | F129: 355 | H129: 2,905 | I129: 189
A130: 2001 | B130: =B75 -> 8,452 | C130: 2,641 | E130: =E75 -> 5,398 | F130: 744 | H130: =H75 -> 2,607 | I130: 743
A131: 2002 | B131: 6,432 | C131: 386 | E131: 4,261 | F131: 47 | H131: 2,669 | I131: 78
A132: 2003 | B132: 4,134 | C132: 155 | E132: 11,988 | F132: 65 | H132: 3,302 | I132: 73
A133: 2004 | B133: 833 | C133: 129 | E133: 445 | F133: 22 | H133: 282 | I133: 51
A134: 2005 | B134: 2,018 | C134: 37 | E134: 698 | F134: 58 | H134: 401 | I134: 105
A135: 2006 | B135: 789 | C135: 1,395 | E135: 3,007 | F135: 1,953 | H135: 1,278 | I135: 791
A136: 2007 | B136: 2,009 | C136: 27 | E136: 4,494 | F136: 11 | H136: 1,377 | I136: 55
A137: 2008 | B137: 2,741 | C137: 3,621 | E137: 3,445 | F137: 1,228 | H137: 1,749 | I137: 650
A138: 2009 | B138: 6,145 | C138: 151 | E138: 2,167 | F138: 44 | H138: 2,204 | I138: 516
A139: 2010 | B139: 1,259 | C139: 87 | E139: 2,114 | F139: 394 | H139: 2,478 | I139: 356
A140: 2011 | B140: 213 | C140: 11,175 | E140: 3,019 | F140: 2,502 | H140: 3,674 | I140: 1,819
A141: 2012 | B141: 27,600 | C141: 1,944 | E141: 7,569 | F141: 1,783 | H141: 3,561 | I141: 829
A142: 2013 | B142: 6,925 | C142: 1,096 | E142: 4,036 | F142: 588 | H142: 2,240 | I142: 240
A143: 2014 | B143: 14,412 | C143: 3,945 | E143: 10,419 | F143: 2,051 | H143: 2,706 | I143: 527
A144: 2015 | B144: 6,612 | C144: 133 | E144: 2,092 | F144: 21 | H144: 1,978 | I144: 92
A145: 2016 | B145: 2,754 | C145: 135 | E145: 1,376 | F145: 139 | H145: 1,032 | I145: 26
A146: 2017 | B146: 3,287 | C146: 6,618 | E146: 2,269 | F146: 307 | H146: 1,338 | I146: 327
A147: 2018 | B147: 18,675 | C147: 2,017 | E147: 1,208 | F147: 71 | H147: 1,228 | I147: 285
A148: 2019 | B148: 5,926 | C148: 78 | E148: 1,681 | F148: 409 | H148: 957 | I148: 686
A149: 2020 | B149: =B94 -> 3,775 | C149: 393 | E149: =E94 -> 812 | F149: 43 | H149: =H94 -> 972 | I149: 122
A150: 2021 | B150: =B95 -> 5,972 | C150: 927 | E150: =E95 -> 1,307 | F150: 655 | H150: =H95 -> 1,890 | I150: 263
A151: 2022 | B151: =B96 -> 4,403 | C151: 106 | E151: =E96 -> 927 | F151: 67 | H151: =H96 -> 1,274 | I151: 291
A152: 2023 | B152: =B97 -> 4,747 | C152: 156 | E152: =E97 -> 1,663 | F152: 243 | H152: =H97 -> 1,355 | I152: 264
A153: 2024f/ | B153: =B98 -> 4,951 | C153: 31 | E153: =E98 -> 846 | F153: 29 | H153: =H98 -> 1,520 | I153: 245
A154: =A99 -> a/ Estimates are made from a combination of weir counts, carcass surveys, and redd counts. The methodology can change annually based on environmental conditions, logistical constraints, and/or the expert opinion of regional biologists.
A155: =A100 -> b/ Commercial fishing in lower Klamath River closed by the state after the 1933 season.
A156: c/ Gillnetting resumed in lower 20 miles of Klamath River by Hoopa Valley Indian Reservation fishers in 1976.
A157: d/ Shasta adults include 276 females taken to Iron Gate Hatchery in 1981.
A158: e/ Low water conditions appeared to hinder entry into the Shasta River in 1988.
A159: f/ Preliminary.

Sheet old B-7 (hidden)
A1: TABLE B-7. Summary of California North Coast salmon spawning stock surveys in numbers of fish or redd counts. | P1: Hidden rows show past years data
B2: Cañon Creeka/b/c/ | E2: Sprowl Creeka/b/d/ | H2: Tomki Creeke/ (Eel River) | K2: Russianf/ | M2: Lagunitasg/
B3: (Mad River) | E3: (Eel River) | K3: River | M3: Watershed
A4: Year | B4: Chinook | C4: Coho | E4: Chinook | F4: Coho | H4: Chinook | K4: Chinook | M4: Coho Redds
A5: 1963-1964 | B5: 70 | C5: 55 | E5: - | F5: - | H5: - | K5: 0 | M5: 0
A6: 1964-1965 | B6: 45 | C6: 0 | E6: - | F6: - | H6: 1,747 | K6: 0 | M6: 0
A7: 1965-1966 | B7: - | C7: - | E7: - | F7: - | H7: 607 | K7: 0 | M7: 0
A8: 1966-1967 | B8: 334 | C8: 3 | E8: 1,189 | F8: 6 | H8: - | K8: 0 | M8: 0
A9: 1967-1968 | B9: - | C9: - | E9: - | F9: - | H9: - | K9: 0 | M9: 0
A10: 1968-1969 | B10: - | C10: - | E10: - | F10: - | H10: - | K10: 0 | M10: 0
A11: 1969-1970 | B11: - | C11: - | E11: - | F11: - | H11: - | K11: 0 | M11: 0
A12: 1970-1971 | B12: 230 | C12: 0 | E12: - | F12: - | H12: 103 | K12: 0 | M12: 0
A13: 1971-1972 | B13: - | C13: - | E13: - | F13: - | H13: 52 | K13: 0 | M13: 0
A14: 1972-1973 | B14: - | C14: - | E14: - | F14: - | H14: - | K14: 0 | M14: 0
A15: 1973-1974 | B15: - | C15: - | E15: - | F15: - | H15: - | K15: 0 | M15: 0
A16: 1974-1975 | B16: - | C16: - | E16: 247 | F16: 0 | H16: - | K16: 0 | M16: 0
A17: 1975-1976 | B17: - | C17: - | E17: 339 | F17: 2 | H17: 367 | K17: 0 | M17: 0
A18: 1976-1977 | B18: - | C18: - | E18: - | F18: - | H18: - | K18: 0 | M18: 0
A19: 1977-1978 | B19: - | C19: - | E19: - | F19: - | H19: - | K19: 0 | M19: 0
A20: 1978-1979 | B20: - | C20: - | E20: 534 | F20: 23 | H20: - | K20: 0 | M20: 0
A21: 1979-1980 | B21: - | C21: - | E21: 572 | F21: 0 | H21: 2,410 | K21: 0 | M21: 0
A22: 1980-1981 | B22: - | C22: - | E22: 164 | F22: 4 | H22: 317 | K22: 0 | M22: 0
A23: 1981-1982 | B23: 23 | C23: 0 | E23: 121 | F23: 0 | H23: 1,153 | K23: 0 | M23: 0
A24: 1982-1983 | B24: 68 | C24: 0 | E24: 169 | F24: 1 | H24: 1,807 | K24: 0 | M24: 0
A25: 1983-1984 | B25: 137 | C25: 0 | E25: 82 | F25: 0 | H25: - | K25: 0 | M25: 0
A26: 1984-1985h/ | B26: 16 | C26: 0 | E26: 67 | F26: 13 | H26: 1,292 | K26: 0 | M26: 0
A27: 1985-1986 | B27: 514 | C27: 14 | E27: 320 | F27: 0 | H27: 3,558 | K27: 0 | M27: 0
A28: 1986-1987h/ | B28: 90 | C28: 3 | E28: 307 | F28: 13 | H28: 2,173 | K28: 0 | M28: 0
A29: 1987-1988 | B29: 117 | C29: 29 | E29: 2,187 | F29: 4 | H29: 3,666 | K29: 0 | M29: 0
A30: 1988-1989 | B30: 69 | C30: 7 | E30: 339 | F30: 12 | H30: 556 | K30: 0 | M30: 0
A31: 1989-1990h/ | B31: 9 | C31: 9 | E31: 89 | F31: 14 | H31: 0 | K31: 0 | M31: 0
A32: 1990-1991 | B32: 0 | C32: 3 | E32: 0 | F32: 0 | H32: 0 | K32: 0 | M32: 0
A33: 1991-1992h/ | B33: 8 | C33: 0 | E33: 159 | F33: 0 | H33: 3 | K33: 0 | M33: 0
A34: 1992-1993h/ | B34: 57 | C34: 1 | E34: 142 | F34: 2 | H34: 15 | K34: 0 | M34: 0
A35: 1993-1994 | B35: 20 | C35: 0 | E35: 171 | F35: 36 | H35: 5 | K35: 0 | M35: 0
A36: 1994-1995 | B36: 33 | C36: 3 | E36: 52 | F36: 0 | H36: 21 | K36: 0 | M36: 0
A37: 1995-1996h/ | B37: 93 | C37: 4 | E37: 136 | F37: 8 | H37: 69 | K37: 0 | M37: 86
A38: 1996-1997 | B38: 129 | C38: 4 | E38: 106 | F38: 8 | H38: 84 | K38: 0 | M38: 254
A39: 1997-1998 | B39: 55 | C39: 1 | E39: 97 | F39: 0 | H39: 39 | K39: 0 | M39: 253
A40: 1998-1999 | B40: 66 | C40: 0 | E40: 79 | F40: 11 | H40: 45 | K40: 0 | M40: 184
A41: 1999-2000h/ | B41: 162 | C41: 1 | E41: 34 | F41: 1 | H41: 24 | K41: 0 | M41: 203
A42: 2000-2001h/ | B42: 79 | C42: 3 | E42: 12 | F42: 0 | H42: 50 | K42: 1,445 | M42: 204
A43: 2001-2002 | B43: 45 | C43: 6 | E43: 136 | F43: 25 | H43: 162 | K43: 1,383 | M43: 286
A44: 2002-2003 | B44: 402 | C44: 1 | E44: 267 | F44: 17 | H44: 5 | K44: 5,474 | M44: 158
A45: 2003-2004h/ | B45: 79 | C45: 1 | E45: 106 | F45: 8 | H45: 137 | K45: 6,103 | M45: 383
A46: 2004-2005h/ | B46: 86 | C46: 0 | E46: 199 | F46: 36 | H46: 115 | K46: 4,788 | M46: 496
A47: 2005-2006 | B47: 270 | C47: 0 | E47: 201 | F47: 13 | H47: 77 | K47: 2,572 | M47: 190
A48: 2006-2007i/ | B48: 152 | C48: 2 | E48: 37 | F48: 9 | H48: 20 | K48: 3,410 | M48: 338
A49: 2007-2008i/ | B49: 99 | C49: 1 | E49: 70 | F49: 19 | H49: 69 | K49: 1,963 | M49: 148
A50: 2008-2009i/ | B50: 65 | C50: 0 | E50: 158 | F50: 40 | H50: 17 | K50: 1,125 | M50: 26
A51: 2009-2010i/ | B51: 36 | C51: 0 | E51: 314 | F51: 2 | H51: 15 | K51: 1,801 | M51: 51
A52: 2010-2011i/ | B52: 131 | C52: 2 | E52: 273 | F52: 60 | H52: 151 | K52: 2,516 | M52: 80
A53: 2011-2012h/i/ | B53: 108 | C53: 1 | E53: 60 | F53: 221 | H53: 101 | K53: 3,172 | M53: 130
A54: 2012-2013i/ | B54: 77 | C54: 1 | E54: 280 | F54: 29 | H54: 226 | K54: 6,713 | M54: 217
A55: 2013-2014i/j/ | B55: 11 | C55: 10 | E55: 16 | F55: 130 | H55: 6 | K55: 3,145 | M55: 188
A56: 2014-2015i/ | B56: 161 | C56: 5 | E56: 174 | F56: 24 | H56: 82 | K56: 1,420 | L56: k/ | M56: 140
A57: 2015-2016i/ | B57: 124 | C57: 4 | E57: 81 | F57: 31 | H57: 0 | K57: 4,119 | L57: k/ | M57: 226
A58: 2016-2017 | B58: l/ | C58: l/ | D58: m/ | E58: m/ | F58: m/ | H58: 71 | K58: 1,062 | L58: n/ | M58: 158
A59: 2017-2018 | B59: l/ | C59: l/ | D59: m/ | E59: m/ | F59: m/ | H59: 39 | K59: 1,892 | L59: p/ | M59: 83
A60: 2018-2019o/ | B60: l/ | C60: l/ | D60: m/ | E60: m/ | F60: m/ | H60: 39 | K60: 1,892 | L60: p/ | M60: 83
A61: a/ Survey frequency variable from year to year (between 1 and 10 surveys annually).
A62: b/ Numbers reflect maximum annual counts of live fish and carcasses with adults and jacks combined. Counts are not shown in years where visibility is too poor to conduct surveys.
A63: c/ Survey area was from mouth to falls (2 miles).
A64: d/ Survey area was the mainstem and West Fork (4.5 miles).
A65: e/ Total run size estimate including jacks and adults. Survey methodology changed in 2000-2001 to using index sites, and subsequent estimates are not comparable to previous estimates.
A67: f/ Video counts of combined adults and jacks made at Mirabel Dam. Image quality may be affected by turbidity.
A68: g/ Numbers reported are redd counts. Olema Creek is excluded.
A69: h/ Low flows appeared to increase mainstem spawning and decrease tributary spawning for Cañon, Sprowl, and Tomki creeks.
A70: i/ Cañon and Sprowl creek totals exclude fish unidentifiable to species due to poor visibility or advanced decomposition.
A71: j/ Extremely low flows created passage barriers that precluded or severely limited salmon access to surveyed tributaries.
A72: k/ Minimum count that is not comparable to other years. Mirabel Dam video counts were unavailable due to construction of a new counting facility. The number recorded is the sum of counts made at two facilities upstream of Mirabel Dam.
A74: l/ Survey discontinued due to lack of funding.
A75: m/ Previous survey methodology discontinued.
A76: n/ Minimum count that is not comparable to other years. Monitoring at the Mirabel Dam was complicated by operational challenges associated with implementation of a new counting facility in addition to adverse environmental conditions. Atypical sampling techniques and shortened periods of operation limited estimates of passage.
A78: o/ Preliminary.
A79: p/ Survey incomplete at time of publication.

Sheet B-7
A1: TABLE B-7. Summary of California North Coast salmon spawning stock surveys in numbers of fish (adults and jacks combined) or redd counts.
A2: CHINOOK | B2: Redwood | D2: Mad | F2: Eel River | H2: South Fork | J2: Eel River | L2: Mattole | N2: Russian
B3: Creeka/ | D3: Rivera/b/ | F3: (Mainstem)a/b/ | H3: Eel Rivera/b/ | J3: Tributarieso/ | L3: Riverc/ | N3: Riverd/
A4: Year | L4: (Redds)
A5: 2000-2001 | B5: - | D5: - | F5: - | H5: - | J5: - | L5: - | N5: 1,445
A6: 2001-2002 | B6: - | D6: - | F6: - | H6: - | J6: - | L6: - | N6: 1,383
A7: 2002-2003 | B7: - | D7: - | F7: - | H7: - | J7: - | L7: - | N7: 5,474
A8: 2003-2004 | B8: - | D8: - | F8: - | H8: - | J8: - | L8: - | N8: 6,103
A9: 2004-2005 | B9: - | D9: - | F9: - | H9: - | J9: - | L9: - | N9: 4,788
A10: 2005-2006 | B10: - | D10: - | F10: - | H10: - | J10: - | L10: - | N10: 2,607
A11: 2006-2007 | B11: - | D11: - | F11: - | H11: - | J11: - | L11: - | N11: 3,407
A12: 2007-2008 | B12: - | D12: - | F12: - | H12: - | J12: - | L12: - | N12: 2,021
A13: 2008-2009 | B13: - | D13: - | F13: - | H13: - | J13: - | L13: - | N13: 1,129
A14: 2009-2010 | B14: 2,438 | D14: - | F14: - | H14: - | J14: - | L14: - | N14: 1,800
A15: 2010-2011 | B15: e/ | D15: - | F15: - | H15: - | J15: - | L15: - | N15: 2,502
A16: 2011-2012 | B16: 1,455 | D16: - | F16: - | H16: - | J16: - | L16: - | N16: 3,173
A17: 2012-2013 | B17: 3,401 | D17: - | F17: - | H17: - | J17: - | L17: 418 | N17: 6,730
A18: 2013-2014 | B18: 3,487 | D18: 2,169 | E18: f/ | F18: - | H18: - | J18: - | L18: 988 | N18: 3,152
A19: 2014-2015 | B19: e/ | D19: 7,489 | F19: - | H19: - | J19: - | L19: 535 | N19: 1,420 | O19: g/
A20: 2015-2016 | B20: 1,839 | C20: h/ | D20: 5,786 | F20: - | H20: - | J20: - | L20: 331 | N20: 3,020 | O20: g/
A21: 2016-2017 | B21: e/ | D21: 7,186 | F21: - | H21: - | J21: - | L21: 929 | N21: 1,062 | O21: i/
A22: 2017-2018 | B22: 4,541 | D22: 12,667 | F22: - | H22: - | J22: - | L22: 2,202 | N22: 2,093
A23: 2018-2019 | B23: 2,820 | D23: 3,825 | F23: 3,844 | H23: 3,738 | J23: - | L23: 633 | N23: 1,219
A24: 2019-2020 | B24: 290 | D24: k/ | F24: 4,231 | H24: 135 | J24: - | L24: k/ | N24: 922
A25: 2020-2021 | B25: e/ | D25: k/ | F25: 4,632 | H25: k/ | J25: - | L25: k/ | N25: 625
A26: 2021-2022 | B26: e/ | D26: k/ | F26: 4,710 | H26: 155 | J26: - | L26: k/ | N26: e/
A27: 2022-2023 | B27: e/ | D27: 1,137 | F27: 8,199 | H27: 3,878 | J27: 1,473 | L27: 932 | N27: 1,180
A28: 2023-2024 | B28: e/ | D28: 4,284 | F28: 8,161 | H28: 7,947 | J28: 1,867 | L28: 305 | N28: 2,012
A29: 2024-2025j/ | B29: e/ | D29: k/ | F29: 4,611 | H29: 6,372 | J29: k/ | L29: 650 | N29: 1,553
A31: COHO | B31: Redwood | D31: Humboldt | F31: Freshwater | H31: South Fork | J31: Ten Mile | L31: Pudding | N31: Noyo | P31: Big | R31: Little | T31: Lagunitas
B32: Creekc/ | D32: Bayc/l/ | F32: Creekm/ | H32: Eel Riverb/c/ | J32: Rivern/ | L32: Creekm/ | N32: Rivern/ | P32: Rivern/ | R32: Rivern/ | T32: Watershed
A33: Year | B33: (Redds) | D33: (Redds) | H33: (Redds) | T33: (Redds)
A34: 1995-1996 | B34: - | D34: - | F34: - | H34: - | J34: - | L34: - | N34: - | P34: - | R34: - | T34: 86
A35: 1996-1997 | B35: - | D35: - | F35: - | H35: - | J35: - | L35: - | N35: - | P35: - | R35: - | T35: 254
A36: 1997-1998 | B36: - | D36: - | F36: - | H36: - | J36: - | L36: - | N36: - | P36: - | R36: - | T36: 387
A37: 1998-1999 | B37: - | D37: - | F37: - | H37: - | J37: - | L37: - | N37: - | P37: - | R37: - | T37: 207
A38: 1999-2000 | B38: - | D38: - | F38: - | H38: - | J38: - | L38: - | N38: - | P38: - | R38: - | T38: 213
A39: 2000-2001 | B39: - | D39: - | F39: - | H39: - | J39: - | L39: - | N39: - | P39: - | R39: 20 | T39: 284
A40: 2001-2002 | B40: - | D40: - | F40: - | H40: - | J40: - | L40: 524 | N40: - | P40: - | R40: 88 | T40: 345
A41: 2002-2003 | B41: - | D41: - | F41: 1,807 | H41: - | J41: - | L41: 367 | N41: - | P41: - | R41: 45 | T41: 178
A42: 2003-2004 | B42: - | D42: - | F42: 731 | H42: - | J42: - | L42: 1,204 | N42: - | P42: - | R42: 91 | T42: 492
A43: 2004-2005 | B43: - | D43: - | F43: 974 | H43: - | J43: - | L43: 1,167 | N43: - | P43: - | R43: 152 | T43: 634
A44: 2005-2006 | B44: - | D44: - | F44: 789 | H44: - | J44: - | L44: 709 | N44: 1394 | P44: - | R44: 14 | T44: 199
A45: 2006-2007 | B45: - | D45: - | F45: 396 | H45: - | J45: - | L45: 401 | N45: 330 | P45: - | R45: 14 | T45: 433
A46: 2007-2008 | B46: - | D46: - | F46: 262 | H46: - | J46: - | L46: 228 | N46: 259 | P46: - | R46: 5 | T46: 182
A47: 2008-2009 | B47: - | D47: - | F47: 399 | H47: - | J47: - | L47: 50 | N47: 294 | P47: 80 | R47: 4 | T47: 26
A48: 2009-2010 | B48: 246 | D48: 194 | F48: 89 | H48: - | J48: 190 | L48: 9 | N48: 286 | P48: 134 | R48: 2 | T48: 65
A49: 2010-2011 | B49: 574 | D49: 1,099 | F49: 455 | H49: 1,284 | J49: 395 | L49: 199 | N49: 411 | P49: 160 | R49: 8 | T49: 101
A50: 2011-2012 | B50: 540 | D50: 1,738 | F50: 624 | H50: 1,873 | J50: 1,127 | L50: 415 | N50: 228 | P50: 269 | R50: 2 | T50: 137
A51: 2012-2013 | B51: 405 | D51: 763 | F51: 318 | H51: 1,340 | J51: 440 | L51: 283 | N51: 784 | P51: 519 | R51: 2 | T51: 246
A52: 2013-2014 | B52: 705 | D52: 630 | F52: 155 | H52: 939 | J52: 3 | L52: 0 | N52: 723 | P52: 155 | R52: 3 | T52: 220
A53: 2014-2015 | B53: 297 | D53: 1,632 | F53: 718 | H53: 2,069 | J53: 1,654 | L53: 539 | N53: 3,468 | P53: 1,344 | R53: 65 | T53: 146
A54: 2015-2016 | B54: 206 | D54: 617 | F54: 449 | H54: 416 | J54: 241 | L54: 135 | N54: 5,112 | P54: 744 | R54: 15 | T54: 292
A55: 2016-2017 | B55: e/ | D55: 522 | F55: 466 | H55: 465 | J55: 336 | L55: 573 | N55: 2,196 | P55: 250 | R55: 34 | T55: 170
A56: 2017-2018 | B56: 523 | D56: 443 | F56: 535 | H56: 1,633 | J56: 1,011 | L56: 497 | N56: 2,043 | P56: 963 | R56: 30 | T56: 110
A57: 2018-2019 | B57: 554 | D57: 922 | F57: 560 | H57: 990 | J57: 1,045 | L57: 755 | N57: 1,015 | P57: e/ | R57: 13 | T57: 369
A58: 2019-2020 | B58: 153 | D58: 448 | F58: 298 | H58: 138 | J58: 303 | L58: 551 | N58: 358 | P58: 1,198 | R58: 5 | T58: 63
A59: 2020-2021 | B59: e/ | D59: 1,132 | F59: 335 | H59: 617 | J59: 2,479 | L59: 399 | N59: 1,541 | P59: 866 | R59: 21 | T59: 175
A60: 2021-2022 | B60: e/ | D60: e/ | F60: 872 | H60: 941 | J60: 663 | L60: 256 | N60: 1,332 | P60: 513 | R60: 20 | T60: 339
A61: 2022-2023 | B61: e/ | D61: e/ | F61: 643 | H61: 109 | J61: 1,075 | L61: 107 | N61: 1,299 | P61: 490 | R61: 51 | T61: 106
A62: 2023-2024 | B62: e/ | D62: e/ | F62: 537 | H62: 718 | J62: 5,574 | L62: 255 | N62: 5,280 | P62: 1,572 | R62: 15 | T62: 343
A63: 2024-2025j/ | B63: e/ | D63: e/ | F63: k/ | H63: k/ | J63: k/ | L63: k/ | N63: k/ | P63: k/ | R63: k/ | T63: 336
A64: a/ Escapement estimates from expanded sonar fish counts.
A65: b/ Previous versions of this table reported Chinook and coho counts for Cañon, Tomki (Chinook only), and Sprowl creeks, tributaries to the Mad, mainstem Eel, and South Fork Eel rivers, respectively. See the Review of 2018 Ocean Salmon Fisheries for these estimates.
A67: c/ Expanded redd counts from design-based sample of reaches.
A68: d/ Video counts of combined adults and jacks made at Mirabel Dam. These are minimum counts and are not comparable between years. Accuracy of counts may be affected by environmental conditions.
A70: e/ No data available.
A71: f/ Minimum count; sonar installed mid-season.
A72: g/ Mirabel Dam video counts were unavailable due to construction of a new counting facility. The number recorded is the sum of minimum counts made at two facilities upstream of Mirabel Dam.
A74: h/ Minimum abundance due to unexpanded, missing data.
A75: i/ Monitoring at Mirabel Dam was complicated by operational challenges associated with the implementation of a new counting facility.
A76: j/ Available estimates are incomplete and preliminary; surveys are still in progress at time of publication.
A77: k/ Estimates not yet available; data analysis in progress.
A78: l/ Redd surveys conducted in the four largest tributaries to Humboldt Bay: Jacoby Creek, Freshwater Creek, Elk River, and Salmon Creek.
A79: m/ Escapement estimates from mark-recapture experiments.
A80: n/ Escapement estimates derived by multiplying expanded redd counts from design-based sample of reaches by annual fish/redd ratios.
A81: o/ Includes spawning ground surveys in the Van Duzen beginning in 2023.
A90: TABLE B-7. Summary of California North Coast salmon spawning stock surveys in numbers of fish (adults and jacks combined) or redd counts. (Page 1 of 2)
A91: CHINOOK | B91: Redwood | D91: Mad | F91: Eel River | H91: South Fork | J91: Eel River | L91: Mattole | N91: Russian
A92: Run Year or Ave. | B92: Creeka/ | D92: Rivera/b/ | F92: (Mainstem)a/b/ | H92: Eel Rivera/b/ | J92: Tributarieso/ | L92: Riverc/ | N92: Riverd/
L93: (Redds)
A94: 2000-2005 | B94: =B5 -> - | D94: =D5 -> - | F94: - | H94: - | J94: =J5 -> - | L94: =L5 -> - | N94: =AVERAGE(N5:N9) -> 3,839
A95: 2005-2006 | B95: =B10 -> - | D95: =D10 -> - | F95: =F10 -> - | H95: =H10 -> - | J95: =J10 -> - | L95: =L10 -> - | N95: =N10 -> 2,607
A96: 2006-2007 | B96: - | D96: - | F96: - | H96: - | J96: =J11 -> - | L96: - | N96: 3,407
A97: 2007-2008 | B97: - | D97: - | F97: - | H97: - | J97: =J12 -> - | L97: - | N97: 2,021
A98: 2008-2009 | B98: - | D98: - | F98: - | H98: - | J98: - | L98: - | N98: 1,129
A99: 2009-2010 | B99: 2,438 | D99: - | F99: - | H99: - | J99: - | L99: - | N99: 1,800
A100: 2010-2011 | B100: e/ | D100: - | F100: - | H100: - | J100: - | L100: - | N100: 2,502
A101: 2011-2012 | B101: 1,455 | D101: - | F101: - | H101: - | J101: - | L101: - | N101: 3,173
A102: 2012-2013 | B102: 3,401 | D102: - | F102: - | H102: - | J102: - | L102: 418 | N102: 6,730
A103: 2013-2014 | B103: 3,487 | D103: 2,169 | E103: =E18 -> f/ | F103: - | H103: - | J103: - | L103: 988 | N103: 3,152
A104: 2014-2015 | B104: e/ | D104: 7,489 | F104: - | H104: - | J104: - | L104: 535 | N104: 1,420 | O104: =O19 -> g/
A105: 2015-2016 | B105: 1,839 | C105: =C20 -> h/ | D105: 5,786 | F105: - | H105: - | J105: - | L105: 331 | N105: 3,020 | O105: =O20 -> g/
A106: 2016-2017 | B106: e/ | D106: 7,186 | F106: - | H106: - | J106: - | L106: 929 | N106: 1,062 | O106: =O21 -> i/
A107: 2017-2018 | B107: 4,541 | D107: 12,667 | F107: - | H107: - | J107: - | L107: 2,202 | N107: 2,093
A108: 2018-2019 | B108: 2,820 | D108: 3,825 | F108: 3,844 | H108: 3,738 | J108: - | L108: 633 | N108: 1,219
A109: 2019-2020 | B109: 290 | D109: k/ | F109: 4,231 | H109: 135 | J109: - | L109: k/ | N109: 922
A110: 2020-2021 | B110: e/ | D110: k/ | F110: 4,632 | H110: k/ | J110: - | L110: k/ | N110: 625
A111: 2021-2022 | B111: e/ | D111: k/ | F111: 4,710 | H111: 155 | J111: - | L111: k/ | N111: e/
A112: 2022-2023 | B112: e/ | D112: 1,137 | F112: 8,199 | H112: 3,878 | J112: 1,473 | L112: 932 | N112: 1,180
A113: 2023-2024 | B113: =B28 -> e/ | D113: =D28 -> 4,284 | F113: =F28 -> 8,161 | H113: =H28 -> 7,947 | J113: 1,867 | L113: =L28 -> 305 | N113: =N28 -> 2,012
A114: 2024-2025j/ | B114: e/ | D114: k/ | F114: 4,611 | H114: 6,372 | J114: k/ | L114: 650 | N114: 1,553
A116: COHO | B116: Redwood | D116: Humboldt | F116: Freshwater | H116: South Fork | J116: Ten Mile | L116: Pudding | N116: Noyo | P116: Big | R116: Little | T116: Lagunitas
A117: Run Year or Ave. | B117: Creekc/ | D117: Bayc/l/ | F117: Creekm/ | H117: Eel Riverb/c/ | J117: Rivern/ | L117: Creekm/ | N117: Rivern/ | P117: Rivern/ | R117: Rivern/ | T117: Watershed
B118: (Redds) | D118: (Redds) | H118: (Redds) | T118: (Redds)
A119: 1995-2000 | B119: =B34 -> - | D119: =D34 -> - | F119: - | H119: - | J119: - | L119: - | N119: - | P119: - | R119: - | T119: =AVERAGE(T34:T38) -> 229
A120: 2000-2005 | B120: =B39 -> - | D120: =D39 -> - | F120: =AVERAGE(F39:F43) -> 1,171 | H120: =H39 -> - | J120: - | L120: 816 | N120: =N39 -> - | P120: - | R120: 79 | T120: 387
A121: 2005-2006 | B121: =B44 -> - | D121: =D44 -> - | F121: =F44 -> 789 | H121: =H44 -> - | J121: =J44 -> - | L121: =L44 -> 709 | N121: =N44 -> 1,394 | P121: =P44 -> - | R121: =R44 -> 14 | T121: =T44 -> 199
A122: 2006-2007 | B122: - | D122: - | F122: 396 | H122: - | J122: - | L122: 401 | N122: 330 | P122: - | R122: 14 | T122: 433
A123: 2007-2008 | B123: - | D123: - | F123: 262 | H123: - | J123: - | L123: 228 | N123: 259 | P123: - | R123: 5 | T123: 182
A124: 2008-2009 | B124: - | D124: - | F124: 399 | H124: - | J124: - | L124: 50 | N124: 294 | P124: 80 | R124: 4 | T124: 26
A125: 2009-2010 | B125: 246 | D125: 194 | F125: 89 | H125: - | J125: 190 | L125: 9 | N125: 286 | P125: 134 | R125: 2 | T125: 65
A126: 2010-2011 | B126: 574 | D126: 1,099 | F126: 455 | H126: 1,284 | J126: 395 | L126: 199 | N126: 411 | P126: 160 | R126: 8 | T126: 101
A127: 2011-2012 | B127: 540 | D127: 1,738 | F127: 624 | H127: 1,873 | J127: 1,127 | L127: 415 | N127: 228 | P127: 269 | R127: 2 | T127: 137
A128: 2012-2013 | B128: 405 | D128: 763 | F128: 318 | H128: 1,340 | J128: 440 | L128: 283 | N128: 784 | P128: 519 | R128: 2 | T128: 246
A129: 2013-2014 | B129: 705 | D129: 630 | F129: 155 | H129: 939 | J129: 3 | L129: 0 | N129: 723 | P129: 155 | R129: 3 | T129: 220
A130: 2014-2015 | B130: 297 | D130: 1,632 | F130: 718 | H130: 2,069 | J130: 1,654 | L130: 539 | N130: 3,468 | P130: 1,344 | R130: 65 | T130: 146
A131: 2015-2016 | B131: 206 | D131: 617 | F131: 449 | H131: 416 | J131: 241 | L131: 135 | N131: 5,112 | P131: 744 | R131: 15 | T131: 292
A132: 2016-2017 | B132: e/ | D132: 522 | F132: 466 | H132: 465 | J132: 336 | L132: 573 | N132: 2,196 | P132: 250 | R132: 34 | T132: 170
A133: 2017-2018 | B133: 523 | D133: 443 | F133: 535 | H133: 1,633 | J133: 1,011 | L133: 497 | N133: 2,043 | P133: 963 | R133: 30 | T133: 110
A134: 2018-2019 | B134: 554 | D134: 922 | F134: 560 | H134: 990 | J134: 1,045 | L134: 755 | N134: 1,015 | P134: e/ | R134: 13 | T134: 369
A135: 2019-2020 | B135: 153 | D135: 448 | F135: 298 | H135: 138 | J135: 303 | L135: 551 | N135: 358 | P135: 1,198 | R135: 5 | T135: 63
A136: 2020-2021 | B136: e/ | D136: 1,132 | F136: 335 | H136: 617 | J136: 2,479 | L136: 399 | N136: 1,541 | P136: 866 | R136: 21 | T136: 175
A137: 2021-2022 | B137: e/ | D137: e/ | F137: 872 | H137: 941 | J137: 663 | L137: 256 | N137: 1,332 | P137: 513 | R137: 20 | T137: 339
A138: 2022-2023 | B138: e/ | D138: e/ | F138: 643 | H138: 109 | J138: 1,075 | L138: 107 | N138: 1,299 | P138: 490 | R138: 51 | T138: 106
A139: 2023-2024 | B139: =B62 -> e/ | D139: =D62 -> e/ | F139: =F62 -> 537 | H139: =H62 -> 718 | J139: =J62 -> 5,574 | L139: =L62 -> 255 | N139: =N62 -> 5,280 | P139: =P62 -> 1,572 | R139: =R62 -> 15 | T139: =T62 -> 343
A140: 2024-2025j/ | B140: e/ | D140: e/ | F140: k/ | H140: k/ | J140: k/ | L140: k/ | N140: k/ | P140: k/ | R140: k/ | T140: 336
A142: TABLE B-7. Summary of California North Coast salmon spawning stock surveys in numbers of fish (adults and jacks combined) or redd counts. (Page 2 of 2)
A143: =A64 -> a/ Escapement estimates from expanded sonar fish counts.
A144: =A65 -> b/ Previous versions of this table reported Chinook and coho counts for Cañon, Tomki (Chinook only), and Sprowl creeks, tributaries to the Mad, mainstem Eel, and South Fork Eel rivers, respectively. See the Review of 2018 Ocean Salmon Fisheries for these estimates.
A146: =A67 -> c/ Expanded redd counts from design-based sample of reaches.
A147: =A68 -> d/ Video counts of combined adults and jacks made at Mirabel Dam. These are minimum counts and are not comparable between years. Accuracy of counts may be affected by environmental conditions.
A149: =A70 -> e/ No data available.
A150: =A71 -> f/ Minimum count; sonar installed mid-season.
A151: =A72 -> g/ Mirabel Dam video counts were unavailable due to construction of a new counting facility. The number recorded is the sum of minimum counts made at two facilities upstream of Mirabel Dam.
A153: =A74 -> h/ Minimum abundance due to unexpanded, missing data.
A154: i/ Monitoring at Mirabel Dam was complicated by operational challenges associated with the implementation of a new counting facility.
A155: j/ Available estimates are incomplete and preliminary; surveys are still in progress at time of publication.
A156: k/ Estimates not yet available; data analysis in progress.
A157: l/ Redd surveys conducted in the four largest tributaries to Humboldt Bay: Jacoby Creek, Freshwater Creek, Elk River, and Salmon Creek.
A158: m/ Escapement estimates from mark-recapture experiments.
A159: n/ Escapement estimates derived by multiplying expanded redd counts from design-based sample of reaches by annual fish/redd ratios.
A160: o/ Includes spawning ground surveys in the Van Duzen beginning in 2023.

Sheet B-8
A1: TABLE B-8. Peak spawning counts in index areas for selected south/local migrating Oregon coastal fall Chinook stocks.
B2: Deep Creek (Pistol River) (0.4 mile) | G2: Big Emily Creek (Chetco River) (1.0 mile) | J2: Bear Creek (Winchuck River) (0.8 mile)
M3: Index (fish per mile)
A4: Year | B4: Adults | D4: Jacks | G4: Adults | H4: Jacks | J4: Adults | K4: Jacks | M4: Adults | N4: Jacks
A5: 1960 | B5: 1 | D5: 0 | G5: - | H5: - | J5: - | K5: - | M5: - | N5: -
A6: 1961 | B6: 4 | D6: 1 | G6: - | H6: - | J6: - | K6: - | M6: - | N6: -
A7: 1962 | B7: 9 | D7: 2 | G7: - | H7: - | J7: - | K7: - | M7: - | N7: -
A8: 1963 | B8: 7 | D8: 0 | G8: - | H8: - | J8: - | K8: - | M8: - | N8: -
A9: 1964 | B9: 12 | D9: 0 | G9: - | H9: - | J9: 30 | K9: 2 | M9: - | N9: -
A10: 1965 | B10: 0 | D10: - | G10: - | H10: - | J10: 14 | K10: 0 | M10: - | N10: -
A11: 1966 | B11: 82 | D11: 6 | G11: - | H11: - | J11: 27 | K11: 3 | M11: - | N11: -
A12: 1967 | B12: 2 | D12: 1 | G12: - | H12: - | J12: 31 | K12: 0 | M12: - | N12: -
A13: 1968 | B13: 9 | D13: 1 | G13: - | H13: - | J13: 57 | K13: 2 | M13: - | N13: -
A14: 1969 | B14: - | D14: - | G14: - | H14: - | J14: 29 | K14: 2 | M14: - | N14: -
A15: 1970 | B15: - | D15: - | G15: - | H15: - | J15: - | K15: - | M15: - | N15: -
A16: 1971 | B16: 7 | D16: 0 | G16: 303 | H16: 28 | J16: 15 | K16: 0 | M16: 148 | N16: 13
A17: 1972 | B17: 7 | D17: 0 | G17: 344 | H17: 11 | J17: - | K17: - | M17: 251 | N17: 8
A18: 1973 | B18: 6 | D18: 2 | G18: 98 | H18: 8 | J18: 46 | K18: 6 | M18: 68 | N18: 7
A19: 1974 | B19: 2 | D19: 0 | G19: 100 | H19: 0 | J19: 13 | K19: 0 | M19: 52 | N19: 0
A20: 1975 | B20: 2 | D20: 0 | G20: - | H20: - | J20: - | K20: - | M20: - | N20: -
A21: 1976 | B21: - | D21: - | G21: 41 | H21: 22 | J21: 0 | K21: 2 | M21: 23 | N21: 13
A22: 1977 | B22: 3 | D22: 2 | G22: - | H22: - | J22: 29 | K22: 1 | M22: 27 | N22: 3
A23: 1978 | B23: - | D23: - | G23: 245 | H23: 36 | J23: 33 | K23: 0 | M23: 154 | N23: 20
A24: 1979 | B24: - | D24: - | G24: 104 | H24: 30 | J24: 17 | K24: 3 | M24: 67 | N24: 18
A25: 1980 | B25: 0 | D25: 0 | G25: 107 | H25: 39 | J25: 13 | K25: 0 | M25: 55 | N25: 18
A26: 1981 | B26: 14 | D26: 1 | G26: 75 | H26: 21 | J26: 10 | K26: 0 | M26: 45 | N26: 10
A27: 1982 | B27: 25 | D27: 1 | G27: 84 | H27: 12 | J27: 13 | K27: 1 | M27: 55 | N27: 6
A28: 1983 | B28: 31 | D28: 3 | G28: 38 | H28: 4 | J28: 12 | K28: 1 | M28: 37 | N28: 4
A29: 1984 | B29: 11 | D29: 2 | G29: 23 | H29: 4 | J29: 15 | K29: 1 | M29: 22 | N29: 3
A30: 1985 | B30: 37 | D30: 2 | G30: 91 | H30: 8 | J30: 13 | K30: 4 | M30: 64 | N30: 6
A31: 1986 | B31: 0a/ | D31: 0a/ | G31: 73 | H31: 20 | J31: 12 | K31: 3 | M31: 39 | N31: 10
A32: 1987 | B32: 11 | D32: 2 | G32: 23 | H32: 6 | J32: 18 | K32: 2 | M32: 24 | N32: 5
A33: 1988 | B33: 27 | D33: 3 | G33: 112 | H33: 25 | J33: 15 | K33: 1 | M33: 70 | N33: 13
A34: 1989 | B34: 6 | D34: 2 | G34: 54 | H34: 7 | J34: 4 | K34: 1 | M34: 29 | N34: 5
A35: 1990 | B35: 1 | D35: 0 | G35: 26 | H35: 2 | J35: 2 | K35: 1 | M35: 13 | N35: 1
A36: 1991 | B36: 3 | D36: 2 | G36: 75 | H36: 5 | J36: 10 | K36: 1 | M36: 40 | N36: 4
A37: 1992 | B37: 9 | D37: 0 | G37: 44 | H37: 13 | J37: 16 | K37: 1 | M37: 31 | N37: 6
A38: 1993 | B38: 10 | D38: 7 | G38: 69 | H38: 19 | J38: 7 | K38: 2 | M38: 39 | N38: 13
A39: 1994 | B39: 29 | D39: 31 | G39: 71 | H39: 8 | J39: 30 | K39: 4 | M39: 59 | N39: 20
A40: 1995 | B40: 8 | D40: 4 | G40: 111 | H40: 7 | J40: 18 | K40: 1 | M40: 62 | N40: 5
A41: 1996 | B41: 81 | D41: 9 | G41: 79 | H41: 7 | J41: 27 | K41: 5 | M41: 85 | N41: 10
A42: 1997 | B42: 17 | D42: 1 | G42: 60 | H42: 5 | J42: 14 | K42: 1 | M42: 41 | N42: 3
A43: 1998 | B43: 46 | D43: 11 | G43: 52 | H43: 3 | J43: 19 | K43: 2 | M43: 53 | N43: 7
A44: 1999 | B44: 58 | D44: 3 | G44: 12 | H44: 1 | J44: 10 | K44: 0 | M44: 36 | N44: 2
A45: 2000 | B45: 26 | D45: 3 | G45: 63 | H45: 6 | J45: 11 | K45: 1 | M45: 45 | N45: 5
A46: 2001 | B46: 25 | D46: 2 | G46: 49 | H46: 2 | J46: 9 | K46: 3 | M46: 38 | N46: 3
A47: 2002 | B47: 62 | D47: 7 | G47: 70 | H47: 3 | J47: 15 | K47: 9 | M47: 67 | N47: 9
A48: 2003 | B48: 20 | D48: 7 | G48: 28 | H48: 5 | J48: 12 | K48: 1 | M48: 27 | N48: 6
A49: 2004 | B49: 97 | D49: 19 | G49: 29 | H49: 4 | J49: 11 | K49: 1 | M49: 62 | N49: 11
A50: 2005 | B50: 15 | D50: 2 | G50: 16 | H50: 3 | J50: 1 | K50: 0 | M50: 15 | N50: 2
A51: 2006 | B51: 22 | D51: 3 | G51: 24 | H51: 2 | J51: 5 | K51: 1 | M51: 23 | N51: 3
A52: 2007 | B52: 44 | D52: 0 | G52: 14 | H52: 4 | J52: 6 | K52: 1 | M52: 29 | N52: 2
A53: 2008 | B53: 10 | D53: 1 | G53: 15 | H53: 29 | J53: 3 | K53: 5 | M53: 13 | N53: 16
A54: 2009 | B54: 20 | D54: 1 | G54: 91 | H54: 11 | J54: 35 | K54: 9 | M54: 66 | N54: 10
A55: 2010 | B55: 14 | D55: 2 | G55: 75 | H55: 5 | J55: 26 | K55: 2 | M55: 52 | N55: 4
A56: 2011 | B56: 12 | D56: 2 | G56: 49 | H56: 6 | J56: 17 | K56: 3 | M56: 35 | N56: 5
A57: 2012 | B57: 8 | D57: 2 | G57: 72 | H57: 11 | J57: 5 | K57: 2 | M57: 39 | N57: 7
A58: 2013 | B58: 10 | D58: 5 | G58: 38 | H58: 11 | J58: 3 | K58: 1 | M58: 23 | N58: 8
A59: 2014 | B59: 11 | D59: 2 | G59: 52 | H59: 9 | J59: 12 | K59: 3 | M59: 34 | N59: 6
A60: 2015 | B60: 34 | D60: 1 | G60: 77 | H60: 7 | J60: 22 | K60: 2 | M60: 60 | N60: 5
A61: 2016 | B61: 5 | D61: 1 | G61: 42 | H61: 5 | J61: 27 | K61: 2 | M61: 34 | N61: 4
A62: 2017 | B62: 9 | D62: 3 | G62: 34 | H62: 7 | J62: 15 | K62: 2 | M62: 26 | N62: 5
A63: 2018 | B63: 4 | D63: 3 | G63: 16 | H63: 10 | J63: 11 | K63: 7 | M63: 14 | N63: 9
A64: 2019 | B64: 7 | D64: 3 | G64: 15 | H64: 2 | J64: 1 | K64: 0 | M64: 10 | N64: 2
A65: 2020 | B65: 28 | D65: 8 | G65: 20 | H65: 11 | J65: 1 | K65: 5 | M65: 22 | N65: 11
A66: 2021 | B66: 18 | D66: 2 | G66: 20 | H66: 5 | J66: 6 | K66: 1 | M66: 20 | N66: 4
A67: 2022 | B67: 24 | D67: 16 | G67: 65 | H67: 7 | J67: 5 | K67: 1 | M67: 43 | N67: 11
A68: 2023 | B68: 13 | D68: 1 | G68: 43 | H68: 3 | J68: 3 | K68: 1 | M68: 27 | N68: 2
A69: 2024b/ | B69: 12 | D69: 1 | G69: 43 | H69: 8 | J69: 3 | K69: 0 | M69: 26 | N69: 4
A70: a/ Pistol River was subject to several “slope failures” in 1986 resulting in severe short-term alterations in gravel bars and spawning index areas. Considerable debris and siltation severely limited Chinook surveys resulting in “0" counts in Deep Creek index areas through December.
A73: b/ Preliminary.
A94: TABLE B-8. Peak spawning counts in index areas for selected south/local migrating Oregon coastal fall Chinook stocks.
B95: Deep Creek | G95: Big Emily Creek | J95: Bear Creek
B96: (Pistol River) | G96: (Chetco River) | J96: (Winchuck River)
B97: (0.4 mile) | G97: (1.0 mile) | J97: (0.8 mile) | M97: Index (fish per mile)
A98: Year or Avg. | B98: Adults | D98: Jacks | G98: Adults | H98: Jacks | J98: Adults | K98: Jacks | M98: Adults | N98: Jacks
A99: 1961-1965 | B99: =AVERAGE(B6:B10) -> 6 | D99: =AVERAGE(D6:D10) -> 1 | G99: - | H99: - | J99: =AVERAGE(J6:J10) -> 22 | K99: =AVERAGE(K6:K10) -> 1 | M99: - | N99: -
A100: 1966-1970 | B100: =AVERAGE(B11:B15) -> 31 | D100: =AVERAGE(D11:D15) -> 3 | G100: - | H100: - | J100: =AVERAGE(J11:J15) -> 36 | K100: =AVERAGE(K11:K15) -> 2 | M100: - | N100: -
A101: 1971-1975 | B101: =AVERAGE(B16:B20) -> 5 | D101: =AVERAGE(D16:D20) -> 0 | G101: =AVERAGE(G16:G20) -> 211 | H101: =AVERAGE(H16:H20) -> 12 | J101: =AVERAGE(J16:J20) -> 25 | K101: =AVERAGE(K16:K20) -> 2 | M101: =AVERAGE(M16:M20) -> 130 | N101: =AVERAGE(N16:N20) -> 7
A102: 1976-1980 | B102: =AVERAGE(B21:B25) -> 2 | D102: =AVERAGE(D21:D25) -> 1 | G102: =AVERAGE(G21:G25) -> 124 | H102: =AVERAGE(H21:H25) -> 32 | J102: =AVERAGE(J21:J25) -> 18 | K102: =AVERAGE(K21:K25) -> 1 | M102: =AVERAGE(M21:M25) -> 65 | N102: =AVERAGE(N21:N25) -> 14
A103: 1981-1985 | B103: =AVERAGE(B26:B30) -> 24 | D103: =AVERAGE(D26:D30) -> 2 | G103: =AVERAGE(G26:G30) -> 62 | H103: =AVERAGE(H26:H30) -> 10 | J103: =AVERAGE(J26:J30) -> 13 | K103: =AVERAGE(K26:K30) -> 1 | M103: =AVERAGE(M26:M30) -> 45 | N103: =AVERAGE(N26:N30) -> 6
A104: 1986-1990 | B104: =AVERAGE(B31:B35) -> 11 | C104: a/ | D104: =AVERAGE(D31:D35) -> 2 | E104: a/ | G104: =AVERAGE(G31:G35) -> 58 | H104: =AVERAGE(H31:H35) -> 12 | J104: =AVERAGE(J31:J35) -> 10 | K104: =AVERAGE(K31:K35) -> 2 | M104: =AVERAGE(M31:M35) -> 35 | N104: =AVERAGE(N31:N35) -> 7
A105: 1991-1995 | B105: =AVERAGE(B36:B40) -> 12 | D105: =AVERAGE(D36:D40) -> 9 | G105: =AVERAGE(G36:G40) -> 74 | H105: =AVERAGE(H36:H40) -> 10 | J105: =AVERAGE(J36:J40) -> 16 | K105: =AVERAGE(K36:K40) -> 2 | M105: =AVERAGE(M36:M40) -> 46 | N105: =AVERAGE(N36:N40) -> 10
A106: 1996-2000 | B106: =AVERAGE(B41:B44) -> 51 | D106: =AVERAGE(D41:D44) -> 6 | G106: 51 | H106: 4 | J106: 18 | K106: 2 | M106: 54 | N106: 6
A107: 2001 | B107: =B46 -> 25 | D107: =D46 -> 2 | G107: =G46 -> 49 | H107: 2 | J107: =J46 -> 9 | K107: 3 | M107: =M46 -> 38 | N107: 3
A108: 2002 | B108: 62 | D108: 7 | G108: 70 | H108: 3 | J108: 15 | K108: 9 | M108: 67 | N108: 9
A109: 2003 | B109: 20 | D109: 7 | G109: 28 | H109: 5 | J109: 12 | K109: 1 | M109: 27 | N109: 6
A110: 2004 | B110: 97 | D110: 19 | G110: 29 | H110: 4 | J110: 11 | K110: 1 | M110: 62 | N110: 11
A111: 2005 | B111: 15 | D111: 2 | G111: 16 | H111: 3 | J111: 1 | K111: 0 | M111: 15 | N111: 2
A112: 2006 | B112: 22 | D112: 3 | G112: 24 | H112: 2 | J112: 5 | K112: 1 | M112: 23 | N112: 3
A113: 2007 | B113: 44 | D113: 0 | G113: 14 | H113: 4 | J113: 6 | K113: 1 | M113: 29 | N113: 2
A114: 2008 | B114: 10 | D114: 1 | G114: 15 | H114: 29 | J114: 3 | K114: 5 | M114: 13 | N114: 16
A115: 2009 | B115: 20 | D115: 1 | G115: 91 | H115: 11 | J115: 35 | K115: 9 | M115: 66 | N115: 10
A116: 2010 | B116: 14 | D116: 2 | G116: 75 | H116: 5 | J116: 26 | K116: 2 | M116: 52 | N116: 4
A117: 2011 | B117: 12 | D117: 2 | G117: 49 | H117: 6 | J117: 17 | K117: 3 | M117: 35 | N117: 5
A118: 2012 | B118: 8 | D118: 2 | G118: 72 | H118: 11 | J118: 5 | K118: 2 | M118: 39 | N118: 7
A119: 2013 | B119: 10 | D119: 5 | G119: 38 | H119: 11 | J119: 3 | K119: 1 | M119: 23 | N119: 8
A120: 2014 | B120: 11 | D120: 2 | G120: 52 | H120: 9 | J120: 12 | K120: 3 | M120: 34 | N120: 6
A121: 2015 | B121: 34 | D121: 1 | G121: 77 | H121: 7 | J121: 22 | K121: 2 | M121: 60 | N121: 5
A122: 2016 | B122: 5 | D122: 1 | G122: 42 | H122: 5 | J122: 27 | K122: 2 | M122: 34 | N122: 4
A123: 2017 | B123: 9 | D123: 3 | G123: 34 | H123: 7 | J123: 15 | K123: 2 | M123: 26 | N123: 5
A124: 2018 | B124: 4 | D124: 3 | G124: 16 | H124: 10 | J124: 11 | K124: 7 | M124: 14 | N124: 9
A125: 2019 | B125: 7 | D125: 3 | G125: 15 | H125: 2 | J125: 1 | K125: 0 | M125: 10 | N125: 2
A126: 2020 | B126: 28 | D126: 8 | G126: 20 | H126: 11 | J126: 1 | K126: 5 | M126: 22 | N126: 11
A127: 2021 | B127: 18 | D127: 2 | G127: 20 | H127: 5 | J127: 6 | K127: 1 | M127: 20 | N127: 4
A128: 2022 | B128: 24 | D128: 16 | G128: 65 | H128: 7 | J128: 5 | K128: 1 | M128: 43 | N128: 11
A129: 2023 | B129: =B68 -> 13 | D129: =D68 -> 1 | G129: =G68 -> 43 | H129: 3 | J129: =J68 -> 3 | K129: 1 | M129: =M68 -> 27 | N129: 2
A130: 2024b/ | B130: 12 | D130: 1 | G130: 43 | H130: 8 | J130: 3 | K130: 0 | M130: 26 | N130: 4
A131: =A70 -> a/ Pistol River was subject to several “slope failures” in 1986 resulting in severe short-term alterations in gravel bars and spawning index areas. Considerable debris and siltation severely limited Chinook surveys resulting in “0" counts in Deep Creek index areas through December.
A134: =A73 -> b/ Preliminary.

Sheet B-9
A1: TABLE B-9. Counts of natural and hatchery spring Chinook salmon at Gold Ray Dam on the Rogue River and at Winchester Dam on the North Umpqua River in thousands of fish.
A3: Year or Avg. | B3: Gold Ray Dam, Rogue Rivera/ | G3: Winchester Dam, Umpqua Rivera/
B4: Naturalb/ | C4: Hatchery | D4: Total | E4: Jacksc/ | G4: Natural | H4: Hatchery | I4: Total | J4: Jacksc/
A5: 1942 | B5: 41.8 | C5: - | D5: =SUM(B5:C5) -> 41.8 | E5: 6.2 | G5: - | H5: - | I5: - | J5: -
A6: 1943 | B6: 36.1 | C6: - | D6: =SUM(B6:C6) -> 36.1 | E6: 4.5 | G6: - | H6: - | I6: - | J6: -
A7: 1944 | B7: 30.6 | C7: - | D7: 30.6 | E7: 3.7 | G7: - | H7: - | I7: - | J7: -
A8: 1945 | B8: 32.0 | C8: - | D8: 32.0 | E8: 5.3 | G8: - | H8: - | I8: - | J8: -
A9: 1946 | B9: 28.4 | C9: - | D9: 28.4 | E9: 4.6 | G9: 2.5 | H9: - | I9: =SUM(G9:H9) -> 2.5 | J9: 0.5
A10: 1947 | B10: 33.6 | C10: - | D10: 33.6 | E10: 3.1 | G10: 3.8 | H10: - | I10: 3.8 | J10: 0.8
A11: 1948 | B11: 27.0 | C11: - | D11: 27.0 | E11: 2.9 | G11: 2.5 | H11: - | I11: 2.5 | J11: 0.2
A12: 1949 | B12: 18.8 | C12: - | D12: 18.8 | E12: 1.8 | G12: 2.6 | H12: - | I12: 2.6 | J12: 0.5
A13: 1950 | B13: 15.5 | C13: - | D13: 15.5 | E13: 2.7 | G13: 2.3 | H13: - | I13: 2.3 | J13: 0.3
A14: 1951 | B14: 19.4 | C14: - | D14: 19.4 | E14: 4.9 | G14: 3.6 | H14: - | I14: 3.6 | J14: 0.7
A15: 1952 | B15: 15.9 | C15: - | D15: 15.9 | E15: 3.8 | G15: 5.2 | H15: 0.1 | I15: 5.3 | J15: 0.6
A16: 1953 | B16: 31.5 | C16: - | D16: 31.5 | E16: 4.2 | G16: 3.9 | H16: 0.9 | I16: 4.8 | J16: 0.5
A17: 1954 | B17: 24.7 | C17: - | D17: 24.7 | E17: 5.2 | G17: 1.5 | H17: 1.7 | I17: 3.2 | J17: 1.6
A18: 1955 | B18: 15.7 | C18: - | D18: 15.7 | E18: 2.8 | G18: 6.6 | H18: 1.0 | I18: 7.6 | J18: 1.4
A19: 1956 | B19: 28.1 | C19: - | D19: 28.1 | E19: 3.9 | G19: 8.0 | H19: 1.3 | I19: 9.3 | J19: 1.4
A20: 1957 | B20: 17.7 | C20: - | D20: 17.7 | E20: 3.0 | G20: 4.0 | H20: 1.2 | I20: 5.2 | J20: 0.9
A21: 1958 | B21: 15.0 | C21: - | D21: 15.0 | E21: 1.9 | G21: 3.6 | H21: 0.8 | I21: 4.4 | J21: 0.5
A22: 1959 | B22: 14.0 | C22: - | D22: 14.0 | E22: 2.6 | G22: 3.1 | H22: 0.7 | I22: 3.8 | J22: 0.3
A23: 1960 | B23: 24.4 | C23: - | D23: 24.4 | E23: 5.5 | G23: 3.4 | H23: 0.7 | I23: 4.1 | J23: 0.5
A24: 1961 | B24: 31.8 | C24: - | D24: 31.8 | E24: 5.4 | G24: 4.4 | H24: 0.9 | I24: 5.3 | J24: 0.5
A25: 1962 | B25: 31.4 | C25: - | D25: 31.4 | E25: 5.3 | G25: 3.3 | H25: 0.9 | I25: 4.2 | J25: 0.6
A26: 1963 | B26: 40.6 | C26: - | D26: 40.6 | E26: 6.9 | G26: 8.7 | H26: 2.3 | I26: 11.0 | J26: 1.8
A27: 1964 | B27: 37.3 | C27: - | D27: 37.3 | E27: 6.2 | G27: 6.6 | H27: 2.2 | I27: 8.8 | J27: 3.0
A28: 1965 | B28: 47.6 | C28: - | D28: 47.6 | E28: 8.1 | G28: 9.0 | H28: 2.7 | I28: 11.7 | J28: 3.1
A29: 1966 | B29: 31.4 | C29: - | D29: 31.4 | E29: 3.5 | G29: 6.7 | H29: 0.6 | I29: 7.3 | J29: 1.3
A30: 1967 | B30: 14.7 | C30: - | D30: 14.7 | E30: 2.4 | G30: 6.5 | H30: 2.6 | I30: 9.1 | J30: 4.9
A31: 1968 | B31: 19.5 | C31: - | D31: 19.5 | E31: 7.5 | G31: 6.2 | H31: 3.1 | I31: 9.3 | J31: 4.3
A32: 1969 | B32: 59.0 | C32: - | D32: 59.0 | E32: 6.7 | G32: 10.7 | H32: 9.4 | I32: 20.1 | J32: 3.0
A33: 1970 | B33: 45.1 | C33: - | D33: 45.1 | E33: 7.4 | G33: 6.1 | H33: 6.9 | I33: 13.0 | J33: 2.4
A34: 1971 | B34: 28.3 | C34: 1.1 | D34: 29.4 | E34: 6.1 | G34: 6.0 | H34: 3.9 | I34: 9.9 | J34: 2.6
A35: 1972 | B35: 30.0 | C35: 0.8 | D35: 30.8 | E35: 5.7 | G35: 7.9 | H35: 8.5 | I35: 16.4 | J35: 7.4
A36: 1973 | B36: 34.7 | C36: 0.6 | D36: 35.3 | E36: 5.0 | G36: 11.4 | H36: 8.2 | I36: 19.6 | J36: 3.2
A37: 1974 | B37: 16.5 | C37: 0.5 | D37: 17.0 | E37: 3.5 | G37: 5.8 | H37: 5.1 | I37: 10.9 | J37: 2.2
A38: 1975 | B38: 20.4 | C38: 1.0 | D38: 21.4 | E38: 4.6 | G38: 5.4 | H38: 5.2 | I38: 10.6 | J38: 3.6
A39: 1976 | B39: 20.4 | C39: 1.2 | D39: 21.6 | E39: 6.9 | G39: 5.5 | H39: 5.2 | I39: 10.7 | J39: 4.3
A40: 1977 | B40: 14.9 | C40: 1.5 | D40: 16.4 | E40: 3.0 | G40: 6.8 | H40: 5.5 | I40: 12.3 | J40: 3.5
A41: 1978 | B41: 40.2 | C41: 7.0 | D41: 47.2 | E41: 11.3 | G41: 5.4 | H41: 2.8 | I41: 8.2 | J41: 2.8
A42: 1979 | B42: 29.3 | C42: 8.9 | D42: 38.2 | E42: 5.8 | G42: 5.5 | H42: 4.0 | I42: 9.5 | J42: 3.2
A43: 1980 | B43: 24.2 | C43: 12.7 | D43: 36.9 | E43: 8.0 | G43: 5.7 | H43: 1.9 | I43: 7.6 | J43: 2.1
A44: 1981 | B44: 12.8 | C44: 4.4 | D44: 17.2 | E44: 3.0 | G44: 4.6 | H44: 4.1 | I44: 8.7 | J44: 2.0
A45: 1982 | B45: 23.2 | C45: 6.7 | D45: 29.9 | E45: 10.1 | G45: 6.5 | H45: 2.0 | I45: 8.5 | J45: 3.3
A46: 1983 | B46: 9.8 | C46: 2.7 | D46: 12.5 | E46: 4.7 | G46: 3.0 | H46: 2.9 | I46: 5.9 | J46: 1.8
A47: 1984 | B47: 8.4 | C47: 4.3 | D47: 12.7 | E47: 3.8 | G47: 4.5 | H47: 2.4 | I47: 6.9 | J47: 1.9
A48: 1985 | B48: 27.8 | C48: 12.7 | D48: 40.5 | E48: 15.0 | G48: 7.5 | H48: 6.1 | I48: 13.6 | J48: 3.6
A49: 1986 | B49: 40.4 | C49: 49.1 | D49: 89.5 | E49: 30.1 | G49: 8.3 | H49: 5.3 | I49: 13.6 | J49: 4.4
A50: 1987 | B50: 37.4 | C50: 44.1 | D50: 81.5 | E50: 16.2 | G50: 8.3 | H50: 7.2 | I50: 15.5 | J50: 3.4
A51: 1988 | B51: 38.8 | C51: 43.8 | D51: 82.6 | E51: 18.4 | G51: 7.8 | H51: 3.8 | I51: 11.6 | J51: 1.6
A52: 1989 | B52: 7.9 | C52: 52.4 | D52: 60.3 | E52: 6.6 | G52: 7.6 | H52: 2.2 | I52: 9.8 | J52: 1.7
A53: 1990 | B53: 18.0 | C53: 6.5 | D53: 24.5 | E53: 3.1 | G53: 5.5 | H53: 2.0 | I53: 7.5 | J53: 1.3
A54: 1991 | B54: 9.3 | C54: 3.0 | D54: 12.3 | E54: 2.4 | G54: 2.4 | H54: 1.8 | I54: 4.2 | J54: 0.6
A55: 1992 | B55: 2.2 | C55: 3.6 | D55: 5.8 | E55: 1.3 | G55: 2.5 | H55: 2.5 | I55: 5.0 | J55: 0.9
A56: 1993 | B56: 12.6 | C56: 13.5 | D56: 26.1 | E56: 6.8 | G56: 3.8 | H56: 2.1 | I56: 5.9 | J56: 1.2
A57: 1994 | B57: 3.6 | C57: 10.5 | D57: 14.1 | E57: 2.6 | G57: 2.8 | H57: 2.5 | I57: 5.3 | J57: 1.1
A58: 1995 | B58: 20.7 | C58: 61.2 | D58: 81.9 | E58: 6.2 | G58: 6.2 | H58: 3.6 | I58: 9.8 | J58: 1.9
A59: 1996 | B59: 10.3 | C59: 26.3 | D59: 36.6 | E59: 3.4 | G59: 4.3 | H59: 2.2 | I59: 6.5 | J59: 1.0
A60: 1997 | B60: 9.6 | C60: 32.2 | D60: 41.8 | E60: 2.8 | G60: 3.3 | H60: 2.5 | I60: 5.8 | J60: 16.0
A61: 1998 | B61: 3.7 | C61: 12.3 | D61: 16.0 | E61: 2.8 | G61: 4.0 | H61: 2.9 | I61: 6.9 | J61: 1.5
A62: 1999 | B62: 6.0 | C62: 15.0 | D62: 21.0 | E62: 1.9 | G62: 2.8 | H62: 4.6 | I62: 7.4 | J62: 3.1
A63: 2000 | B63: 3.4 | C63: 26.8 | D63: 30.2 | E63: 3.1 | G63: 3.4 | H63: 9.2 | I63: 12.6 | J63: 4.6
A64: 2001 | B64: 9.3 | C64: 23.9 | D64: 33.2 | E64: 2.3 | G64: 6.1 | H64: 14.6 | I64: 20.7 | J64: 4.7
A65: 2002 | B65: 7.0 | C65: 40.8 | D65: 47.8 | E65: 3.2 | G65: 6.8 | H65: 17.4 | I65: 24.2 | J65: 3.1
A66: 2003 | B66: 19.3 | C66: 22.6 | D66: 41.9 | E66: 3.0 | G66: 7.9 | H66: 12.3 | I66: 20.2 | J66: 4.1
A67: 2004 | B67: 13.3 | C67: 26.0 | D67: 39.3 | E67: 3.8 | G67: 5.4 | H67: 10.1 | I67: 15.4 | J67: 2.5
A68: 2005 | B68: 5.8 | C68: 12.3 | D68: 18.1 | E68: 1.3 | G68: 3.6 | H68: 5.5 | I68: 9.0 | J68: 1.3
A69: 2006 | B69: 4.8 | C69: 7.0 | D69: 11.7 | E69: 2.2 | G69: 2.6 | H69: 3.5 | I69: 6.1 | J69: 1.7
A70: 2007 | B70: 3.5 | C70: 7.7 | D70: 11.2 | E70: 1.6 | G70: 2.4 | H70: 4.2 | I70: 6.6 | J70: 1.7
A71: 2008 | B71: 4.0 | C71: 8.6 | D71: 12.5 | E71: 3.8 | G71: 2.6 | H71: 5.1 | I71: 7.7 | J71: 2.7
A72: 2009 | B72: 5.2 | C72: 8.3 | D72: 13.6 | E72: 2.3 | G72: 5.3 | H72: 9.0 | I72: 14.3 | J72: 4.8
A73: 2010 | B73: 9.6 | C73: 11.5 | D73: 21.1 | E73: 1.9 | G73: 6.1 | H73: 7.8 | I73: 13.9 | J73: 3.8
A74: 2011 | B74: 9.9 | C74: NA | D74: NA | E74: NA | G74: 8.9 | H74: 7.7 | I74: 16.6 | J74: 5.4
A75: 2012 | B75: 14.4 | C75: NA | D75: NA | E75: NA | G75: 8.2 | H75: 8.4 | I75: 16.7 | J75: 3.6
A76: 2013 | B76: 12.1 | C76: NA | D76: NA | E76: NA | G76: 7.2 | H76: 7.9 | I76: 15.2 | J76: 2.6
A77: 2014 | B77: 5.6 | C77: NA | D77: NA | E77: NA | G77: 6.4 | H77: 8.2 | I77: 14.6 | J77: 4.5
A78: 2015 | B78: 15.3 | C78: NA | D78: NA | E78: NA | G78: 4.8 | H78: 4.8 | I78: 9.6 | J78: 1.9
A79: 2016 | B79: 9.6 | C79: NA | D79: NA | E79: NA | G79: 4.3 | H79: 4.4 | I79: 8.7 | J79: 2.6
A80: 2017 | B80: 10.2 | C80: NA | D80: NA | E80: NA | G80: 4.0 | H80: 2.7 | I80: 6.8 | J80: 1.1
A81: 2018 | B81: 10.4 | C81: NA | D81: NA | E81: NA | G81: 3.3 | H81: 2.0 | I81: 5.3 | J81: 2.7
A82: 2019 | B82: 5.4 | C82: NA | D82: NA | E82: NA | G82: 3.7 | H82: 2.2 | I82: 5.8 | J82: 1.9
A83: 2020 | B83: 3.6 | C83: NA | D83: NA | E83: NA | G83: 4.9 | H83: 2.6 | I83: 7.5 | J83: 1.5
A84: 2021 | B84: 4.6 | C84: NA | D84: NA | E84: NA | G84: 2.8 | H84: 2.6 | I84: 5.4 | J84: 1.1
A85: 2022 | B85: 8.7 | C85: NA | D85: NA | E85: NA | G85: 3.4 | H85: 2.6 | I85: 6.0 | J85: 1.4
A86: 2023 | B86: 8.9 | C86: NA | D86: NA | E86: NA | G86: 2.8 | H86: 2.4 | I86: 5.2 | J86: 2.6
A87: 2024d/ | B87: 8.0 | C87: NA | D87: NA | E87: NA | G87: 3.1 | H87: 5.8 | I87: 8.9 | J87: 1.5
A88: a/ Jacks included in natural, hatchery, and total counts.
A89: b/ Gold Ray Dam removed October, 2010. Natural estimate derived using relationship of 2004-2010 spawning ground surveys to Gold Ray Dam passage. Estimate includes an unknown number of jacks.
A91: c/ Jacks include all Chinook less than 20 inches prior to 1978 and all Chinook less than 24 inches beginning in 1978.
A92: d/ Preliminary.
A102: TABLE B-9. Counts of natural and hatchery spring Chinook salmon at Gold Ray Dam on the Rogue River and at Winchester Dam on the North Umpqua River in thousands of fish.
A104: Year or Avg. | B104: Gold Ray Dam, Rogue Rivera/ | G104: Winchester Dam, Umpqua Rivera/
B105: Naturalb/ | C105: Hatchery | D105: Total | E105: Jacksc/ | G105: Natural | H105: Hatchery | I105: Total | J105: Jacksc/
A106: 1942-1945 | B106: =AVERAGE(B5:B8) -> 35.1 | C106: - | D106: =AVERAGE(D5:D8) -> 35.1 | E106: =AVERAGE(E5:E8) -> 4.9 | G106: - | H106: - | I106: - | J106: -
A107: 1946-1950 | B107: =AVERAGE(B9:B13) -> 24.7 | C107: - | D107: =AVERAGE(D9:D13) -> 24.7 | E107: =AVERAGE(E9:E13) -> 3.0 | G107: =AVERAGE(G9:G13) -> 2.7 | H107: - | I107: =AVERAGE(I9:I13) -> 2.7 | J107: =AVERAGE(J9:J13) -> 0.5
A108: 1951-1955 | B108: =AVERAGE(B14:B18) -> 21.4 | C108: - | D108: =AVERAGE(D14:D18) -> 21.4 | E108: =AVERAGE(E14:E18) -> 4.2 | G108: =AVERAGE(G14:G18) -> 4.2 | H108: =AVERAGE(H14:H18) -> 0.9 | I108: =AVERAGE(I14:I18) -> 4.9 | J108: =AVERAGE(J14:J18) -> 1.0
A109: 1956-1960 | B109: =AVERAGE(B19:B23) -> 19.8 | C109: - | D109: =AVERAGE(D19:D23) -> 19.8 | E109: =AVERAGE(E19:E23) -> 3.4 | G109: =AVERAGE(G19:G23) -> 4.4 | H109: =AVERAGE(H19:H23) -> 0.9 | I109: =AVERAGE(I19:I23) -> 5.4 | J109: =AVERAGE(J19:J23) -> 0.7
A110: 1961-1965 | B110: =AVERAGE(B24:B28) -> 37.7 | C110: - | D110: =AVERAGE(D24:D28) -> 37.7 | E110: =AVERAGE(E24:E28) -> 6.4 | G110: =AVERAGE(G24:G28) -> 6.4 | H110: =AVERAGE(H24:H28) -> 1.8 | I110: =AVERAGE(I24:I28) -> 8.2 | J110: =AVERAGE(J24:J28) -> 1.8
A111: 1966-1970 | B111: =AVERAGE(B29:B33) -> 33.9 | C111: - | D111: =AVERAGE(D29:D33) -> 33.9 | E111: =AVERAGE(E29:E33) -> 5.5 | G111: =AVERAGE(G29:G33) -> 7.2 | H111: =AVERAGE(H29:H33) -> 4.5 | I111: =AVERAGE(I29:I33) -> 11.8 | J111: =AVERAGE(J29:J33) -> 3.2
A112: 1971-1975 | B112: =AVERAGE(B34:B38) -> 26.0 | C112: =AVERAGE(C34:C38) -> 0.8 | D112: =AVERAGE(D34:D38) -> 26.8 | E112: =AVERAGE(E34:E38) -> 5.0 | G112: =AVERAGE(G34:G38) -> 7.3 | H112: =AVERAGE(H34:H38) -> 6.2 | I112: =AVERAGE(I34:I38) -> 13.5 | J112: =AVERAGE(J34:J38) -> 3.8
A113: 1976-1980 | B113: =AVERAGE(B39:B43) -> 25.8 | C113: =AVERAGE(C39:C43) -> 6.3 | D113: =AVERAGE(D39:D43) -> 32.1 | E113: =AVERAGE(E39:E43) -> 7.0 | G113: =AVERAGE(G39:G43) -> 5.8 | H113: =AVERAGE(H39:H43) -> 3.9 | I113: =AVERAGE(I39:I43) -> 9.7 | J113: =AVERAGE(J39:J43) -> 3.2
A114: 1981-1985 | B114: =AVERAGE(B44:B48) -> 16.4 | C114: =AVERAGE(C44:C48) -> 6.2 | D114: =AVERAGE(D44:D48) -> 22.6 | E114: =AVERAGE(E44:E48) -> 7.3 | G114: =AVERAGE(G44:G48) -> 5.2 | H114: =AVERAGE(H44:H48) -> 3.5 | I114: =AVERAGE(I44:I48) -> 8.7 | J114: =AVERAGE(J44:J48) -> 2.5
A115: 1986-1990 | B115: =AVERAGE(B49:B53) -> 28.5 | C115: =AVERAGE(C49:C53) -> 39.2 | D115: =AVERAGE(D49:D53) -> 67.7 | E115: =AVERAGE(E49:E53) -> 14.9 | G115: =AVERAGE(G49:G53) -> 7.5 | H115: =AVERAGE(H49:H53) -> 4.1 | I115: =AVERAGE(I49:I53) -> 11.6 | J115: =AVERAGE(J49:J53) -> 2.5
A116: 1991-1995 | B116: =AVERAGE(B54:B58) -> 9.7 | C116: =AVERAGE(C54:C58) -> 18.4 | D116: =AVERAGE(D54:D58) -> 28.0 | E116: =AVERAGE(E54:E58) -> 3.9 | G116: =AVERAGE(G54:G58) -> 3.5 | H116: =AVERAGE(H54:H58) -> 2.5 | I116: =AVERAGE(I54:I58) -> 6.0 | J116: =AVERAGE(J54:J58) -> 1.1
A117: 1996-2000 | B117: =AVERAGE(B59:B63) -> 6.6 | C117: =AVERAGE(C59:C63) -> 22.5 | D117: 29.1 | E117: 2.8 | G117: 3.6 | H117: 4.3 | I117: 7.8 | J117: 5.2
A118: 2001 | B118: =+B64 -> 9.3 | C118: 23.9 | D118: 33.2 | E118: 2.3 | G118: =+G64 -> 6.1 | H118: 14.6 | I118: 20.7 | J118: 4.7
A119: 2002 | B119: 7.0 | C119: 40.8 | D119: 47.8 | E119: 3.2 | G119: 6.8 | H119: 17.4 | I119: 24.2 | J119: 3.1
A120: 2003 | B120: 19.3 | C120: 22.6 | D120: 41.9 | E120: 3.0 | G120: 7.9 | H120: 12.3 | I120: 20.2 | J120: 4.1
A121: 2004 | B121: 13.3 | C121: 26.0 | D121: 39.3 | E121: 3.8 | G121: 5.4 | H121: 10.1 | I121: 15.4 | J121: 2.5
A122: 2005 | B122: 5.8 | C122: 12.3 | D122: 18.1 | E122: 1.3 | G122: 3.6 | H122: 5.5 | I122: 9.0 | J122: 1.3
A123: 2006 | B123: 4.8 | C123: 7.0 | D123: 11.7 | E123: 2.2 | G123: 2.6 | H123: 3.5 | I123: 6.1 | J123: 1.7
A124: 2007 | B124: 3.5 | C124: 7.7 | D124: 11.2 | E124: 1.6 | G124: 2.4 | H124: 4.2 | I124: 6.6 | J124: 1.7
A125: 2008 | B125: 4.0 | C125: 8.6 | D125: 12.5 | E125: 3.8 | G125: 2.6 | H125: 5.1 | I125: 7.7 | J125: 2.7
A126: 2009 | B126: 5.2 | C126: 8.3 | D126: 13.6 | E126: 2.3 | G126: 5.3 | H126: 9.0 | I126: 14.3 | J126: 4.8
A127: 2010 | B127: 9.6 | C127: 11.5 | D127: 21.1 | E127: 1.9 | G127: 6.1 | H127: 7.8 | I127: 13.9 | J127: 3.8
A128: 2011 | B128: 9.9 | C128: NA | D128: NA | E128: NA | G128: 8.9 | H128: 7.7 | I128: 16.6 | J128: 5.4
A129: 2012 | B129: 14.4 | C129: NA | D129: NA | E129: NA | G129: 8.2 | H129: 8.4 | I129: 16.7 | J129: 3.6
A130: 2013 | B130: 12.1 | C130: NA | D130: NA | E130: NA | G130: 7.2 | H130: 7.9 | I130: 15.2 | J130: 2.6
A131: 2014 | B131: 5.6 | C131: NA | D131: NA | E131: NA | G131: 6.4 | H131: 8.2 | I131: 14.6 | J131: 4.5
A132: 2015 | B132: 15.3 | C132: NA | D132: NA | E132: NA | G132: 4.8 | H132: 4.8 | I132: 9.6 | J132: 1.9
A133: 2016 | B133: 9.6 | C133: NA | D133: NA | E133: NA | G133: 4.3 | H133: 4.4 | I133: 8.7 | J133: 2.6
A134: 2017 | B134: 10.2 | C134: NA | D134: NA | E134: NA | G134: =+G80 -> 4.0 | H134: 2.7 | I134: =+I80 -> 6.8 | J134: =+J80 -> 1.1
A135: 2018 | B135: 10.4 | C135: NA | D135: NA | E135: NA | G135: 3.3 | H135: 2.0 | I135: =+I81 -> 5.3 | J135: 2.7
A136: 2019 | B136: 5.4 | C136: NA | D136: NA | E136: NA | G136: 3.7 | H136: 2.2 | I136: =+I82 -> 5.8 | J136: 1.9
A137: 2020 | B137: 3.6 | C137: NA | D137: NA | E137: NA | G137: 4.9 | H137: 2.6 | I137: =+I83 -> 7.5 | J137: 1.5
A138: 2021 | B138: 4.6 | C138: NA | D138: NA | E138: NA | G138: 2.8 | H138: 2.6 | I138: =+I84 -> 5.4 | J138: 1.1
A139: 2022 | B139: 8.7 | C139: NA | D139: NA | E139: NA | G139: 3.4 | H139: 2.6 | I139: =+I85 -> 6.0 | J139: 1.4
A140: 2023 | B140: =+B86 -> 8.9 | C140: NA | D140: NA | E140: NA | G140: =+G86 -> 2.8 | H140: 2.4 | I140: 5.2 | J140: 2.6
A141: 2024d/ | B141: 8.0 | C141: NA | D141: NA | E141: NA | G141: 3.1 | H141: 5.8 | I141: 8.9 | J141: 1.5
A142: =A88 -> a/ Jacks included in natural, hatchery, and total counts.
A143: =A89 -> b/ Gold Ray Dam removed October, 2010. Natural estimate derived using relationship of 2004-2010 spawning ground surveys to Gold Ray Dam passage. Estimate includes an unknown number of jacks.
A145: =A91 -> c/ Jacks include all Chinook less than 20 inches prior to 1978 and all Chinook less than 24 inches beginning in 1978.
A146: =A92 -> d/ Preliminary.

Sheet B-10
A1: TABLE B-10. Rogue River fall Chinook carcass counts and Huntley Park passage of naturally produced fish.
C2: Carcass Countsa/ | H2: Huntley Park Passage
A3: Year or Avg. | C3: Adults | E3: Jacks | F3: Total | G3: Adults | H3: Jacks | I3: Total
A4: 1977 | C4: 1,356 | E4: 2,389 | F4: =SUM(C4:E4) -> 3,745 | G4: 25,780 | H4: 53,836 | I4: 79,615
A5: =A4+1 -> 1978 | C5: 9,174 | E5: 1,019 | F5: 10,193 | G5: 155,242 | H5: 30,079 | I5: 185,321
A6: =A5+1 -> 1979 | C6: 8,272 | E6: 195 | F6: 8,467 | G6: 163,992 | H6: 9,289 | I6: 173,281
A7: 1980 | C7: 2,221 | E7: 411 | F7: 2,632 | G7: 54,512 | H7: 28,498 | I7: 83,010
A8: 1981 | C8: 5,228 | E8: 1,171 | F8: 6,399 | G8: 75,294 | H8: 26,135 | I8: 101,429
A9: 1982 | C9: 2,812 | E9: 708 | F9: 3,520 | G9: 97,821 | H9: 36,863 | I9: 134,684
A10: 1983 | C10: 2,737 | E10: 271 | F10: 3,008 | G10: 38,712 | H10: 6,729 | I10: 45,441
A11: 1984 | C11: 3,267 | E11: 396 | F11: 3,663 | G11: 32,474 | H11: 9,781 | I11: 42,255
A12: 1985 | C12: 5,486 | E12: 2,500 | F12: 7,986 | G12: 35,233 | H12: 48,908 | I12: 84,141
A13: 1986 | C13: 17,177 | E13: 3,223 | F13: 20,400 | G13: 144,089 | H13: 85,768 | I13: 229,858
A14: 1987 | C14: 25,918 | E14: 2,532 | F14: 28,450 | G14: 116,876 | H14: 31,068 | I14: 147,944
A15: 1988 | C15: 31,613 | E15: 1,352 | F15: 32,965 | G15: 67,723 | H15: 11,355 | I15: 79,078
A16: 1989 | C16: 7,408 | E16: 481 | F16: 7,889 | G16: 73,958 | H16: 15,186 | I16: 89,144
A17: 1990 | C17: 1,868 | E17: 46 | F17: 1,914 | G17: 19,531 | H17: 4,385 | I17: 23,915
A18: 1991 | C18: 2,799 | E18: 157 | F18: 2,956 | G18: 14,991 | H18: 3,372 | I18: 18,364
A19: 1992 | C19: 2,366 | E19: 464 | F19: 2,830 | G19: 44,738 | H19: 31,718 | I19: 76,456
A20: 1993 | C20: 5,447 | E20: 257 | F20: 5,704 | G20: 36,026 | H20: 10,642 | I20: 46,668
A21: 1994 | C21: 7,366 | E21: 529 | F21: 7,895 | G21: 67,480 | H21: 13,227 | I21: 80,707
A22: 1995 | C22: 3,958 | E22: 173 | F22: 4,131 | G22: 64,210 | H22: 18,536 | I22: 82,745
A23: 1996 | C23: 2,448 | E23: 121 | F23: 2,569 | G23: 48,763 | H23: 15,682 | I23: 64,445
A24: 1997 | C24: 1,643 | E24: 68 | F24: 1,711 | G24: 41,072 | H24: 17,788 | I24: 58,860
A25: 1998 | C25: 3,601 | E25: 40 | F25: 3,641 | G25: 40,939 | H25: 6,793 | I25: 47,732
A26: 1999 | C26: 2,493 | E26: 157 | F26: 2,650 | G26: 37,587 | H26: 18,763 | I26: 56,350
A27: 2000 | C27: 3,366 | E27: 226 | F27: 3,592 | G27: 87,783 | H27: 12,918 | I27: 100,701
A28: 2001 | C28: 6,380 | E28: 772 | F28: 7,152 | G28: 76,376 | H28: 26,650 | I28: 103,026
A29: 2002 | C29: 11,836 | E29: 905 | F29: 12,741 | G29: 154,143 | H29: 42,806 | I29: 196,948
A30: 2003 | C30: 14,620 | E30: 983 | F30: 15,603 | G30: 204,793 | H30: 19,347 | I30: 224,139
A31: 2004 | C31: 5,326 | D31: b/ | E31: 250 | F31: 5,576 | G31: 132,296 | H31: 19,785 | I31: 152,081
A32: 2005 | C32: - | E32: - | F32: - | G32: 56,474 | H32: 4,849 | I32: 61,323
A33: 2006 | C33: - | E33: - | F33: - | G33: 35,075 | H33: 6,770 | I33: 41,845
A34: 2007 | C34: - | E34: - | F34: - | G34: 43,493 | H34: 3,284 | I34: 46,778
A35: 2008 | C35: - | E35: - | F35: - | G35: 24,309 | H35: 15,186 | I35: 39,495
A36: 2009 | C36: - | E36: - | F36: - | G36: 60,223 | H36: 13,660 | I36: 73,883
A37: 2010 | C37: - | E37: - | F37: - | G37: 49,390 | H37: 14,459 | I37: 63,849
A38: 2011 | C38: - | E38: - | F38: - | G38: 67,750 | H38: 30,125 | I38: 97,875
A39: 2012 | C39: - | E39: - | F39: - | G39: 69,060 | H39: 10,400 | I39: 79,460
A40: 2013 | C40: - | E40: - | F40: - | G40: 81,655 | H40: 23,027 | I40: 104,682
A41: 2014 | C41: - | E41: - | F41: - | G41: 53,546 | H41: 11,901 | I41: 65,447
A42: 2015 | C42: - | E42: - | F42: - | G42: 30,462 | H42: 7,841 | I42: 38,303
A43: 2016 | C43: - | E43: - | F43: - | G43: 27,278 | H43: 16,762 | I43: 44,040
A44: 2017 | C44: - | E44: - | F44: - | G44: 91,977 | H44: 24,068 | I44: 116,045
A45: 2018 | C45: - | E45: - | F45: - | G45: 39,507 | H45: 23,927 | I45: 63,434
A46: 2019 | C46: - | E46: - | F46: - | G46: 18,436 | H46: 15,622 | I46: 34,058
A47: 2020 | C47: - | E47: - | F47: - | G47: 29,387 | H47: 16,020 | I47: 45,407
A48: 2021 | C48: - | E48: - | F48: - | G48: 48,979 | H48: 13,679 | I48: 62,658
A49: 2022 | C49: - | E49: - | F49: - | G49: 17,609 | H49: 13,786 | I49: 31,395 | K49: < 2022 Draft/estimated age comp based on 10 yr. avg., to be updated later
A50: 2023 | C50: - | E50: - | F50: - | G50: 29,555 | H50: 11,626 | I50: 41,181
A51: 2024c/ | C51: - | E51: - | F51: - | G51: 53,342 | H51: 11,627 | I51: 64,969
A52: a/ Surveys were discontinued in 2005.
A53: b/ In 2004, one of the standard survey sections was not sampled. In the previous two years, this section accounted for 33 percent of the total adult carcass counts.
A55: c/ Preliminary.
A68: TABLE B-10. Rogue River fall Chinook carcass counts and Huntley Park Passage of naturally produced fish.
C69: Carcass Countsa/ | H69: Huntley Park Passage
A70: Year or Avg. | C70: Adults | E70: Jacks | F70: Total | G70: Adults | H70: Jacks | I70: Total
A71: 1977-1980 | C71: =AVERAGE(C4:C7) -> 5,256 | E71: =AVERAGE(E4:E7) -> 1,004 | F71: =AVERAGE(F4:F7) -> 6,259 | G71: =AVERAGE(G4:G7) -> 99,881 | H71: =AVERAGE(H4:H7) -> 30,425 | I71: =AVERAGE(I4:I7) -> 130,307
A72: 1981-1985 | C72: =AVERAGE(C8:C12) -> 3,906 | E72: =AVERAGE(E8:E12) -> 1,009 | F72: =AVERAGE(F8:F12) -> 4,915 | G72: =AVERAGE(G8:G12) -> 55,907 | H72: =AVERAGE(H8:H12) -> 25,683 | I72: =AVERAGE(I8:I12) -> 81,590
A73: 1986-1990 | C73: =AVERAGE(C13:C17) -> 16,797 | E73: =AVERAGE(E13:E17) -> 1,527 | F73: =AVERAGE(F13:F17) -> 18,324 | G73: =AVERAGE(G13:G17) -> 84,435 | H73: =AVERAGE(H13:H17) -> 29,553 | I73: =AVERAGE(I13:I17) -> 113,988
A74: 1990-1995 | C74: =AVERAGE(C18:C22) -> 4,387 | E74: =AVERAGE(E18:E22) -> 316 | F74: =AVERAGE(F18:F22) -> 4,703 | G74: =AVERAGE(G18:G22) -> 45,489 | H74: =AVERAGE(H18:H22) -> 15,499 | I74: =AVERAGE(I18:I22) -> 60,988
A75: 1996-2000 | C75: =AVERAGE(C23:C27) -> 2,710 | E75: =AVERAGE(E23:E27) -> 122 | F75: 2,833 | G75: 51,229 | H75: 14,389 | I75: 65,618
A76: 2001 | C76: =C28 -> 6,380 | E76: =E28 -> 772 | F76: 7,152 | G76: 76,376 | H76: 26,650 | I76: 103,026
A77: 2002 | C77: 11,836 | E77: 905 | F77: 12,741 | G77: 154,143 | H77: 42,806 | I77: 196,948
A78: 2003 | C78: 14,620 | E78: 983 | F78: 15,603 | G78: 204,793 | H78: 19,347 | I78: 224,139
A79: 2004 | C79: 5,326 | D79: =D31 -> b/ | E79: 250 | F79: 5,576 | G79: 132,296 | H79: 19,785 | I79: 152,081
A80: 2005 | C80: - | E80: - | F80: - | G80: 56,474 | H80: 4,849 | I80: 61,323
A81: 2006 | C81: - | E81: - | F81: - | G81: 35,075 | H81: 6,770 | I81: 41,845
A82: 2007 | C82: - | E82: - | F82: - | G82: 43,493 | H82: 3,284 | I82: 46,778
A83: 2008 | C83: - | E83: - | F83: - | G83: 24,309 | H83: 15,186 | I83: 39,495
A84: 2009 | C84: - | E84: - | F84: - | G84: 60,223 | H84: 13,660 | I84: 73,883
A85: 2010 | C85: - | E85: - | F85: - | G85: 49,390 | H85: 14,459 | I85: 63,849
A86: 2011 | C86: - | E86: - | F86: - | G86: 67,750 | H86: 30,125 | I86: 97,875
A87: 2012 | C87: - | E87: - | F87: - | G87: 69,060 | H87: 10,400 | I87: 79,460
A88: 2013 | C88: - | E88: - | F88: - | G88: 81,655 | H88: 23,027 | I88: 104,682
A89: 2014 | C89: =C39 -> - | E89: =E39 -> - | F89: =F39 -> - | G89: =G41 -> 53,546 | H89: 11,901 | I89: 65,447
A90: 2015 | C90: =C39 -> - | E90: =E39 -> - | F90: =F39 -> - | G90: 30,462 | H90: 7,841 | I90: 38,303
A91: 2016 | C91: =C39 -> - | E91: =E39 -> - | F91: =F39 -> - | G91: 27,278 | H91: 16,762 | I91: 44,040
A92: 2017 | C92: =C39 -> - | E92: =E39 -> - | F92: =F39 -> - | G92: 91,977 | H92: 24,068 | I92: 116,045
A93: 2018 | C93: =C39 -> - | E93: =E39 -> - | F93: =F39 -> - | G93: 39,507 | H93: 23,927 | I93: 63,434
A94: 2019 | C94: =C39 -> - | E94: =E39 -> - | F94: =F39 -> - | G94: 18,436 | H94: 15,622 | I94: 34,058
A95: 2020 | C95: =C39 -> - | E95: =E39 -> - | F95: =F39 -> - | G95: 29,387 | H95: 16,020 | I95: 45,407
A96: 2021 | C96: =C39 -> - | E96: =E39 -> - | F96: =F39 -> - | G96: 48,979 | H96: 13,679 | I96: 62,658
A97: 2022 | C97: =C39 -> - | E97: =E39 -> - | F97: =F39 -> - | G97: 17,609 | H97: 13,786 | I97: 31,395
A98: 2023 | C98: =C39 -> - | E98: =E39 -> - | F98: =F39 -> - | G98: =G50 -> 29,555 | H98: 11,626 | I98: 41,181
A99: 2024c/ | C99: =C40 -> - | E99: =E40 -> - | F99: =F40 -> - | G99: 53,342 | H99: 11,627 | I99: 64,969
A100: =A52 -> a/ Surveys were discontinued in 2005.
A101: =A53 -> b/ In 2004, one of the standard survey sections was not sampled. In the previous two years, this section accounted for 33 percent of the total adult carcass counts.
A103: =A55 -> c/ Preliminary.

Sheet B-11
A1: TABLE B-11. Peak counts for north migrating Oregon coastal Chinook stocks on selected fall Chinook spawning index stream surveys.
B2: River Tributaries
B3: Humbug (Nehalem) (1.0 mile) | D3: Tillamook (1.8 mile) | F3: Niagara (Nestucca) (0.4 mile) | H3: Sunshine (Siletz) (1.2 mile) | J3: Grant (Yaquina) (1.7 mile) | L3: Buck (Alsea) (1.0 mile) | N3: Lake (Siuslaw) (0.8 mile) | P3: W.F. Millicoma (Coos) (0.5 mile) | R3: Salmon (Coquille) (0.8 mile) | T3: Index Fish Per Mile
A5: Year or Average
B6: Adults | C6: Jacks | D6: Adults | E6: Jacks | F6: Adults | G6: Jacks | H6: Adults | I6: Jacks | J6: Adults | K6: Jacks | L6: Adults | M6: Jacks | N6: Adults | O6: Jacks | P6: Adults | Q6: Jacks | R6: Adults | S6: Jacks | T6: Adults | U6: Jacks | V6: =1+1.8+0.4+1.2+1.7+1+0.8+0.5+0.8 -> 9.2
A7: 1961 | B7: 96 | C7: 8 | D7: 130 | E7: 36 | F7: 65 | G7: 4 | H7: 52 | I7: 11 | J7: 51 | K7: 1 | L7: 38 | M7: 8 | N7: 26 | O7: 22 | P7: 3 | Q7: 3 | R7: 10 | S7: 14 | T7: 51 | U7: 12 | V7: =(B7+D7+F7+H7+J7+L7+N7+P7+R7)/9.2 -> 51
A8: 1962 | B8: 69 | C8: 9 | D8: 95 | E8: 22 | F8: 39 | G8: 8 | H8: 131 | I8: 29 | J8: 32 | K8: 15 | L8: 8 | M8: 5 | N8: 12 | O8: 4 | P8: 2 | Q8: 0 | R8: 1 | S8: 0 | T8: 42 | U8: 10 | V8: =(B8+D8+F8+H8+J8+L8+N8+P8+R8)/9.2 -> 42
A9: 1963 | B9: 96 | C9: 37 | D9: 128 | E9: 22 | F9: 88 | G9: 2 | H9: 63 | I9: 8 | J9: 67 | K9: 13 | L9: 39 | M9: 12 | N9: 27 | O9: 2 | P9: 0 | Q9: 2 | R9: 3 | S9: 0 | T9: 56 | U9: 11 | V9: 56
A10: 1964 | B10: 112 | C10: 14 | D10: 134 | E10: 29 | F10: 45 | G10: 8 | H10: 18 | I10: 7 | J10: 22 | K10: 3 | L10: 22 | M10: 7 | N10: 212 | O10: 35 | P10: 1 | Q10: 0 | R10: 9 | S10: 2 | T10: 63 | U10: 11 | V10: 63
A11: 1965 | B11: 100 | C11: 43 | D11: 93 | E11: 18 | F11: 123 | G11: 2 | H11: 32 | I11: 8 | J11: 44 | K11: 34 | L11: 31 | M11: 14 | N11: 28 | O11: 11 | P11: 2 | Q11: 0 | R11: 91 | S11: 49 | T11: 59 | U11: 19 | V11: 59
A12: 1966 | B12: 95 | C12: 8 | D12: 85 | E12: 25 | F12: 73 | G12: 7 | H12: 36 | I12: 6 | J12: 67 | K12: 15 | L12: 42 | M12: 20 | N12: 111 | O12: 11 | P12: 5 | Q12: 1 | R12: 55 | S12: 19 | T12: 62 | U12: 12 | V12: 62
A13: 1967 | B13: 64 | C13: 2 | D13: 117 | E13: 41 | F13: 55 | G13: 6 | H13: 39 | I13: 3 | J13: 35 | K13: 13 | L13: 12 | M13: 14 | N13: 110 | O13: 31 | P13: 7 | Q13: 0 | R13: 17 | S13: 0 | T13: 50 | U13: 12 | V13: 50
A14: 1968 | B14: 44 | C14: 2 | D14: 81 | E14: 29 | F14: 41 | G14: 2 | H14: 19 | I14: 4 | J14: 32 | K14: 9 | L14: 18 | M14: 12 | N14: 52 | O14: 32 | P14: 0 | Q14: 0 | R14: 16 | S14: 4 | T14: 33 | U14: 10 | V14: 33
A15: 1969 | B15: 29 | C15: 2 | D15: 41 | E15: 13 | F15: 28 | G15: 8 | H15: 7 | I15: 3 | J15: 68 | K15: 20 | L15: 13 | M15: 2 | N15: 140 | O15: 52 | P15: 6 | Q15: 2 | R15: 7 | S15: 0 | T15: 37 | U15: 11 | V15: 37
A16: 1970 | B16: 54 | C16: 3 | D16: 139 | E16: 29 | F16: 39 | G16: 8 | H16: 51 | I16: 9 | J16: 105 | K16: 10 | L16: 43 | M16: 34 | N16: 256 | O16: 76 | P16: 12 | Q16: 0 | R16: 36 | S16: 23 | T16: 80 | U16: 21 | V16: 80
A17: 1971 | B17: 84 | C17: 10 | D17: 35 | E17: 4 | F17: 35 | G17: 1 | H17: 40 | I17: 5 | J17: 78 | K17: 17 | L17: 38 | M17: 8 | N17: 49 | O17: 10 | P17: 21 | Q17: 22 | R17: 17 | S17: 5 | T17: 43 | U17: 9 | V17: 43
A18: 1972 | B18: 71 | C18: 46 | D18: 54 | E18: 12 | F18: 82 | G18: 10 | H18: 27 | I18: 14 | J18: 36 | K18: 12 | L18: 3 | M18: 2 | N18: 88 | O18: 56 | P18: 8 | Q18: 12 | R18: 8 | S18: 4 | T18: 41 | U18: 18 | V18: 41
A19: 1973 | B19: 139 | C19: 28 | D19: 84 | E19: 1 | F19: 61 | G19: 4 | H19: 47 | I19: 0 | J19: 48 | K19: 4 | L19: 20 | M19: 4 | N19: - | O19: - | P19: 21 | Q19: 1 | R19: 18 | S19: 0 | T19: 52 | U19: 5 | V19: =(B19+D19+F19+H19+J19+L19+N19+P19+R19)/9.2 -> 
A20: 1974 | B20: 141 | C20: 16 | D20: 45 | E20: 4 | F20: 42 | G20: 0 | H20: 47 | I20: 2 | J20: 93 | K20: 0 | L20: 13 | M20: 0 | N20: 131 | O20: 68 | P20: 16 | Q20: 28 | R20: 13 | S20: 7 | T20: 59 | U20: 14 | V20: 59
A21: 1975 | B21: 72 | C21: 28 | D21: - | E21: - | F21: - | G21: - | H21: - | I21: - | J21: - | K21: - | L21: 9 | M21: 1 | N21: 106 | O21: 60 | P21: 22 | Q21: 4 | R21: 18 | S21: 9 | T21: 55 | U21: 25
A22: 1976 | B22: 135 | C22: 39 | D22: 35 | E22: 5 | F22: 0 | G22: 0 | H22: 18 | I22: 12 | J22: 10 | K22: 6 | L22: 1 | M22: 0 | N22: 188 | O22: 74 | P22: 28 | Q22: 24 | R22: 0 | S22: 0 | T22: 45 | U22: 17 | V22: 45
A23: 1977 | B23: 158 | C23: 12 | D23: 56 | E23: 2 | F23: 14 | G23: 2 | H23: 45 | I23: 2 | J23: 160 | K23: 20 | L23: 13 | M23: 2 | N23: 181 | O23: 60 | P23: 19 | Q23: 8 | R23: 7 | S23: 7 | T23: 71 | U23: 13 | V23: 71
A24: 1978 | B24: 166 | C24: 6 | D24: 62 | E24: 8 | F24: 31 | G24: 3 | H24: 28 | I24: 0 | J24: 175 | K24: 6 | L24: 12 | M24: 0 | N24: 115 | O24: 24 | P24: 42 | Q24: 18 | R24: 40 | S24: 3 | T24: 73 | U24: 7 | V24: 73
A25: 1979 | B25: 168 | C25: 2 | D25: 45 | E25: 2 | F25: 50 | G25: 3 | H25: 98 | I25: 7 | J25: 144 | K25: 78 | L25: 40 | M25: 10 | N25: 128 | O25: 12 | P25: 35 | Q25: 24 | R25: 33 | S25: 8 | T25: 81 | U25: 16 | V25: 81
A26: 1980 | B26: 90 | C26: 3 | D26: 106 | E26: 14 | F26: 64 | G26: 1 | H26: 44 | I26: 2 | J26: 145 | K26: 4 | L26: 46 | M26: 2 | N26: 218 | O26: 24 | P26: 30 | Q26: 65 | R26: 74 | S26: 31 | T26: 89 | U26: 16 | V26: 89
A27: 1981 | B27: 148 | C27: 1 | D27: 94 | E27: 6 | F27: 41 | G27: 1 | H27: 68 | I27: 2 | J27: 185 | K27: 13 | L27: 32 | M27: 3 | N27: 140 | O27: 43 | P27: 4 | Q27: 4 | R27: 43 | S27: 8 | T27: 82 | U27: 9 | V27: 82
A28: 1982 | B28: 70 | C28: 13 | D28: 107 | E28: 15 | F28: 89 | G28: 12 | H28: 40 | I28: 1 | J28: 160 | K28: 18 | L28: 54 | M28: 9 | N28: 206 | O28: 34 | P28: 8 | Q28: 2 | R28: 95 | S28: 13 | T28: 90 | U28: 13 | V28: 90
A29: 1983 | B29: 61 | C29: 4 | D29: 45 | E29: 1 | F29: 60 | G29: 1 | H29: 29 | I29: 3 | J29: 86 | K29: 11 | L29: 25 | M29: 0 | N29: 28 | O29: 0 | P29: 9 | Q29: 0 | R29: 43 | S29: 4 | T29: 42 | U29: 3 | V29: 42
A30: 1984 | B30: 280 | C30: 31 | D30: 101 | E30: 9 | F30: 84 | G30: 6 | H30: 47 | I30: 3 | J30: 195 | K30: 17 | L30: 55 | M30: 2 | N30: 103 | O30: 7 | P30: 0 | Q30: 1 | R30: 38 | S30: 6 | T30: 98 | U30: 9 | V30: 98
A31: 1985 | B31: 257 | C31: 40 | D31: 128 | E31: 14 | F31: 117 | G31: 9 | H31: 90 | I31: 3 | J31: 263 | K31: 59 | L31: 70 | M31: 15 | N31: 268 | O31: 70 | P31: 11 | Q31: 2 | R31: 6 | S31: 4 | T31: 132 | U31: 23 | V31: 132
A32: 1986 | B32: 108 | C32: 8 | D32: 153 | E32: 11 | F32: 161 | G32: 6 | H32: 46 | I32: 5 | J32: 172 | K32: 33 | L32: 54 | M32: 9 | N32: 255 | O32: 68 | P32: 5 | Q32: 2 | R32: 46 | S32: 9 | T32: 109 | U32: 16 | V32: 109
A33: 1987 | B33: 219 | C33: 6 | D33: 255 | E33: 6 | F33: 127 | G33: 1 | H33: 14 | I33: 0 | J33: 173 | K33: 19 | L33: 51 | M33: 1 | N33: 207 | O33: 25 | P33: 19 | Q33: 11 | R33: 46 | S33: 4 | T33: 121 | U33: 8 | V33: 121
A34: 1988 | B34: 155 | C34: 4 | D34: 121 | E34: 8 | F34: 143 | G34: 1 | H34: 97 | I34: 1 | J34: 547 | K34: 35 | L34: 251 | M34: 11 | N34: 538 | O34: 52 | P34: 22 | Q34: 6 | R34: 92 | S34: 10 | T34: 214 | U34: 14 | V34: 214
A35: 1989 | B35: 150 | C35: 2 | D35: 118 | E35: 4 | F35: 104 | G35: 4 | H35: 61 | I35: 3 | J35: 168 | K35: 6 | L35: 72 | M35: 5 | N35: 555 | O35: 34 | P35: 18 | Q35: 3 | R35: 27 | S35: 7 | T35: 138 | U35: 7 | V35: 138
A36: 1990 | B36: 50 | C36: 1 | D36: 122 | E36: 10 | F36: 55 | G36: 2 | H36: 50 | I36: 1 | J36: 139 | K36: 26 | L36: 71 | M36: 6 | N36: 578 | O36: 43 | P36: 12 | Q36: 3 | R36: 32 | S36: 1 | T36: 121 | U36: 10 | V36: 121
A37: 1991 | B37: 43 | C37: 0 | D37: 135 | E37: 10 | F37: 91 | G37: 3 | H37: 58 | I37: 6 | J37: 187 | K37: 17 | L37: 36 | M37: 2 | N37: 701 | O37: 27 | P37: 4 | Q37: 1 | R37: 123 | S37: 12 | T37: 150 | U37: 8 | V37: 150
A38: 1992 | B38: 90 | C38: 4 | D38: 200 | E38: 15 | F38: 76 | G38: 7 | H38: 73 | I38: 1 | J38: 137 | K38: 6 | L38: 66 | M38: 9 | N38: 521 | O38: 32 | P38: 10 | Q38: 5 | R38: 92 | S38: 6 | T38: 138 | U38: 9 | V38: 138
A39: 1993 | B39: 50 | C39: 0 | D39: 46 | E39: 1 | F39: 24 | G39: 1 | H39: 17 | I39: 0 | J39: 136 | K39: 7 | L39: 15 | M39: 1 | N39: 106 | O39: 7 | P39: 113 | Q39: 10 | R39: 73 | S39: 2 | T39: 63 | U39: 3 | V39: 63
A40: 1994 | B40: 83 | C40: 5 | D40: 36 | E40: 1 | F40: 201 | G40: 2 | H40: 113 | I40: 2 | J40: a/ | K40: a/ | L40: 46 | M40: 4 | N40: 300 | O40: 19 | P40: 73 | Q40: 14 | R40: 86 | S40: 6 | T40: 125 | U40: 7
A41: 1995 | B41: 57 | C41: 3 | D41: 41 | E41: 4 | F41: 124 | G41: 1 | H41: 41 | I41: 0 | J41: a/ | K41: a/ | L41: 59 | M41: 4 | N41: 346 | O41: 5 | P41: 43 | Q41: 6 | R41: 58 | S41: 1 | T41: 103 | U41: 3
A42: 1996 | B42: 86 | C42: 2 | D42: 60 | E42: 0 | F42: 40 | G42: 0 | H42: 122 | I42: 0 | J42: a/ | K42: a/ | L42: 62 | M42: 2 | N42: 614 | O42: 29 | P42: 92 | Q42: 3 | R42: 29 | S42: 3 | T42: 147 | U42: 5
A43: 1997 | B43: 162 | C43: 1 | D43: 47 | E43: 1 | F43: 24 | G43: 1 | H43: 60 | I43: 0 | J43: a/ | K43: a/ | L43: 49 | M43: 3 | N43: 325 | O43: 9 | P43: 12 | Q43: 0 | R43: 108 | S43: 3 | T43: 105 | U43: 2
A44: 1998 | B44: 93 | C44: 2 | D44: 42 | E44: 1 | F44: 42 | G44: 0 | H44: 83 | I44: 3 | J44: a/ | K44: a/ | L44: 78 | M44: 0 | N44: 176 | O44: 2 | P44: 33 | Q44: 10 | R44: 193 | S44: 7 | T44: 99 | U44: 3
A45: 1999 | B45: 116 | C45: 3 | D45: 38 | E45: 1 | F45: 60 | G45: 2 | H45: 36 | I45: 3 | J45: a/ | K45: a/ | L45: 55 | M45: 5 | N45: 478 | O45: 14 | P45: 14 | Q45: 3 | R45: 136 | S45: 8 | T45: 124 | U45: 5
A46: 2000 | B46: 175 | C46: 3 | D46: 40 | E46: 3 | F46: 32 | G46: 2 | H46: 63 | I46: 1 | J46: a/ | K46: a/ | L46: 38 | M46: 3 | N46: 205 | O46: 18 | P46: 5 | Q46: 0 | R46: 83 | S46: 9 | T46: 85 | U46: 5
A47: 2001 | B47: 220 | C47: 4 | D47: 62 | E47: 6 | F47: 53 | G47: 7 | H47: 195 | I47: 3 | J47: a/ | K47: a/ | L47: 95 | M47: 6 | N47: 711 | O47: 49 | P47: 30 | Q47: 5 | R47: 153 | S47: 22 | T47: 203 | U47: 14
A48: 2002 | B48: 311 | C48: 1 | D48: 137 | E48: 3 | F48: 124 | G48: 1 | H48: 221 | I48: 1 | J48: a/ | K48: a/ | L48: 118 | M48: 6 | N48: 834 | O48: 22 | P48: 51 | Q48: 12 | R48: 218 | S48: 9 | T48: 269 | U48: 7
A49: 2003 | B49: 215 | C49: 6 | D49: 135 | E49: 5 | F49: 27 | G49: 1 | H49: 120 | I49: 3 | J49: 341 | K49: 7 | L49: 145 | M49: 1 | N49: 1,230 | O49: 37 | P49: 209 | Q49: 31 | R49: 147 | S49: 2 | T49: 279 | U49: 10 | V49: 279
A50: 2004 | B50: 196 | C50: 3 | D50: 71 | E50: 2 | F50: 76 | G50: 1 | H50: 19 | I50: 0 | J50: 238 | K50: 11 | L50: 91 | M50: 5 | N50: 988 | O50: 16 | P50: 40 | Q50: 4 | R50: 101 | S50: 5 | T50: 198 | U50: 5 | V50: =(B50+D50+F50+H50+J50+L50+N50+P50+R50)/9.2 -> 198
A51: 2005 | B51: 124 | C51: 3 | D51: a/ | E51: a/ | F51: 74 | G51: 2 | H51: 54 | I51: 1 | J51: a/ | K51: a/ | L51: 40 | M51: 1 | N51: 302 | O51: 5 | P51: 17 | Q51: 2 | R51: 61 | S51: 2 | T51: 118 | U51: 3
A52: 2006 | B52: 31 | C52: 0 | D52: 65 | E52: 0 | F52: 67 | G52: 0 | H52: 82 | I52: 0 | J52: a/ | K52: a/ | L52: 22 | M52: 0 | N52: 165 | O52: 0 | P52: 7 | Q52: 1 | R52: 129 | S52: 8 | T52: 76 | U52: 1
A53: 2007 | B53: 91 | C53: 1 | D53: 34 | E53: 2 | F53: 20 | G53: 0 | H53: 6 | I53: 0 | J53: a/ | K53: a/ | L53: 17 | M53: 1 | N53: 132 | O53: 2 | P53: 14 | Q53: 3 | R53: 2 | S53: 0 | T53: 42 | U53: 1
A54: 2008 | B54: 73 | C54: 1 | D54: 15 | E54: 2 | F54: 13 | G54: 0 | H54: 8 | I54: 0 | J54: a/ | K54: a/ | L54: 11 | M54: 2 | N54: 135 | O54: 15 | P54: 20 | Q54: 5 | R54: 28 | S54: 8 | T54: 40 | U54: 4
A55: 2009 | B55: 92 | C55: 13 | D55: 17 | E55: 0 | F55: 2 | G55: 0 | H55: 32 | I55: 2 | J55: a/ | K55: a/ | L55: 50 | M55: 0 | N55: 179 | O55: 26 | P55: 34 | Q55: 9 | R55: a/ | S55: a/ | T55: 61 | U55: 7
A56: 2010 | B56: 57 | C56: 0 | D56: 24 | E56: 1 | F56: 27 | G56: 2 | H56: 56 | I56: 3 | J56: a/ | K56: a/ | L56: 75 | M56: 6 | N56: 301 | O56: 7 | P56: 46 | Q56: 14 | R56: a/ | S56: a/ | T56: 87 | U56: 5
A57: 2011 | B57: 164 | C57: 5 | D57: 96 | E57: 4 | F57: 15 | G57: 1 | H57: 29 | I57: 0 | J57: a/ | K57: a/ | L57: 46 | M57: 2 | N57: 329 | O57: 21 | P57: 53 | Q57: 1 | R57: a/ | S57: a/ | T57: 109 | U57: 5
A58: 2012 | B58: 144 | C58: 3 | D58: 38 | E58: 2 | F58: 34 | G58: 0 | H58: 57 | I58: 3 | J58: a/ | K58: a/ | L58: 56 | M58: 4 | N58: 611 | O58: 17 | P58: 38 | Q58: 1 | R58: a/ | S58: a/ | T58: 146 | U58: 4
A59: 2013 | B59: 384 | C59: 10 | D59: 89 | E59: 2 | F59: 78 | G59: 3 | H59: 47 | I59: 2 | J59: 166 | K59: 9 | L59: 41 | M59: 3 | N59: 625 | O59: 6 | P59: 156 | Q59: 20 | R59: a/ | S59: a/ | T59: 189 | U59: 7
A60: 2014 | B60: 176 | C60: 2 | D60: 55 | E60: 0 | F60: 54 | G60: 2 | H60: 109 | I60: 1 | J60: 216 | K60: 40 | L60: 60 | M60: 7 | N60: 556 | O60: 21 | P60: 92 | Q60: 6 | R60: a/ | S60: a/ | T60: 157 | U60: 9
A61: 2015 | B61: 237 | C61: 1 | D61: a/ | E61: a/ | F61: 31 | G61: 1 | H61: 122 | I61: 1 | J61: 391 | K61: 3 | L61: 130 | M61: 2 | N61: 625 | O61: 2 | P61: 93 | Q61: 3 | R61: a/ | S61: a/ | T61: 247 | U61: 3
A62: 2016 | B62: 154 | C62: 2 | D62: a/ | E62: a/ | F62: 24 | G62: 0 | H62: 162 | I62: 3 | J62: 159 | K62: 9 | L62: 39 | M62: 1 | N62: 224 | O62: 1 | P62: 19 | Q62: 0 | R62: a/ | S62: a/ | T62: 118 | U62: 2
A63: 2017 | B63: 132 | C63: 1 | D63: a/ | E63: a/ | F63: 39 | G63: 1 | H63: 109 | I63: 1 | J63: 126 | K63: 5 | L63: 47 | M63: 4 | N63: 282 | O63: 3 | P63: 20 | Q63: 1 | R63: a/ | S63: a/ | T63: 114 | U63: 2
A64: 2018 | B64: 107 | C64: 6 | D64: a/ | E64: a/ | F64: 11 | G64: 0 | H64: 86 | I64: 2 | J64: 220 | K64: 11 | L64: 31 | M64: 3 | N64: 94 | O64: 5 | P64: 57 | Q64: 5 | R64: a/ | S64: a/ | T64: 92 | U64: 5
A65: 2019 | B65: 201 | C65: 2 | D65: a/ | E65: a/ | F65: 8 | G65: 0 | H65: 48 | I65: 0 | J65: 79 | K65: 2 | L65: 27 | M65: 0 | N65: 46 | O65: 2 | P65: 19 | Q65: 1 | R65: a/ | S65: a/ | T65: 65 | U65: 1
A66: 2020 | B66: 348 | C66: 4 | D66: a/ | E66: a/ | F66: 17 | G66: 0 | H66: 115 | I66: 1 | J66: 233 | K66: 5 | L66: 71 | M66: 3 | N66: 74 | O66: 1 | P66: 47 | Q66: 3 | R66: a/ | S66: a/ | T66: 137 | U66: 3
A67: 2021 | B67: 120 | C67: 2 | D67: a/ | E67: a/ | F67: 20 | G67: 0 | H67: 74 | I67: 1 | J67: 133 | K67: 9 | L67: a/ | M67: a/ | N67: 124 | O67: 1 | P67: 5 | Q67: 2 | R67: a/ | S67: a/ | T67: 85 | U67: 3
A68: 2022 | B68: 72 | C68: 0 | D68: a/ | E68: a/ | F68: 21 | G68: 0 | H68: 57 | I68: 1 | J68: 127 | K68: 5 | L68: a/ | M68: a/ | N68: 265 | O68: 4 | P68: 48 | Q68: 5 | R68: a/ | S68: a/ | T68: 105 | U68: 3
A69: 2023 | B69: 81 | C69: 0 | D69: a/ | E69: a/ | F69: 36 | G69: 0 | H69: 95 | I69: 0 | J69: 125 | K69: 8 | L69: a/ | M69: a/ | N69: 280 | O69: 0 | P69: 42 | Q69: 2 | R69: a/ | S69: a/ | T69: 118 | U69: 2
A70: 2024b/ | B70: 69 | C70: 1 | D70: a/ | E70: a/ | F70: 24 | G70: 0 | H70: 43 | I70: 0 | J70: 196 | K70: 8 | L70: a/ | M70: a/ | N70: 313 | O70: 6 | P70: 43 | Q70: 5 | R70: a/ | S70: a/ | T70: 123 | U70: 4
A71: a/ Surveys were not conducted.
A72: b/ Preliminary.
A103: TABLE B-11. Peak counts for north migrating Oregon coastal Chinook stocks on selected fall Chinook spawning index stream surveys.
B104: River Tributaries
B105: Humbug (Nehalem) (1.0 mile) | D105: Tillamook (1.8 mile) | F105: Niagara (Nestucca) (0.4 mile) | H105: Sunshine (Siletz) (1.2 mile) | J105: Grant (Yaquina) (1.7 mile) | L105: Buck (Alsea) (1.0 mile) | N105: Siuslaw (Lake) (0.8 mile) | P105: W.F. Millicoma (Coos) (0.5 mile) | R105: Salmon (Coquille) (0.8 mile) | T105: Index Fish Per Mile
A107: Year or Average
B108: Adults | C108: Jacks | D108: Adults | E108: Jacks | F108: Adults | G108: Jacks | H108: Adults | I108: Jacks | J108: Adults | K108: Jacks | L108: Adults | M108: Jacks | N108: Adults | O108: Jacks | P108: Adults | Q108: Jacks | R108: Adults | S108: Jacks | T108: Adults | U108: Jacks
A109: 1961-1965 | B109: =AVERAGE(B7:B11) -> 95 | C109: =AVERAGE(C7:C11) -> 22 | D109: 116 | E109: 25 | F109: 72 | G109: 5 | H109: 59 | I109: 13 | J109: 43 | K109: 13 | L109: 28 | M109: 9 | N109: 61 | O109: 15 | P109: 2 | Q109: 1 | R109: 23 | S109: 13 | T109: 54 | U109: 13
A110: 1966-1970 | B110: =AVERAGE(B12:B16) -> 57 | C110: =AVERAGE(C12:C16) -> 3 | D110: 93 | E110: 27 | F110: 47 | G110: 6 | H110: 30 | I110: 5 | J110: 61 | K110: 13 | L110: 26 | M110: 16 | N110: 134 | O110: 40 | P110: 6 | Q110: 1 | R110: 26 | S110: 9 | T110: 52 | U110: 13
A111: 1971-1975 | B111: =AVERAGE(B17:B21) -> 101 | C111: =AVERAGE(C17:C21) -> 26 | D111: 55 | E111: 5 | F111: 55 | G111: 4 | H111: 40 | I111: 5 | J111: 64 | K111: 8 | L111: 17 | M111: 3 | N111: 94 | O111: 49 | P111: 18 | Q111: 13 | R111: 15 | S111: 5 | T111: 50 | U111: 14
A112: 1976-1980 | B112: =AVERAGE(B22:B26) -> 143 | C112: =AVERAGE(C22:C26) -> 12 | D112: 61 | E112: 6 | F112: 32 | G112: 2 | H112: 47 | I112: 5 | J112: 127 | K112: 23 | L112: 22 | M112: 3 | N112: 166 | O112: 39 | P112: 31 | Q112: 28 | R112: 31 | S112: 10 | T112: 72 | U112: 14
A113: 1981-1985 | B113: =AVERAGE(B27:B31) -> 163 | C113: =AVERAGE(C27:C31) -> 18 | D113: 95 | E113: 9 | F113: 78 | G113: 6 | H113: 55 | I113: 2 | J113: 178 | K113: 24 | L113: 47 | M113: 6 | N113: 149 | O113: 31 | P113: 6 | Q113: 2 | R113: 45 | S113: 7 | T113: =AVERAGE(T27:T31) -> 89 | U113: 11 | V113: =(B113+D113++H113+J113+L113+N113+P113+R113)/9.2 -> 80
A114: 1986-1990 | B114: =AVERAGE(B32:B36) -> 136 | C114: =AVERAGE(C32:C36) -> 4 | D114: 154 | E114: 8 | F114: 118 | G114: 3 | H114: 54 | I114: 2 | J114: 240 | K114: 24 | L114: 100 | M114: 6 | N114: 427 | O114: 44 | P114: 15 | Q114: 5 | R114: 49 | S114: 6 | T114: 141 | U114: 11 | V114: =(B114+D114++H114+J114+L114+N114+P114+R114)/9.2 -> 128
A115: 1991-1995 | B115: =AVERAGE(B37:B41) -> 65 | C115: =AVERAGE(C37:C41) -> 2 | D115: 92 | E115: 6 | F115: 103 | G115: 3 | H115: 60 | I115: 2 | J115: 153 | K115: 10 | L115: 44 | M115: 4 | N115: 395 | O115: 18 | P115: 49 | Q115: 7 | R115: 86 | S115: 5 | T115: 116 | U115: 6 | V115: =(B115+D115++H115+J115+L115+N115+P115+R115)/9.2 -> 103
A116: 1996-2000 | G116: =AVERAGE(G42:G46) -> 1 | H116: =AVERAGE(H42:H46) -> 73 | I116: 1 | J116: =K42 -> a/ | K116: =L42 -> 62 | L116: 56 | M116: 3 | N116: 360 | O116: 14 | P116: 31 | Q116: 3 | R116: 110 | S116: 6 | T116: 112 | U116: 4
A117: 2001 | B117: =B47 -> 220 | C117: 4 | D117: 62 | E117: 6 | F117: 53 | G117: 7 | H117: 195 | I117: 3 | J117: a/ | K117: a/ | L117: 95 | M117: 6 | N117: 711 | O117: 49 | P117: 30 | Q117: 5 | R117: 153 | S117: 22 | T117: 203 | U117: 14
A118: 2002 | B118: =B48 -> 311 | C118: 1 | D118: 137 | E118: 3 | F118: 124 | G118: 1 | H118: 221 | I118: 1 | J118: a/ | K118: a/ | L118: 118 | M118: 6 | N118: 834 | O118: 22 | P118: 51 | Q118: 12 | R118: 218 | S118: 9 | T118: 269 | U118: 7
A119: 2003 | B119: =B49 -> 215 | C119: 6 | D119: 135 | E119: 5 | F119: 27 | G119: 1 | H119: 120 | I119: 3 | J119: 341 | K119: 7 | L119: 145 | M119: 1 | N119: 1,230 | O119: 37 | P119: 209 | Q119: 31 | R119: 147 | S119: 2 | T119: 279 | U119: 10
A120: 2004 | B120: =B50 -> 196 | C120: 3 | D120: 71 | E120: 2 | F120: 76 | G120: 1 | H120: 19 | I120: 0 | J120: 238 | K120: 11 | L120: 91 | M120: 5 | N120: 988 | O120: 16 | P120: 40 | Q120: 4 | R120: 101 | S120: 5 | T120: 198 | U120: 5
A121: 2005 | B121: =B51 -> 124 | C121: 3 | D121: a/ | E121: a/ | F121: 74 | G121: 2 | H121: 54 | I121: 1 | J121: a/ | K121: a/ | L121: 40 | M121: 1 | N121: 302 | O121: 5 | P121: 17 | Q121: 2 | R121: 61 | S121: 2 | T121: 118 | U121: 3
A122: 2006 | B122: =B52 -> 31 | C122: 0 | D122: 65 | E122: 0 | F122: 67 | G122: 0 | H122: 82 | I122: 0 | J122: a/ | K122: a/ | L122: 22 | M122: 0 | N122: 165 | O122: 0 | P122: 7 | Q122: 1 | R122: 129 | S122: 8 | T122: 76 | U122: 1
A123: 2007 | B123: =B53 -> 91 | C123: 1 | D123: 34 | E123: 2 | F123: 20 | G123: 0 | H123: 6 | I123: 0 | J123: a/ | K123: a/ | L123: 17 | M123: 1 | N123: 132 | O123: 2 | P123: 14 | Q123: 3 | R123: 2 | S123: 0 | T123: 42 | U123: 1
A124: 2008 | B124: =B54 -> 73 | C124: 1 | D124: 15 | E124: 2 | F124: 13 | G124: 0 | H124: 8 | I124: 0 | J124: a/ | K124: a/ | L124: 11 | M124: 2 | N124: 135 | O124: 15 | P124: 20 | Q124: 5 | R124: 28 | S124: 8 | T124: 40 | U124: 4
A125: 2009 | B125: =B55 -> 92 | C125: 13 | D125: 17 | E125: 0 | F125: 2 | G125: 0 | H125: 32 | I125: 2 | J125: a/ | K125: a/ | L125: 50 | M125: 0 | N125: 179 | O125: 26 | P125: 34 | Q125: 9 | R125: a/ | S125: a/ | T125: 61 | U125: 7
A126: 2010 | B126: =B56 -> 57 | C126: 0 | D126: 24 | E126: 1 | F126: 27 | G126: 2 | H126: 56 | I126: 3 | J126: a/ | K126: a/ | L126: 75 | M126: 6 | N126: 301 | O126: 7 | P126: 46 | Q126: 14 | R126: a/ | S126: a/ | T126: 87 | U126: 5
A127: 2011 | B127: =B57 -> 164 | C127: 5 | D127: 96 | E127: 4 | F127: 15 | G127: 1 | H127: 29 | I127: 0 | J127: a/ | K127: a/ | L127: 46 | M127: 2 | N127: 329 | O127: 21 | P127: 53 | Q127: 1 | R127: a/ | S127: a/ | T127: 109 | U127: 5
A128: 2012 | B128: =B58 -> 144 | C128: 3 | D128: 38 | E128: 2 | F128: 34 | G128: 0 | H128: 57 | I128: 3 | J128: a/ | K128: a/ | L128: 56 | M128: 4 | N128: 611 | O128: 17 | P128: 38 | Q128: 1 | R128: a/ | S128: a/ | T128: 146 | U128: 4
A129: 2013 | B129: =B59 -> 384 | C129: 10 | D129: 89 | E129: 2 | F129: 78 | G129: 3 | H129: 47 | I129: 2 | J129: 166 | K129: 9 | L129: 41 | M129: 3 | N129: 625 | O129: 6 | P129: 156 | Q129: 20 | R129: a/ | S129: a/ | T129: 189 | U129: 7
A130: 2014 | B130: =B60 -> 176 | C130: 2 | D130: 55 | E130: 0 | F130: 54 | G130: 2 | H130: 109 | I130: 1 | J130: 216 | K130: 40 | L130: 60 | M130: 7 | N130: 556 | O130: 21 | P130: 92 | Q130: 6 | R130: a/ | S130: a/ | T130: 157 | U130: 9
A131: 2015 | B131: =B61 -> 237 | C131: 1 | D131: a/ | E131: a/ | F131: 31 | G131: 1 | H131: 122 | I131: 1 | J131: 391 | K131: 3 | L131: 130 | M131: 2 | N131: 625 | O131: 2 | P131: 93 | Q131: 3 | R131: a/ | S131: a/ | T131: 247 | U131: 3
A132: 2016 | B132: =B62 -> 154 | C132: 2 | D132: a/ | E132: a/ | F132: 24 | G132: 0 | H132: 162 | I132: 3 | J132: 159 | K132: 9 | L132: 39 | M132: 1 | N132: 224 | O132: 1 | P132: 19 | Q132: 0 | R132: a/ | S132: a/ | T132: 118 | U132: 2
A133: 2017 | B133: =B63 -> 132 | C133: 1 | D133: a/ | E133: a/ | F133: 39 | G133: 1 | H133: 109 | I133: 1 | J133: 126 | K133: 5 | L133: 47 | M133: 4 | N133: 282 | O133: 3 | P133: 20 | Q133: 1 | R133: a/ | S133: a/ | T133: 114 | U133: 2
A134: 2018 | B134: =B64 -> 107 | C134: 6 | D134: a/ | E134: a/ | F134: 11 | G134: 0 | H134: 86 | I134: 2 | J134: 220 | K134: 11 | L134: 31 | M134: 3 | N134: 94 | O134: 5 | P134: 57 | Q134: 5 | R134: a/ | S134: a/ | T134: 92 | U134: 5
A135: 2019 | B135: =B65 -> 201 | C135: 2 | D135: a/ | E135: a/ | F135: 8 | G135: 0 | H135: 48 | I135: 0 | J135: 79 | K135: 2 | L135: 27 | M135: 0 | N135: 46 | O135: 2 | P135: 19 | Q135: 1 | R135: a/ | S135: a/ | T135: 65 | U135: 1
A136: 2020 | B136: =B66 -> 348 | C136: 4 | D136: a/ | E136: a/ | F136: 17 | G136: 0 | H136: 115 | I136: 1 | J136: 233 | K136: 5 | L136: 71 | M136: 3 | N136: 74 | O136: 1 | P136: 47 | Q136: 3 | R136: a/ | S136: a/ | T136: 137 | U136: 3
A137: 2021 | B137: =B67 -> 120 | C137: 2 | D137: a/ | E137: a/ | F137: 20 | G137: 0 | H137: 74 | I137: 1 | J137: 133 | K137: 9 | L137: a/ | M137: a/ | N137: 124 | O137: 1 | P137: 5 | Q137: 2 | R137: a/ | S137: a/ | T137: 85 | U137: 3
A138: 2022 | B138: =B68 -> 72 | C138: 0 | D138: a/ | E138: a/ | F138: 21 | G138: 0 | H138: 57 | I138: 1 | J138: 127 | K138: 5 | L138: a/ | M138: a/ | N138: 265 | O138: 4 | P138: 48 | Q138: 5 | R138: a/ | S138: a/ | T138: 105 | U138: 3
A139: 2023 | B139: =B69 -> 81 | C139: 0 | D139: a/ | E139: a/ | F139: 36 | G139: 0 | H139: 95 | I139: 0 | J139: 125 | K139: 8 | L139: a/ | M139: a/ | N139: 280 | O139: 0 | P139: 42 | Q139: 2 | R139: a/ | S139: a/ | T139: 118 | U139: 2
A140: 2024b/ | B140: 69 | C140: 1 | D140: a/ | E140: a/ | F140: 24 | G140: 0 | H140: 43 | I140: 0 | J140: 196 | K140: 8 | L140: a/ | M140: a/ | N140: 313 | O140: 6 | P140: 43 | Q140: 5 | R140: a/ | S140: a/ | T140: 123 | U140: 4
A141: =A71 -> a/ Surveys were not conducted.
A142: =A72 -> b/ Preliminary.

Sheet B-12
A1: TABLE B-12. Estimates of minimum inriver run size, catch, and escapement in numbers of Columbia River adult spring Chinook destined for areas below Bonneville Dam.
E2: Tributary Runs
B3: Minimum Columbia R. Returnb/ | C3: Lower River Catcha/ | E3: Willamette
A4: Year or Average | C4: Non-Indian | F4: L. Willamette Sport Catch | G4: Will. Falls Escapementb/ | L4: Hatchery Escapementd/
C5: Commercial | D5: Sport | E5: Run Size | H5: Sandy | I5: Cowlitzc/ | J5: Lewisc/ | K5: Kalama
A6: 1971 | B6: 84,000 | C6: 13,800 | D6: 3,700 | E6: 53,300 | F6: 17,000 | G6: 34,300 | H6: -- | I6: 11,900 | J6: 200 | K6: 1,100 | L6: 20,000
A7: 1972 | B7: 84,000 | C7: 13,800 | D7: 3,700 | E7: 53,300 | F7: 17,000 | G7: 34,300 | H7: -- | I7: 11,900 | J7: 200 | K7: 1,100 | L7: 20,000
A8: 1973 | B8: 84,000 | C8: 13,800 | D8: 3,700 | E8: 53,300 | F8: 17,000 | G8: 34,300 | H8: -- | I8: 11,900 | J8: 200 | K8: 1,100 | L8: 20,000
A9: 1974 | B9: 84,000 | C9: 13,800 | D9: 3,700 | E9: 53,300 | F9: 17,000 | G9: 34,300 | H9: -- | I9: 11,900 | J9: 200 | K9: 1,100 | L9: 20,000
A10: 1975 | B10: 84,000 | C10: 13,800 | D10: 3,700 | E10: 53,300 | F10: 17,000 | G10: 34,300 | H10: -- | I10: 11,900 | J10: 200 | K10: 1,100 | L10: 20,000
A11: 1976 | B11: 80,800 | C11: 4,700 | D11: 3,200 | E11: 38,800 | F11: 15,800 | G11: 21,000 | H11: -- | I11: 26,600 | J11: 3,100 | K11: 4,300 | L11: 29,900
A12: 1977 | B12: 92,100 | C12: 6,800 | D12: 3,100 | E12: 56,100 | F12: 14,600 | G12: 38,500 | H12: 600 | I12: 20,900 | J12: 3,300 | K12: 1,300 | L12: 30,200
A13: 1978 | B13: 106,700 | C13: 13,500 | D13: 5,000 | E13: 69,200 | F13: 20,600 | G13: 45,700 | H13: 700 | I13: 13,800 | J13: 3,700 | K13: 100 | L13: 25,200
A14: 1979 | B14: 69,212 | C14: 5,500 | D14: 1,700 | E14: 49,600 | F14: 13,900 | G14: 25,500 | H14: 800 | I14: 13,400 | J14: 2,500 | K14: 1,900 | L14: 19,200
A15: 1980 | B15: 73,000 | C15: 300 | D15: 600 | E15: 42,500 | F15: 7,000 | G15: 26,400 | H15: 1,800 | I15: 23,700 | J15: 2,300 | K15: 2,500 | L15: 28,400
A16: 1981 | B16: 88,200 | C16: 4,800 | D16: 2,900 | E16: 54,500 | F16: 10,500 | G16: 28,600 | H16: 2,800 | I16: 27,900 | J16: 3,000 | K16: 3,300 | L16: 33,800
A17: 1982 | B17: 106,800 | C17: 3,600 | D17: 1,900 | E17: 76,400 | F17: 18,900 | G17: 45,100 | H17: 1,400 | I17: 19,300 | J17: 3,900 | K17: 8,400 | L17: 31,100
A18: 1983 | B18: 89,200 | C18: 5,300 | D18: 1,800 | E18: 59,400 | F18: 13,800 | G18: 28,700 | H18: 1,800 | I18: 21,400 | J18: 3,700 | K18: 4,900 | L18: 27,000
A19: 1984 | B19: 107,500 | C19: 8,200 | D19: 1,500 | E19: 82,400 | F19: 19,400 | G19: 42,400 | H19: 2,300 | I19: 21,300 | J19: 6,400 | K19: 1,800 | L19: 33,100
A20: 1985 | B20: 74,400 | C20: 11,500 | D20: 1,100 | E20: 65,800 | F20: 15,500 | G20: 33,100 | H20: 1,400 | I20: 9,900 | J20: 4,100 | K20: 300 | L20: 19,200
A21: 1986 | B21: 82,400 | C21: 7,900 | D21: 4,400 | E21: 70,100 | F21: 15,000 | G21: 37,300 | H21: 1,300 | I21: 7,300 | J21: 8,300 | K21: 1,100 | L21: 19,900
A22: 1987 | B22: 124,400 | C22: 10,200 | D22: 2,400 | E22: 90,500 | F22: 18,900 | G22: 52,800 | H22: 2,400 | I22: 18,000 | J22: 16,500 | K22: 2,400 | L22: 33,100
A23: 1988 | B23: 133,800 | C23: 13,200 | D23: 3,200 | E23: 116,100 | F23: 24,600 | G23: 68,700 | H23: 2,900 | I23: 12,300 | J23: 10,600 | K23: 1,900 | L23: 34,900
A24: 1989 | B24: 128,300 | C24: 12,400 | D24: 2,500 | E24: 110,900 | F24: 24,200 | G24: 65,900 | H24: 2,000 | I24: 8,300 | J24: 12,000 | K24: 2,000 | L24: 35,500
A25: 1990 | B25: 150,268 | C25: 16,200 | D25: 9,149 | E25: 127,900 | F25: 23,000 | G25: 69,100 | H25: 3,527 | I25: 7,555 | J25: 9,299 | K25: 1,987 | L25: 38,900
A26: 1991 | B26: 129,074 | C26: 11,700 | D26: 4,100 | E26: 105,530 | F26: 30,500 | G26: 48,700 | H26: 3,652 | I26: 8,945 | J26: 8,334 | K26: 2,613 | L26: 30,200
A27: 1992 | B27: 99,801 | C27: 4,900 | D27: 4,100 | E27: 72,197 | F27: 13,500 | G27: 39,700 | H27: 8,551 | I27: 10,353 | J27: 6,025 | K27: 2,430 | L27: 29,800
A28: 1993 | B28: 90,303 | C28: 1,200 | D28: 1,600 | E28: 62,778 | F28: 20,700 | G28: 29,700 | H28: 6,369 | I28: 9,458 | J28: 8,195 | K28: 2,874 | L28: 26,700
A29: 1994 | B29: 59,912 | C29: 500 | D29: 1,700 | E29: 48,834 | F29: 11,500 | G29: 25,500 | H29: 3,498 | I29: 3,149 | J29: 3,068 | K29: 1,265 | L29: 16,600
A30: 1995 | B30: 50,095 | C30: 100 | D30: 0 | E30: 40,854 | F30: 14,700 | G30: 19,300 | H30: 2,529 | I30: 2,102 | J30: 3,726 | K30: 697 | L30: 15,200
A31: 1996 | B31: 42,008 | C31: 149 | D31: 0 | E31: 33,358 | F31: 6,100 | G31: 20,400 | H31: 3,801 | I31: 1,787 | J31: 1,730 | K31: 627 | L31: 15,900
A32: 1997 | B32: 45,125 | C32: 300 | D32: 0 | E32: 34,536 | F32: 1,900 | G32: 26,200 | H32: 4,410 | I32: 1,877 | J32: 2,196 | K32: 505 | L32: 18,100
A33: 1998 | B33: 52,181 | C33: 100 | D33: 49 | E33: 43,497 | F33: 2,800 | G33: 33,100 | H33: 3,577 | I33: 1,055 | J33: 1,611 | K33: 407 | L33: 22,900
A34: 1999 | B34: 62,314 | C34: 349 | D34: 0 | E34: 52,584 | F34: 5,500 | G34: 38,900 | H34: 3,585 | I34: 2,069 | J34: 1,753 | K34: 977 | L34: 25,900
A35: 2000 | B35: 71,132 | C35: 1,149 | D35: 249 | E35: 55,788 | F35: 9,000 | G35: 37,594 | H35: 3,641 | I35: 2,199 | J35: 2,515 | K35: 1,418 | L35: 24,100
A36: 2001 | B36: 99,155 | C36: 3,700 | D36: 4,300 | E36: 78,436 | F36: 7,600 | G36: 52,700 | H36: 5,329 | I36: 1,609 | J36: 3,777 | K36: 1,796 | L36: 29,000
A37: 2002 | B37: 146,305 | C37: 7,900 | D37: 5,800 | E37: 120,161 | F37: 10,800 | G37: 83,100 | H37: 5,905 | I37: 5,152 | J37: 3,514 | K37: 2,912 | L37: 58,300
A38: 2003 | B38: 161,377 | C38: 1,900 | D38: 8,200 | E38: 123,355 | F38: 13,500 | G38: 87,600 | H38: 5,615 | I38: 15,954 | J38: 5,040 | K38: 4,556 | L38: 50,286
A39: 2004 | B39: 194,367 | C39: 8,500 | D39: 7,500 | E39: 143,240 | F39: 12,000 | G39: 95,200 | H39: 12,680 | I39: 16,511 | J39: 7,475 | K39: 4,286 | L39: 70,880
A40: 2005 | B40: 85,876 | C40: 3,400 | D40: 4,400 | E40: 59,471 | F40: 5,800 | G40: 35,453 | H40: 7,668 | I40: 9,379 | J40: 3,512 | K40: 3,367 | L40: 35,865
A41: 2006 | B41: 90,417 | C41: 3,000 | D41: 2,900 | E41: 59,311 | F41: 7,200 | G41: 36,851 | H41: 4,382 | I41: 6,963 | J41: 7,301 | K41: 5,458 | L41: 38,623
A42: 2007 | B42: 68,796 | C42: 1,900 | D42: 2,600 | E42: 39,943 | F42: 5,700 | G42: 22,818 | H42: 2,813 | I42: 3,975 | J42: 7,596 | K42: 8,030 | L42: 27,756
A43: 2008 | B43: 42,740 | C43: 100 | D43: 700 | E43: 26,615 | F43: 4,600 | G43: 14,151 | H43: 5,994 | I43: 2,986 | J43: 2,215 | K43: 1,623 | L43: 18,407
A44: 2009 | B44: 48,907 | C44: 300 | D44: 2,000 | E44: 35,432 | F44: 4,500 | G44: 25,795 | H44: 2,429 | I44: 6,034 | J44: 1,493 | K44: 404 | L44: 22,496
A45: 2010 | B45: 150,374 | C45: 3,300 | D45: 6,200 | E45: 107,675 | F45: 22,700 | G45: 65,293 | H45: 7,652 | I45: 8,887 | J45: 2,347 | K45: 977 | L45: 42,646
A46: 2011 | B46: 98,605 | C46: 2,300 | D46: 2,500 | E46: 76,549 | F46: 22,800 | G46: 43,748 | H46: 5,721 | I46: 5,860 | J46: 1,310 | K46: 776 | L46: 31,030
A47: 2012 | B47: 92,142 | C47: 2,300 | D47: 3,700 | E47: 63,037 | F47: 15,800 | G47: 35,899 | H47: 5,038 | I47: 12,645 | J47: 1,895 | K47: 889 | L47: 32,106
A48: 2013 | B48: 66,729 | C48: 1,800 | D48: 1,798 | E48: 44,880 | F48: 7,400 | G48: 27,897 | H48: 5,700 | I48: 8,656 | J48: 1,574 | K48: 1,014 | L48: 26,892
A49: 2014 | B49: 69,006 | C49: 1,300 | D49: 2,700 | E49: 49,765 | F49: 7,900 | G49: 30,071 | H49: 5,971 | I49: 8,957 | J49: 1,482 | K49: 1,013 | L49: 27,783
A50: 2015 | B50: 131,394 | C50: 2,649 | D50: 4,266 | E50: 84,532 | F50: 13,552 | G50: 53,088 | H50: 4,000 | I50: 23,933 | J50: 1,006 | K50: 3,149 | L50: 52,237
A51: 2016 | B51: 87,976 | C51: 1,200 | D51: 2,600 | E51: 47,225 | F51: 6,000 | G51: 30,317 | H51: 4,179 | I51: 22,478 | J51: 473 | K51: 3,980 | L51: 31,303
A52: 2017 | B52: 96,060 | C52: 1,300 | D52: 1,800 | E52: 50,774 | F52: 7,400 | G52: 34,186 | H52: 7,803 | I52: 14,639 | J52: 2,338 | K52: 3,515 | L52: 25,445
A53: 2018 | B53: 62,743 | C53: 500 | D53: 1,621 | E53: 37,441 | F53: 6,200 | G53: 24,543 | H53: 4,838 | I53: 4,076 | J53: 3,454 | K53: 2,371 | L53: 18,540
A54: 2019 | B54: 37,007 | C54: 300 | D54: 239 | E54: 27,292 | F54: 4,700 | G54: 18,882 | H54: 3,424 | I54: 1,563 | J54: 1,047 | K54: 997 | L54: 11,271
A55: 2020 | B55: 61,716 | C55: 312 | D55: 220 | E55: 45,965 | F55: 6,078 | G55: 33,888 | H55: 7,782 | I55: 908 | J55: 1,900 | K55: 1,158 | L55: 21,207
A56: 2021 | B56: 62,228 | C56: 262 | D56: 1,411 | E56: 41,308 | F56: 6,473 | G56: 28,646 | H56: 5,676 | I56: 3,700 | J56: 2,938 | K56: 1,857 | L56: 19,974
A57: 2022 | B57: 102,035 | C57: 849 | D57: 2,052 | E57: 55,391 | F57: 9,028 | G57: 37,057 | H57: 10,289 | I57: 7,146 | J57: 6,875 | K57: 3,148 | L57: 34,058
A58: 2023 | B58: 78,086 | C58: 596 | D58: 1,122 | E58: 38,373 | F58: 6,425 | G58: 23,422 | H58: 6,312 | I58: 6,217 | J58: 3,191 | K58: 2,525 | L58: 21,563
A59: 2024e/ | B59: 73,227 | C59: 449 | D59: 1,290 | E59: 37,737 | F59: 5,144 | G59: 21,989 | H59: 5,358 | I59: 8,983 | J59: 2,722 | K59: 2,474 | L59: 24,209
A60: a/ Includes some upriver origin spring Chinook through 1980. Beginning in 1981, the lower river catch of lower river spring Chinook is based on mark recoveries rather than the timing of the catch, as in previous years. Since 1986, GSI and VSI techniques have been used for stock composition analysis. Commercial catch includes Select Area fisheries. Sport catch is mainstem Columbia River, does not include tributaries. Catch may include small numbers of jacks. Sport fishery closed in 1995 to 1997.
A61: b/ Prior to 1988, the escapement goal at Willamette Falls was 30,000 to 35,000. Beginning in 1988, the goal was dependent on run size under the Willamette Basin Fish Management Plan. Since 2001, hatchery escapement targets are set in the Fisheries Management and Evaluation Plan developed by ODFW. Lower Willamette sport catch may include small numbers of jacks.
A62: c/ Includes hatchery escapement, tributary recreational catch, and natural spawning escapement for 1975 to present. The years 1971-1973 are based on using the 1975-1976 Cowlitz River recreational fishery adult harvest rates.
A63: d/ Includes hatcheries operated by all agencies. Values are included in the totals for the tributary runs.
A64: e/ Preliminary.
A94: TABLE B-12. Estimates of minimum inriver run size, catch, and escapement in numbers of Columbia River adult spring Chinook destined for areas below Bonneville Dam.
E95: Tributary Runs
B96: Minimum Columbia R. Returnb/ | C96: Lower River Catcha/ | E96: Willamette
A97: Year or Average | C97: Non-Indian | F97: L. Willamette Sport Catch | G97: Will. Falls Escapementb/ | L97: Hatchery Escapementd/
C98: Commercial | D98: Sport | E98: Run Size | H98: Sandy | I98: Cowlitzc/ | J98: Lewisc/ | K98: Kalama
A99: 1971-1975 | B99: =AVERAGE(B6:B10) -> 84,000 | C99: =AVERAGE(C6:C10) -> 13,800 | D99: 3,700 | E99: 53,300 | F99: 17,000 | G99: 34,300 | H99: -- | I99: 11,900 | J99: 200 | K99: 1,100 | L99: 20,000
A100: 1976-1980 | B100: =AVERAGE(B11:B15) -> 84,362 | C100: =AVERAGE(C11:C15) -> 6,160 | D100: 2,720 | E100: 51,240 | F100: 14,380 | G100: 31,420 | H100: 975 | I100: 19,680 | J100: 2,980 | K100: 2,020 | L100: 26,580
A101: 1981-1985 | B101: =AVERAGE(B16:B20) -> 93,220 | C101: =AVERAGE(C16:C20) -> 6,680 | D101: 1,840 | E101: 67,700 | F101: 15,620 | G101: 35,580 | H101: 1,940 | I101: 19,960 | J101: 4,220 | K101: 3,740 | L101: 28,840
A102: 1986-1990 | B102: =AVERAGE(B21:B25) -> 123,834 | C102: =AVERAGE(C21:C25) -> 11,980 | D102: 4,330 | E102: 103,100 | F102: 21,140 | G102: 58,760 | H102: 2,425 | I102: 10,691 | J102: 11,340 | K102: 1,877 | L102: 32,460
A103: 1991-1995 | B103: =AVERAGE(B26:B30) -> 85,837 | C103: =AVERAGE(C26:C30) -> 3,680 | D103: 2,300 | E103: 66,039 | F103: 18,180 | G103: 32,580 | H103: 4,920 | I103: 6,801 | J103: 5,870 | K103: 1,976 | L103: 23,700
A104: 1996-2000 | B104: =AVERAGE(B31:B35) -> 54,552 | C104: =AVERAGE(C31:C35) -> 409 | D104: 60 | E104: 43,953 | F104: 5,060 | G104: 31,239 | H104: 3,803 | I104: 1,797 | J104: 1,961 | K104: 787 | L104: 21,380
A105: 2001-2005 | B105: =AVERAGE(B36:B40) -> 137,416 | C105: =AVERAGE(C36:C40) -> 5,080 | D105: 6,040 | E105: 104,933 | F105: 9,940 | G105: 70,811 | H105: 7,439 | I105: 9,721 | J105: 4,664 | K105: 3,383 | L105: 48,866
A106: 2006-2010 | B106: =AVERAGE(B41:B45) -> 80,247 | C106: =AVERAGE(C41:C45) -> 1,720 | D106: 2,880 | E106: 53,795 | F106: 8,940 | G106: 32,982 | H106: 4,654 | I106: 5,769 | J106: 4,190 | K106: 3,298 | L106: 29,986
A107: 2011 | B107: =B46 -> 98,605 | C107: 2,300 | D107: 2,500 | E107: 76,549 | F107: 22,800 | G107: 43,748 | H107: 5,721 | I107: 5,860 | J107: 1,310 | K107: 776 | L107: 31,030
A108: 2012 | B108: =B47 -> 92,142 | C108: 2,300 | D108: 3,700 | E108: 63,037 | F108: 15,800 | G108: 35,899 | H108: 5,038 | I108: 12,645 | J108: 1,895 | K108: 889 | L108: 32,106
A109: 2013 | B109: =B48 -> 66,729 | C109: 1,800 | D109: 1,798 | E109: 44,880 | F109: 7,400 | G109: 27,897 | H109: 5,700 | I109: 8,656 | J109: 1,574 | K109: 1,014 | L109: 26,892
A110: 2014 | B110: =B49 -> 69,006 | C110: 1,300 | D110: 2,700 | E110: 49,765 | F110: 7,900 | G110: 30,071 | H110: 5,971 | I110: 8,957 | J110: 1,482 | K110: 1,013 | L110: 27,783
A111: 2015 | B111: =B50 -> 131,394 | C111: 2,649 | D111: 4,266 | E111: 84,532 | F111: 13,552 | G111: 53,088 | H111: 4,000 | I111: 23,933 | J111: 1,006 | K111: 3,149 | L111: 52,237
A112: 2016 | B112: =B51 -> 87,976 | C112: 1,200 | D112: 2,600 | E112: 47,225 | F112: 6,000 | G112: 30,317 | H112: 4,179 | I112: 22,478 | J112: 473 | K112: 3,980 | L112: 31,303
A113: 2017 | B113: =B52 -> 96,060 | C113: 1,300 | D113: 1,800 | E113: 50,774 | F113: 7,400 | G113: 34,186 | H113: 7,803 | I113: 14,639 | J113: 2,338 | K113: 3,515 | L113: 25,445
A114: 2018 | B114: =B53 -> 62,743 | C114: 500 | D114: 1,621 | E114: 37,441 | F114: 6,200 | G114: 24,543 | H114: 4,838 | I114: 4,076 | J114: 3,454 | K114: 2,371 | L114: 18,540
A115: 2019 | B115: =B54 -> 37,007 | C115: 300 | D115: 239 | E115: 27,292 | F115: 4,700 | G115: 18,882 | H115: 3,424 | I115: 1,563 | J115: 1,047 | K115: 997 | L115: 11,271
A116: 2020 | B116: =B55 -> 61,716 | C116: 312 | D116: 220 | E116: 45,965 | F116: 6,078 | G116: 33,888 | H116: 7,782 | I116: 908 | J116: 1,900 | K116: 1,158 | L116: 21,207
A117: 2021 | B117: =B56 -> 62,228 | C117: 262 | D117: 1,411 | E117: 41,308 | F117: 6,473 | G117: 28,646 | H117: 5,676 | I117: 3,700 | J117: 2,938 | K117: 1,857 | L117: 19,974
A118: 2022 | B118: =B57 -> 102,035 | C118: 849 | D118: 2,052 | E118: 55,391 | F118: 9,028 | G118: 37,057 | H118: 10,289 | I118: 7,146 | J118: 6,875 | K118: 3,148 | L118: 34,058
A119: 2023 | B119: =B58 -> 78,086 | C119: 596 | D119: 1,122 | E119: 38,373 | F119: 6,425 | G119: 23,422 | H119: 6,312 | I119: 6,217 | J119: 3,191 | K119: 2,525 | L119: 21,563
A120: 2024e/ | B120: 73,227 | C120: 449 | D120: 1,290 | E120: 37,737 | F120: 5,144 | G120: 21,989 | H120: 5,358 | I120: 8,983 | J120: 2,722 | K120: 2,474 | L120: 24,209
A121: =A60 -> a/ Includes some upriver origin spring Chinook through 1980. Beginning in 1981, the lower river catch of lower river spring Chinook is based on mark recoveries rather than the timing of the catch, as in previous years. Since 1986, GSI and VSI techniques have been used for stock composition analysis. Commercial catch includes Select Area fisheries. Sport catch is mainstem Columbia River, does not include tributaries. Catch may include small numbers of jacks. Sport fishery closed in 1995 to 1997.
A122: =A61 -> b/ Prior to 1988, the escapement goal at Willamette Falls was 30,000 to 35,000. Beginning in 1988, the goal was dependent on run size under the Willamette Basin Fish Management Plan. Since 2001, hatchery escapement targets are set in the Fisheries Management and Evaluation Plan developed by ODFW. Lower Willamette sport catch may include small numbers of jacks.
A123: c/ Includes hatchery escapement, tributary recreational catch, and natural spawning escapement for 1975 to present. The years 1971-1973 are based on using the 1975-1976 Cowlitz River recreational fishery adult harvest rates.
A124: d/ Includes hatcheries operated by all agencies. Values are included in the totals for the tributary runs.
A125: e/ Preliminary.

Sheet B-13
A1: TABLE B-13. Estimates of inriver run size, catch, and escapement in numbers of Columbia River adult spring Chinook destined for areas above Bonneville Dam.a/
B3: Minimum Columbia R. Returnb/ | C3: Lower River Catchc/ | F3: Catch Above Bonneville Dam
A4: Year or Avg. | C4: Non-Indian Commercial | E4: Bonneville Dam Countd/ | F4: Sporte/ | G4: Treaty Indianf/ | H4: Non-Treaty Tribalg/ | I4: Snake River Escapementh/ | K4: Rock Island Dam Count
D5: Sport | I5: Hatchery | J5: Wild | K5: Hatchery | L5: Wild
A6: 1971
A7: 1972
A8: 1973
A9: 1974
A10: 1975
A11: 1976
A12: 1977
A13: 1978
A14: 1979 | B14: 54,228 | C14: 249 | D14: 0 | E14: 53,979 | F14: 0 | G14: 2,090 | H14: 0 | I14: 3,792 | J14: 6,181 | K14: 3,232 | L14: 2,983
A15: 1980 | B15: 57,692 | C15: 122 | D15: 0 | E15: 57,570 | F15: 0 | G15: 1,855 | H15: 0 | I15: 2,014 | J15: 6,646 | K15: 3,819 | L15: 2,772
A16: 1981 | B16: 67,401 | C16: 741 | D16: 207 | E16: 66,453 | F16: 0 | G16: 3,398 | H16: 0 | I16: 5,103 | J16: 12,173 | K16: 4,384 | L16: 3,226
A17: 1982 | B17: 77,246 | C17: 799 | D17: 559 | E17: 75,888 | F17: 0 | G17: 5,308 | H17: 0 | I17: 5,270 | J17: 11,819 | K17: 4,579 | L17: 2,989
A18: 1983 | B18: 62,912 | C18: 2,473 | D18: 548 | E18: 59,891 | F18: 0 | G18: 2,531 | H18: 0 | I18: 3,567 | J18: 10,424 | K18: 5,265 | L18: 4,234
A19: 1984 | B19: 52,357 | C19: 1,528 | D19: 285 | E19: 50,544 | F19: 0 | G19: 3,475 | H19: 0 | I19: 4,011 | J19: 8,266 | K19: 6,922 | L19: 4,606
A20: 1985 | B20: 92,284 | C20: 2,988 | D20: 364 | E20: 88,932 | F20: 0 | G20: 3,135 | H20: 0 | I20: 19,587 | J20: 11,273 | K20: 16,218 | L20: 8,935
A21: 1986 | B21: 128,314 | C21: 1,366 | D21: 1,288 | E21: 125,660 | F21: 0 | G21: 7,437 | H21: 0 | I21: 26,518 | J21: 11,989 | K21: 15,022 | L21: 5,515
A22: 1987 | B22: 110,772 | C22: 1,338 | D22: 395 | E22: 109,039 | F22: 0 | G22: 6,689 | H22: 0 | I22: 24,586 | J22: 10,716 | K22: 12,092 | L22: 6,350
A23: 1988 | B23: 106,003 | C23: 5,352 | D23: 1,434 | E23: 99,217 | F23: 0 | G23: 7,006 | H23: 0 | I23: 24,458 | J23: 11,573 | K23: 10,213 | L23: 5,655
A24: 1989 | B24: 90,031 | C24: 1,603 | D24: 544 | E24: 87,884 | F24: 0 | G24: 6,726 | H24: 0 | I24: 9,651 | J24: 6,833 | K24: 6,220 | L24: 4,130
A25: 1990 | B25: 105,715 | C25: 2,232 | D25: 3,117 | E25: 100,366 | F25: 0 | G25: 6,928 | H25: 0 | I25: 13,291 | J25: 9,851 | K25: 4,797 | L25: 2,806
A26: 1991 | B26: 64,479 | C26: 1,017 | D26: 1,539 | E26: 61,923 | F26: 0 | G26: 3,876 | H26: 0 | I26: 4,845 | J26: 6,013 | K26: 3,918 | L26: 1,532
A27: 1992 | B27: 95,691 | C27: 397 | D27: 1,183 | E27: 94,111 | F27: 0 | G27: 5,759 | H27: 0 | I27: 12,048 | J27: 13,056 | K27: 12,221 | L27: 3,161
A28: 1993 | B28: 119,963 | C28: 611 | D28: 412 | E28: 118,940 | F28: 0 | G28: 7296 | H28: 0 | I28: 16,659 | J28: 12,189 | K28: 16,812 | L28: 3,098
A29: 1994 | B29: 24,095 | C29: 527 | D29: 408 | E29: 23,160 | F29: 0 | G29: 1,161 | H29: 0 | I29: 2,096 | J29: 1,954 | K29: 1,390 | L29: 612
A30: 1995 | B30: 12,792 | C30: 2 | D30: 9 | E30: 12,781 | F30: 0 | G30: 633 | H30: 0 | I30: 652 | J30: 1,186 | K30: 684 | L30: 108
A31: 1996 | B31: 55,551 | C31: 46 | D31: 10 | E31: 55,495 | F31: 0 | G31: 2911 | H31: 0 | I31: 3,249 | J31: 3,775 | K31: 1,577 | L31: 310
A32: 1997 | B32: 124,321 | C32: 53 | D32: 16 | E32: 124,252 | F32: 0 | G32: 8,323 | H32: 0 | I32: 40,162 | J32: 4,710 | K32: 5,277 | L32: 630
A33: 1998 | B33: 44,308 | C33: 27 | D33: 14 | E33: 44,267 | F33: 0 | G33: 2,225 | H33: 0 | I33: 6,981 | J33: 7,356 | K33: 2,657 | L33: 356
A34: 1999 | B34: 43,067 | C34: 28 | D34: 16 | E34: 43,023 | F34: 0 | G34: 1,984 | H34: 0 | I34: 3,881 | J34: 2,856 | K34: 3,021 | L34: 289
A35: 2000 | B35: 186,715 | C35: 251 | D35: 124 | E35: 186,340 | F35: 0 | G35: 11,352 | H35: 0 | I35: 29,807 | J35: 8,255 | K35: 13,890 | L35: 962
A36: 2001 | B36: 439,885 | C36: 2,538 | D36: 22,719 | E36: 414,628 | F36: 3,017 | G36: 54,775 | H36: 62 | I36: 141,303 | J36: 45,273 | K36: 35,004 | L36: 4,702
A37: 2002 | B37: 335,306 | C37: 10,151 | D37: 16,268 | E37: 308,887 | F37: 2,815 | G37: 33,465 | H37: 59 | I37: 67,956 | J37: 30,213 | K37: 22,166 | L37: 1,861
A38: 2003 | B38: 242,605 | C38: 3,493 | D38: 9,611 | E38: 229,501 | F38: 2,416 | G38: 18,295 | H38: 15 | I38: 55,120 | J38: 32,324 | K38: 15,270 | L38: 1,611
A39: 2004 | B39: 221,675 | C39: 6,233 | D39: 17,146 | E39: 198,296 | F39: 2,855 | G39: 17,484 | H39: 14 | I39: 58,775 | J39: 21,367 | K39: 9,301 | L39: 1,617
A40: 2005 | B40: 106,900 | C40: 2,289 | D40: 7,224 | E40: 97,387 | F40: 550 | G40: 6,164 | H40: 0 | I40: 23,055 | J40: 10,131 | K40: 9,852 | L40: 2,056
A41: 2006 | B41: 132,583 | C41: 2,238 | D41: 4,187 | E41: 126,158 | F41: 1,564 | G41: 8401 | H41: 0 | I41: 20,357 | J41: 9,485 | K41: 8,733 | L41: 911
A42: 2007 | B42: 86,247 | C42: 1,491 | D42: 3,927 | E42: 80,829 | F42: 1,857 | G42: 5,627 | H42: 0 | I42: 23,402 | J42: 7,088 | K42: 5,136 | L42: 438
A43: 2008 | B43: 178,627 | C43: 6,292 | D43: 19,612 | E43: 151,893 | F43: 2,625 | G43: 21,391 | H43: 0 | I43: 55,772 | J43: 17,574 | K43: 11,840 | L43: 653
A44: 2009 | B44: 169,296 | C44: 4,543 | D44: 15,246 | E44: 147,489 | F44: 1,237 | G44: 13101 | H44: 0 | I44: 50,441 | J44: 14,947 | K44: 11,510 | L44: 1,125
A45: 2010 | B45: 315,346 | C45: 9,281 | D45: 23,535 | E45: 277,390 | F45: 5,789 | G45: 42,954 | H45: 13 | I45: 98,773 | J45: 26,622 | K45: 27,247 | L45: 2,440
A46: 2011 | B46: 221,158 | C46: 3,930 | D46: 9,506 | E46: 205,431 | F46: 4,516 | G46: 15,533 | H46: 0 | I46: 72,531 | J46: 24,526 | K46: 11,084 | L46: 2,005
A47: 2012 | B47: 203,090 | C47: 4,821 | D47: 10,422 | E47: 186,448 | F47: 3,597 | G47: 17,701 | H47: 1 | I47: 55,117 | J47: 25,634 | K47: 15,289 | L47: 3,838
A48: 2013 | B48: 123,136 | C48: 1,853 | D48: 5,343 | E48: 112,934 | F48: 1,413 | G48: 9,282 | H48: 8 | I48: 29,835 | J48: 14,576 | K48: 11,524 | L48: 1,821
A49: 2014 | B49: 242,635 | C49: 4,098 | D49: 13,572 | E49: 224,946 | F49: 5,627 | G49: 24,703 | H49: 37 | I49: 62,759 | J49: 32,065 | K49: 20,203 | L49: 3,044
A50: 2015 | B50: 288,994 | C50: 6,818 | D50: 15,689 | E50: 265,558 | F50: 3,101 | G50: 31,181 | H50: 58 | I50: 98,819 | J50: 22,577 | K50: 27,830 | L50: 3,918
A51: 2016 | B51: 187,816 | C51: 3,508 | D51: 10,167 | E51: 172,614 | F51: 2,480 | G51: 17,066 | H51: 35 | I51: 58,620 | J51: 16,161 | K51: 15,929 | L51: 2,717
A52: 2017 | B52: 115,821 | C52: 1,083 | D52: 7,198 | E52: 107,524 | F52: 84 | G52: 8,109 | H52: 35 | I52: 32,229 | J52: 4,425 | K52: 6,785 | L52: 1,295
A53: 2018 | B53: 115,081 | C53: 692 | D53: 5,868 | E53: 108,045 | F53: 1,345 | G53: 10,892 | H53: 0 | I53: 32,338 | J53: 6,632 | K53: 6,731 | L53: 1,163
A54: 2019 | B54: 73,104 | C54: 304 | D54: 1,478 | E54: 71,235 | F54: 613 | G54: 4,702 | H54: 11 | I54: 19,476 | J54: 4,140 | K54: 8,084 | L54: 704
A55: 2020 | B55: 81,300 | C55: 86 | D55: 1,381 | E55: 79,714 | F55: 878 | G55: 4,307 | H55: 8 | I55: 21,564 | J55: 8,565 | K55: 6,473 | L55: 1,122
A56: 2021 | B56: 91,756 | C56: 382 | D56: 4,088 | E56: 87,233 | F56: 1,251 | G56: 4,446 | H56: 11 | I56: 28,906 | J56: 6,408 | K56: 10,074 | L56: 2,255
A57: 2022 | B57: 185,379 | C57: 992 | D57: 10,371 | E57: 173,737 | F57: 2,695 | G57: 16,307 | H57: 9 | I57: 61,286 | J57: 17,103 | K57: 18,489 | L57: 3,998
A58: 2023 | B58: 141,179 | C58: 581 | D58: 3,352 | E58: 136,786 | F58: 1,528 | G58: 12,240 | H58: 20 | I58: 46,521 | J58: 7,051 | K58: 14,350 | L58: 1,843
A59: 2024i/ | B59: 116,332 | C59: 412 | D59: 4,307 | E59: 111,210 | F59: 2,389 | G59: 6,765 | H59: 13 | I59: 48,188 | J59: 8,584 | K59: 13,379 | L59: 1,296
A60: a/ Chinook formerly managed separately as Snake River summer Chinook are now grouped with all upriver spring Chinook because of overlap in run timing. Snake River summer Chinook have been moved from Table B-14 to this table. This table includes all harvest accounted for in U.S. v. OR Spring Management Period mainstem fisheries. Tributary harvest is not included.
A61: b/ Includes adult upriver spring chinook and Snake River summer Chinook.
A62: c/ Includes some lower river origin spring Chinook through 1980. Beginning in 1981, the lower river catch of upriver spring Chinook is based on mark recoveries rather than timing of the catch as in previous years. Since 1986, GSI techniques have been used for stock composition analysis. Commercial catch is from estimated miscellaneous fishery-related impacts from commercial shad and test fisheries, Select Area fisheries beginning in 1979, and catch and release mortalities from selective fisheries beginning in 2001. Sport catch, including any release mortalities, is from mainstem and Select Area fisheries downstream of Bonneville Dam.
A63: d/ Spring counting period is January 1-June 15.
A64: e/ Includes mainstem Columbia R. fisheries in Zone 6 (BON-MCN), McNary to Hwy I-395, Ringold sport (2001-2011), plus the Washington lower Snake River sport fishery.
A65: f/ Includes ticketed commercial, over-the-bank sales, and ceremonial and subsistence catch. Spring season commercial fishery closed in 1975, 1976, and from 1978 to 2000. Spring Chinook landed during those years were from the winter season fishery and limited spring Ceremonial & Subsistence harvest. Includes below Bonneville Dam C&S starting in 2008 along with fish taken for tribal use from lower river test fishing.
A66: g/ Mainstem catch. Wanapum tribal fishery.
A67: h/ Escapement estimated at Lower Granite Dam.
A68: i/ Preliminary.
A84: TABLE B-13. Estimates of inriver run size, catch, and escapement in numbers of Columbia River adult spring Chinook destined for areas above Bonneville Dam. This table includes Snake River summer Chinook.a/
B86: Minimum Columbia R. Returnb/ | C86: Lower River Catchc/ | F86: Catch Above Bonneville Dam
A87: Year or Avg. | C87: Non-Indian Commercial | E87: Bonneville Dam Countd/ | F87: Sporte/ | G87: Treaty Indianf/ | H87: Non-Treaty Tribalg/ | I87: Snake River Escapementh/ | K87: Rock Island Dam Count
D88: Sport | I88: Hatchery | J88: Wild | K88: Hatchery | L88: Wild
A89: 1971-1975 | B89: =AVERAGE(B6:B10) ->  | C89: =AVERAGE(C6:C10) ->  | D89: =AVERAGE(D6:D10) ->  | E89: =AVERAGE(E6:E10) ->  | G89: =AVERAGE(G6:G10) ->  | H89: =AVERAGE(H6:H10) ->  | I89: =AVERAGE(I6:I10) ->  | J89: =AVERAGE(J6:J10) ->  | L89: =AVERAGE(L6:L10) -> 
A90: 1981-1985 | B90: =AVERAGE(B16:B20) -> 70,440 | C90: 1,706 | D90: 393 | E90: 68,342 | F90: 0 | G90: 3,569 | H90: 0 | I90: 7,508 | J90: 10,791 | K90: =AVERAGE(K16:K20) -> 7,473 | L90: =AVERAGE(L16:L20) -> 4,798
A91: 1986-1990 | B91: =AVERAGE(B21:B25) -> 108,167 | C91: 2,378 | D91: 1,356 | E91: 104,433 | F91: 0 | G91: 6,957 | H91: 0 | I91: 19,701 | J91: 10,192 | K91: =AVERAGE(K21:K25) -> 9,669 | L91: =AVERAGE(L21:L25) -> 4,891
A92: 1991-1995 | B92: =AVERAGE(B26:B30) -> 63,404 | C92: 511 | D92: 710 | E92: 62,183 | F92: 0 | G92: 3,745 | H92: 0 | I92: 7,260 | J92: 6,880 | K92: =AVERAGE(K26:K30) -> 7,005 | L92: =AVERAGE(L26:L30) -> 1,702
A93: 1996-2000 | B93: =AVERAGE(B31:B35) -> 90,792 | C93: 81 | D93: 36 | E93: 90,675 | F93: 0 | G93: 5,359 | H93: 0 | I93: 16,816 | J93: 5,390 | K93: =AVERAGE(K31:K35) -> 5,284 | L93: =AVERAGE(L31:L35) -> 510
A94: 2001-2005 | B94: =AVERAGE(B36:B40) -> 269,274 | C94: 4,941 | D94: 14,594 | E94: 249,740 | F94: 2,331 | G94: 26,037 | H94: 30 | I94: 69,242 | J94: 27,861 | K94: =AVERAGE(K36:K40) -> 18,319 | L94: =AVERAGE(L36:L40) -> 2,369
A95: 2006-2010 | B95: =AVERAGE(B41:B45) -> 176,420 | C95: =AVERAGE(C41:C45) -> 4,769 | D95: 13,301 | E95: 156,752 | F95: 2,615 | G95: 18,295 | H95: 3 | I95: 49,749 | J95: 15,143 | K95: 12,893 | L95: 1,113
A96: 2011 | B96: =B46 -> 221,158 | C96: 3,930 | D96: 9,506 | E96: 205,431 | F96: 4,516 | G96: 15,533 | H96: 0 | I96: 72,531 | J96: 24,526 | K96: =K46 -> 11,084 | L96: 2,005
A97: 2012 | B97: =B47 -> 203,090 | C97: 4,821 | D97: 10,422 | E97: 186,448 | F97: 3,597 | G97: 17,701 | H97: 1 | I97: 55,117 | J97: 25,634 | K97: 15,289 | L97: 3,838
A98: 2013 | B98: =B48 -> 123,136 | C98: 1,853 | D98: 5,343 | E98: 112,934 | F98: 1,413 | G98: 9,282 | H98: 8 | I98: 29,835 | J98: 14,576 | K98: 11,524 | L98: 1,821
A99: 2014 | B99: =B49 -> 242,635 | C99: 4,098 | D99: 13,572 | E99: 224,946 | F99: 5,627 | G99: 24,703 | H99: 37 | I99: 62,759 | J99: 32,065 | K99: 20,203 | L99: 3,044
A100: 2015 | B100: =B50 -> 288,994 | C100: 6,818 | D100: 15,689 | E100: 265,558 | F100: 3,101 | G100: 31,181 | H100: 58 | I100: 98,819 | J100: 22,577 | K100: 27,830 | L100: 3,918
A101: 2016 | B101: =B51 -> 187,816 | C101: 3,508 | D101: 10,167 | E101: 172,614 | F101: 2,480 | G101: 17,066 | H101: 35 | I101: 58,620 | J101: 16,161 | K101: 15,929 | L101: 2,717
A102: 2017 | B102: =B52 -> 115,821 | C102: 1,083 | D102: 7,198 | E102: 107,524 | F102: 84 | G102: 8,109 | H102: 35 | I102: 32,229 | J102: 4,425 | K102: 6,785 | L102: 1,295
A103: 2018 | B103: =B53 -> 115,081 | C103: 692 | D103: 5,868 | E103: 108,045 | F103: 1,345 | G103: 10,892 | H103: 0 | I103: 32,338 | J103: 6,632 | K103: 6,731 | L103: 1,163
A104: 2019 | B104: =B54 -> 73,104 | C104: 304 | D104: 1,478 | E104: 71,235 | F104: 613 | G104: 4,702 | H104: 11 | I104: 19,476 | J104: 4,140 | K104: 8,084 | L104: 704
A105: 2020 | B105: =B55 -> 81,300 | C105: 86 | D105: 1,381 | E105: 79,714 | F105: 878 | G105: 4,307 | H105: 8 | I105: 21,564 | J105: 8,565 | K105: 6,473 | L105: 1,122
A106: 2021 | B106: =B56 -> 91,756 | C106: 382 | D106: 4,088 | E106: 87,233 | F106: 1,251 | G106: 4,446 | H106: 11 | I106: 28,906 | J106: 6,408 | K106: 10,074 | L106: 2,255
A107: 2022 | B107: =B57 -> 185,379 | C107: 992 | D107: 10,371 | E107: 173,737 | F107: 2,695 | G107: 16,307 | H107: 9 | I107: 61,286 | J107: 17,103 | K107: 18,489 | L107: 3,998
A108: 2023 | B108: =B58 -> 141,179 | C108: 581 | D108: 3,352 | E108: 136,786 | F108: 1,528 | G108: 12,240 | H108: 20 | I108: 46,521 | J108: 7,051 | K108: =K58 -> 14,350 | L108: 1,843
A109: 2024i/ | B109: 116,332 | C109: 412 | D109: 4,307 | E109: 111,210 | F109: 2,389 | G109: 6,765 | H109: 13 | I109: 48,188 | J109: 8,584 | K109: 13,379 | L109: 1,296
A110: =A60 -> a/ Chinook formerly managed separately as Snake River summer Chinook are now grouped with all upriver spring Chinook because of overlap in run timing. Snake River summer Chinook have been moved from Table B-14 to this table. This table includes all harvest accounted for in U.S. v. OR Spring Management Period mainstem fisheries. Tributary harvest is not included.
A111: b/ Includes adult upriver spring chinook and Snake River summer Chinook.
A112: c/ Includes some lower river origin spring Chinook through 1980. Beginning in 1981, the lower river catch of upriver spring Chinook is based on mark recoveries rather than timing of the catch as in previous years. Since 1986, GSI techniques have been used for stock composition analysis. Commercial catch is from estimated miscellaneous fishery-related impacts from commercial shad and test fisheries, Select Area fisheries beginning in 1979, and catch and release mortalities from selective fisheries beginning in 2001. Sport catch, including any release mortalities, is from mainstem and Select Area fisheries downstream of Bonneville Dam.
A113: d/ Spring counting period is January 1-June 15.
A114: e/ Includes mainstem Columbia R. fisheries in Zone 6 (BON-MCN), McNary to Hwy I-395, Ringold sport (2001-2011), plus the Washington lower Snake River sport fishery.
A115: f/ Includes ticketed commercial, over-the-bank sales, and ceremonial and subsistence catch. Spring season commercial fishery closed in 1975, 1976, and from 1978 to 2000. Spring Chinook landed during those years were from the winter season fishery and limited spring Ceremonial & Subsistence harvest. Includes below Bonneville Dam C&S starting in 2008 along with fish taken for tribal use from lower river test fishing.
A116: g/ Mainstem catch. Wanapum tribal fishery.
A117: =A67 -> h/ Escapement estimated at Lower Granite Dam.
A118: i/ Preliminary.

Sheet B-14
A1: TABLE B-14. Estimates of inriver run size, catch, and escapement in numbers of Columbia River adult summer Chinook destined for areas above Bonneville Dam. Excludes Snake River summer Chinook.a/
B3: Minimum Columbia R. Return | C3: Lower River Catch | F3: Catch above Bonneville Dam | I3: Escapement
A4: Year or Avg. | C4: Non-Indian Commercialb/ | E4: Bonneville Dam Countd/ | F4: Sporte/ | G4: Treaty Indianf/ | H4: Non-Treaty Tribalg/ | I4: Rock Island Dam Counth/
D5: Sportc/
A6: 1971
A7: 1972
A8: 1973
A9: 1974
A10: 1975
A11: 1976
A12: 1977
A13: 1978
A14: 1979 | B14: 22,142 | C14: 147 | D14: 0 | E14: 21,995 | F14: 0 | G14: 987 | H14: 0 | I14: 18,797
A15: 1980 | B15: 22,498 | C15: 16 | D15: 0 | E15: 22,482 | F15: 0 | G15: 1,181 | H15: 0 | I15: 13,854
A16: 1981 | B16: 18,746 | C16: 9 | D16: 0 | E16: 18,737 | F16: 0 | G16: 1,364 | H16: 0 | I16: 8,639
A17: 1982 | B17: 14,369 | C17: 117 | D17: 0 | E17: 14,252 | F17: 0 | G17: 1,295 | H17: 0 | I17: 6,587
A18: 1983 | B18: 13,145 | C18: 92 | D18: 0 | E18: 13,053 | F18: 0 | G18: 297 | H18: 0 | I18: 6,334
A19: 1984 | B19: 18,765 | C19: 22 | D19: 0 | E19: 18,743 | F19: 0 | G19: 457 | H19: 0 | I19: 13,984
A20: 1985 | B20: 18,522 | C20: 36 | D20: 0 | E20: 18,486 | F20: 0 | G20: 1,453 | H20: 0 | I20: 14,505
A21: 1986 | B21: 18,752 | C21: 109 | D21: 0 | E21: 18,643 | F21: 0 | G21: 1,116 | H21: 0 | I21: 14,850
A22: 1987 | B22: 22,715 | C22: 141 | D22: 6 | E22: 22,567 | F22: 0 | G22: 1,684 | H22: 0 | I22: 13,415
A23: 1988 | B23: 22,720 | C23: 81 | D23: 9 | E23: 22,630 | F23: 0 | G23: 1,497 | H23: 0 | I23: 13,634
A24: 1989 | B24: 22,201 | C24: 9 | D24: 20 | E24: 22,172 | F24: 0 | G24: 100 | H24: 0 | I24: 17,484
A25: 1990 | B25: 18,794 | C25: 15 | D25: 4 | E25: 18,775 | F25: 0 | G25: 111 | H25: 0 | I25: 13,432
A26: 1991 | B26: 14,323 | C26: 9 | D26: 1 | E26: 14,313 | F26: 0 | G26: 171 | H26: 0 | I26: 10,191
A27: 1992 | B27: 9,428 | C27: 35 | D27: 16 | E27: 9,377 | F27: 0 | G27: 46 | H27: 0 | I27: 7,706
A28: 1993 | B28: 14,021 | C28: 81 | D28: 16 | E28: 13,925 | F28: 0 | G28: 328 | H28: 0 | I28: 12,927
A29: 1994 | B29: 14,691 | C29: 23 | D29: 28 | E29: 14,640 | F29: 0 | G29: 171 | H29: 0 | I29: 12,292
A30: 1995 | B30: 12,455 | C30: 0 | D30: 14 | E30: 12,441 | F30: 0 | G30: 417 | H30: 0 | I30: 10,623
A31: 1996 | B31: 12,080 | C31: 15 | D31: 34 | E31: 12,031 | F31: 0 | G31: 374 | H31: 0 | I31: 9,417
A32: 1997 | B32: 17,709 | C32: 6 | D32: 16 | E32: 17,687 | F32: 0 | G32: 270 | H32: 0 | I32: 10,063
A33: 1998 | B33: 15,536 | C33: 1 | D33: 27 | E33: 15,508 | F33: 0 | G33: 335 | H33: 0 | I33: 11,225
A34: 1999 | B34: 21,867 | C34: 1 | D34: 51 | E34: 21,815 | F34: 0 | G34: 395 | H34: 0 | I34: 18,588
A35: 2000 | B35: 22,595 | C35: 0 | D35: 17 | E35: 22,578 | F35: 0 | G35: 209 | H35: 481 | I35: 20,218
A36: 2001 | B36: 52,960 | C36: 1 | D36: 64 | E36: 52,895 | F36: 0 | G36: 692 | H36: 2,428 | I36: 48,844
A37: 2002 | B37: 89,524 | C37: 8 | D37: 1,447 | E37: 88,069 | F37: 148 | G37: 2,093 | H37: 2,917 | I37: 86,825
A38: 2003 | B38: 83,058 | C38: 36 | D38: 1,945 | E38: 81,077 | F38: 455 | G38: 4,297 | H38: 2,401 | I38: 81,543
A39: 2004 | B39: 65,623 | C39: 222 | D39: 1,246 | E39: 64,155 | F39: 296 | G39: 8,394 | H39: 2,031 | I39: 62,311
A40: 2005 | B40: 60,272 | C40: 2,787 | D40: 1,621 | E40: 55,864 | F40: 425 | G40: 7,642 | H40: 1,232 | I40: 54,033
A41: 2006 | B41: 77,573 | C41: 4,828 | D41: 4,926 | E41: 67,819 | F41: 295 | G41: 16,319 | H41: 1,556 | I41: 61,821
A42: 2007 | B42: 37,035 | C42: 1,122 | D42: 2,214 | E42: 33,699 | F42: 148 | G42: 5,375 | H42: 1,364 | I42: 28,222
A43: 2008 | B43: 55,532 | C43: 1,429 | D43: 2,140 | E43: 51,963 | F43: 997 | G43: 9,029 | H43: 2,049 | I43: 38,171
A44: 2009 | B44: 53,881 | C44: 2,546 | D44: 2,341 | E44: 48,994 | F44: 265 | G44: 11,650 | H44: 1,375 | I44: 44,295
A45: 2010 | B45: 72,116 | C45: 4,740 | D45: 2,738 | E45: 64,638 | F45: 886 | G45: 15,799 | H45: 3,572 | I45: 47,220
A46: 2011 | B46: 80,574 | C46: 5,004 | D46: 5,576 | E46: 69,994 | F46: 389 | G46: 20,645 | H46: 1,263 | I46: 44,432
A47: 2012 | B47: 58,300 | C47: 1,715 | D47: 3,281 | E47: 53,304 | F47: 296 | G47: 7,824 | H47: 3,423 | I47: 52,184
A48: 2013 | B48: 67,603 | C48: 1,987 | D48: 2,058 | E48: 63,508 | F48: 324 | G48: 13,397 | H48: 3,692 | I48: 68,380
A49: 2014 | B49: 78,254 | C49: 2,788 | D49: 2,385 | E49: 72,871 | F49: 453 | G49: 19,389 | H49: 3,724 | I49: 77,982
A50: 2015 | B50: 126,882 | C50: 4,043 | D50: 6,152 | E50: 116,657 | F50: 786 | G50: 37,763 | H50: 10,694 | I50: 88,691
A51: 2016 | B51: 91,048 | C51: 3,050 | D51: 3,706 | E51: 84,192 | F51: 565 | G51: 20,515 | H51: 4,199 | I51: 79,253
A52: 2017 | B52: 68,204 | C52: 47 | D52: 3,853 | E52: 64,144 | F52: 262 | G52: 16,328 | H52: 1,736 | I52: 56,265
A53: 2018 | B53: 42,120 | C53: 24 | D53: 1,140 | E53: 40,906 | F53: 134 | G53: 9,498 | H53: 1,336 | I53: 38,816
A54: 2019 | B54: 34,556 | C54: 23 | D54: 74 | E54: 34,472 | F54: 6 | G54: 5,637 | H54: 1,431 | I54: 41,090
A55: 2020 | B55: 65,466 | C55: 13 | D55: 1,389 | E55: 64,064 | F55: 172 | G55: 8,410 | H55: 1,764 | I55: 70,654
A56: 2021 | B56: 56,800 | C56: 7 | D56: 2,284 | E56: 54,489 | F56: 102 | G56: 11,225 | H56: 1,645 | I56: 52,076
A57: 2022 | B57: 78,494 | C57: 65 | D57: 3,549 | E57: 74,810 | F57: 302 | G57: 16,086 | H57: 1,221 | I57: 64,497
A58: 2023 | B58: 54,722 | C58: 51 | D58: 2,162 | E58: 52,439 | F58: 136 | G58: 11,002 | H58: 1,832 | I58: 49,410
A59: 2024i/ | B59: 42,511 | C59: 0 | D59: 899 | E59: 41,562 | F59: 122 | G59: 6,999 | H59: 1,363 | I59: 41,142
A60: GOAL | B60: 29,000j/ | I60: 12,143k/
A61: a/ Summer Chinook accounting begins on June 16. Chinook managed as Snake River summer Chinook prior to 2004 are now grouped with all upriver spring Chinook because of overlap in run timing. As of 2004, Snake River summer Chinook have been moved from this table to Table B-13.
A63: b/ Mainstem and Select Area Fisheries. Includes estimated miscellaneous fishery-related impacts from mainstem recreational fisheries, test fisheries, commercial shad fisheries, and terminal area commercial gillnet fisheries beginning in 1979. Includes release mortality in selective fisheries beginning in 2002.
A65: c/ Includes estimated catch and release mortalities from mainstem and Select Area recreational fisheries.
A66: d/ Counting period June 16-July 31.
A67: e/ Mainstem catch from Bonneville Dam upstream to Priest Rapids Dam.
A68: f/ Mainstem catch. Includes ticketed commercial, over-the-bank sales, and ceremonial and subsistence catch. No directed commercial summer Chinook fishery from 1965 to 2003. Landings during those years are bycatch from commercial sockeye fishery. Includes commercial and C&S catch. Includes catch downstream of Bonneville since 2010.
A69: g/ Mainstem catch. Wanapum and Colville tribal fisheries.
A70: h/ Summer counting period June 18 to August 17.
A71: i/ Preliminary.
A72: j/ Comanager goal established in 2004 associated with regrouping Snake River summer Chinook with Snake River spring Chinook.
A73: k/ MSY spawning escapement objective adopted in 2011 under Amendment 16 based on Chinook Technical Committee Report 99-3.
A85: TABLE B-14. Estimates of inriver run size, catch, and escapement in numbers of adult Upper Columbia River summer Chinook destined for areas above Bonneville Dam.a/ Excludes Snake River summer Chinook.
B87: Minimum Columbia R. Return | C87: Lower River Catch | F87: Catch above Bonneville Dam | I87: Escapement
A88: Year or Avg. | C88: Non-Indian Commercialb/ | E88: Bonneville Dam Countd/ | F88: Sporte/ | G88: Treaty Indianf/ | H88: Non-Treaty Tribalg/ | I88: Rock Island Dam Counth/
D89: Sportc/
A90: 1971-1975 | B90: =AVERAGE(B6:B10) ->  | C90: =AVERAGE(C6:C10) ->  | D90: =AVERAGE(D6:D10) ->  | E90: =AVERAGE(E6:E10) ->  | H90: =AVERAGE(G6:G10) ->  | I90: =AVERAGE(I6:I10) -> 
A91: 1981-1985 | B91: =AVERAGE(B16:B20) -> 16,709 | C91: =AVERAGE(C16:C20) -> 55 | D91: =AVERAGE(D16:D20) -> 0 | E91: =AVERAGE(E16:E20) -> 16,654 | F91: - | G91: =AVERAGE(G16:G20) -> 973 | H91: =AVERAGE(H16:H20) -> 0 | I91: =AVERAGE(I16:I20) -> 10,010
A92: 1986-1990 | B92: =AVERAGE(B21:B25) -> 21,036 | C92: =AVERAGE(C21:C25) -> 71 | D92: =AVERAGE(D21:D25) -> 8 | E92: =AVERAGE(E21:E25) -> 20,957 | F92: - | G92: =AVERAGE(G21:G25) -> 902 | H92: =AVERAGE(H21:H25) -> 0 | I92: =AVERAGE(I21:I25) -> 14,563
A93: 1991-1995 | B93: =AVERAGE(B26:B30) -> 12,984 | C93: =AVERAGE(C26:C30) -> 30 | D93: =AVERAGE(D26:D30) -> 15 | E93: =AVERAGE(E26:E30) -> 12,939 | F93: - | G93: =AVERAGE(G26:G30) -> 227 | H93: =AVERAGE(H26:H30) -> 0 | I93: =AVERAGE(I26:I30) -> 10,748
A94: 1996-2000 | B94: =AVERAGE(B31:B35) -> 17,957 | C94: =AVERAGE(C31:C35) -> 5 | D94: =AVERAGE(D31:D35) -> 29 | E94: =AVERAGE(E31:E35) -> 17,924 | F94: - | G94: =AVERAGE(G31:G35) -> 317 | H94: =AVERAGE(H31:H35) -> 96 | I94: =AVERAGE(I31:I35) -> 13,902
A95: 2001-2005 | B95: =AVERAGE(B36:B40) -> 70,287 | C95: 611 | D95: 1,264 | E95: 68,412 | F95: 265 | G95: 4,624 | H95: 2,202 | I95: 66,711
A96: 2006-2010 | B96: =AVERAGE(B41:B45) -> 59,227 | C96: =AVERAGE(C41:C45) -> 2,933 | D96: 2,872 | E96: 53,423 | F96: 518 | G96: 11,634 | H96: 1,983 | I96: 43,946
A97: 2011 | B97: =B46 -> 80,574 | C97: 5,004 | D97: 5,576 | E97: 69,994 | F97: 389 | G97: 20,645 | H97: 1,263 | I97: 44,432
A98: 2012 | B98: 58,300 | C98: 1,715 | D98: 3,281 | E98: 53,304 | F98: 296 | G98: 7,824 | H98: 3,423 | I98: 52,184
A99: 2013 | B99: 67,603 | C99: 1,987 | D99: 2,058 | E99: 63,508 | F99: 324 | G99: 13,397 | H99: 3,692 | I99: 68,380
A100: 2014 | B100: 78,254 | C100: 2,788 | D100: 2,385 | E100: 72,871 | F100: 453 | G100: 19,389 | H100: 3,724 | I100: 77,982
A101: 2015 | B101: 126,882 | C101: 4,043 | D101: 6,152 | E101: 116,657 | F101: 786 | G101: 37,763 | H101: 10,694 | I101: 88,691
A102: 2016 | B102: 91,048 | C102: 3,050 | D102: 3,706 | E102: 84,192 | F102: 565 | G102: 20,515 | H102: 4,199 | I102: 79,253
A103: 2017 | B103: 68,204 | C103: 47 | D103: 3,853 | E103: 64,144 | F103: 262 | G103: 16,328 | H103: 1,736 | I103: 56,265
A104: 2018 | B104: 42,120 | C104: 24 | D104: 1,140 | E104: 40,906 | F104: 134 | G104: 9,498 | H104: 1,336 | I104: 38,816
A105: 2019 | B105: 34,556 | C105: 23 | D105: 74 | E105: 34,472 | F105: 6 | G105: 5,637 | H105: 1,431 | I105: 41,090
A106: 2020 | B106: 65,466 | C106: 13 | D106: 1,389 | E106: 64,064 | F106: 172 | G106: 8,410 | H106: 1,764 | I106: 70,654
A107: 2021 | B107: 56,800 | C107: 7 | D107: 2,284 | E107: 54,489 | F107: 102 | G107: 11,225 | H107: 1,645 | I107: 52,076
A108: 2022 | B108: =B57 -> 78,494 | C108: 65 | D108: 3,549 | E108: 74,810 | F108: 302 | G108: 16,086 | H108: 1,221 | I108: 64,497
A109: 2023 | B109: =B58 -> 54,722 | C109: 51 | D109: 2,162 | E109: 52,439 | F109: 136 | G109: 11,002 | H109: 1,832 | I109: 49,410
A110: 2024i/ | B110: 42,511 | C110: 0 | D110: 899 | E110: 41,562 | F110: 122 | G110: 6,999 | H110: 1,363 | I110: 41,142
A111: GOAL | B111: 29,000j/ | I111: 12,143k/
A112: =A61 -> a/ Summer Chinook accounting begins on June 16. Chinook managed as Snake River summer Chinook prior to 2004 are now grouped with all upriver spring Chinook because of overlap in run timing. As of 2004, Snake River summer Chinook have been moved from this table to Table B-13.
A114: =A63 -> b/ Mainstem and Select Area Fisheries. Includes estimated miscellaneous fishery-related impacts from mainstem recreational fisheries, test fisheries, commercial shad fisheries, and terminal area commercial gillnet fisheries beginning in 1979. Includes release mortality in selective fisheries beginning in 2002.
A116: =A65 -> c/ Includes estimated catch and release mortalities from mainstem and Select Area recreational fisheries.
A117: d/ Counting period June 16-July 31.
A118: e/ Mainstem catch from Bonneville Dam upstream to Priest Rapids Dam.
A119: f/ Mainstem catch. Includes ticketed commercial, over-the-bank sales, and ceremonial and subsistence catch. No directed commercial summer Chinook fishery from 1965 to 2003. Landings during those years are bycatch from commercial sockeye fishery. Includes commercial and C&S catch. Includes catch downstream of Bonneville since 2010.
A120: g/ Mainstem catch. Wanapum and Colville tribal fisheries.
A121: h/ Summer counting period June 18 to August 17.
A122: i/ Preliminary.
A123: j/ Comanager goal established in 2004 associated with regrouping Snake River summer Chinook with Snake River spring Chinook.
A124: k/ MSY spawning escapement objective adopted in 2011 under Amendment 16 based on Chinook Technical Committee Report 99-3.

Sheet B-15
A2: TABLE B-15. Estimates of inriver run size, catch, and escapement in numbers of Columbia River adult lower river hatchery (LRH) stock fall Chinook.a/
A3: Year or Ave. | B3: Minimum Columbia R. Return | C3: Catch
C4: Non-Indian Commercialb/ | E4: Treaty Indiand/ | F4: Escapement
D5: Sportc/ | F5: Naturale/ | G5: Hatcheryf/
A6: 1971 | B6: 175,900 | C6: 78,100 | D6: 5,400 | E6: 0 | F6: 49,200 | G6: 43,200
A7: 1972 | B7: 175,900 | C7: 78,100 | D7: 5,400 | E7: 0 | F7: 49,200 | G7: 43,200
A8: 1973 | B8: 175,900 | C8: 78,100 | D8: 5,400 | E8: 0 | F8: 49,200 | G8: 43,200
A9: 1974 | B9: 175,900 | C9: 78,100 | D9: 5,400 | E9: 0 | F9: 49,200 | G9: 43,200
A10: 1975 | B10: 175,900 | C10: 78,100 | D10: 5,400 | E10: 0 | F10: 49,200 | G10: 43,200
A11: 1976 | B11: 171,000 | C11: 63,300 | D11: 5,300 | E11: 0 | F11: 50,800 | G11: 51,600
A12: 1977 | B12: 165,100 | C12: 74,500 | D12: 3,900 | E12: 0 | F12: 44,500 | G12: 42,200
A13: 1978 | B13: 166,500 | C13: 58,300 | D13: 5,800 | E13: 0 | F13: 43,200 | G13: 59,200
A14: 1979 | B14: 118,700 | C14: 43,900 | D14: 4,000 | E14: 0 | F14: 25,300 | G14: 45,500
A15: 1980 | B15: 105,584 | C15: 57,000 | D15: 2,900 | E15: 100 | F15: 20,900 | G15: 24,600
A16: 1981 | B16: 94,854 | C16: 21,500 | D16: 2,900 | E16: 1,000 | F16: 26,500 | G16: 42,500
A17: 1982 | B17: 139,466 | C17: 47,300 | D17: 3,900 | E17: 1,000 | F17: 44,000 | G17: 42,600
A18: 1983 | B18: 88,066 | C18: 14,900 | D18: 1,500 | E18: 800 | F18: 33,700 | G18: 36,500
A19: 1984 | B19: 102,446 | C19: 26,720 | D19: 8,830 | E19: 1,354 | F19: 32,177 | G19: 27,428
A20: 1985 | B20: 110,985 | C20: 17,600 | D20: 5,300 | E20: 100 | F20: 52,400 | G20: 35,200
A21: 1986 | B21: 154,821 | C21: 75,300 | D21: 10,800 | E21: 700 | F21: 26,500 | G21: 41,300
A22: 1987 | B22: 344,080 | C22: 179,800 | D22: 32,600 | E22: 600 | F22: 49,600 | G22: 80,500
A23: 1988 | B23: 309,949 | C23: 178,400 | D23: 22,000 | E23: 1,800 | F23: 53,000 | G23: 53,800
A24: 1989 | B24: 130,887 | C24: 31,000 | D24: 15,300 | E24: 0 | F24: 45,100 | G24: 39,300
A25: 1990 | B25: 59,954 | C25: 4,469 | D25: 6,400 | E25: 175 | F25: 19,672 | G25: 29,205
A26: 1991 | B26: 62,680 | C26: 6,961 | D26: 8,343 | E26: 367 | F26: 19,161 | G26: 27,692
A27: 1992 | B27: 62,617 | C27: 3,022 | D27: 8,625 | E27: 212 | F27: 24,248 | G27: 26,457
A28: 1993 | B28: 52,344 | C28: 4,362 | D28: 6,006 | E28: 218 | F28: 19,709 | G28: 21,980
A29: 1994 | B29: 53,596 | C29: 7 | D29: 232 | E29: 33 | F29: 22,674 | G29: 30,637
A30: 1995 | B30: 46,360 | C30: 2 | D30: 1,784 | E30: 358 | F30: 13,784 | G30: 30,330
A31: 1996 | B31: 75,495 | C31: 3,899 | D31: 4,641 | E31: 360 | F31: 23,909 | G31: 42,662
A32: 1997 | B32: 57,393 | C32: 2,369 | D32: 7,704 | E32: 0 | F32: 22,663 | G32: 24,657
A33: 1998 | B33: 45,265 | C33: 844 | D33: 4,519 | E33: 0 | F33: 16,713 | G33: 23,035
A34: 1999 | B34: 39,933 | C34: 2,234 | D34: 6,118 | E34: 0 | F34: 12,551 | G34: 19,030
A35: 2000 | B35: 26,997 | C35: 860 | D35: 3,212 | E35: 0 | F35: 10,714 | G35: 12,211
A36: 2001 | B36: 94,331 | C36: 4,428 | D36: 7,443 | E36: 0 | F36: 39,434 | G36: 42,996
A37: 2002 | B37: 156,444 | C37: 9,928 | D37: 15,353 | E37: 279 | F37: 80,670 | G37: 50,138
A38: 2003 | B38: 154,983 | C38: 9,216 | D38: 14,213 | E38: 0 | F38: 97,089 | G38: 34,465
A39: 2004 | B39: 109,055 | C39: 13,122 | D39: 11,870 | E39: 475 | F39: 53,399 | G39: 30,103
A40: 2005 | B40: 78,293 | C40: 9,219 | D40: 10,140 | E40: 186 | F40: 33,598 | G40: 25,042
A41: 2006 | B41: 58,319 | C41: 5,919 | D41: 9,449 | E41: 237 | F41: 26,633 | G41: 15,957
A42: 2007 | B42: 32,689 | C42: 1,308 | D42: 6,123 | E42: 0 | F42: 10,208 | G42: 15,050
A43: 2008 | B43: 61,559 | C43: 5,701 | D43: 6,543 | E43: 502 | F43: 21,528 | G43: 27,265
A44: 2009 | B44: 76,738 | C44: 10,259 | D44: 11,295 | E44: 0 | F44: 23,746 | G44: 31,436
A45: 2010 | B45: 102,955 | C45: 14,981 | D45: 13,046 | E45: 0 | F45: 33,962 | G45: 40,964
A46: 2011 | B46: 108,961 | C46: 15,417 | D46: 17,248 | E46: 223 | F46: 28,334 | G46: 47,735
A47: 2012 | B47: 84,978 | C47: 16,340 | D47: 16,362 | E47: 457 | F47: 21,556 | G47: 30,259
A48: 2013 | B48: 104,777 | C48: 10,578 | D48: 19,420 | E48: 574 | F48: 40,411 | G48: 33,662
A49: 2014 | B49: 101,906 | C49: 12,810 | D49: 16,347 | E49: 135 | F49: 33,264 | G49: 39,333
A50: 2015 | B50: 128,705 | C50: 15,146 | D50: 15,142 | E50: 42 | F50: 34,588 | G50: 63,784
A51: 2016 | B51: 81,860 | C51: 11,050 | D51: 11,418 | E51: 78 | F51: 21,974 | G51: 37,340
A52: 2017 | B52: 64,627 | C52: 7,917 | D52: 8,831 | E52: 198 | F52: 19,737 | G52: 27,929
A53: 2018 | B53: 52,963 | C53: 5,348 | D53: 7,417 | E53: 68 | F53: 19,093 | G53: 21,037
A54: 2019 | B54: 48,913 | C54: 3,046 | D54: 6,400 | E54: 0 | F54: 16,795 | G54: 22,536
A55: 2020 | B55: 77,863 | C55: 6,057 | D55: 8,968 | E55: 196 | F55: 25,058 | G55: 37,336
A56: 2021 | B56: 74,671 | C56: 5,334 | D56: 12,175 | E56: 117 | F56: 24,495 | G56: 32,533
A57: 2022 | B57: 87,542 | C57: 7,184 | D57: 10,254 | E57: 329 | F57: 22,593 | G57: 47,134
A58: 2023 | B58: 87,119 | C58: 6,971 | D58: 11,120 | E58: 232 | F58: 31,548 | G58: 37,182
A59: 2024g/ | B59: 114,430 | C59: 11,242 | D59: 12,052 | E59: 44 | F59: 41,068 | G59: 49,810
A60: GOAL | G60: Hatchery Production
A62: a/ Based on Columbia River fall Chinook database (Preliminary Big Sheets), WDFW, unpublished. Adult Aged fish.
A63: b/ Includes Select Area fisheries.
A64: c/ Includes tributary catches.
A65: d/ Commercial, ceremonial, and subsistence.
A66: e/ Includes Cowlitz, Kalama, Toutle, Lewis, and Washougal rivers.
A67: f/ Does not include strays to hatcheries above Bonneville Dam or fish trapped at Bonneville Dam.
A68: g/ Preliminary estimates based on preseason expectations.
A84: TABLE B-15. Estimates of inriver run size, catch, and escapement in numbers of Columbia River adult lower river hatchery (LRH) stock fall Chinook.a/
A85: Year or Ave. | B85: Minimum Columbia R. Return | C85: Catch
C86: Non-Indian Commercialb/ | E86: Treaty Indiand/ | F86: Escapement
D87: Sportc/ | F87: Naturale/ | G87: Hatcheryf/
A88: 1981-1985 | B88: =AVERAGE(B16:B20) -> 107,163 | C88: 25,604 | D88: 4,486 | E88: 851 | F88: 37,755 | G88: 36,846
A89: 1986-1990 | B89: =AVERAGE(B21:B25) -> 199,938 | C89: 93,794 | D89: 17,420 | E89: 655 | F89: 38,774 | G89: 48,821
A90: 1991-1995 | B90: =AVERAGE(B26:B30) -> 55,519 | C90: 2,871 | D90: 4,998 | E90: 238 | F90: 19,915 | G90: 27,419
A91: 1996-2000 | B91: =AVERAGE(B31:B35) -> 49,017 | C91: 2,041 | D91: 5,239 | E91: 72 | F91: 17,310 | G91: 24,319
A92: 2001-2005 | B92: =AVERAGE(B36:B40) -> 118,621 | C92: 9,183 | D92: 11,804 | E92: 188 | F92: 60,838 | G92: 36,549
A93: 2006-2010 | B93: =AVERAGE(B41:B45) -> 66,452 | C93: =AVERAGE(C41:C45) -> 7,634 | D93: 9,291 | E93: 148 | F93: 23,215 | G93: 26,134
A94: 2011 | B94: =B46 -> 108,961 | C94: 15,417 | D94: 17,248 | E94: 223 | F94: 28,334 | G94: 47,735
A95: 2012 | B95: =B47 -> 84,978 | C95: 16,340 | D95: 16,362 | E95: 457 | F95: 21,556 | G95: 30,259
A96: 2013 | B96: =B48 -> 104,777 | C96: 10,578 | D96: 19,420 | E96: 574 | F96: 40,411 | G96: 33,662
A97: 2014 | B97: =B49 -> 101,906 | C97: 12,810 | D97: 16,347 | E97: 135 | F97: 33,264 | G97: 39,333
A98: 2015 | B98: =B50 -> 128,705 | C98: 15,146 | D98: 15,142 | E98: 42 | F98: 34,588 | G98: 63,784
A99: 2016 | B99: =B51 -> 81,860 | C99: 11,050 | D99: 11,418 | E99: 78 | F99: 21,974 | G99: 37,340
A100: 2017 | B100: =B52 -> 64,627 | C100: 7,917 | D100: 8,831 | E100: 198 | F100: 19,737 | G100: 27,929
A101: 2018 | B101: =B53 -> 52,963 | C101: 5,348 | D101: 7,417 | E101: 68 | F101: 19,093 | G101: 21,037
A102: 2019 | B102: =B54 -> 48,913 | C102: 3,046 | D102: 6,400 | E102: 0 | F102: 16,795 | G102: 22,536
A103: 2020 | B103: =B55 -> 77,863 | C103: 6,057 | D103: 8,968 | E103: 196 | F103: 25,058 | G103: 37,336
A104: 2021 | B104: =B56 -> 74,671 | C104: 5,334 | D104: 12,175 | E104: 117 | F104: 24,495 | G104: 32,533
A105: 2022 | B105: =B57 -> 87,542 | C105: 7,184 | D105: 10,254 | E105: 329 | F105: 22,593 | G105: 47,134
A106: 2023 | B106: =B58 -> 87,119 | C106: 6,971 | D106: 11,120 | E106: 232 | F106: 31,548 | G106: 37,182
A107: 2024g/ | B107: 114,430 | C107: 11,242 | D107: 12,052 | E107: 44 | F107: 41,068 | G107: 49,810
A108: GOAL | G108: Hatchery Production
A110: =A62 -> a/ Based on Columbia River fall Chinook database (Preliminary Big Sheets), WDFW, unpublished. Adult Aged fish.
A111: b/ Includes Select Area fisheries.
A112: c/ Includes tributary catches.
A113: d/ Commercial, ceremonial, and subsistence.
A114: e/ Includes Cowlitz, Kalama, Toutle, Lewis, and Washougal rivers.
A115: f/ Does not include strays to hatcheries above Bonneville Dam or fish trapped at Bonneville Dam.
A116: g/ Preliminary estimates based on preseason expectations.

Sheet B-16
A2: TABLE B-16. Estimates of inriver run size, catch, and escapement in numbers of Columbia River adult lower river wild (LRW) stock fall Chinook.a/
A3: Year or Ave. | B3: Minimum Columbia R. Return | C3: Catch
C4: Non-Indian Commercialb/ | E4: Treaty Indiand/ | F4: Escapement
D5: Sportc/ | F5: Naturale/ | G5: Hatchery
A6: 1971 | B6: 59,700 | C6: 27,900 | D6: 2,100 | E6: 0 | F6: 29,400 | G6: 100
A7: 1972 | B7: 59,700 | C7: 27,900 | D7: 2,100 | E7: 0 | F7: 29,400 | G7: 100
A8: 1973 | B8: 59,700 | C8: 27,900 | D8: 2,100 | E8: 0 | F8: 29,400 | G8: 100
A9: 1974 | B9: 59,700 | C9: 27,900 | D9: 2,100 | E9: 0 | F9: 29,400 | G9: 100
A10: 1975 | B10: 59,700 | C10: 27,900 | D10: 2,100 | E10: 0 | F10: 29,400 | G10: 100
A11: 1976 | B11: 14,900 | C11: 6,100 | D11: 600 | E11: 0 | F11: 8,200 | G11: 0
A12: 1977 | B12: 29,800 | C12: 14,400 | D12: 1,100 | E12: 0 | F12: 14,200 | G12: 100
A13: 1978 | B13: 18,500 | C13: 7,100 | D13: 1,100 | E13: 0 | F13: 10,100 | G13: 200
A14: 1979 | B14: 32,800 | C14: 12,600 | D14: 2,000 | E14: 0 | F14: 17,900 | G14: 300
A15: 1980 | B15: 38,814 | C15: 18,400 | D15: 1,300 | E15: 100 | F15: 18,200 | G15: 600
A16: 1981 | B16: 25,019 | C16: 1,400 | D16: 1,100 | E16: 0 | F16: 21,500 | G16: 900
A17: 1982 | B17: 13,019 | C17: 1,200 | D17: 1,000 | E17: 0 | F17: 10,400 | G17: 300
A18: 1983 | B18: 16,814 | C18: 600 | D18: 1,500 | E18: 0 | F18: 14,100 | G18: 600
A19: 1984 | B19: 13,326 | C19: 2,900 | D19: 1,700 | E19: 0 | F19: 8,500 | G19: 200
A20: 1985 | B20: 13,257 | C20: 3,600 | D20: 1,300 | E20: 0 | F20: 7,900 | G20: 400
A21: 1986 | B21: 24,462 | C21: 10,100 | D21: 2,000 | E21: 0 | F21: 12,200 | G21: 0
A22: 1987 | B22: 37,867 | C22: 16,400 | D22: 3,600 | E22: 200 | F22: 17,500 | G22: 200
A23: 1988 | B23: 41,720 | C23: 19,300 | D23: 3,400 | E23: 100 | F23: 18,700 | G23: 200
A24: 1989 | B24: 38,636 | C24: 6,700 | D24: 4,900 | E24: 0 | F24: 26,700 | G24: 300
A25: 1990 | B25: 20,317 | C25: 945 | D25: 2,354 | E25: 0 | F25: 16,815 | G25: 203
A26: 1991 | B26: 19,817 | C26: 6,554 | D26: 2,116 | E26: 0 | F26: 11,131 | G26: 16
A27: 1992 | B27: 12,508 | C27: 2,327 | D27: 2,256 | E27: 0 | F27: 7,896 | G27: 29
A28: 1993 | B28: 13,320 | C28: 1,592 | D28: 2,837 | E28: 0 | F28: 8,792 | G28: 99
A29: 1994 | B29: 12,191 | C29: 300 | D29: 922 | E29: 0 | F29: 10,921 | G29: 48
A30: 1995 | B30: 15,971 | C30: 23 | D30: 4,034 | E30: 0 | F30: 11,766 | G30: 148
A31: 1996 | B31: 14,566 | C31: 325 | D31: 234 | E31: 0 | F31: 13,914 | G31: 93
A32: 1997 | B32: 12,323 | C32: 0 | D32: 1,082 | E32: 0 | F32: 11,241 | G32: 0
A33: 1998 | B33: 7,253 | C33: 0 | D33: 667 | E33: 0 | F33: 6,493 | G33: 93
A34: 1999 | B34: 3,349 | C34: 18 | D34: 0 | E34: 0 | F34: 3,257 | G34: 74
A35: 2000 | B35: 10,234 | C35: 604 | D35: 0 | E35: 0 | F35: 9,422 | G35: 208
A36: 2001 | B36: 15,721 | C36: 1,382 | D36: 729 | E36: 0 | F36: 13,610 | G36: 0
A37: 2002 | B37: 25,171 | C37: 1,801 | D37: 3,245 | E37: 161 | F37: 19,654 | G37: 50
A38: 2003 | B38: 26,021 | C38: 3,391 | D38: 4,962 | E38: 0 | F38: 17,668 | G38: 0
A39: 2004 | B39: 22,327 | C39: 2,343 | D39: 3,638 | E39: 0 | F39: 16,346 | G39: 0
A40: 2005 | B40: 16,767 | C40: 2,240 | D40: 2,632 | E40: 0 | F40: 11,725 | G40: 170
A41: 2006 | B41: 18,105 | C41: 2,546 | D41: 2,801 | E41: 0 | F41: 12,758 | G41: 0
A42: 2007 | B42: 4,276 | C42: 258 | D42: 138 | E42: 0 | F42: 3,857 | G42: 23
A43: 2008 | B43: 7,120 | C43: 0 | D43: 937 | E43: 0 | F43: 6,183 | G43: 0
A44: 2009 | B44: 7,533 | C44: 293 | D44: 347 | E44: 0 | F44: 6,893 | G44: 0
A45: 2010 | B45: 10,898 | C45: 0 | D45: 237 | E45: 0 | F45: 10,661 | G45: 0
A46: 2011 | B46: 15,180 | C46: 674 | D46: 3,636 | E46: 0 | F46: 10,601 | G46: 269
A47: 2012 | B47: 12,112 | C47: 1,880 | D47: 766 | E47: 0 | F47: 9,407 | G47: 59
A48: 2013 | B48: 25,841 | C48: 2,095 | D48: 5,071 | E48: 0 | F48: 18,675 | G48: 0
A49: 2014 | B49: 25,774 | C49: 767 | D49: 2,107 | E49: 0 | F49: 22,900 | G49: 0
A50: 2015 | B50: 32,403 | C50: 3,126 | D50: 2,106 | E50: 0 | F50: 27,169 | G50: 2
A51: 2016 | B51: 13,034 | C51: 906 | D51: 2,713 | E51: 0 | F51: 9,414 | G51: 1
A52: 2017 | B52: 7,838 | C52: 0 | D52: 1,255 | E52: 0 | F52: 6,583 | G52: 0
A53: 2018 | B53: 8,270 | C53: 0 | D53: 1,052 | E53: 0 | F53: 7,218 | G53: 0
A54: 2019 | B54: 16,661 | C54: 0 | D54: 1,081 | E54: 0 | F54: 15,580 | G54: 0
A55: 2020 | B55: 35,375 | C55: 1,221 | D55: 5,925 | E55: 0 | F55: 28,226 | G55: 3
A56: 2021 | B56: 17,013 | C56: 0 | D56: 2,860 | E56: 0 | F56: 14,153 | G56: 0
A57: 2022 | B57: 9,347 | C57: 232 | D57: 1,074 | E57: 0 | F57: 8,041 | G57: 0
A58: 2023 | B58: 11,415 | C58: 0 | D58: 2,569 | E58: 0 | F58: 8,845 | G58: 1
A59: 2024f/ | B59: 15,105 | C59: 0 | D59: 1,081 | E59: 0 | F59: 14,024 | G59: 0
A60: GOAL | F60: 5,700g/
A61: a/ Based on Columbia River fall Chinook database (Preliminary Big Sheets), WDFW, unpublished. Adult Aged fish.
A62: b/ Includes Mainstem Select Area fisheries.
A63: c/ Includes tributary catches.
A64: d/ Includes mainstem commercial, ceremonial and subsistence.
A65: e/ Natural escapement includes Sandy and Lewis rivers.
A66: f/ Preliminary estimates based on preseason expectations.
A67: g/ Escapement objective is for North Lewis River, but escapement numbers include other fish. The escapement objective for the North Lewis River was met for all years except 1998, 1999, 2007, 2008, and 2009.
A75: TABLE B-16. Estimates of inriver run size, catch, and escapement in numbers of Columbia River adult lower river wild (LRW) stock fall Chinook.a/
A76: Year or Ave. | B76: Minimum Columbia R. Return | C76: Catch
C77: Non-Indian Commercialb/ | E77: Treaty Indiand/ | F77: Escapement
D78: Sportc/ | F78: Naturale/ | G78: Hatchery
A79: 1981-1985 | B79: =AVERAGE(B16:B20) -> 16,287 | C79: 1,940 | D79: 1,320 | E79: 0 | F79: 12,480 | G79: 480
A80: 1986-1990 | B80: =AVERAGE(B21:B25) -> 32,600 | C80: 10,689 | D80: 3,251 | E80: 60 | F80: 18,383 | G80: 181
A81: 1991-1995 | B81: =AVERAGE(B26:B30) -> 14,761 | C81: 2,159 | D81: 2,433 | E81: 0 | F81: 10,101 | G81: 68
A82: 1996-2000 | B82: =AVERAGE(B31:B35) -> 9,545 | C82: 189 | D82: 397 | E82: 0 | F82: 8,865 | G82: 94
A83: 2001-2005 | B83: =AVERAGE(B36:B40) -> 21,201 | C83: 2,231 | D83: 3,041 | E83: 32 | F83: 15,801 | G83: 44
A84: 2006-2010 | B84: =AVERAGE(B41:B45) -> 9,586 | C84: =AVERAGE(C41:C45) -> 619 | D84: 892 | E84: 0 | F84: 8,070 | G84: 5
A85: 2011 | B85: =B46 -> 15,180 | C85: 674 | D85: 3,636 | E85: 0 | F85: 10,601 | G85: 269
A86: 2012 | B86: 12,112 | C86: 1,880 | D86: 766 | E86: 0 | F86: 9,407 | G86: 59
A87: 2013 | B87: 25,841 | C87: 2,095 | D87: 5,071 | E87: 0 | F87: 18,675 | G87: 0
A88: 2014 | B88: 25,774 | C88: 767 | D88: 2,107 | E88: 0 | F88: 22,900 | G88: 0
A89: 2015 | B89: 32,403 | C89: 3,126 | D89: 2,106 | E89: 0 | F89: 27,169 | G89: 2
A90: 2016 | B90: 13,034 | C90: 906 | D90: 2,713 | E90: 0 | F90: 9,414 | G90: 1
A91: 2017 | B91: 7,838 | C91: 0 | D91: 1,255 | E91: 0 | F91: 6,583 | G91: 0
A92: 2018 | B92: 8,270 | C92: 0 | D92: 1,052 | E92: 0 | F92: 7,218 | G92: 0
A93: 2019 | B93: 16,661 | C93: 0 | D93: 1,081 | E93: 0 | F93: 15,580 | G93: 0
A94: 2020 | B94: 35,375 | C94: 1,221 | D94: 5,925 | E94: 0 | F94: 28,226 | G94: 3
A95: 2021 | B95: 17,013 | C95: 0 | D95: 2,860 | E95: 0 | F95: 14,153 | G95: 0
A96: 2022 | B96: 9,347 | C96: 232 | D96: 1,074 | E96: 0 | F96: 8,041 | G96: 0
A97: 2023 | B97: =B58 -> 11,415 | C97: 0 | D97: 2,569 | E97: 0 | F97: 8,845 | G97: 1
A98: 2024f/ | B98: 15,105 | C98: 0 | D98: 1,081 | E98: 0 | F98: 14,024 | G98: 0
A99: GOAL | F99: 5,700g/
A100: =A61 -> a/ Based on Columbia River fall Chinook database (Preliminary Big Sheets), WDFW, unpublished. Adult Aged fish.
A101: =A62 -> b/ Includes Mainstem Select Area fisheries.
A102: c/ Includes tributary catches.
A103: d/ Includes mainstem commercial, ceremonial and subsistence.
A104: e/ Natural escapement includes Sandy and Lewis rivers.
A105: f/ Preliminary estimates based on preseason expectations.
A106: g/ Escapement objective is for North Lewis River, but escapement numbers include other fish. The escapement objective for the North Lewis River was met for all years except 1998, 1999, 2007, 2008, and 2009.

Sheet B-17
A2: TABLE B-17. Estimates of inriver run size, catch, and escapement in numbers of Columbia River adult Spring Creek Hatchery (SCH) stock fall Chinook.a/
C3: Lower River Catch
A4: Year or Ave. | B4: Minimum Columbia R. Return | C4: Non-Indian Commercialb/ | E4: Bonneville Dam Countd/ | F4: Above Bonneville Dam Catch | H4: Escapement
D5: Sportc/ | F5: Sporte/ | G5: Treaty Indianf/ | H5: Naturalg/ | I5: Hatcheryh/
A6: 1971
A7: 1972
A8: 1973
A9: 1974 | B9: 105,700 | C9: 37,900 | D9: 300 | E9: 67,600 | G9: 29,000 | H9: 2,900 | I9: 17,000
A10: 1975 | B10: 105,700 | C10: 37,900 | D10: 300 | E10: 67,600 | G10: 29,000 | H10: 2,900 | I10: 17,000
A11: 1976 | B11: 182,200 | C11: 40,000 | D11: 200 | E11: 142,100 | G11: 65,600 | H11: 3,100 | I11: 24,600
A12: 1977 | B12: 107,700 | C12: 41,500 | D12: 100 | E12: 66,100 | G12: 19,400 | H12: 1,300 | I12: 21,500
A13: 1978 | B13: 99,700 | C13: 23,400 | D13: 200 | E13: 76,200 | G13: 25,500 | H13: 2,400 | I13: 18,000
A14: 1979 | B14: 95,200 | C14: 22,300 | D14: 100 | E14: 72,800 | G14: 28,800 | H14: 1,900 | I14: 18,800
A15: 1980 | B15: 97,812 | C15: 31,769 | D15: 53 | E15: 57,800 | G15: 23,367 | H15: 10,719 | I15: 26,958
A16: 1981 | B16: 86,315 | C16: 3,435 | D16: 0 | E16: 75,600 | G16: 33,087 | H16: 8,856 | I16: 25,073
A17: 1982 | B17: 120,726 | C17: 35,700 | D17: 300 | E17: 80,700 | G17: 48,900 | H17: 2,500 | I17: 29,400
A18: 1983 | B18: 28,899 | C18: 3,600 | D18: 100 | E18: 24,600 | G18: 7,900 | H18: 1,000 | I18: 10,100
A19: 1984 | B19: 47,536 | C19: 5,900 | D19: 2,300 | E19: 38,100 | G19: 19,200 | H19: 700 | I19: 9,600
A20: 1985 | B20: 33,234 | C20: 100 | D20: 200 | E20: 29,900 | G20: 14,100 | H20: 500 | I20: 5,600
A21: 1986 | B21: 16,577 | C21: 4,100 | D21: 400 | E21: 8,700 | G21: 5,700 | H21: 900 | I21: 4,100
A22: 1987 | B22: 9,076 | C22: 1,600 | D22: 1,200 | E22: 4,500 | G22: 1,700 | H22: 1,300 | I22: 2,700
A23: 1988 | B23: 11,982 | C23: 3,200 | D23: 300 | E23: 6,000 | G23: 2,900 | H23: 1,600 | I23: 3,700
A24: 1989 | B24: 26,842 | C24: 4,600 | D24: 1,577 | E24: 18,300 | F24: 216 | G24: 12,700 | H24: 2,700 | I24: 4,300
A25: 1990 | B25: 18,890 | C25: 1,100 | D25: 369 | E25: 13,500 | F25: 49 | G25: 7,400 | H25: 1,000 | I25: 8,200
A26: 1991 | B26: 52,353 | C26: 4,300 | D26: 3,181 | E26: 41,618 | F26: 71 | G26: 21,000 | H26: 1,300 | I26: 12,400
A27: 1992 | B27: 29,477 | C27: 1,000 | D27: 1,400 | E27: 24,700 | F27: 67 | G27: 9,700 | H27: 1,300 | I27: 8,800
A28: 1993 | B28: 16,837 | C28: 900 | D28: 901 | E28: 13,400 | F28: 96 | G28: 5,100 | H28: 1,400 | I28: 7,900
A29: 1994 | B29: 18,473 | C29: - | D29: 0 | E29: 15,800 | F29: 166 | G29: 5,000 | H29: 1,900 | I29: 10,300
A30: 1995 | B30: 33,821 | C30: - | D30: 183 | E30: 32,300 | F30: 232 | G30: 16,000 | H30: 1,400 | I30: 9,100
A31: 1996 | B31: 33,137 | C31: 1,700 | D31: 753 | E31: 30,300 | F31: 134 | G31: 21,100 | H31: 1,300 | I31: 7,700
A32: 1997 | B32: 27,377 | C32: 0 | D32: 2,611 | E32: 23,300 | F32: 370 | G32: 10,329 | H32: 4,612 | I32: 8,688
A33: 1998 | B33: 20,158 | C33: 197 | D33: 2,407 | E33: 17,100 | F33: 149 | G33: 6,592 | H33: 2,731 | I33: 3,224
A34: 1999 | B34: 50,189 | C34: 258 | D34: 2,238 | E34: 46,800 | F34: 379 | G34: 28,197 | H34: 3,338 | I34: 14,488
A35: 2000 | B35: 20,527 | C35: 1,141 | D35: 400 | E35: 18,400 | F35: 497 | G35: 7,903 | H35: 4,085 | I35: 6,257
A36: 2001 | B36: 124,951 | C36: 3,693 | D36: 3,159 | E36: 115,800 | F36: 143 | G36: 52,124 | H36: 5,063 | I36: 36,663
A37: 2002 | B37: 158,299 | C37: 11,485 | D37: 5,790 | E37: 145,200 | F37: 864 | G37: 48,350 | H37: 8,069 | I37: 67,436
A38: 2003 | B38: 180,592 | C38: 9,850 | D38: 6,593 | E38: 161,735 | F38: 1,066 | G38: 48,204 | H38: 27,894 | I38: 56,935
A39: 2004 | B39: 175,245 | C39: 3,690 | D39: 5,074 | E39: 164,482 | F39: 540 | G39: 59,941 | H39: 14,084 | I39: 68,932
A40: 2005 | B40: 103,526 | C40: 3,981 | D40: 2,515 | E40: 98,322 | F40: 534 | G40: 49,471 | H40: 4,667 | I40: 31,977
A41: 2006 | B41: 27,917 | C41: 1,774 | D41: 195 | E41: 21,197 | F41: 459 | G41: 13,400 | H41: 1,931 | I41: 9,889
A42: 2007 | B42: 14,549 | C42: 474 | D42: 0 | E42: 13,072 | F42: 306 | G42: 5,034 | H42: 2,870 | I42: 5,899
A43: 2008 | B43: 93,860 | C43: 7,100 | D43: 3,326 | E43: 82,331 | F43: 200 | G43: 43,933 | H43: 2,765 | I43: 33,722
A44: 2009 | B44: 48,970 | C44: 5,262 | D44: 1,098 | E44: 40,268 | F44: 425 | G44: 21,622 | H44: 4,103 | I44: 13,680
A45: 2010 | B45: 130,767 | C45: 11,236 | D45: 2,650 | E45: 114,666 | F45: 649 | G45: 58,824 | H45: 4,843 | I45: 45,279
A46: 2011 | B46: 70,096 | C46: 12,196 | D46: 802 | E46: 53,655 | F46: 440 | G46: 28,801 | H46: 10,283 | I46: 17,092
A47: 2012 | B47: 56,947 | C47: 7,983 | D47: 3,067 | E47: 44,076 | F47: 319 | G47: 14,223 | H47: 5,063 | I47: 26,255
A48: 2013 | B48: 86,707 | C48: 15,823 | D48: 3,087 | E48: 62,525 | F48: 113 | G48: 29,746 | H48: 10,074 | I48: 16,307
A49: 2014 | B49: 127,000 | C49: 22,813 | D49: 4,753 | E49: 81,030 | F49: 783 | G49: 54,740 | H49: 16,655 | I49: 24,112
A50: 2015 | B50: 166,370 | C50: 22,767 | D50: 8,309 | E50: 111,900 | F50: 360 | G50: 67,922 | H50: 22,319 | I50: 43,246
A51: 2016 | B51: 44,554 | C51: 8,745 | D51: 1,834 | E51: 31,663 | F51: 543 | G51: 19,256 | H51: 5,064 | I51: 9,037
A52: 2017 | B52: 48,227 | C52: 4,949 | D52: 5,266 | E52: 38,012 | F52: 707 | G52: 21,332 | H52: 1,547 | I52: 12,443
A53: 2018 | B53: 28,861 | C53: 2,786 | D53: 2,603 | E53: 23,472 | F53: 33 | G53: 10,581 | H53: 336 | I53: 12,512
A54: 2019 | B54: 28,953 | C54: 1,537 | D54: 1,888 | E54: 25,424 | F54: 624 | G54: 10,790 | H54: 1,606 | I54: 11,763
A55: 2020 | B55: 52,688 | C55: 8,033 | D55: 1,624 | E55: 42,858 | F55: 101 | G55: 18,389 | H55: 1,018 | I55: 15,429
A56: 2021 | B56: 73,674 | C56: 11,461 | D56: 6,634 | E56: 55,222 | F56: 357 | G56: 21,859 | H56: 1,458 | I56: 27,441
A57: 2022 | B57: 258,271 | C57: 16,500 | D57: 10,458 | E57: 230,768 | F57: 1,761 | G57: 121,003 | H57: 4,141 | I57: 86,716
A58: 2023 | B58: 198,861 | C58: 18,166 | D58: 7,566 | E58: 173,129 | F58: 538 | G58: 76,197 | H58: 1,267 | I58: 63,173
A59: 2024i/ | B59: 129,007 | C59: 17,336 | D59: 5,275 | E59: 106,396 | F59: 713 | G59: 29,015 | H59: 2,349 | I59: 49,602
A60: GOAL | I60: 7,000j/
A61: a/ Based on Columbia River fall Chinook database (Preliminary Big Sheets), WDFW, unpublished. Adult Aged fish. This stock may also be referred to as Bonneville Pool Hatchery (BPH).
A62: b/ Includes Select Area fisheries.
A63: c/ Includes Bouy 10, Mainstem, and tributary catch downstream of Bonneville Dam. Includes estimates for release mortalities. 1970-1988 catch includes upriver catch.
A64: d/ Fall counting period begins August 1.
A65: e/ Includes mainstem and Zone 6 tributary catch. 1970-1988 catch included in lower river sport fisheries.
A66: f/ Includes mainstem commercial, ands ceremonial and subsistance catch.
A67: g/ Includes White Salmon, Klickitat, and Little White Salmon rivers.
A68: h/ Does not include strays to hatcheries below Bonneville Dam. Includes fall Chinook tules trapped at Bonneville Dam, 1986-1994 and 1998.
A69: i/ Preliminary estimates based on in-season run updates.
A70: j/ Escapement goal was changed from 8,200 fish to 7,000 fish, or 4,000 females, in 1994.
A81: TABLE B-17. Estimates of inriver run size, catch, and escapement in numbers of Columbia River adult Spring Creek Hatchery (SCH) stock fall Chinook.a/
C82: Lower River Catch
A83: Year or Ave. | B83: Minimum Columbia R. Return | C83: Non-Indian Commercialb/ | E83: Bonneville Dam Countd/ | F83: Catch Above Bonneville Dam | H83: Escapement
D84: Sportc/ | F84: Sporte/ | G84: Treaty Indianf/ | H84: Naturalg/ | I84: Hatcheryh/
A85: 1981-1985 | B85: =AVERAGE(B16:B20) -> 63,342 | C85: 9,747 | D85: 580 | E85: 49,780 | F85: c/ | G85: 24,637 | H85: 2,711 | I85: 15,955
A86: 1986-1990 | B86: =AVERAGE(B21:B25) -> 16,673 | C86: 2,920 | D86: 769 | E86: 10,200 | F86: =AVERAGE(F24:F25) -> 133 | G86: 6,080 | H86: 1,500 | I86: 4,600
A87: 1991-1995 | B87: =AVERAGE(B26:B30) -> 30,192 | C87: 2,067 | D87: 1,133 | E87: 25,564 | F87: 126 | G87: 11,360 | H87: 1,460 | I87: 9,700
A88: 1996-2000 | B88: =AVERAGE(B31:B35) -> 30,278 | C88: 659 | D88: 1,682 | E88: 27,180 | F88: 306 | G88: 14,824 | H88: 3,213 | I88: 8,071
A89: 2001-2005 | B89: =AVERAGE(B36:B40) -> 148,523 | C89: 6,540 | D89: 4,626 | E89: 137,108 | F89: 629 | G89: 51,618 | H89: 11,955 | I89: 52,389
A90: 2006-2010 | B90: =AVERAGE(B41:B45) -> 63,213 | C90: =AVERAGE(C41:C45) -> 5,169 | D90: 1,454 | E90: 54,307 | F90: 408 | G90: 28,563 | H90: 3,302 | I90: 21,694
A91: 2011 | B91: =B46 -> 70,096 | C91: 12,196 | D91: 802 | E91: 53,655 | F91: 440 | G91: 28,801 | H91: 10,283 | I91: 17,092
A92: 2012 | B92: 56,947 | C92: 7,983 | D92: 3,067 | E92: 44,076 | F92: 319 | G92: 14,223 | H92: 5,063 | I92: 26,255
A93: 2013 | B93: 86,707 | C93: 15,823 | D93: 3,087 | E93: 62,525 | F93: 113 | G93: 29,746 | H93: 10,074 | I93: 16,307
A94: 2014 | B94: 127,000 | C94: 22,813 | D94: 4,753 | E94: 81,030 | F94: 783 | G94: 54,740 | H94: 16,655 | I94: 24,112
A95: 2015 | B95: 166,370 | C95: 22,767 | D95: 8,309 | E95: 111,900 | F95: 360 | G95: 67,922 | H95: 22,319 | I95: 43,246
A96: 2016 | B96: 44,554 | C96: 8,745 | D96: 1,834 | E96: 31,663 | F96: 543 | G96: 19,256 | H96: 5,064 | I96: 9,037
A97: 2017 | B97: 48,227 | C97: 4,949 | D97: 5,266 | E97: 38,012 | F97: 707 | G97: 21,332 | H97: 1,547 | I97: 12,443
A98: 2018 | B98: =B53 -> 28,861 | C98: 2,786 | D98: 2,603 | E98: =E53 -> 23,472 | F98: =F53 -> 33 | G98: 10,581 | H98: 336 | I98: 12,512
A99: 2019 | B99: 28,953 | C99: 1,537 | D99: 1,888 | E99: =E54 -> 25,424 | F99: 624 | G99: 10,790 | H99: 1,606 | I99: 11,763
A100: 2020 | B100: 52,688 | C100: 8,033 | D100: 1,624 | E100: =E55 -> 42,858 | F100: 101 | G100: 18,389 | H100: 1,018 | I100: 15,429
A101: 2021 | B101: 73,674 | C101: 11,461 | D101: 6,634 | E101: =E56 -> 55,222 | F101: 357 | G101: 21,859 | H101: 1,458 | I101: 27,441
A102: 2022 | B102: 258,271 | C102: 16,500 | D102: 10,458 | E102: =E57 -> 230,768 | F102: 1,761 | G102: 121,003 | H102: 4,141 | I102: 86,716
A103: 2023 | B103: =B58 -> 198,861 | C103: 18,166 | D103: 7,566 | E103: =E58 -> 173,129 | F103: =F58 -> 538 | G103: 76,197 | H103: 1,267 | I103: 63,173
A104: 2024i/ | B104: =B59 -> 129,007 | C104: 17,336 | D104: 5,275 | E104: =E59 -> 106,396 | F104: =F59 -> 713 | G104: 29,015 | H104: 2,349 | I104: 49,602
A105: GOAL | I105: 7,000j/
A106: =A61 -> a/ Based on Columbia River fall Chinook database (Preliminary Big Sheets), WDFW, unpublished. Adult Aged fish. This stock may also be referred to as Bonneville Pool Hatchery (BPH).
A107: b/ Includes Select Area fisheries.
A108: c/ Includes Bouy 10, Mainstem, and tributary catch downstream of Bonneville Dam. Includes estimates for release mortalities. 1970-1988 catch includes upriver catch.
A109: d/ Fall counting period begins August 1.
A110: e/ Includes mainstem and Zone 6 tributary catch. 1970-1988 catch included in lower river sport fisheries.
A111: f/ Includes mainstem commercial, ands ceremonial and subsistance catch.
A112: =A67 -> g/ Includes White Salmon, Klickitat, and Little White Salmon rivers.
A113: =A68 -> h/ Does not include strays to hatcheries below Bonneville Dam. Includes fall Chinook tules trapped at Bonneville Dam, 1986-1994 and 1998.
A114: =A69 -> i/ Preliminary estimates based on in-season run updates.
A115: =A70 -> j/ Escapement goal was changed from 8,200 fish to 7,000 fish, or 4,000 females, in 1994.

Sheet B-18
A2: TABLE B-18. Estimates of inriver run size, catch, and escapement in numbers of Columbia River adult mid-Columbia bright (MCB) stock fall Chinook destined for areas below McNary Dam, not including the Deschutes River.a/
B3: Minimum Columbia R. Return | C3: Lower River Catch | F3: Above Bonneville Catch
C4: Non-Indian Commercialb/ | E4: Bonneville Dam Count | G4: Treaty Indiane/ | H4: Escapement
A5: Year or Ave. | D5: Sportc/ | F5: Sportd/ | H5: Naturalf/ | I5: Hatcheryg/
A6: 1971
A7: 1972
A8: 1973
A9: 1974
A10: 1975
A11: 1976
A12: 1977
A13: 1978
A14: 1979
A15: 1980
A16: 1981
A17: 1982 | B17: 8,800 | C17: 700 | D17: 0 | E17: 4,800 | G17: 2,000 | H17: 0 | I17: 2,900
A18: 1983 | B18: 14,400 | C18: 1,100 | D18: 100 | E18: 8,100 | G18: 2,700 | H18: 0 | I18: 4,900
A19: 1984 | B19: 11,800 | C19: 3,200 | D19: 200 | E19: 5,100 | G19: 1,600 | H19: 0 | I19: 3,200
A20: 1985 | B20: 6,100 | C20: 1,700 | D20: 100 | E20: 1,700 | G20: 1,200 | H20: 0 | I20: 2,800
A21: 1986 | B21: 17,400 | C21: 6,500 | D21: 400 | E21: 8,400 | G21: 5,900 | H21: 300 | I21: 2,300
A22: 1987 | B22: 57,000 | C22: 24,400 | D22: 1,400 | E22: 26,100 | G22: 16,000 | H22: 4,700 | I22: 6,500
A23: 1988 | B23: 78,000 | C23: 37,900 | D23: 2,800 | E23: 30,900 | G23: 21,900 | H23: 5,900 | I23: 8,500
A24: 1989 | B24: 93,100 | C24: 46,200 | D24: 3,331 | E24: 32,000 | F24: 349 | G24: 21,900 | H24: 5,000 | I24: 14,100
A25: 1990 | B25: 58,970 | C25: 17,734 | D25: 2,275 | E25: 26,500 | F25: 812 | G25: 15,738 | H25: 5,366 | I25: 14,569
A26: 1991 | B26: 35,386 | C26: 9,069 | D26: 596 | E26: 18,300 | F26: 525 | G26: 6,870 | H26: 5,586 | I26: 10,282
A27: 1992 | B27: 31,105 | C27: 5,558 | D27: 1,493 | E27: 16,800 | F27: 344 | G27: 5,144 | H27: 6,838 | I27: 9,590
A28: 1993 | B28: 27,439 | C28: 4,833 | D28: 990 | E28: 16,700 | F28: 395 | G28: 6,872 | H28: 4,352 | I28: 7,853
A29: 1994 | B29: 33,712 | C29: 1,209 | D29: 104 | E29: 21,500 | F29: 827 | G29: 4,677 | H29: 12,192 | I29: 11,411
A30: 1995 | B30: 34,120 | C30: 85 | D30: 1,607 | E30: 23,500 | F30: 1,227 | G30: 6,505 | H30: 7,665 | I30: 14,019
A31: 1996 | B31: 59,698 | C31: 5,306 | D31: 1,870 | E31: 38,100 | F31: 1,517 | G31: 12,443 | H31: 15,618 | I31: 15,868
A32: 1997 | B32: 58,932 | C32: 3,320 | D32: 4,655 | E32: 36,600 | F32: 1,862 | G32: 11,596 | H32: 15,916 | I32: 15,808
A33: 1998 | B33: 37,328 | C33: 1,063 | D33: 3,494 | E33: 29,900 | F33: 2,203 | G33: 5,570 | H33: 11,380 | I33: 8,401
A34: 1999 | B34: 50,788 | C34: 1,543 | D34: 3,242 | E34: 40,400 | F34: 2,685 | G34: 10,581 | H34: 17,213 | I34: 7,334
A35: 2000 | B35: 37,191 | C35: 3,739 | D35: 2,289 | E35: 25,600 | F35: 1,218 | G35: 7,186 | H35: 10,135 | I35: 7,884
A36: 2001 | B36: 76,504 | C36: 7,023 | D36: 7,015 | E36: 48,100 | F36: 2,565 | G36: 16,821 | H36: 14,600 | I36: 13,701
A37: 2002 | B37: 108,198 | C37: 9,437 | D37: 9,888 | E37: 57,600 | F37: 2,849 | G37: 24,358 | H37: 27,005 | I37: 21,946
A38: 2003 | B38: 150,042 | C38: 20,432 | D38: 10,732 | E38: 97,179 | F38: 2,072 | G38: 27,830 | H38: 38,204 | I38: 24,175
A39: 2004 | B39: 122,496 | C39: 9,178 | D39: 7,880 | E39: 79,866 | F39: 3,287 | G39: 23,392 | H39: 27,779 | I39: 26,210
A40: 2005 | B40: 100,333 | C40: 6,590 | D40: 7,547 | E40: 60,464 | F40: 3,180 | G40: 23,158 | H40: 14,271 | I40: 30,991
A41: 2006 | B41: 80,470 | C41: 4,577 | D41: 669 | E41: 31,402 | F41: 2,898 | G41: 22,705 | H41: 12,501 | I41: 19,745
A42: 2007 | B42: 47,556 | C42: 6,665 | D42: 1,155 | E42: 29,029 | F42: 1,373 | G42: 13,369 | H42: 5,559 | I42: 13,053
A43: 2008 | B43: 76,297 | C43: 10,349 | D43: 4,025 | E43: 44,210 | F43: 1,623 | G43: 23,260 | H43: 6,813 | I43: 21,409
A44: 2009 | B44: 73,069 | C44: 8,508 | D44: 3,965 | E44: 41,298 | F44: 3,468 | G44: 21,213 | H44: 9,320 | I44: 22,003
A45: 2010 | B45: 78,937 | C45: 3,719 | D45: 3,390 | E45: 50,878 | F45: 2,570 | G45: 22,009 | H45: 7,904 | I45: 33,391
A46: 2011 | B46: 87,262 | C46: 7,596 | D46: 7,232 | E46: 58,775 | F46: 963 | G46: 27,569 | H46: 12,399 | I46: 24,923
A47: 2012 | B47: 63,363 | C47: 5,841 | D47: 3,850 | E47: 44,306 | F47: 7,490 | G47: 14,804 | H47: 12,860 | I47: 17,052
A48: 2013 | B48: 243,508 | C48: 16,947 | D48: 10,875 | E48: 187,748 | F48: 16,508 | G48: 52,261 | H48: 65,999 | I48: 58,045
A49: 2014 | B49: 203,734 | C49: 20,902 | D49: 9,527 | E49: 154,971 | F49: 16,874 | G49: 74,477 | H49: 34,996 | I49: 34,075
A50: 2015 | B50: 170,620 | C50: 14,536 | D50: 11,910 | E50: 123,722 | F50: 14,037 | G50: 56,405 | H50: 31,305 | I50: 30,744
A51: 2016 | B51: 88,299 | C51: 9,460 | D51: 4,526 | E51: 59,300 | F51: 9,476 | G51: 28,184 | H51: 19,290 | I51: =7483+870+7453 -> 15,806
A52: 2017 | B52: 47,367 | C52: 1,087 | D52: 5,914 | E52: 33,820 | F52: 5,347 | G52: 18,598 | H52: 6,261 | I52: 7,750
A53: 2018 | B53: 36,009 | C53: 440 | D53: 951 | E53: 27,972 | F53: 7,623 | G53: 14,858 | H53: 5,646 | I53: 6,354
A54: 2019 | B54: 58,140 | C54: 1,457 | D54: 2,275 | E54: 54,380 | F54: 5,109 | G54: 14,978 | H54: 15,924 | I54: 16,636
A55: 2020 | B55: 101,928 | C55: 7,026 | D55: 7,184 | E55: 87,621 | F55: 8,325 | G55: 31,937 | H55: 12,357 | I55: 17,216
A56: 2021 | B56: 66,077 | C56: 3,694 | D56: 3,832 | E56: 58,551 | F56: 8,140 | G56: 21,019 | H56: 11,999 | I56: 12,645
A57: 2022 | B57: 67,661 | C57: 2,944 | D57: 4,766 | E57: 59,951 | F57: 6,814 | G57: 18,078 | H57: 15,033 | I57: 15,790
A58: 2023 | B58: 73,664 | C58: 2,312 | D58: 6,298 | E58: 65,054 | F58: 13,004 | G58: 12,482 | H58: 14,896 | I58: 13,342
A59: 2024h/ | B59: 87,572 | C59: 7,653 | D59: 6,239 | E59: 73,680 | F59: 10,024 | G59: 13,801 | H59: 17,729 | I59: 16,131
A60: a/ Based on Columbia River fall Chinook database (Preliminary Big Sheets), WDFW, unpublished. Adult Aged fish. The MCB stock includes Bonneville upriver brights (BUBs) and Pool upriver brights (PUBs). A portion of the BUB stock includes lower river brights (LRBs) that spawn naturally downstream of Bonneville Dam. In 2013, hatchery production of BUBs was discontinued and production shifted to PUB. Since 2018, the MCB stock has consisted of PUB stock and the minor LRB component.
A61: b/ Mainstem and Select Areas downstream of Bonneville Dam.
A62: c/ Mainstem and tributary downstream of Bonneville Dam. 1982-88 includes catch from upriver sport.
A63: d/ Mainstem and tributary between Bonneville and McNary dam (Zone 6). 1982-88 catch from upriver sport included in lowe river sport catch.
A64: e/ Mainstem and tributary between Bonneville and McNary dam (Zone 6). Includes commercial, ceremonial, and subsistence catch.
A65: f/ Includes Little White Salmon, Klickitat, and Umatilla rivers.
A66: g/ Includes Little White Salmon, Bonneville, Umatilla, and Klickitat hatcheries.
A67: h/ Preliminary estimates based on in-season run updates.
A82: TABLE B-18. Estimates of inriver run size, catch, and escapement in numbers of Columbia River adult mid-Columbia bright (MCB) stock fall Chinook destined for areas below McNary Dam.a/
B83: Minimum Columbia R. Return | C83: Lower River Catch | F83: Above Bonneville Catch
C84: Non-Indian Commercialb/ | E84: Bonneville Dam Count | G84: Treaty Indiane/ | H84: Escapement
A85: Year or Ave. | D85: Sportc/ | F85: Sportd/ | H85: Naturalf/ | I85: Hatcheryg/
A86: 1982-1985 | B86: =AVERAGE(B17:B20) -> 10,275 | C86: =AVERAGE(C17:C20) -> 1,675 | D86: 100 | E86: 4,925 | F86: c/ | G86: 1,875 | H86: 0 | I86: 3,450
A87: 1986-1990 | B87: =AVERAGE(B21:B25) -> 60,894 | C87: =AVERAGE(C21:C25) -> 26,547 | D87: 2,041 | E87: 24,780 | F87: =AVERAGE(F24:F25) -> 581 | G87: 16,288 | H87: 4,253 | I87: 9,194
A88: 1991-1995 | B88: =AVERAGE(B26:B30) -> 32,352 | C88: =AVERAGE(C26:C30) -> 4,151 | D88: 958 | E88: 19,360 | F88: 664 | G88: 6,014 | H88: 7,327 | I88: 10,631
